{"text_format":"1","workbook":"xlsx","n_sheets":5,"sheets":["بيانات المركز.","prof","حساب عدد الأيام","توزيع الحراس","أيام الحراسة"],"not_rendered":{"charts":0,"images":5,"macros":1,"external_links":29,"defined_names":413,"comments":0,"pivot_tables":0},"unopened":[],"bounds":{"document_bytes":16777216,"sheet_cells":100000,"rows_first":2000,"rows_last":500,"rows_between":2000,"halvings":0,"cell_chars":16384,"cell_head_chars":4096},"cells_cut":0,"cells_raw":0,"read":"whole","date_system":"1900"}

{"sheet":"بيانات المركز.","index":0,"n_rows":19,"n_cols":22,"rows_kept":19,"cut":false,"hidden":false,"merged":[[0,10,0,17],[18,21,18,25],[3,9,3,20],[16,5,16,7],[16,9,16,14],[17,0,17,5],[18,0,18,2],[18,3,18,7],[18,17,18,20],[12,0,12,5],[12,6,12,13],[12,15,12,20],[12,21,12,25],[13,0,13,1],[14,0,14,1],[14,2,14,6],[6,21,6,25],[14,7,14,8],[14,9,14,17],[8,0,8,2],[8,3,8,9],[8,10,8,15],[8,16,8,25],[10,0,10,2],[10,3,10,9],[10,11,10,14],[10,15,10,20],[10,21,10,25],[1,10,1,17],[4,0,4,7],[6,0,6,3],[6,4,6,9],[6,17,6,20],[4,9,4,10],[4,15,4,16]]}
[null,null,null,null,null,null,null,null,null,null,"الجمهوريــة الجزائريــة الديمقراطيــة الشعبيــة"]
[null,null,null,null,null,null,null,null,null,null,"وزارة التربية الوطنية"]
["الدّيوان الوطني للامتحانات و المسابقات "]
[null,null,null,null,null,null,null,null,null,"بطاقــة استعلامــات المركــز"]
[]
[]
["اختر نوع المركز",null,null,null,"الإجـــراء",null,null,null,null,null,null,null,null,null,null,null,null,"الرمـــــــز :",null,null,null,390044]
[]
["الولايـــة :",null,null,"الوادي",null,null,null,null,null,null,"مؤسسة الإجراء / الإغفال / التصحيح",null,null,null,null,null,"ثانوية المجتهد - الوادي"]
[]
["البلديـــة :",null,null,"النخلــــة",null,null,null,null,null,null,null,null,null,null,null,"رئيس(ة) مركز الإجراء :",null,null,null,null,null,"مصطفى مصطفى"]
[]
["اختـــر نوع امتحان شهادة   :",null,null,null,null,null,"إمتحــان شهـادة البكالـــوريا",null,null,null,null,null,null,null,null,"الإطـــــــــــــــــار :",null,null,null,null,null,"مدير ثانوية"]
[]
["فــرع  :",null,"غرداية",null,null,null,null,"العنوان :",null,".ص . ب رقم 1454 بلغـــنم غرداية "]
[]
[null,null,null,null,null,"رقم الهاتف :",null,null,null,"023.45.47.14"]
[]
["الـــــدّورة  :",null,null,"جــــوان 2021",null,null,null,null,null,null,null,null,null,null,null,null,null,"تاريخ الامتحان :",null,null,null,"2021-06-20"]

{"sheet":"prof","index":1,"n_rows":657,"n_cols":15,"rows_kept":657,"cut":false,"hidden":false,"merged":[]}
["الرقم الترتيبي","الرقم","اللقب والاسم","الرتبة","الطور","مادة التدريس","المؤسسة","المقاطعة","العنوان","بلدية الاقامة","نوع المركز","اسم مركز التصحيح","مركز اجراء بكالوريا","مركز اجراء ش ت م","المهمة"]
[1,12452174,"محمد علي1","أستاذ تعليم ثانوي","ثا -","العلوم الاسلامية","سعد شعباني - الرقيبة","","النخلة","النخلة","مركز اجراء امتحان ش البكالوريا","","ثانوية الشهيد بن حمده علي  - النخلة","",""]
[2,12452175,"محمد علي2","أستاذ رئيسي في التعليم الثانوي","ثا -","الفرنسية","مفدي زكرياء - البياضة","","حي 18 فبراير","البياضة","مركز اجراء امتحان ش البكالوريا","","ثانوية الشهيد بن حمده علي  - النخلة","",""]
[3,12452176,"محمد علي3","أستاذ مكون في التعليم الثانوي","ثا -","الانجليزية","مفدي زكرياء - البياضة","","حي الكرامة ا","البياضة","مركز اجراء امتحان ش البكالوريا","","ثانوية الشهيد بن حمده علي  - النخلة","",""]
[4,12452177,"محمد علي4","أستاذ رئيسي في التعليم الثانوي","ثا -","الانجليزية","مفدي زكرياء - البياضة","","حي 1 نوفمبر","البياضة","مركز اجراء امتحان ش البكالوريا","","ثانوية الشهيد بن حمده علي  - النخلة","",""]
[5,12452178,"محمد علي5","أستاذ مكون في التعليم الثانوي","ثا -","هندسة الطرائق","مفدي زكرياء - البياضة","","حي الصومام","البياضة","مركز اجراء امتحان ش البكالوريا","","ثانوية الشهيد بن حمده علي  - النخلة","",""]
[6,12452179,"محمد علي6","أستاذ تعليم ثانوي","ثا -","الرياضيات","مفدي زكرياء - البياضة","","حي القدس","البياضة","مركز اجراء امتحان ش البكالوريا","","ثانوية الشهيد بن حمده علي  - النخلة","",""]
[7,12452180,"محمد علي7","أستاذ تعليم ثانوي","ثا -","الاقتصاد و المناجمنت","لقرع محمد الضيف - الرباح","","حي علي دربال","الرباح","مركز اجراء امتحان ش البكالوريا","","ثانوية الشهيد بن حمده علي  - النخلة","",""]
[8,12452181,"محمد علي8","أستاذ تعليم ثانوي","ثا -","الاقتصاد و المناجمنت","لقرع محمد الضيف - الرباح","","حي علي دربال","الرباح","مركز اجراء امتحان ش البكالوريا","","ثانوية الشهيد بن حمده علي  - النخلة","",""]
[9,12452182,"محمد علي9","أستاذ تعليم ثانوي","ثا -","الرياضيات","مفدي زكرياء - البياضة","","النخلة","النخلة","مركز اجراء امتحان ش البكالوريا","","ثانوية الشهيد بن حمده علي  - النخلة","",""]
[10,12452183,"محمد علي10","أستاذ رئيسي في التعليم الثانوي","ثا -","الفلسفة","مفدي زكرياء - البياضة","","حي 81 سكن","البياضة","مركز اجراء امتحان ش البكالوريا","","ثانوية الشهيد بن حمده علي  - النخلة","",""]
[11,12452184,"محمد علي11","أستاذ مكون في التعليم الثانوي","ثا -","الرياضيات","مفدي زكرياء - البياضة","","حي اولاد عياد","البياضة","مركز اجراء امتحان ش البكالوريا","","ثانوية الشهيد بن حمده علي  - النخلة","",""]
[12,12452185,"محمد علي12","أستاذ رئيسي في التعليم الثانوي","ثا -","الفيزياء","مفدي زكرياء - البياضة","","حي محمد بوضياف","البياضة","مركز اجراء امتحان ش البكالوريا","","ثانوية الشهيد بن حمده علي  - النخلة","",""]
[13,12452186,"محمد علي13","أستاذ رئيسي في التعليم الثانوي","ثا -","الفيزياء","مفدي زكرياء - البياضة","","النخلة","النخلة","مركز اجراء امتحان ش البكالوريا","","ثانوية الشهيد بن حمده علي  - النخلة","",""]
[14,12452187,"محمد علي14","أستاذ رئيسي في التعليم الثانوي","ثا -","علوم طبيعية","مفدي زكرياء - البياضة","","حي الصوالح","البياضة","مركز اجراء امتحان ش البكالوريا","","ثانوية الشهيد بن حمده علي  - النخلة","",""]
[15,12452188,"محمد علي15","أستاذ رئيسي في التعليم الثانوي","ثا -","علوم طبيعية","مفدي زكرياء - البياضة","","حي الكرامة ا","البياضة","مركز اجراء امتحان ش البكالوريا","","ثانوية الشهيد بن حمده علي  - النخلة","",""]
[16,12452189,"محمد علي16","أستاذ رئيسي في التعليم الثانوي","ثا -","الفيزياء","مفدي زكرياء - البياضة","","حي القدس","البياضة","مركز اجراء امتحان ش البكالوريا","","ثانوية الشهيد بن حمده علي  - النخلة","",""]
[17,12452190,"محمد علي17","أستاذ رئيسي في التعليم الثانوي","ثا -","علوم طبيعية","مفدي زكرياء - البياضة","","حي الإستقلال","البياضة","مركز اجراء امتحان ش البكالوريا","","ثانوية الشهيد بن حمده علي  - النخلة","",""]
[18,12452191,"محمد علي18","أستاذ رئيسي في التعليم الثانوي","ثا -","علوم طبيعية","مفدي زكرياء - البياضة","","حي 81 سكن","البياضة","مركز اجراء امتحان ش البكالوريا","","ثانوية الشهيد بن حمده علي  - النخلة","",""]
[19,12452192,"محمد علي19","أستاذ تعليم ثانوي","ثا -","الفيزياء","خوازم الطاهر - البياضة","","أول نوفمبر 1954 البياضة","البياضة","مركز اجراء امتحان ش البكالوريا","","ثانوية الشهيد بن حمده علي  - النخلة","",""]
[20,12452193,"محمد علي20","أستاذ رئيسي في التعليم الثانوي","ثا -","الرياضيات","خوازم الطاهر - البياضة","","الخبنة -النخلة","النخلة","مركز اجراء امتحان ش البكالوريا","","ثانوية الشهيد بن حمده علي  - النخلة","",""]
[21,12452194,"محمد علي21","أستاذ تعليم ثانوي","ثا -","الرياضيات","خوازم الطاهر - البياضة","","السلام -البياضة","البياضة","مركز اجراء امتحان ش البكالوريا","","ثانوية الشهيد بن حمده علي  - النخلة","",""]
[22,12452195,"محمد علي22","أستاذ رئيسي في التعليم الثانوي","ثا -","الرياضيات","خوازم الطاهر - البياضة","","حي السلام","البياضة","مركز اجراء امتحان ش البكالوريا","","ثانوية الشهيد بن حمده علي  - النخلة","",""]
[23,12452196,"محمد علي23","أستاذ رئيسي في التعليم الثانوي","ثا -","الرياضيات","خوازم الطاهر - البياضة","","أول نوفمبر 1954 البياضة","البياضة","مركز اجراء امتحان ش البكالوريا","","ثانوية الشهيد بن حمده علي  - النخلة","",""]
[24,12452197,"محمد علي24","أستاذ رئيسي في التعليم الثانوي","ثا -","العلوم الاسلامية","خوازم الطاهر - البياضة","","أول نوفمبر 1954 البياضة","البياضة","مركز اجراء امتحان ش البكالوريا","","ثانوية الشهيد بن حمده علي  - النخلة","",""]
[25,12452198,"محمد علي25","أستاذ تعليم ثانوي","ثا -","التاريخ والجغرافيا","خوازم الطاهر - البياضة","","أولاد مياسة -الرباح","الرباح","مركز اجراء امتحان ش البكالوريا","","ثانوية الشهيد بن حمده علي  - النخلة","",""]
[26,12452199,"محمد علي26","أستاذ رئيسي في التعليم الثانوي","ثا -","الرياضيات","تجاني أمحمد - البياضة","","البياضة","البياضة","مركز اجراء امتحان ش البكالوريا","","ثانوية الشهيد بن حمده علي  - النخلة","",""]
[27,12452200,"محمد علي27","أستاذ تعليم ثانوي","ثا -","الفرنسية","خوازم الطاهر - البياضة","","العواشير -الرباح","الرباح","مركز اجراء امتحان ش البكالوريا","","ثانوية الشهيد بن حمده علي  - النخلة","",""]
[28,12452201,"محمد علي28","أستاذ مكون في التعليم الثانوي","ثا -","الهندسة الميكانيكية","كركوبية خليفة - الرباح","","حي النخلة الشرقية النخلة","النخلة","مركز اجراء امتحان ش البكالوريا","","ثانوية الشهيد بن حمده علي  - النخلة","",""]
[29,12452202,"محمد علي29","أستاذ تعليم ثانوي","ثا -","هندسة الطرائق","كركوبية خليفة - الرباح","","حي النخلة الشرقية النخلة","النخلة","مركز اجراء امتحان ش البكالوريا","","ثانوية الشهيد بن حمده علي  - النخلة","",""]
[30,12452203,"محمد علي30","أستاذ مكون في التعليم الثانوي","ثا -","علوم طبيعية","لقرع محمد الضيف - الرباح","","حي البغازلية","الرباح","مركز اجراء امتحان ش البكالوريا","","ثانوية الشهيد بن حمده علي  - النخلة","",""]
[31,12452204,"محمد علي31","أستاذ مكون في التعليم الثانوي","ثا -","العلوم الاسلامية","لقرع محمد الضيف - الرباح","","حي علي دربال","الرباح","مركز اجراء امتحان ش البكالوريا","","ثانوية الشهيد بن حمده علي  - النخلة","",""]
[32,12452205,"محمد علي32","أستاذ رئيسي في التعليم الثانوي","ثا -","الفيزياء","لقرع محمد الضيف - الرباح","","حي النخلة","النخلة","مركز اجراء امتحان ش البكالوريا","","ثانوية الشهيد بن حمده علي  - النخلة","",""]
[33,12452206,"محمد علي33","أستاذ رئيسي في التعليم الثانوي","ثا -","العربية","لقرع محمد الضيف - الرباح","","حي البغازلية","الرباح","مركز اجراء امتحان ش البكالوريا","","ثانوية الشهيد بن حمده علي  - النخلة","",""]
[34,12452207,"محمد علي34","أستاذ رئيسي في التعليم الثانوي","ثا -","علوم طبيعية","لقرع محمد الضيف - الرباح","","حي علي دربال","الرباح","مركز اجراء امتحان ش البكالوريا","","ثانوية الشهيد بن حمده علي  - النخلة","",""]
[35,12452208,"محمد علي35","أستاذ تعليم ثانوي","ثا -","الانجليزية","لقرع محمد الضيف - الرباح","","النخلة","النخلة","مركز اجراء امتحان ش البكالوريا","","ثانوية الشهيد بن حمده علي  - النخلة","",""]
[36,12452209,"محمد علي36","أستاذ مكون في التعليم الثانوي","ثا -","الرياضيات","لقرع محمد الضيف - الرباح","","حي البغازلية","الرباح","مركز اجراء امتحان ش البكالوريا","","ثانوية الشهيد بن حمده علي  - النخلة","",""]
[37,12452210,"محمد علي37","أستاذ رئيسي في التعليم الثانوي","ثا -","العربية","خوازم الطاهر - البياضة","","أول نوفمبر 1954 البياضة","البياضة","مركز اجراء امتحان ش البكالوريا","","ثانوية الشهيد بن حمده علي  - النخلة","",""]
[38,12452211,"محمد علي38","أستاذ رئيسي في التعليم الثانوي","ثا -","الانجليزية","تجاني أمحمد - البياضة","","البياضة","البياضة","مركز اجراء امتحان ش البكالوريا","","ثانوية الشهيد بن حمده علي  - النخلة","",""]
[39,12452212,"محمد علي39","أستاذ تعليم ثانوي","ثا -","علوم طبيعية","تجاني أمحمد - البياضة","","البياضة","البياضة","مركز اجراء امتحان ش البكالوريا","","ثانوية الشهيد بن حمده علي  - النخلة","",""]
[40,12452213,"محمد علي40","أستاذ تعليم ثانوي","ثا -","التاريخ والجغرافيا","تجاني أمحمد - البياضة","","الخبنة","النخلة","مركز اجراء امتحان ش البكالوريا","","ثانوية الشهيد بن حمده علي  - النخلة","",""]
[41,12452214,"محمد علي41","أستاذ مكون في التعليم الثانوي","ثا -","التاريخ والجغرافيا","تجاني أمحمد - البياضة","","البياضة","البياضة","مركز اجراء امتحان ش البكالوريا","","ثانوية الشهيد بن حمده علي  - النخلة","",""]
[42,12452215,"محمد علي42","أستاذ مكون في التعليم الثانوي","ثا -","علوم طبيعية","تجاني أمحمد - البياضة","","البياضة","البياضة","مركز اجراء امتحان ش البكالوريا","","ثانوية الشهيد بن حمده علي  - النخلة","",""]
[43,12452216,"محمد علي43","أستاذ تعليم ثانوي","ثا -","التربية البدنية","خوازم الطاهر - البياضة","","العواشير -الرباح","الرباح","مركز اجراء امتحان ش البكالوريا","","ثانوية الشهيد بن حمده علي  - النخلة","",""]
[44,12452217,"محمد علي44","أستاذ تعليم ثانوي","ثا -","الفلسفة","خوازم الطاهر - البياضة","","علي دربال -الرباح","الرباح","مركز اجراء امتحان ش البكالوريا","","ثانوية الشهيد بن حمده علي  - النخلة","",""]
[45,12452218,"محمد علي45","أستاذ تعليم ثانوي","ثا -","الاقتصاد و المناجمنت","خوازم الطاهر - البياضة","","5جويلية 1962 البياضة","البياضة","مركز اجراء امتحان ش البكالوريا","","ثانوية الشهيد بن حمده علي  - النخلة","",""]
[46,12452219,"محمد علي46","أستاذ تعليم ثانوي","ثا -","الرياضيات","تجاني أمحمد - البياضة","","البياضة","البياضة","مركز اجراء امتحان ش البكالوريا","","ثانوية الشهيد بن حمده علي  - النخلة","",""]
[47,12452220,"محمد علي47","أستاذ تعليم ثانوي","ثا -","الفلسفة","تجاني أمحمد - البياضة","","الرباح","الرباح","مركز اجراء امتحان ش البكالوريا","","ثانوية الشهيد بن حمده علي  - النخلة","",""]
[48,12452221,"محمد علي48","أستاذ تعليم ثانوي","ثا -","الاقتصاد و المناجمنت","تجاني أمحمد - البياضة","","البياضة","البياضة","مركز اجراء امتحان ش البكالوريا","","ثانوية الشهيد بن حمده علي  - النخلة","",""]
[49,12452222,"محمد علي49","أستاذ مكون في التعليم الثانوي","ثا -","هندسة الطرائق","تجاني أمحمد - البياضة","","البياضة","البياضة","مركز اجراء امتحان ش البكالوريا","","ثانوية الشهيد بن حمده علي  - النخلة","",""]
[50,12452223,"محمد علي50","أستاذ مكون في التعليم الثانوي","ثا -","العربية","خوازم الطاهر - البياضة","","أول نوفمبر 1954 البياضة","البياضة","مركز اجراء امتحان ش البكالوريا","","ثانوية الشهيد بن حمده علي  - النخلة","",""]
[51,12452224,"محمد علي51","أستاذ رئيسي في التعليم الثانوي","ثا -","التربية البدنية","تجاني أمحمد - البياضة","","النخلة","النخلة","مركز اجراء امتحان ش البكالوريا","","ثانوية الشهيد بن حمده علي  - النخلة","",""]
[52,12452225,"محمد علي52","أستاذ رئيسي في التعليم الثانوي","ثا -","الفرنسية","تجاني أمحمد - البياضة","","البياضة","البياضة","مركز اجراء امتحان ش البكالوريا","","ثانوية الشهيد بن حمده علي  - النخلة","",""]
[53,12452226,"محمد علي53","أستاذ تعليم ثانوي","ثا -","الرياضيات","تجاني أمحمد - البياضة","","البياضة","البياضة","مركز اجراء امتحان ش البكالوريا","","ثانوية الشهيد بن حمده علي  - النخلة","",""]
[54,12452227,"محمد علي54","أستاذ رئيسي في التعليم الثانوي","ثا -","الفيزياء","خوازم الطاهر - البياضة","","الصوالح -البياضة","البياضة","مركز اجراء امتحان ش البكالوريا","","ثانوية الشهيد بن حمده علي  - النخلة","",""]
[55,12452228,"محمد علي55","أستاذ رئيسي في التعليم الثانوي","ثا -","العربية","تجاني أمحمد - البياضة","","البياضة","البياضة","مركز اجراء امتحان ش البكالوريا","","ثانوية الشهيد بن حمده علي  - النخلة","",""]
[56,12452229,"محمد علي56","أستاذ تعليم ثانوي","ثا -","الاقتصاد و المناجمنت","مفدي زكرياء - البياضة","","حي أولاد مياسة","الرباح","مركز اجراء امتحان ش البكالوريا","","ثانوية الشهيد بن حمده علي  - النخلة","",""]
[57,12452230,"محمد علي57","أستاذ رئيسي في التعليم الثانوي","ثا -","الفيزياء","كركوبية خليفة - الرباح","","حي الخبنة النخلة","النخلة","مركز اجراء امتحان ش البكالوريا","","ثانوية الشهيد بن حمده علي  - النخلة","",""]
[58,12452231,"محمد علي58","أستاذ رئيسي في التعليم الثانوي","ثا -","الفيزياء","كركوبية خليفة - الرباح","","حي العقيلة العقلة","العقلة","مركز اجراء امتحان ش البكالوريا","","ثانوية الشهيد بن حمده علي  - النخلة","",""]
[59,12452232,"محمد علي59","أستاذ رئيسي في التعليم الابتدائي","إ -","العربية","بوغزالة حمد عبد الكامل- النخلة","الرباح","حي العقيلة","العقلة","مركز اجراء امتحان ش البكالوريا","","ثانوية الشهيد بن حمده علي  - النخلة","",""]
[60,12452233,"محمد علي60","استاذ تعليم ابتدائي","إ -","العربية","قطوطة عمارة- العقلة","الرباح","حي محمد بوضياف","العقلة","مركز اجراء امتحان ش البكالوريا","","ثانوية الشهيد بن حمده علي  - النخلة","",""]
[61,12452234,"محمد علي61","استاذ تعليم ابتدائي","إ -","العربية","قطوطة عمارة- العقلة","الرباح","حي بن عمر الجيلاني","العقلة","مركز اجراء امتحان ش البكالوريا","","ثانوية الشهيد بن حمده علي  - النخلة","",""]
[62,12452235,"محمد علي62","أستاذ رئيسي في التعليم الابتدائي","إ -","العربية","قطوطة عمارة- العقلة","الرباح","حي محمد بوضياف","العقلة","مركز اجراء امتحان ش البكالوريا","","ثانوية الشهيد بن حمده علي  - النخلة","",""]
[63,12452236,"محمد علي63","أستاذ رئيسي في التعليم الابتدائي","إ -","العربية","قطوطة عمارة- العقلة","الرباح","حي محمد بوضياف","العقلة","مركز اجراء امتحان ش البكالوريا","","ثانوية الشهيد بن حمده علي  - النخلة","",""]
[64,12452237,"محمد علي64","استاذ تعليم ابتدائي","إ -","الفرنسية","قطوطة عمارة- العقلة","الرباح","حي بن عمر الجيلاني","العقلة","مركز اجراء امتحان ش البكالوريا","","ثانوية الشهيد بن حمده علي  - النخلة","",""]
[65,12452238,"محمد علي65","استاذ تعليم ابتدائي","إ -","العربية","قطوطة عمارة- العقلة","الرباح","حي بن عمر الجيلاني","العقلة","مركز اجراء امتحان ش البكالوريا","","ثانوية الشهيد بن حمده علي  - النخلة","",""]
[66,12452239,"محمد علي66","استاذ تعليم ابتدائي","إ -","العربية","قطوطة عمارة- العقلة","الرباح","حي بن عمر الجيلاني","العقلة","مركز اجراء امتحان ش البكالوريا","","ثانوية الشهيد بن حمده علي  - النخلة","",""]
[67,12452240,"محمد علي67","استاذ تعليم ابتدائي","إ -","العربية","قطوطة عمارة- العقلة","الرباح","النخلة الشرقية","العقلة","مركز اجراء امتحان ش البكالوريا","","ثانوية الشهيد بن حمده علي  - النخلة","",""]
[68,12452241,"محمد علي68","أستاذ رئيسي في التعليم الابتدائي","إ -","العربية","عمر بن الخطاب- العقلة","الرباح","حي عقيب نصر","العقلة","مركز اجراء امتحان ش البكالوريا","","ثانوية الشهيد بن حمده علي  - النخلة","",""]
[69,12452242,"محمد علي69","استاذ تعليم ابتدائي","إ -","الفرنسية","عمر بن الخطاب- العقلة","الرباح","حي العقيلة","العقلة","مركز اجراء امتحان ش البكالوريا","","ثانوية الشهيد بن حمده علي  - النخلة","",""]
[70,12452243,"محمد علي70","استاذ تعليم ابتدائي","إ -","العربية","عمر بن الخطاب- العقلة","الرباح","حي عقيب نصر","العقلة","مركز اجراء امتحان ش البكالوريا","","ثانوية الشهيد بن حمده علي  - النخلة","",""]
[71,12452244,"محمد علي71","استاذ تعليم ابتدائي","إ -","العربية","عمر بن الخطاب- العقلة","الرباح","حي العقيلة","العقلة","مركز اجراء امتحان ش البكالوريا","","ثانوية الشهيد بن حمده علي  - النخلة","",""]
[72,12452245,"محمد علي72","استاذ تعليم ابتدائي","إ -","العربية","عمر بن الخطاب- العقلة","الرباح","حي عقيب نصر","العقلة","مركز اجراء امتحان ش البكالوريا","","ثانوية الشهيد بن حمده علي  - النخلة","",""]
[73,12452246,"محمد علي73","استاذ تعليم ابتدائي","إ -","العربية","عمر بن الخطاب- العقلة","الرباح","حي عقيب نصر العقلة","العقلة","مركز اجراء امتحان ش البكالوريا","","ثانوية الشهيد بن حمده علي  - النخلة","",""]
[74,12452247,"محمد علي74","استاذ تعليم ابتدائي","إ -","العربية","عمر بن الخطاب- العقلة","الرباح","حي بن عمر الجيلاني","العقلة","مركز اجراء امتحان ش البكالوريا","","ثانوية الشهيد بن حمده علي  - النخلة","",""]
[75,12452248,"محمد علي75","استاذ تعليم ابتدائي","إ -","العربية","عمر بن الخطاب- العقلة","الرباح","حي عقيب نصر العقلة","العقلة","مركز اجراء امتحان ش البكالوريا","","ثانوية الشهيد بن حمده علي  - النخلة","",""]
[76,12452249,"محمد علي76","استاذ تعليم ابتدائي","إ -","العربية","عمر بن الخطاب- العقلة","الرباح","حي خالدي الطاهر","العقلة","مركز اجراء امتحان ش البكالوريا","","ثانوية الشهيد بن حمده علي  - النخلة","",""]
[77,12452250,"محمد علي77","أستاذ مكون في التعليم الابتدائي","إ -","العربية","عمر بن الخطاب- العقلة","الرباح","حي عقيب نصر العقلة","العقلة","مركز اجراء امتحان ش البكالوريا","","ثانوية الشهيد بن حمده علي  - النخلة","",""]
[78,12452251,"محمد علي78","استاذ تعليم ابتدائي","إ -","العربية","عمر بن الخطاب- العقلة","الرباح","حي عقيب نصر العقلة","العقلة","مركز اجراء امتحان ش البكالوريا","","ثانوية الشهيد بن حمده علي  - النخلة","",""]
[79,12452252,"محمد علي79","أستاذ رئيسي في التعليم الابتدائي","إ -","العربية","ابن باديس- النخلة","الرباح","النخلة الغربية","النخلة","مركز اجراء امتحان ش البكالوريا","","ثانوية الشهيد بن حمده علي  - النخلة","",""]
[80,12452253,"محمد علي80","استاذ تعليم ابتدائي","إ -","العربية","ابن باديس- النخلة","الرباح","النخلة الغربية","النخلة","مركز اجراء امتحان ش البكالوريا","","ثانوية الشهيد بن حمده علي  - النخلة","",""]
[81,12452254,"محمد علي81","استاذ تعليم ابتدائي","إ -","العربية","ابن باديس- النخلة","الرباح","النخلة الغربية","النخلة","مركز اجراء امتحان ش البكالوريا","","ثانوية الشهيد بن حمده علي  - النخلة","",""]
[82,12452255,"محمد علي82","أستاذ مكون في التعليم الابتدائي","إ -","العربية","ابن باديس- النخلة","الرباح","النخلة الشرقية","النخلة","مركز اجراء امتحان ش البكالوريا","","ثانوية الشهيد بن حمده علي  - النخلة","",""]
[83,12452256,"محمد علي83","أستاذ رئيسي في التعليم الابتدائي","إ -","العربية","ابن باديس- النخلة","الرباح","النخلة الغربية","النخلة","مركز اجراء امتحان ش البكالوريا","","ثانوية الشهيد بن حمده علي  - النخلة","",""]
[84,12452257,"محمد علي84","أستاذ رئيسي في التعليم الابتدائي","إ -","العربية","ابن باديس- النخلة","الرباح","النخلة الغربية","النخلة","مركز اجراء امتحان ش البكالوريا","","ثانوية الشهيد بن حمده علي  - النخلة","",""]
[85,12452258,"محمد علي85","أستاذ رئيسي في التعليم الابتدائي","إ -","العربية","ابن باديس- النخلة","الرباح","النخلة الغربية","النخلة","مركز اجراء امتحان ش البكالوريا","","ثانوية الشهيد بن حمده علي  - النخلة","",""]
[86,12452259,"محمد علي86","أستاذ رئيسي في التعليم الابتدائي","إ -","العربية","بوغزالة حمد عبد الكامل- النخلة","الرباح","حي النصر النخلة","النخلة","مركز اجراء امتحان ش البكالوريا","","ثانوية الشهيد بن حمده علي  - النخلة","",""]
[87,12452260,"محمد علي87","استاذ تعليم ابتدائي","إ -","الفرنسية","بوغزالة حمد عبد الكامل- النخلة","الرباح","حي النخلة الشمالية","النخلة","مركز اجراء امتحان ش البكالوريا","","ثانوية الشهيد بن حمده علي  - النخلة","",""]
[88,12452261,"محمد علي88","أستاذ رئيسي في التعليم الابتدائي","إ -","العربية","بوغزالة حمد عبد الكامل- النخلة","الرباح","حي النصر النخلة","النخلة","مركز اجراء امتحان ش البكالوريا","","ثانوية الشهيد بن حمده علي  - النخلة","",""]
[89,12452262,"محمد علي89","أستاذ مكون في التعليم الابتدائي","إ -","العربية","بوغزالة حمد عبد الكامل- النخلة","الرباح","حي النصر النخلة","النخلة","مركز اجراء امتحان ش البكالوريا","","ثانوية الشهيد بن حمده علي  - النخلة","",""]
[90,12452263,"محمد علي90","استاذ تعليم ابتدائي","إ -","العربية","قطوطة عمارة- العقلة","الرباح","النخلة الشرقية","النخلة","مركز اجراء امتحان ش البكالوريا","","ثانوية الشهيد بن حمده علي  - النخلة","",""]
[91,12452264,"محمد علي91","استاذ تعليم ابتدائي","إ -","العربية","قطوطة عمارة- العقلة","الرباح","النخلة الغربية","النخلة","مركز اجراء امتحان ش البكالوريا","","ثانوية الشهيد بن حمده علي  - النخلة","",""]
[92,12452265,"محمد علي92","استاذ تعليم ابتدائي","إ -","العربية","عمر بن الخطاب- العقلة","الرباح","حي البدر النخلة","النخلة","مركز اجراء امتحان ش البكالوريا","","ثانوية الشهيد بن حمده علي  - النخلة","",""]
[93,12452266,"محمد علي93","استاذ تعليم ابتدائي","إ -","العربية","نغموش علي علي- النخلة","الرباح","النخلة الشرقية","النخلة","مركز اجراء امتحان ش البكالوريا","","ثانوية الشهيد بن حمده علي  - النخلة","",""]
[94,12452267,"محمد علي94","استاذ تعليم ابتدائي","إ -","العربية","مجمع حي النور- النخلة","الرباح","حي النخلة الشرقية","النخلة","مركز اجراء امتحان ش البكالوريا","","ثانوية الشهيد بن حمده علي  - النخلة","",""]
[95,12452268,"محمد علي95","أستاذ مكون في التعليم الابتدائي","إ -","العربية","فرجاني العربي- النخلة","الرباح","حي الخبنة","النخلة","مركز اجراء امتحان ش البكالوريا","","ثانوية الشهيد بن حمده علي  - النخلة","",""]
[96,12452269,"محمد علي96","استاذ تعليم ابتدائي","إ -","العربية","نغموش علي علي- النخلة","الرباح","النخلة الغربية","النخلة","مركز اجراء امتحان ش البكالوريا","","ثانوية الشهيد بن حمده علي  - النخلة","",""]
[97,12452270,"محمد علي97","استاذ تعليم ابتدائي","إ -","العربية","بن علي الطاهر- النخلة","الرباح","حي البدر والنصر النخلة.","النخلة","مركز اجراء امتحان ش البكالوريا","","ثانوية الشهيد بن حمده علي  - النخلة","",""]
[98,12452271,"محمد علي98","أستاذ مكون في التعليم الابتدائي","إ -","العربية","ابتدائية  الشهيد جاب الله امحمد","الرباح","حي النخلة الشرقية","النخلة","مركز اجراء امتحان ش البكالوريا","","ثانوية الشهيد بن حمده علي  - النخلة","",""]
[99,12452272,"محمد علي99","استاذ تعليم ابتدائي","إ -","العربية","نغموش علي علي- النخلة","الرباح","النخلة الشرقية","النخلة","مركز اجراء امتحان ش البكالوريا","","ثانوية الشهيد بن حمده علي  - النخلة","",""]
[100,12452273,"محمد علي100","استاذ تعليم ابتدائي","إ -","العربية","بن علي الطاهر- النخلة","الرباح","النخلة الشرقية","النخلة","مركز اجراء امتحان ش البكالوريا","","ثانوية الشهيد بن حمده علي  - النخلة","",""]
[101,12452274,"محمد علي101","استاذ تعليم ابتدائي","إ -","العربية","بن عبد الله عمار- النخلة","الرباح","النخلة","النخلة","مركز اجراء امتحان ش البكالوريا","","ثانوية الشهيد بن حمده علي  - النخلة","",""]
[102,12452275,"محمد علي102","أستاذ رئيسي في التعليم الابتدائي","إ -","العربية","فرجاني العربي- النخلة","الرباح","حي الخبنة","النخلة","مركز اجراء امتحان ش البكالوريا","","ثانوية الشهيد بن حمده علي  - النخلة","",""]
[103,12452276,"محمد علي103","أستاذ مكون في التعليم الابتدائي","إ -","العربية","فرجاني العربي- النخلة","الرباح","حي الخبنة","النخلة","مركز اجراء امتحان ش البكالوريا","","ثانوية الشهيد بن حمده علي  - النخلة","",""]
[104,12452277,"محمد علي104","استاذ تعليم ابتدائي","إ -","العربية","حماتي علي- النخلة","الرباح","حي النخلة الشرقية","النخلة","مركز اجراء امتحان ش البكالوريا","","ثانوية الشهيد بن حمده علي  - النخلة","",""]
[105,12452278,"محمد علي105","أستاذ رئيسي في التعليم الابتدائي","إ -","العربية","مرزوقي مرزوقي- النخلة","الرباح","النخلة الشمالية","النخلة","مركز اجراء امتحان ش البكالوريا","","ثانوية الشهيد بن حمده علي  - النخلة","",""]
[106,12452279,"محمد علي106","أستاذ مكون في التعليم الابتدائي","إ -","العربية","مرزوقي مرزوقي- النخلة","الرباح","النخلة الشمالية","النخلة","مركز اجراء امتحان ش البكالوريا","","ثانوية الشهيد بن حمده علي  - النخلة","",""]
[107,12452280,"محمد علي107","أستاذ رئيسي في التعليم الابتدائي","إ -","العربية","مرزوقي مرزوقي- النخلة","الرباح","النخلة الشمالية","النخلة","مركز اجراء امتحان ش البكالوريا","","ثانوية الشهيد بن حمده علي  - النخلة","",""]
[108,12452281,"محمد علي108","استاذ تعليم ابتدائي","إ -","العربية","جويدة الجموعي- النخلة","الرباح","حي النور","النخلة","مركز اجراء امتحان ش البكالوريا","","ثانوية الشهيد بن حمده علي  - النخلة","",""]
[109,12452282,"محمد علي109","استاذ تعليم ابتدائي","إ -","العربية","جويدة الجموعي- النخلة","الرباح","حي النور","النخلة","مركز اجراء امتحان ش البكالوريا","","ثانوية الشهيد بن حمده علي  - النخلة"]
[110,12452283,"محمد علي110","استاذ تعليم ابتدائي","إ -","العربية","جويدة الجموعي- النخلة","الرباح","حي النور","النخلة","مركز اجراء امتحان ش البكالوريا","","ثانوية الشهيد بن حمده علي  - النخلة"]
[111,12452284,"محمد علي111","استاذ تعليم ابتدائي","إ -","العربية","جويدة الجموعي- النخلة","الرباح","حي النور","النخلة","مركز اجراء امتحان ش البكالوريا","","ثانوية الشهيد بن حمده علي  - النخلة"]
[112,12452285,"محمد علي112","استاذ تعليم ابتدائي","إ -","العربية","جويدة الجموعي- النخلة","الرباح","حي النور","النخلة","مركز اجراء امتحان ش البكالوريا","","ثانوية الشهيد بن حمده علي  - النخلة"]
[113,12452286,"محمد علي113","استاذ تعليم ابتدائي","إ -","العربية","جويدة الجموعي- النخلة","الرباح","حي النور","النخلة","مركز اجراء امتحان ش البكالوريا","","ثانوية الشهيد بن حمده علي  - النخلة"]
[114,12452287,"محمد علي114","استاذ تعليم ابتدائي","إ -","العربية","جويدة الجموعي- النخلة","الرباح","حي النور","النخلة","مركز اجراء امتحان ش البكالوريا","","ثانوية الشهيد بن حمده علي  - النخلة"]
[115,12452288,"محمد علي115","استاذ تعليم ابتدائي","إ -","العربية","جويدة الجموعي- النخلة","الرباح","حي النور","النخلة","مركز اجراء امتحان ش البكالوريا","","ثانوية الشهيد بن حمده علي  - النخلة"]
[116,12452289,"محمد علي116","استاذ تعليم ابتدائي","إ -","العربية","جويدة الجموعي- النخلة","الرباح","حي النور","النخلة","مركز اجراء امتحان ش البكالوريا","","ثانوية الشهيد بن حمده علي  - النخلة"]
[117,12452290,"محمد علي117","استاذ تعليم ابتدائي","إ -","العربية","جويدة الجموعي- النخلة","الرباح","حي النور","النخلة","مركز اجراء امتحان ش البكالوريا","","ثانوية الشهيد بن حمده علي  - النخلة"]
[118,12452291,"محمد علي118","استاذ تعليم ابتدائي","إ -","العربية","جويدة الجموعي- النخلة","الرباح","حي النور","النخلة","مركز اجراء امتحان ش البكالوريا","","ثانوية الشهيد بن حمده علي  - النخلة"]
[119,12452292,"محمد علي119","استاذ تعليم ابتدائي","إ -","العربية","جويدة الجموعي- النخلة","الرباح","حي النور","النخلة","مركز اجراء امتحان ش البكالوريا","","ثانوية الشهيد بن حمده علي  - النخلة"]
[120,12452293,"محمد علي120","استاذ تعليم ابتدائي","إ -","العربية","جويدة الجموعي- النخلة","الرباح","حي النور","النخلة","مركز اجراء امتحان ش البكالوريا","","ثانوية الشهيد بن حمده علي  - النخلة"]
[121,12452294,"محمد علي121","استاذ تعليم ابتدائي","إ -","العربية","جويدة الجموعي- النخلة","الرباح","حي النور","النخلة","مركز اجراء امتحان ش البكالوريا","","ثانوية الشهيد بن حمده علي  - النخلة"]
[122,12452295,"محمد علي122","استاذ تعليم ابتدائي","إ -","العربية","جويدة الجموعي- النخلة","الرباح","حي النور","النخلة","مركز اجراء امتحان ش البكالوريا","","ثانوية الشهيد بن حمده علي  - النخلة"]
[123,12452296,"محمد علي123","استاذ تعليم ابتدائي","إ -","العربية","جويدة الجموعي- النخلة","الرباح","حي النور","النخلة","مركز اجراء امتحان ش البكالوريا","","ثانوية الشهيد بن حمده علي  - النخلة"]
[124,12452297,"محمد علي124","استاذ تعليم ابتدائي","إ -","العربية","جويدة الجموعي- النخلة","الرباح","حي النور","النخلة","مركز اجراء امتحان ش البكالوريا","","ثانوية الشهيد بن حمده علي  - النخلة"]
[125,12452298,"محمد علي125","استاذ تعليم ابتدائي","إ -","العربية","جويدة الجموعي- النخلة","الرباح","حي النور","النخلة","مركز اجراء امتحان ش البكالوريا","","ثانوية الشهيد بن حمده علي  - النخلة"]
[126,12452299,"محمد علي126","استاذ تعليم ابتدائي","إ -","العربية","جويدة الجموعي- النخلة","الرباح","حي النور","النخلة","مركز اجراء امتحان ش البكالوريا","","ثانوية الشهيد بن حمده علي  - النخلة"]
[127,12452300,"محمد علي127","استاذ تعليم ابتدائي","إ -","العربية","جويدة الجموعي- النخلة","الرباح","حي النور","النخلة","مركز اجراء امتحان ش البكالوريا","","ثانوية الشهيد بن حمده علي  - النخلة"]
[128,12452301,"محمد علي128","استاذ تعليم ابتدائي","إ -","العربية","جويدة الجموعي- النخلة","الرباح","حي النور","النخلة","مركز اجراء امتحان ش البكالوريا","","ثانوية الشهيد بن حمده علي  - النخلة"]
[129,12452302,"محمد علي129","استاذ تعليم ابتدائي","إ -","العربية","جويدة الجموعي- النخلة","الرباح","حي النور","النخلة","مركز اجراء امتحان ش البكالوريا","","ثانوية الشهيد بن حمده علي  - النخلة"]
[130,12452303,"محمد علي130","استاذ تعليم ابتدائي","إ -","العربية","جويدة الجموعي- النخلة","الرباح","حي النور","النخلة","مركز اجراء امتحان ش البكالوريا","","ثانوية الشهيد بن حمده علي  - النخلة"]
[131,12452304,"محمد علي131","استاذ تعليم ابتدائي","إ -","العربية","جويدة الجموعي- النخلة","الرباح","حي النور","النخلة","مركز اجراء امتحان ش البكالوريا","","ثانوية الشهيد بن حمده علي  - النخلة"]
[132,12452305,"محمد علي132","استاذ تعليم ابتدائي","إ -","العربية","جويدة الجموعي- النخلة","الرباح","حي النور","النخلة","مركز اجراء امتحان ش البكالوريا","","ثانوية الشهيد بن حمده علي  - النخلة"]
[133,12452306,"محمد علي133","استاذ تعليم ابتدائي","إ -","العربية","جويدة الجموعي- النخلة","الرباح","حي النور","النخلة","مركز اجراء امتحان ش البكالوريا","","ثانوية الشهيد بن حمده علي  - النخلة"]
[134,12452307,"محمد علي134","استاذ تعليم ابتدائي","إ -","العربية","جويدة الجموعي- النخلة","الرباح","حي النور","النخلة","مركز اجراء امتحان ش البكالوريا","","ثانوية الشهيد بن حمده علي  - النخلة"]
[135,12452308,"محمد علي135","استاذ تعليم ابتدائي","إ -","العربية","جويدة الجموعي- النخلة","الرباح","حي النور","النخلة","مركز اجراء امتحان ش البكالوريا","","ثانوية الشهيد بن حمده علي  - النخلة"]
[136,12452309,"محمد علي136","استاذ تعليم ابتدائي","إ -","العربية","جويدة الجموعي- النخلة","الرباح","حي النور","النخلة","مركز اجراء امتحان ش البكالوريا","","ثانوية الشهيد بن حمده علي  - النخلة"]
[137,12452310,"محمد علي137","استاذ تعليم ابتدائي","إ -","العربية","جويدة الجموعي- النخلة","الرباح","حي النور","النخلة","مركز اجراء امتحان ش البكالوريا","","ثانوية الشهيد بن حمده علي  - النخلة"]
[138,12452311,"محمد علي138","استاذ تعليم ابتدائي","إ -","العربية","جويدة الجموعي- النخلة","الرباح","حي النور","النخلة","مركز اجراء امتحان ش البكالوريا","","ثانوية الشهيد بن حمده علي  - النخلة"]
[139,12452312,"محمد علي139","استاذ تعليم ابتدائي","إ -","العربية","جويدة الجموعي- النخلة","الرباح","حي النور","النخلة","مركز اجراء امتحان ش البكالوريا","","ثانوية الشهيد بن حمده علي  - النخلة"]
[140,12452313,"محمد علي140","استاذ تعليم ابتدائي","إ -","العربية","جويدة الجموعي- النخلة","الرباح","حي النور","النخلة","مركز اجراء امتحان ش البكالوريا","","ثانوية الشهيد بن حمده علي  - النخلة"]
[141,12452314,"محمد علي141","استاذ تعليم ابتدائي","إ -","العربية","جويدة الجموعي- النخلة","الرباح","حي النور","النخلة","مركز اجراء امتحان ش البكالوريا","","ثانوية الشهيد بن حمده علي  - النخلة"]
[142,12452315,"محمد علي142","استاذ تعليم ابتدائي","إ -","العربية","جويدة الجموعي- النخلة","الرباح","حي النور","النخلة","مركز اجراء امتحان ش البكالوريا","","ثانوية الشهيد بن حمده علي  - النخلة"]
[143,12452316,"محمد علي143","استاذ تعليم ابتدائي","إ -","العربية","جويدة الجموعي- النخلة","الرباح","حي النور","النخلة","مركز اجراء امتحان ش البكالوريا","","ثانوية الشهيد بن حمده علي  - النخلة"]
[144,12452317,"محمد علي144","استاذ تعليم ابتدائي","إ -","العربية","جويدة الجموعي- النخلة","الرباح","حي النور","النخلة","مركز اجراء امتحان ش البكالوريا","","ثانوية الشهيد بن حمده علي  - النخلة"]
[145,12452318,"محمد علي145","استاذ تعليم ابتدائي","إ -","العربية","جويدة الجموعي- النخلة","الرباح","حي النور","النخلة","مركز اجراء امتحان ش البكالوريا","","ثانوية الشهيد بن حمده علي  - النخلة"]
[146,12452319,"محمد علي146","استاذ تعليم ابتدائي","إ -","العربية","جويدة الجموعي- النخلة","الرباح","حي النور","النخلة","مركز اجراء امتحان ش البكالوريا","","ثانوية الشهيد بن حمده علي  - النخلة"]
[147,12452320,"محمد علي147","استاذ تعليم ابتدائي","إ -","العربية","جويدة الجموعي- النخلة","الرباح","حي النور","النخلة","مركز اجراء امتحان ش البكالوريا","","ثانوية الشهيد بن حمده علي  - النخلة"]
[148,12452321,"محمد علي148","استاذ تعليم ابتدائي","إ -","العربية","جويدة الجموعي- النخلة","الرباح","حي النور","النخلة","مركز اجراء امتحان ش البكالوريا","","ثانوية الشهيد بن حمده علي  - النخلة"]
[149,12452322,"محمد علي149","استاذ تعليم ابتدائي","إ -","العربية","جويدة الجموعي- النخلة","الرباح","حي النور","النخلة","مركز اجراء امتحان ش البكالوريا","","ثانوية الشهيد بن حمده علي  - النخلة"]
[150,12452323,"محمد علي150","استاذ تعليم ابتدائي","إ -","العربية","جويدة الجموعي- النخلة","الرباح","حي النور","النخلة","مركز اجراء امتحان ش البكالوريا","","ثانوية الشهيد بن حمده علي  - النخلة"]
[151,12452324,"محمد علي151","استاذ تعليم ابتدائي","إ -","العربية","جويدة الجموعي- النخلة","الرباح","حي النور","النخلة","مركز اجراء امتحان ش البكالوريا","","ثانوية الشهيد بن حمده علي  - النخلة"]
[152,12452325,"محمد علي152","استاذ تعليم ابتدائي","إ -","العربية","جويدة الجموعي- النخلة","الرباح","حي النور","النخلة","مركز اجراء امتحان ش البكالوريا","","ثانوية الشهيد بن حمده علي  - النخلة"]
[153,12452326,"محمد علي153","استاذ تعليم ابتدائي","إ -","العربية","جويدة الجموعي- النخلة","الرباح","حي النور","النخلة","مركز اجراء امتحان ش البكالوريا","","ثانوية الشهيد بن حمده علي  - النخلة"]
[154,12452327,"محمد علي154","استاذ تعليم ابتدائي","إ -","العربية","جويدة الجموعي- النخلة","الرباح","حي النور","النخلة","مركز اجراء امتحان ش البكالوريا","","ثانوية الشهيد بن حمده علي  - النخلة"]
[155,12452328,"محمد علي155","استاذ تعليم ابتدائي","إ -","العربية","جويدة الجموعي- النخلة","الرباح","حي النور","النخلة","مركز اجراء امتحان ش البكالوريا","","ثانوية الشهيد بن حمده علي  - النخلة"]
[156,12452329,"محمد علي156","استاذ تعليم ابتدائي","إ -","العربية","جويدة الجموعي- النخلة","الرباح","حي النور","النخلة","مركز اجراء امتحان ش البكالوريا","","ثانوية الشهيد بن حمده علي  - النخلة"]
[157,12452330,"محمد علي157","استاذ تعليم ابتدائي","إ -","العربية","جويدة الجموعي- النخلة","الرباح","حي النور","النخلة","مركز اجراء امتحان ش البكالوريا","","ثانوية الشهيد بن حمده علي  - النخلة"]
[158,12452331,"محمد علي158","استاذ تعليم ابتدائي","إ -","العربية","جويدة الجموعي- النخلة","الرباح","حي النور","النخلة","مركز اجراء امتحان ش البكالوريا","","ثانوية الشهيد بن حمده علي  - النخلة"]
[159,12452332,"محمد علي159","استاذ تعليم ابتدائي","إ -","العربية","جويدة الجموعي- النخلة","الرباح","حي النور","النخلة","مركز اجراء امتحان ش البكالوريا","","ثانوية الشهيد بن حمده علي  - النخلة"]
[160,12452333,"محمد علي160","استاذ تعليم ابتدائي","إ -","العربية","جويدة الجموعي- النخلة","الرباح","حي النور","النخلة","مركز اجراء امتحان ش البكالوريا","","ثانوية الشهيد بن حمده علي  - النخلة"]
[161,12452334,"محمد علي161","استاذ تعليم ابتدائي","إ -","العربية","جويدة الجموعي- النخلة","الرباح","حي النور","النخلة","مركز اجراء امتحان ش البكالوريا","","ثانوية الشهيد بن حمده علي  - النخلة"]
[162,12452335,"محمد علي162","استاذ تعليم ابتدائي","إ -","العربية","جويدة الجموعي- النخلة","الرباح","حي النور","النخلة","مركز اجراء امتحان ش البكالوريا","","ثانوية الشهيد بن حمده علي  - النخلة"]
[163,12452336,"محمد علي163","استاذ تعليم ابتدائي","إ -","العربية","جويدة الجموعي- النخلة","الرباح","حي النور","النخلة","مركز اجراء امتحان ش البكالوريا","","ثانوية الشهيد بن حمده علي  - النخلة"]
[164,12452337,"محمد علي164","استاذ تعليم ابتدائي","إ -","العربية","جويدة الجموعي- النخلة","الرباح","حي النور","النخلة","مركز اجراء امتحان ش البكالوريا","","ثانوية الشهيد بن حمده علي  - النخلة"]
[165,12452338,"محمد علي165","استاذ تعليم ابتدائي","إ -","العربية","جويدة الجموعي- النخلة","الرباح","حي النور","النخلة","مركز اجراء امتحان ش البكالوريا","","ثانوية الشهيد بن حمده علي  - النخلة"]
[166,12452339,"محمد علي166","استاذ تعليم ابتدائي","إ -","العربية","جويدة الجموعي- النخلة","الرباح","حي النور","النخلة","مركز اجراء امتحان ش البكالوريا","","ثانوية الشهيد بن حمده علي  - النخلة"]
[167,12452340,"محمد علي167","استاذ تعليم ابتدائي","إ -","العربية","جويدة الجموعي- النخلة","الرباح","حي النور","النخلة","مركز اجراء امتحان ش البكالوريا","","ثانوية الشهيد بن حمده علي  - النخلة"]
[168,12452341,"محمد علي168","استاذ تعليم ابتدائي","إ -","العربية","جويدة الجموعي- النخلة","الرباح","حي النور","النخلة","مركز اجراء امتحان ش البكالوريا","","ثانوية الشهيد بن حمده علي  - النخلة"]
[169,12452342,"محمد علي169","استاذ تعليم ابتدائي","إ -","العربية","جويدة الجموعي- النخلة","الرباح","حي النور","النخلة","مركز اجراء امتحان ش البكالوريا","","ثانوية الشهيد بن حمده علي  - النخلة"]
[170,12452343,"محمد علي170","استاذ تعليم ابتدائي","إ -","العربية","جويدة الجموعي- النخلة","الرباح","حي النور","النخلة","مركز اجراء امتحان ش البكالوريا","","ثانوية الشهيد بن حمده علي  - النخلة"]
[171,12452344,"محمد علي171","استاذ تعليم ابتدائي","إ -","العربية","جويدة الجموعي- النخلة","الرباح","حي النور","النخلة","مركز اجراء امتحان ش البكالوريا","","ثانوية الشهيد بن حمده علي  - النخلة"]
[172,12452345,"محمد علي172","استاذ تعليم ابتدائي","إ -","العربية","جويدة الجموعي- النخلة","الرباح","حي النور","النخلة","مركز اجراء امتحان ش البكالوريا","","ثانوية الشهيد بن حمده علي  - النخلة"]
[173,12452346,"محمد علي173","استاذ تعليم ابتدائي","إ -","العربية","جويدة الجموعي- النخلة","الرباح","حي النور","النخلة","مركز اجراء امتحان ش البكالوريا","","ثانوية الشهيد بن حمده علي  - النخلة"]
[174,12452347,"محمد علي174","استاذ تعليم ابتدائي","إ -","العربية","جويدة الجموعي- النخلة","الرباح","حي النور","النخلة","مركز اجراء امتحان ش البكالوريا","","ثانوية الشهيد بن حمده علي  - النخلة"]
[175,12452348,"محمد علي175","استاذ تعليم ابتدائي","إ -","العربية","جويدة الجموعي- النخلة","الرباح","حي النور","النخلة","مركز اجراء امتحان ش البكالوريا","","ثانوية الشهيد بن حمده علي  - النخلة"]
[176,12452349,"محمد علي176","استاذ تعليم ابتدائي","إ -","العربية","جويدة الجموعي- النخلة","الرباح","حي النور","النخلة","مركز اجراء امتحان ش البكالوريا","","ثانوية الشهيد بن حمده علي  - النخلة"]
[177,12452350,"محمد علي177","استاذ تعليم ابتدائي","إ -","العربية","جويدة الجموعي- النخلة","الرباح","حي النور","النخلة","مركز اجراء امتحان ش البكالوريا","","ثانوية الشهيد بن حمده علي  - النخلة"]
[178,12452351,"محمد علي178","استاذ تعليم ابتدائي","إ -","العربية","جويدة الجموعي- النخلة","الرباح","حي النور","النخلة","مركز اجراء امتحان ش البكالوريا","","ثانوية الشهيد بن حمده علي  - النخلة"]
[179,12452352,"محمد علي179","استاذ تعليم ابتدائي","إ -","العربية","جويدة الجموعي- النخلة","الرباح","حي النور","النخلة","مركز اجراء امتحان ش البكالوريا","","ثانوية الشهيد بن حمده علي  - النخلة"]
[180,12452353,"محمد علي180","استاذ تعليم ابتدائي","إ -","العربية","جويدة الجموعي- النخلة","الرباح","حي النور","النخلة","مركز اجراء امتحان ش البكالوريا","","ثانوية الشهيد بن حمده علي  - النخلة"]
[181,12452354,"محمد علي181","استاذ تعليم ابتدائي","إ -","العربية","جويدة الجموعي- النخلة","الرباح","حي النور","النخلة","مركز اجراء امتحان ش البكالوريا","","ثانوية الشهيد بن حمده علي  - النخلة"]
[182,12452355,"محمد علي182","استاذ تعليم ابتدائي","إ -","العربية","جويدة الجموعي- النخلة","الرباح","حي النور","النخلة","مركز اجراء امتحان ش البكالوريا","","ثانوية الشهيد بن حمده علي  - النخلة"]
[183,12452356,"محمد علي183","استاذ تعليم ابتدائي","إ -","العربية","جويدة الجموعي- النخلة","الرباح","حي النور","النخلة","مركز اجراء امتحان ش البكالوريا","","ثانوية الشهيد بن حمده علي  - النخلة"]
[184,12452357,"محمد علي184","استاذ تعليم ابتدائي","إ -","العربية","جويدة الجموعي- النخلة","الرباح","حي النور","النخلة","مركز اجراء امتحان ش البكالوريا","","ثانوية الشهيد بن حمده علي  - النخلة"]
[185,12452358,"محمد علي185","استاذ تعليم ابتدائي","إ -","العربية","جويدة الجموعي- النخلة","الرباح","حي النور","النخلة","مركز اجراء امتحان ش البكالوريا","","ثانوية الشهيد بن حمده علي  - النخلة"]
[186,12452359,"محمد علي186","استاذ تعليم ابتدائي","إ -","العربية","جويدة الجموعي- النخلة","الرباح","حي النور","النخلة","مركز اجراء امتحان ش البكالوريا","","ثانوية الشهيد بن حمده علي  - النخلة"]
[187,12452360,"محمد علي187","استاذ تعليم ابتدائي","إ -","العربية","جويدة الجموعي- النخلة","الرباح","حي النور","النخلة","مركز اجراء امتحان ش البكالوريا","","ثانوية الشهيد بن حمده علي  - النخلة"]
[188,12452361,"محمد علي188","استاذ تعليم ابتدائي","إ -","العربية","جويدة الجموعي- النخلة","الرباح","حي النور","النخلة","مركز اجراء امتحان ش البكالوريا","","ثانوية الشهيد بن حمده علي  - النخلة"]
[189,12452362,"محمد علي189","استاذ تعليم ابتدائي","إ -","العربية","جويدة الجموعي- النخلة","الرباح","حي النور","النخلة","مركز اجراء امتحان ش البكالوريا","","ثانوية الشهيد بن حمده علي  - النخلة"]
[190,12452363,"محمد علي190","استاذ تعليم ابتدائي","إ -","العربية","جويدة الجموعي- النخلة","الرباح","حي النور","النخلة","مركز اجراء امتحان ش البكالوريا","","ثانوية الشهيد بن حمده علي  - النخلة"]
[191,12452364,"محمد علي191","استاذ تعليم ابتدائي","إ -","العربية","جويدة الجموعي- النخلة","الرباح","حي النور","النخلة","مركز اجراء امتحان ش البكالوريا","","ثانوية الشهيد بن حمده علي  - النخلة"]
[192,12452365,"محمد علي192","استاذ تعليم ابتدائي","إ -","العربية","جويدة الجموعي- النخلة","الرباح","حي النور","النخلة","مركز اجراء امتحان ش البكالوريا","","ثانوية الشهيد بن حمده علي  - النخلة"]
[193,12452366,"محمد علي193","استاذ تعليم ابتدائي","إ -","العربية","جويدة الجموعي- النخلة","الرباح","حي النور","النخلة","مركز اجراء امتحان ش البكالوريا","","ثانوية الشهيد بن حمده علي  - النخلة"]
[194,12452367,"محمد علي194","استاذ تعليم ابتدائي","إ -","العربية","جويدة الجموعي- النخلة","الرباح","حي النور","النخلة","مركز اجراء امتحان ش البكالوريا","","ثانوية الشهيد بن حمده علي  - النخلة"]
[195,12452368,"محمد علي195","استاذ تعليم ابتدائي","إ -","العربية","جويدة الجموعي- النخلة","الرباح","حي النور","النخلة","مركز اجراء امتحان ش البكالوريا","","ثانوية الشهيد بن حمده علي  - النخلة"]
[196,12452369,"محمد علي196","استاذ تعليم ابتدائي","إ -","العربية","جويدة الجموعي- النخلة","الرباح","حي النور","النخلة","مركز اجراء امتحان ش البكالوريا","","ثانوية الشهيد بن حمده علي  - النخلة"]
[197,12452370,"محمد علي197","استاذ تعليم ابتدائي","إ -","العربية","جويدة الجموعي- النخلة","الرباح","حي النور","النخلة","مركز اجراء امتحان ش البكالوريا","","ثانوية الشهيد بن حمده علي  - النخلة"]
[198,12452371,"محمد علي198","استاذ تعليم ابتدائي","إ -","العربية","جويدة الجموعي- النخلة","الرباح","حي النور","النخلة","مركز اجراء امتحان ش البكالوريا","","ثانوية الشهيد بن حمده علي  - النخلة"]
[199,12452372,"محمد علي199","استاذ تعليم ابتدائي","إ -","العربية","جويدة الجموعي- النخلة","الرباح","حي النور","النخلة","مركز اجراء امتحان ش البكالوريا","","ثانوية الشهيد بن حمده علي  - النخلة"]
[200,12452373,"محمد علي200","استاذ تعليم ابتدائي","إ -","العربية","جويدة الجموعي- النخلة","الرباح","حي النور","النخلة","مركز اجراء امتحان ش البكالوريا","","ثانوية الشهيد بن حمده علي  - النخلة"]
[201,12452374,"محمد علي201","استاذ تعليم ابتدائي","إ -","العربية","جويدة الجموعي- النخلة","الرباح","حي النور","النخلة","مركز اجراء امتحان ش البكالوريا","","ثانوية الشهيد بن حمده علي  - النخلة"]
[202,12452375,"محمد علي202","استاذ تعليم ابتدائي","إ -","العربية","جويدة الجموعي- النخلة","الرباح","حي النور","النخلة","مركز اجراء امتحان ش البكالوريا","","ثانوية الشهيد بن حمده علي  - النخلة"]
[203,12452376,"محمد علي203","استاذ تعليم ابتدائي","إ -","العربية","جويدة الجموعي- النخلة","الرباح","حي النور","النخلة","مركز اجراء امتحان ش البكالوريا","","ثانوية الشهيد بن حمده علي  - النخلة"]
[204,12452377,"محمد علي204","استاذ تعليم ابتدائي","إ -","العربية","جويدة الجموعي- النخلة","الرباح","حي النور","النخلة","مركز اجراء امتحان ش البكالوريا","","ثانوية الشهيد بن حمده علي  - النخلة"]
[205,12452378,"محمد علي205","استاذ تعليم ابتدائي","إ -","العربية","جويدة الجموعي- النخلة","الرباح","حي النور","النخلة","مركز اجراء امتحان ش البكالوريا","","ثانوية الشهيد بن حمده علي  - النخلة"]
[206,12452379,"محمد علي206","استاذ تعليم ابتدائي","إ -","العربية","جويدة الجموعي- النخلة","الرباح","حي النور","النخلة","مركز اجراء امتحان ش البكالوريا","","ثانوية الشهيد بن حمده علي  - النخلة"]
[207,12452380,"محمد علي207","استاذ تعليم ابتدائي","إ -","العربية","جويدة الجموعي- النخلة","الرباح","حي النور","النخلة","مركز اجراء امتحان ش البكالوريا","","ثانوية الشهيد بن حمده علي  - النخلة"]
[208,12452381,"محمد علي208","استاذ تعليم ابتدائي","إ -","العربية","جويدة الجموعي- النخلة","الرباح","حي النور","النخلة","مركز اجراء امتحان ش البكالوريا","","ثانوية الشهيد بن حمده علي  - النخلة"]
[209,12452382,"محمد علي209","استاذ تعليم ابتدائي","إ -","العربية","جويدة الجموعي- النخلة","الرباح","حي النور","النخلة","مركز اجراء امتحان ش البكالوريا","","ثانوية الشهيد بن حمده علي  - النخلة"]
[210,12452383,"محمد علي210","استاذ تعليم ابتدائي","إ -","العربية","جويدة الجموعي- النخلة","الرباح","حي النور","النخلة","مركز اجراء امتحان ش البكالوريا","","ثانوية الشهيد بن حمده علي  - النخلة"]
[211,12452384,"محمد علي211","استاذ تعليم ابتدائي","إ -","العربية","جويدة الجموعي- النخلة","الرباح","حي النور","النخلة","مركز اجراء امتحان ش البكالوريا","","ثانوية الشهيد بن حمده علي  - النخلة"]
[212,12452385,"محمد علي212","استاذ تعليم ابتدائي","إ -","العربية","جويدة الجموعي- النخلة","الرباح","حي النور","النخلة","مركز اجراء امتحان ش البكالوريا","","ثانوية الشهيد بن حمده علي  - النخلة"]
[213,12452386,"محمد علي213","استاذ تعليم ابتدائي","إ -","العربية","جويدة الجموعي- النخلة","الرباح","حي النور","النخلة","مركز اجراء امتحان ش البكالوريا","","ثانوية الشهيد بن حمده علي  - النخلة"]
[214,12452387,"محمد علي214","استاذ تعليم ابتدائي","إ -","العربية","جويدة الجموعي- النخلة","الرباح","حي النور","النخلة","مركز اجراء امتحان ش البكالوريا","","ثانوية الشهيد بن حمده علي  - النخلة"]
[215,12452388,"محمد علي215","استاذ تعليم ابتدائي","إ -","العربية","جويدة الجموعي- النخلة","الرباح","حي النور","النخلة","مركز اجراء امتحان ش البكالوريا","","ثانوية الشهيد بن حمده علي  - النخلة"]
[216,12452389,"محمد علي216","استاذ تعليم ابتدائي","إ -","العربية","جويدة الجموعي- النخلة","الرباح","حي النور","النخلة","مركز اجراء امتحان ش البكالوريا","","ثانوية الشهيد بن حمده علي  - النخلة"]
[217,12452390,"محمد علي217","استاذ تعليم ابتدائي","إ -","العربية","جويدة الجموعي- النخلة","الرباح","حي النور","النخلة","مركز اجراء امتحان ش البكالوريا","","ثانوية الشهيد بن حمده علي  - النخلة"]
[218,12452391,"محمد علي218","استاذ تعليم ابتدائي","إ -","العربية","جويدة الجموعي- النخلة","الرباح","حي النور","النخلة","مركز اجراء امتحان ش البكالوريا","","ثانوية الشهيد بن حمده علي  - النخلة"]
[219,12452392,"محمد علي219","استاذ تعليم ابتدائي","إ -","العربية","جويدة الجموعي- النخلة","الرباح","حي النور","النخلة","مركز اجراء امتحان ش البكالوريا","","ثانوية الشهيد بن حمده علي  - النخلة"]
[220,12452393,"محمد علي220","استاذ تعليم ابتدائي","إ -","العربية","جويدة الجموعي- النخلة","الرباح","حي النور","النخلة","مركز اجراء امتحان ش البكالوريا","","ثانوية الشهيد بن حمده علي  - النخلة"]
[221,12452394,"محمد علي221","استاذ تعليم ابتدائي","إ -","العربية","جويدة الجموعي- النخلة","الرباح","حي النور","النخلة","مركز اجراء امتحان ش البكالوريا","","ثانوية الشهيد بن حمده علي  - النخلة"]
[222,12452395,"محمد علي222","استاذ تعليم ابتدائي","إ -","العربية","جويدة الجموعي- النخلة","الرباح","حي النور","النخلة","مركز اجراء امتحان ش البكالوريا","","ثانوية الشهيد بن حمده علي  - النخلة"]
[223,12452396,"محمد علي223","استاذ تعليم ابتدائي","إ -","العربية","جويدة الجموعي- النخلة","الرباح","حي النور","النخلة","مركز اجراء امتحان ش البكالوريا","","ثانوية الشهيد بن حمده علي  - النخلة"]
[224,12452397,"محمد علي224","استاذ تعليم ابتدائي","إ -","العربية","جويدة الجموعي- النخلة","الرباح","حي النور","النخلة","مركز اجراء امتحان ش البكالوريا","","ثانوية الشهيد بن حمده علي  - النخلة"]
[225,12452398,"محمد علي225","استاذ تعليم ابتدائي","إ -","العربية","جويدة الجموعي- النخلة","الرباح","حي النور","النخلة","مركز اجراء امتحان ش البكالوريا","","ثانوية الشهيد بن حمده علي  - النخلة"]
[226,12452399,"محمد علي226","استاذ تعليم ابتدائي","إ -","العربية","جويدة الجموعي- النخلة","الرباح","حي النور","النخلة","مركز اجراء امتحان ش البكالوريا","","ثانوية الشهيد بن حمده علي  - النخلة"]
[227,12452400,"محمد علي227","استاذ تعليم ابتدائي","إ -","العربية","جويدة الجموعي- النخلة","الرباح","حي النور","النخلة","مركز اجراء امتحان ش البكالوريا","","ثانوية الشهيد بن حمده علي  - النخلة"]
[228,12452401,"محمد علي228","استاذ تعليم ابتدائي","إ -","العربية","جويدة الجموعي- النخلة","الرباح","حي النور","النخلة","مركز اجراء امتحان ش البكالوريا","","ثانوية الشهيد بن حمده علي  - النخلة"]
[229,12452402,"محمد علي229","استاذ تعليم ابتدائي","إ -","العربية","جويدة الجموعي- النخلة","الرباح","حي النور","النخلة","مركز اجراء امتحان ش البكالوريا","","ثانوية الشهيد بن حمده علي  - النخلة"]
[230,12452403,"محمد علي230","استاذ تعليم ابتدائي","إ -","العربية","جويدة الجموعي- النخلة","الرباح","حي النور","النخلة","مركز اجراء امتحان ش البكالوريا","","ثانوية الشهيد بن حمده علي  - النخلة"]
[231,12452404,"محمد علي231","استاذ تعليم ابتدائي","إ -","العربية","جويدة الجموعي- النخلة","الرباح","حي النور","النخلة","مركز اجراء امتحان ش البكالوريا","","ثانوية الشهيد بن حمده علي  - النخلة"]
[232,12452405,"محمد علي232","استاذ تعليم ابتدائي","إ -","العربية","جويدة الجموعي- النخلة","الرباح","حي النور","النخلة","مركز اجراء امتحان ش البكالوريا","","ثانوية الشهيد بن حمده علي  - النخلة"]
[233,12452406,"محمد علي233","استاذ تعليم ابتدائي","إ -","العربية","جويدة الجموعي- النخلة","الرباح","حي النور","النخلة","مركز اجراء امتحان ش البكالوريا","","ثانوية الشهيد بن حمده علي  - النخلة"]
[234,12452407,"محمد علي234","استاذ تعليم ابتدائي","إ -","العربية","جويدة الجموعي- النخلة","الرباح","حي النور","النخلة","مركز اجراء امتحان ش البكالوريا","","ثانوية الشهيد بن حمده علي  - النخلة"]
[235,12452408,"محمد علي235","استاذ تعليم ابتدائي","إ -","العربية","جويدة الجموعي- النخلة","الرباح","حي النور","النخلة","مركز اجراء امتحان ش البكالوريا","","ثانوية الشهيد بن حمده علي  - النخلة"]
[236,12452409,"محمد علي236","استاذ تعليم ابتدائي","إ -","العربية","جويدة الجموعي- النخلة","الرباح","حي النور","النخلة","مركز اجراء امتحان ش البكالوريا","","ثانوية الشهيد بن حمده علي  - النخلة"]
[237,12452410,"محمد علي237","استاذ تعليم ابتدائي","إ -","العربية","جويدة الجموعي- النخلة","الرباح","حي النور","النخلة","مركز اجراء امتحان ش البكالوريا","","ثانوية الشهيد بن حمده علي  - النخلة"]
[238,12452411,"محمد علي238","استاذ تعليم ابتدائي","إ -","العربية","جويدة الجموعي- النخلة","الرباح","حي النور","النخلة","مركز اجراء امتحان ش البكالوريا","","ثانوية الشهيد بن حمده علي  - النخلة"]
[239,12452412,"محمد علي239","استاذ تعليم ابتدائي","إ -","العربية","جويدة الجموعي- النخلة","الرباح","حي النور","النخلة","مركز اجراء امتحان ش البكالوريا","","ثانوية الشهيد بن حمده علي  - النخلة"]
[240,12452413,"محمد علي240","استاذ تعليم ابتدائي","إ -","العربية","جويدة الجموعي- النخلة","الرباح","حي النور","النخلة","مركز اجراء امتحان ش البكالوريا","","ثانوية الشهيد بن حمده علي  - النخلة"]
[241,12452414,"محمد علي241","استاذ تعليم ابتدائي","إ -","العربية","جويدة الجموعي- النخلة","الرباح","حي النور","النخلة","مركز اجراء امتحان ش البكالوريا","","ثانوية الشهيد بن حمده علي  - النخلة"]
[242,12452415,"محمد علي242","استاذ تعليم ابتدائي","إ -","العربية","جويدة الجموعي- النخلة","الرباح","حي النور","النخلة","مركز اجراء امتحان ش البكالوريا","","ثانوية الشهيد بن حمده علي  - النخلة"]
[243,12452416,"محمد علي243","استاذ تعليم ابتدائي","إ -","العربية","جويدة الجموعي- النخلة","الرباح","حي النور","النخلة","مركز اجراء امتحان ش البكالوريا","","ثانوية الشهيد بن حمده علي  - النخلة"]
[244,12452417,"محمد علي244","استاذ تعليم ابتدائي","إ -","العربية","جويدة الجموعي- النخلة","الرباح","حي النور","النخلة","مركز اجراء امتحان ش البكالوريا","","ثانوية الشهيد بن حمده علي  - النخلة"]
[245,12452418,"محمد علي245","استاذ تعليم ابتدائي","إ -","العربية","جويدة الجموعي- النخلة","الرباح","حي النور","النخلة","مركز اجراء امتحان ش البكالوريا","","ثانوية الشهيد بن حمده علي  - النخلة"]
[246,12452419,"محمد علي246","استاذ تعليم ابتدائي","إ -","العربية","جويدة الجموعي- النخلة","الرباح","حي النور","النخلة","مركز اجراء امتحان ش البكالوريا","","ثانوية الشهيد بن حمده علي  - النخلة"]
[247,12452420,"محمد علي247","استاذ تعليم ابتدائي","إ -","العربية","جويدة الجموعي- النخلة","الرباح","حي النور","النخلة","مركز اجراء امتحان ش البكالوريا","","ثانوية الشهيد بن حمده علي  - النخلة"]
[248,12452421,"محمد علي248","استاذ تعليم ابتدائي","إ -","العربية","جويدة الجموعي- النخلة","الرباح","حي النور","النخلة","مركز اجراء امتحان ش البكالوريا","","ثانوية الشهيد بن حمده علي  - النخلة"]
[249,12452422,"محمد علي249","استاذ تعليم ابتدائي","إ -","العربية","جويدة الجموعي- النخلة","الرباح","حي النور","النخلة","مركز اجراء امتحان ش البكالوريا","","ثانوية الشهيد بن حمده علي  - النخلة"]
[250,12452423,"محمد علي250","استاذ تعليم ابتدائي","إ -","العربية","جويدة الجموعي- النخلة","الرباح","حي النور","النخلة","مركز اجراء امتحان ش البكالوريا","","ثانوية الشهيد بن حمده علي  - النخلة"]
[251,12452424,"محمد علي251","استاذ تعليم ابتدائي","إ -","العربية","جويدة الجموعي- النخلة","الرباح","حي النور","النخلة","مركز اجراء امتحان ش البكالوريا","","ثانوية الشهيد بن حمده علي  - النخلة"]
[252,12452425,"محمد علي252","استاذ تعليم ابتدائي","إ -","العربية","جويدة الجموعي- النخلة","الرباح","حي النور","النخلة","مركز اجراء امتحان ش البكالوريا","","ثانوية الشهيد بن حمده علي  - النخلة"]
[253,12452426,"محمد علي253","استاذ تعليم ابتدائي","إ -","العربية","جويدة الجموعي- النخلة","الرباح","حي النور","النخلة","مركز اجراء امتحان ش البكالوريا","","ثانوية الشهيد بن حمده علي  - النخلة"]
[254,12452427,"محمد علي254","استاذ تعليم ابتدائي","إ -","العربية","جويدة الجموعي- النخلة","الرباح","حي النور","النخلة","مركز اجراء امتحان ش البكالوريا","","ثانوية الشهيد بن حمده علي  - النخلة"]
[255,12452428,"محمد علي255","استاذ تعليم ابتدائي","إ -","العربية","جويدة الجموعي- النخلة","الرباح","حي النور","النخلة","مركز اجراء امتحان ش البكالوريا","","ثانوية الشهيد بن حمده علي  - النخلة"]
[256,12452429,"محمد علي256","استاذ تعليم ابتدائي","إ -","العربية","جويدة الجموعي- النخلة","الرباح","حي النور","النخلة","مركز اجراء امتحان ش البكالوريا","","ثانوية الشهيد بن حمده علي  - النخلة"]
[257,12452430,"محمد علي257","استاذ تعليم ابتدائي","إ -","العربية","جويدة الجموعي- النخلة","الرباح","حي النور","النخلة","مركز اجراء امتحان ش البكالوريا","","ثانوية الشهيد بن حمده علي  - النخلة"]
[258,12452431,"محمد علي258","استاذ تعليم ابتدائي","إ -","العربية","جويدة الجموعي- النخلة","الرباح","حي النور","النخلة","مركز اجراء امتحان ش البكالوريا","","ثانوية الشهيد بن حمده علي  - النخلة"]
[259,12452432,"محمد علي259","استاذ تعليم ابتدائي","إ -","العربية","جويدة الجموعي- النخلة","الرباح","حي النور","النخلة","مركز اجراء امتحان ش البكالوريا","","ثانوية الشهيد بن حمده علي  - النخلة"]
[260,12452433,"محمد علي260","استاذ تعليم ابتدائي","إ -","العربية","جويدة الجموعي- النخلة","الرباح","حي النور","النخلة","مركز اجراء امتحان ش البكالوريا","","ثانوية الشهيد بن حمده علي  - النخلة"]
[261,12452434,"محمد علي261","استاذ تعليم ابتدائي","إ -","العربية","جويدة الجموعي- النخلة","الرباح","حي النور","النخلة","مركز اجراء امتحان ش البكالوريا","","ثانوية الشهيد بن حمده علي  - النخلة"]
[262,12452435,"محمد علي262","استاذ تعليم ابتدائي","إ -","العربية","جويدة الجموعي- النخلة","الرباح","حي النور","النخلة","مركز اجراء امتحان ش البكالوريا","","ثانوية الشهيد بن حمده علي  - النخلة"]
[263,12452436,"محمد علي263","استاذ تعليم ابتدائي","إ -","العربية","جويدة الجموعي- النخلة","الرباح","حي النور","النخلة","مركز اجراء امتحان ش البكالوريا","","ثانوية الشهيد بن حمده علي  - النخلة"]
[264,12452437,"محمد علي264","استاذ تعليم ابتدائي","إ -","العربية","جويدة الجموعي- النخلة","الرباح","حي النور","النخلة","مركز اجراء امتحان ش البكالوريا","","ثانوية الشهيد بن حمده علي  - النخلة"]
[265,12452438,"محمد علي265","استاذ تعليم ابتدائي","إ -","العربية","جويدة الجموعي- النخلة","الرباح","حي النور","النخلة","مركز اجراء امتحان ش البكالوريا","","ثانوية الشهيد بن حمده علي  - النخلة"]
[266,12452439,"محمد علي266","استاذ تعليم ابتدائي","إ -","العربية","جويدة الجموعي- النخلة","الرباح","حي النور","النخلة","مركز اجراء امتحان ش البكالوريا","","ثانوية الشهيد بن حمده علي  - النخلة"]
[267,12452440,"محمد علي267","استاذ تعليم ابتدائي","إ -","العربية","جويدة الجموعي- النخلة","الرباح","حي النور","النخلة","مركز اجراء امتحان ش البكالوريا","","ثانوية الشهيد بن حمده علي  - النخلة"]
[268,12452441,"محمد علي268","استاذ تعليم ابتدائي","إ -","العربية","جويدة الجموعي- النخلة","الرباح","حي النور","النخلة","مركز اجراء امتحان ش البكالوريا","","ثانوية الشهيد بن حمده علي  - النخلة"]
[269,12452442,"محمد علي269","استاذ تعليم ابتدائي","إ -","العربية","جويدة الجموعي- النخلة","الرباح","حي النور","النخلة","مركز اجراء امتحان ش البكالوريا","","ثانوية الشهيد بن حمده علي  - النخلة"]
[270,12452443,"محمد علي270","استاذ تعليم ابتدائي","إ -","العربية","جويدة الجموعي- النخلة","الرباح","حي النور","النخلة","مركز اجراء امتحان ش البكالوريا","","ثانوية الشهيد بن حمده علي  - النخلة"]
[271,12452444,"محمد علي271","استاذ تعليم ابتدائي","إ -","العربية","جويدة الجموعي- النخلة","الرباح","حي النور","النخلة","مركز اجراء امتحان ش البكالوريا","","ثانوية الشهيد بن حمده علي  - النخلة"]
[272,12452445,"محمد علي272","استاذ تعليم ابتدائي","إ -","العربية","جويدة الجموعي- النخلة","الرباح","حي النور","النخلة","مركز اجراء امتحان ش البكالوريا","","ثانوية الشهيد بن حمده علي  - النخلة"]
[273,12452446,"محمد علي273","استاذ تعليم ابتدائي","إ -","العربية","جويدة الجموعي- النخلة","الرباح","حي النور","النخلة","مركز اجراء امتحان ش البكالوريا","","ثانوية الشهيد بن حمده علي  - النخلة"]
[274,12452447,"محمد علي274","استاذ تعليم ابتدائي","إ -","العربية","جويدة الجموعي- النخلة","الرباح","حي النور","النخلة","مركز اجراء امتحان ش البكالوريا","","ثانوية الشهيد بن حمده علي  - النخلة"]
[275,12452448,"محمد علي275","استاذ تعليم ابتدائي","إ -","العربية","جويدة الجموعي- النخلة","الرباح","حي النور","النخلة","مركز اجراء امتحان ش البكالوريا","","ثانوية الشهيد بن حمده علي  - النخلة"]
[276,12452449,"محمد علي276","استاذ تعليم ابتدائي","إ -","العربية","جويدة الجموعي- النخلة","الرباح","حي النور","النخلة","مركز اجراء امتحان ش البكالوريا","","ثانوية الشهيد بن حمده علي  - النخلة"]
[277,12452450,"محمد علي277","استاذ تعليم ابتدائي","إ -","العربية","جويدة الجموعي- النخلة","الرباح","حي النور","النخلة","مركز اجراء امتحان ش البكالوريا","","ثانوية الشهيد بن حمده علي  - النخلة"]
[278,12452451,"محمد علي278","استاذ تعليم ابتدائي","إ -","العربية","جويدة الجموعي- النخلة","الرباح","حي النور","النخلة","مركز اجراء امتحان ش البكالوريا","","ثانوية الشهيد بن حمده علي  - النخلة"]
[279,12452452,"محمد علي279","استاذ تعليم ابتدائي","إ -","العربية","جويدة الجموعي- النخلة","الرباح","حي النور","النخلة","مركز اجراء امتحان ش البكالوريا","","ثانوية الشهيد بن حمده علي  - النخلة"]
[280,12452453,"محمد علي280","استاذ تعليم ابتدائي","إ -","العربية","جويدة الجموعي- النخلة","الرباح","حي النور","النخلة","مركز اجراء امتحان ش البكالوريا","","ثانوية الشهيد بن حمده علي  - النخلة"]
[281,12452454,"محمد علي281","استاذ تعليم ابتدائي","إ -","العربية","جويدة الجموعي- النخلة","الرباح","حي النور","النخلة","مركز اجراء امتحان ش البكالوريا","","ثانوية الشهيد بن حمده علي  - النخلة"]
[282,12452455,"محمد علي282","استاذ تعليم ابتدائي","إ -","العربية","جويدة الجموعي- النخلة","الرباح","حي النور","النخلة","مركز اجراء امتحان ش البكالوريا","","ثانوية الشهيد بن حمده علي  - النخلة"]
[283,12452456,"محمد علي283","استاذ تعليم ابتدائي","إ -","العربية","جويدة الجموعي- النخلة","الرباح","حي النور","النخلة","مركز اجراء امتحان ش البكالوريا","","ثانوية الشهيد بن حمده علي  - النخلة"]
[284,12452457,"محمد علي284","استاذ تعليم ابتدائي","إ -","العربية","جويدة الجموعي- النخلة","الرباح","حي النور","النخلة","مركز اجراء امتحان ش البكالوريا","","ثانوية الشهيد بن حمده علي  - النخلة"]
[285,12452458,"محمد علي285","استاذ تعليم ابتدائي","إ -","العربية","جويدة الجموعي- النخلة","الرباح","حي النور","النخلة","مركز اجراء امتحان ش البكالوريا","","ثانوية الشهيد بن حمده علي  - النخلة"]
[286,12452459,"محمد علي286","استاذ تعليم ابتدائي","إ -","العربية","جويدة الجموعي- النخلة","الرباح","حي النور","النخلة","مركز اجراء امتحان ش البكالوريا","","ثانوية الشهيد بن حمده علي  - النخلة"]
[287,12452460,"محمد علي287","استاذ تعليم ابتدائي","إ -","العربية","جويدة الجموعي- النخلة","الرباح","حي النور","النخلة","مركز اجراء امتحان ش البكالوريا","","ثانوية الشهيد بن حمده علي  - النخلة"]
[288,12452461,"محمد علي288","استاذ تعليم ابتدائي","إ -","العربية","جويدة الجموعي- النخلة","الرباح","حي النور","النخلة","مركز اجراء امتحان ش البكالوريا","","ثانوية الشهيد بن حمده علي  - النخلة"]
[289,12452462,"محمد علي289","استاذ تعليم ابتدائي","إ -","العربية","جويدة الجموعي- النخلة","الرباح","حي النور","النخلة","مركز اجراء امتحان ش البكالوريا","","ثانوية الشهيد بن حمده علي  - النخلة"]
[290,12452463,"محمد علي290","استاذ تعليم ابتدائي","إ -","العربية","جويدة الجموعي- النخلة","الرباح","حي النور","النخلة","مركز اجراء امتحان ش البكالوريا","","ثانوية الشهيد بن حمده علي  - النخلة"]
[291,12452464,"محمد علي291","استاذ تعليم ابتدائي","إ -","العربية","جويدة الجموعي- النخلة","الرباح","حي النور","النخلة","مركز اجراء امتحان ش البكالوريا","","ثانوية الشهيد بن حمده علي  - النخلة"]
[292,12452465,"محمد علي292","استاذ تعليم ابتدائي","إ -","العربية","جويدة الجموعي- النخلة","الرباح","حي النور","النخلة","مركز اجراء امتحان ش البكالوريا","","ثانوية الشهيد بن حمده علي  - النخلة"]
[293,12452466,"محمد علي293","استاذ تعليم ابتدائي","إ -","العربية","جويدة الجموعي- النخلة","الرباح","حي النور","النخلة","مركز اجراء امتحان ش البكالوريا","","ثانوية الشهيد بن حمده علي  - النخلة"]
[294,12452467,"محمد علي294","استاذ تعليم ابتدائي","إ -","العربية","جويدة الجموعي- النخلة","الرباح","حي النور","النخلة","مركز اجراء امتحان ش البكالوريا","","ثانوية الشهيد بن حمده علي  - النخلة"]
[295,12452468,"محمد علي295","استاذ تعليم ابتدائي","إ -","العربية","جويدة الجموعي- النخلة","الرباح","حي النور","النخلة","مركز اجراء امتحان ش البكالوريا","","ثانوية الشهيد بن حمده علي  - النخلة"]
[296,12452469,"محمد علي296","استاذ تعليم ابتدائي","إ -","العربية","جويدة الجموعي- النخلة","الرباح","حي النور","النخلة","مركز اجراء امتحان ش البكالوريا","","ثانوية الشهيد بن حمده علي  - النخلة"]
[297,12452470,"محمد علي297","استاذ تعليم ابتدائي","إ -","العربية","جويدة الجموعي- النخلة","الرباح","حي النور","النخلة","مركز اجراء امتحان ش البكالوريا","","ثانوية الشهيد بن حمده علي  - النخلة"]
[298,12452471,"محمد علي298","استاذ تعليم ابتدائي","إ -","العربية","جويدة الجموعي- النخلة","الرباح","حي النور","النخلة","مركز اجراء امتحان ش البكالوريا","","ثانوية الشهيد بن حمده علي  - النخلة"]
[299,12452472,"محمد علي299","استاذ تعليم ابتدائي","إ -","العربية","جويدة الجموعي- النخلة","الرباح","حي النور","النخلة","مركز اجراء امتحان ش البكالوريا","","ثانوية الشهيد بن حمده علي  - النخلة"]
[300,12452473,"محمد علي300","استاذ تعليم ابتدائي","إ -","العربية","جويدة الجموعي- النخلة","الرباح","حي النور","النخلة","مركز اجراء امتحان ش البكالوريا","","ثانوية الشهيد بن حمده علي  - النخلة"]
[301,12452474,"محمد علي301","استاذ تعليم ابتدائي","إ -","العربية","جويدة الجموعي- النخلة","الرباح","حي النور","النخلة","مركز اجراء امتحان ش البكالوريا","","ثانوية الشهيد بن حمده علي  - النخلة"]
[302,12452475,"محمد علي302","استاذ تعليم ابتدائي","إ -","العربية","جويدة الجموعي- النخلة","الرباح","حي النور","النخلة","مركز اجراء امتحان ش البكالوريا","","ثانوية الشهيد بن حمده علي  - النخلة"]
[303,12452476,"محمد علي303","استاذ تعليم ابتدائي","إ -","العربية","جويدة الجموعي- النخلة","الرباح","حي النور","النخلة","مركز اجراء امتحان ش البكالوريا","","ثانوية الشهيد بن حمده علي  - النخلة"]
[304,12452477,"محمد علي304","استاذ تعليم ابتدائي","إ -","العربية","جويدة الجموعي- النخلة","الرباح","حي النور","النخلة","مركز اجراء امتحان ش البكالوريا","","ثانوية الشهيد بن حمده علي  - النخلة"]
[305,12452478,"محمد علي305","استاذ تعليم ابتدائي","إ -","العربية","جويدة الجموعي- النخلة","الرباح","حي النور","النخلة","مركز اجراء امتحان ش البكالوريا","","ثانوية الشهيد بن حمده علي  - النخلة"]
[306,12452479,"محمد علي306","استاذ تعليم ابتدائي","إ -","العربية","جويدة الجموعي- النخلة","الرباح","حي النور","النخلة","مركز اجراء امتحان ش البكالوريا","","ثانوية الشهيد بن حمده علي  - النخلة"]
[307,12452480,"محمد علي307","استاذ تعليم ابتدائي","إ -","العربية","جويدة الجموعي- النخلة","الرباح","حي النور","النخلة","مركز اجراء امتحان ش البكالوريا","","ثانوية الشهيد بن حمده علي  - النخلة"]
[308,12452481,"محمد علي308","استاذ تعليم ابتدائي","إ -","العربية","جويدة الجموعي- النخلة","الرباح","حي النور","النخلة","مركز اجراء امتحان ش البكالوريا","","ثانوية الشهيد بن حمده علي  - النخلة"]
[309,12452482,"محمد علي309","استاذ تعليم ابتدائي","إ -","العربية","جويدة الجموعي- النخلة","الرباح","حي النور","النخلة","مركز اجراء امتحان ش البكالوريا","","ثانوية الشهيد بن حمده علي  - النخلة"]
[310,12452483,"محمد علي310","استاذ تعليم ابتدائي","إ -","العربية","جويدة الجموعي- النخلة","الرباح","حي النور","النخلة","مركز اجراء امتحان ش البكالوريا","","ثانوية الشهيد بن حمده علي  - النخلة"]
[311,12452484,"محمد علي311","استاذ تعليم ابتدائي","إ -","العربية","جويدة الجموعي- النخلة","الرباح","حي النور","النخلة","مركز اجراء امتحان ش البكالوريا","","ثانوية الشهيد بن حمده علي  - النخلة"]
[312,12452485,"محمد علي312","استاذ تعليم ابتدائي","إ -","العربية","جويدة الجموعي- النخلة","الرباح","حي النور","النخلة","مركز اجراء امتحان ش البكالوريا","","ثانوية الشهيد بن حمده علي  - النخلة"]
[313,12452486,"محمد علي313","استاذ تعليم ابتدائي","إ -","العربية","جويدة الجموعي- النخلة","الرباح","حي النور","النخلة","مركز اجراء امتحان ش البكالوريا","","ثانوية الشهيد بن حمده علي  - النخلة"]
[314,12452487,"محمد علي314","استاذ تعليم ابتدائي","إ -","العربية","جويدة الجموعي- النخلة","الرباح","حي النور","النخلة","مركز اجراء امتحان ش البكالوريا","","ثانوية الشهيد بن حمده علي  - النخلة"]
[315,12452488,"محمد علي315","استاذ تعليم ابتدائي","إ -","العربية","جويدة الجموعي- النخلة","الرباح","حي النور","النخلة","مركز اجراء امتحان ش البكالوريا","","ثانوية الشهيد بن حمده علي  - النخلة"]
[316,12452489,"محمد علي316","استاذ تعليم ابتدائي","إ -","العربية","جويدة الجموعي- النخلة","الرباح","حي النور","النخلة","مركز اجراء امتحان ش البكالوريا","","ثانوية الشهيد بن حمده علي  - النخلة"]
[317,12452490,"محمد علي317","استاذ تعليم ابتدائي","إ -","العربية","جويدة الجموعي- النخلة","الرباح","حي النور","النخلة","مركز اجراء امتحان ش البكالوريا","","ثانوية الشهيد بن حمده علي  - النخلة"]
[318,12452491,"محمد علي318","استاذ تعليم ابتدائي","إ -","العربية","جويدة الجموعي- النخلة","الرباح","حي النور","النخلة","مركز اجراء امتحان ش البكالوريا","","ثانوية الشهيد بن حمده علي  - النخلة"]
[319,12452492,"محمد علي319","استاذ تعليم ابتدائي","إ -","العربية","جويدة الجموعي- النخلة","الرباح","حي النور","النخلة","مركز اجراء امتحان ش البكالوريا","","ثانوية الشهيد بن حمده علي  - النخلة"]
[320,12452493,"محمد علي320","استاذ تعليم ابتدائي","إ -","العربية","جويدة الجموعي- النخلة","الرباح","حي النور","النخلة","مركز اجراء امتحان ش البكالوريا","","ثانوية الشهيد بن حمده علي  - النخلة"]
[321,12452494,"محمد علي321","استاذ تعليم ابتدائي","إ -","العربية","جويدة الجموعي- النخلة","الرباح","حي النور","النخلة","مركز اجراء امتحان ش البكالوريا","","ثانوية الشهيد بن حمده علي  - النخلة"]
[322,12452495,"محمد علي322","استاذ تعليم ابتدائي","إ -","العربية","جويدة الجموعي- النخلة","الرباح","حي النور","النخلة","مركز اجراء امتحان ش البكالوريا","","ثانوية الشهيد بن حمده علي  - النخلة"]
[323,12452496,"محمد علي323","استاذ تعليم ابتدائي","إ -","العربية","جويدة الجموعي- النخلة","الرباح","حي النور","النخلة","مركز اجراء امتحان ش البكالوريا","","ثانوية الشهيد بن حمده علي  - النخلة"]
[324,12452497,"محمد علي324","استاذ تعليم ابتدائي","إ -","العربية","جويدة الجموعي- النخلة","الرباح","حي النور","النخلة","مركز اجراء امتحان ش البكالوريا","","ثانوية الشهيد بن حمده علي  - النخلة"]
[325,12452498,"محمد علي325","استاذ تعليم ابتدائي","إ -","العربية","جويدة الجموعي- النخلة","الرباح","حي النور","النخلة","مركز اجراء امتحان ش البكالوريا","","ثانوية الشهيد بن حمده علي  - النخلة"]
[326,12452499,"محمد علي326","استاذ تعليم ابتدائي","إ -","العربية","جويدة الجموعي- النخلة","الرباح","حي النور","النخلة","مركز اجراء امتحان ش البكالوريا","","ثانوية الشهيد بن حمده علي  - النخلة"]
[327,12452500,"محمد علي327","استاذ تعليم ابتدائي","إ -","العربية","جويدة الجموعي- النخلة","الرباح","حي النور","النخلة","مركز اجراء امتحان ش البكالوريا","","ثانوية الشهيد بن حمده علي  - النخلة"]
[328,12452501,"محمد علي328","استاذ تعليم ابتدائي","إ -","العربية","جويدة الجموعي- النخلة","الرباح","حي النور","النخلة","مركز اجراء امتحان ش البكالوريا","","ثانوية الشهيد بن حمده علي  - النخلة"]
[329,12452502,"محمد علي329","استاذ تعليم ابتدائي","إ -","العربية","جويدة الجموعي- النخلة","الرباح","حي النور","النخلة","مركز اجراء امتحان ش البكالوريا","","ثانوية الشهيد بن حمده علي  - النخلة"]
[330,12452503,"محمد علي330","استاذ تعليم ابتدائي","إ -","العربية","جويدة الجموعي- النخلة","الرباح","حي النور","النخلة","مركز اجراء امتحان ش البكالوريا","","ثانوية الشهيد بن حمده علي  - النخلة"]
[331,12452504,"محمد علي331","استاذ تعليم ابتدائي","إ -","العربية","جويدة الجموعي- النخلة","الرباح","حي النور","النخلة","مركز اجراء امتحان ش البكالوريا","","ثانوية الشهيد بن حمده علي  - النخلة"]
[332,12452505,"محمد علي332","استاذ تعليم ابتدائي","إ -","العربية","جويدة الجموعي- النخلة","الرباح","حي النور","النخلة","مركز اجراء امتحان ش البكالوريا","","ثانوية الشهيد بن حمده علي  - النخلة"]
[333,12452506,"محمد علي333","استاذ تعليم ابتدائي","إ -","العربية","جويدة الجموعي- النخلة","الرباح","حي النور","النخلة","مركز اجراء امتحان ش البكالوريا","","ثانوية الشهيد بن حمده علي  - النخلة"]
[334,12452507,"محمد علي334","استاذ تعليم ابتدائي","إ -","العربية","جويدة الجموعي- النخلة","الرباح","حي النور","النخلة","مركز اجراء امتحان ش البكالوريا","","ثانوية الشهيد بن حمده علي  - النخلة"]
[335,12452508,"محمد علي335","استاذ تعليم ابتدائي","إ -","العربية","جويدة الجموعي- النخلة","الرباح","حي النور","النخلة","مركز اجراء امتحان ش البكالوريا","","ثانوية الشهيد بن حمده علي  - النخلة"]
[336,12452509,"محمد علي336","استاذ تعليم ابتدائي","إ -","العربية","جويدة الجموعي- النخلة","الرباح","حي النور","النخلة","مركز اجراء امتحان ش البكالوريا","","ثانوية الشهيد بن حمده علي  - النخلة"]
[337,12452510,"محمد علي337","استاذ تعليم ابتدائي","إ -","العربية","جويدة الجموعي- النخلة","الرباح","حي النور","النخلة","مركز اجراء امتحان ش البكالوريا","","ثانوية الشهيد بن حمده علي  - النخلة"]
[338,12452511,"محمد علي338","استاذ تعليم ابتدائي","إ -","العربية","جويدة الجموعي- النخلة","الرباح","حي النور","النخلة","مركز اجراء امتحان ش البكالوريا","","ثانوية الشهيد بن حمده علي  - النخلة"]
[339,12452512,"محمد علي339","استاذ تعليم ابتدائي","إ -","العربية","جويدة الجموعي- النخلة","الرباح","حي النور","النخلة","مركز اجراء امتحان ش البكالوريا","","ثانوية الشهيد بن حمده علي  - النخلة"]
[340,12452513,"محمد علي340","استاذ تعليم ابتدائي","إ -","العربية","جويدة الجموعي- النخلة","الرباح","حي النور","النخلة","مركز اجراء امتحان ش البكالوريا","","ثانوية الشهيد بن حمده علي  - النخلة"]
[341,12452514,"محمد علي341","استاذ تعليم ابتدائي","إ -","العربية","جويدة الجموعي- النخلة","الرباح","حي النور","النخلة","مركز اجراء امتحان ش البكالوريا","","ثانوية الشهيد بن حمده علي  - النخلة"]
[342,12452515,"محمد علي342","استاذ تعليم ابتدائي","إ -","العربية","جويدة الجموعي- النخلة","الرباح","حي النور","النخلة","مركز اجراء امتحان ش البكالوريا","","ثانوية الشهيد بن حمده علي  - النخلة"]
[343,12452516,"محمد علي343","استاذ تعليم ابتدائي","إ -","العربية","جويدة الجموعي- النخلة","الرباح","حي النور","النخلة","مركز اجراء امتحان ش البكالوريا","","ثانوية الشهيد بن حمده علي  - النخلة"]
[344,12452517,"محمد علي344","استاذ تعليم ابتدائي","إ -","العربية","جويدة الجموعي- النخلة","الرباح","حي النور","النخلة","مركز اجراء امتحان ش البكالوريا","","ثانوية الشهيد بن حمده علي  - النخلة"]
[345,12452518,"محمد علي345","استاذ تعليم ابتدائي","إ -","العربية","جويدة الجموعي- النخلة","الرباح","حي النور","النخلة","مركز اجراء امتحان ش البكالوريا","","ثانوية الشهيد بن حمده علي  - النخلة"]
[346,12452519,"محمد علي346","استاذ تعليم ابتدائي","إ -","العربية","جويدة الجموعي- النخلة","الرباح","حي النور","النخلة","مركز اجراء امتحان ش البكالوريا","","ثانوية الشهيد بن حمده علي  - النخلة"]
[347,12452520,"محمد علي347","استاذ تعليم ابتدائي","إ -","العربية","جويدة الجموعي- النخلة","الرباح","حي النور","النخلة","مركز اجراء امتحان ش البكالوريا","","ثانوية الشهيد بن حمده علي  - النخلة"]
[348,12452521,"محمد علي348","استاذ تعليم ابتدائي","إ -","العربية","جويدة الجموعي- النخلة","الرباح","حي النور","النخلة","مركز اجراء امتحان ش البكالوريا","","ثانوية الشهيد بن حمده علي  - النخلة"]
[349,12452522,"محمد علي349","استاذ تعليم ابتدائي","إ -","العربية","جويدة الجموعي- النخلة","الرباح","حي النور","النخلة","مركز اجراء امتحان ش البكالوريا","","ثانوية الشهيد بن حمده علي  - النخلة"]
[350,12452523,"محمد علي350","استاذ تعليم ابتدائي","إ -","العربية","جويدة الجموعي- النخلة","الرباح","حي النور","النخلة","مركز اجراء امتحان ش البكالوريا","","ثانوية الشهيد بن حمده علي  - النخلة"]
[351,12452524,"محمد علي351","استاذ تعليم ابتدائي","إ -","العربية","جويدة الجموعي- النخلة","الرباح","حي النور","النخلة","مركز اجراء امتحان ش البكالوريا","","ثانوية الشهيد بن حمده علي  - النخلة"]
[352,12452525,"محمد علي352","استاذ تعليم ابتدائي","إ -","العربية","جويدة الجموعي- النخلة","الرباح","حي النور","النخلة","مركز اجراء امتحان ش البكالوريا","","ثانوية الشهيد بن حمده علي  - النخلة"]
[353,12452526,"محمد علي353","استاذ تعليم ابتدائي","إ -","العربية","جويدة الجموعي- النخلة","الرباح","حي النور","النخلة","مركز اجراء امتحان ش البكالوريا","","ثانوية الشهيد بن حمده علي  - النخلة"]
[354,12452527,"محمد علي354","استاذ تعليم ابتدائي","إ -","العربية","جويدة الجموعي- النخلة","الرباح","حي النور","النخلة","مركز اجراء امتحان ش البكالوريا","","ثانوية الشهيد بن حمده علي  - النخلة"]
[355,12452528,"محمد علي355","استاذ تعليم ابتدائي","إ -","العربية","جويدة الجموعي- النخلة","الرباح","حي النور","النخلة","مركز اجراء امتحان ش البكالوريا","","ثانوية الشهيد بن حمده علي  - النخلة"]
[356,12452529,"محمد علي356","استاذ تعليم ابتدائي","إ -","العربية","جويدة الجموعي- النخلة","الرباح","حي النور","النخلة","مركز اجراء امتحان ش البكالوريا","","ثانوية الشهيد بن حمده علي  - النخلة"]
[357,12452530,"محمد علي357","استاذ تعليم ابتدائي","إ -","العربية","جويدة الجموعي- النخلة","الرباح","حي النور","النخلة","مركز اجراء امتحان ش البكالوريا","","ثانوية الشهيد بن حمده علي  - النخلة"]
[358,12452531,"محمد علي358","استاذ تعليم ابتدائي","إ -","العربية","جويدة الجموعي- النخلة","الرباح","حي النور","النخلة","مركز اجراء امتحان ش البكالوريا","","ثانوية الشهيد بن حمده علي  - النخلة"]
[359,12452532,"محمد علي359","استاذ تعليم ابتدائي","إ -","العربية","جويدة الجموعي- النخلة","الرباح","حي النور","النخلة","مركز اجراء امتحان ش البكالوريا","","ثانوية الشهيد بن حمده علي  - النخلة"]
[360,12452533,"محمد علي360","استاذ تعليم ابتدائي","إ -","العربية","جويدة الجموعي- النخلة","الرباح","حي النور","النخلة","مركز اجراء امتحان ش البكالوريا","","ثانوية الشهيد بن حمده علي  - النخلة"]
[361,12452534,"محمد علي361","استاذ تعليم ابتدائي","إ -","العربية","جويدة الجموعي- النخلة","الرباح","حي النور","النخلة","مركز اجراء امتحان ش البكالوريا","","ثانوية الشهيد بن حمده علي  - النخلة"]
[362,12452535,"محمد علي362","استاذ تعليم ابتدائي","إ -","العربية","جويدة الجموعي- النخلة","الرباح","حي النور","النخلة","مركز اجراء امتحان ش البكالوريا","","ثانوية الشهيد بن حمده علي  - النخلة"]
[363,12452536,"محمد علي363","استاذ تعليم ابتدائي","إ -","العربية","جويدة الجموعي- النخلة","الرباح","حي النور","النخلة","مركز اجراء امتحان ش البكالوريا","","ثانوية الشهيد بن حمده علي  - النخلة"]
[364,12452537,"محمد علي364","استاذ تعليم ابتدائي","إ -","العربية","جويدة الجموعي- النخلة","الرباح","حي النور","النخلة","مركز اجراء امتحان ش البكالوريا","","ثانوية الشهيد بن حمده علي  - النخلة"]
[365,12452538,"محمد علي365","استاذ تعليم ابتدائي","إ -","العربية","جويدة الجموعي- النخلة","الرباح","حي النور","النخلة","مركز اجراء امتحان ش البكالوريا","","ثانوية الشهيد بن حمده علي  - النخلة"]
[366,12452539,"محمد علي366","استاذ تعليم ابتدائي","إ -","العربية","جويدة الجموعي- النخلة","الرباح","حي النور","النخلة","مركز اجراء امتحان ش البكالوريا","","ثانوية الشهيد بن حمده علي  - النخلة"]
[367,12452540,"محمد علي367","استاذ تعليم ابتدائي","إ -","العربية","جويدة الجموعي- النخلة","الرباح","حي النور","النخلة","مركز اجراء امتحان ش البكالوريا","","ثانوية الشهيد بن حمده علي  - النخلة"]
[368,12452541,"محمد علي368","استاذ تعليم ابتدائي","إ -","العربية","جويدة الجموعي- النخلة","الرباح","حي النور","النخلة","مركز اجراء امتحان ش البكالوريا","","ثانوية الشهيد بن حمده علي  - النخلة"]
[369,12452542,"محمد علي369","استاذ تعليم ابتدائي","إ -","العربية","جويدة الجموعي- النخلة","الرباح","حي النور","النخلة","مركز اجراء امتحان ش البكالوريا","","ثانوية الشهيد بن حمده علي  - النخلة"]
[370,12452543,"محمد علي370","استاذ تعليم ابتدائي","إ -","العربية","جويدة الجموعي- النخلة","الرباح","حي النور","النخلة","مركز اجراء امتحان ش البكالوريا","","ثانوية الشهيد بن حمده علي  - النخلة"]
[371,12452544,"محمد علي371","استاذ تعليم ابتدائي","إ -","العربية","جويدة الجموعي- النخلة","الرباح","حي النور","النخلة","مركز اجراء امتحان ش البكالوريا","","ثانوية الشهيد بن حمده علي  - النخلة"]
[372,12452545,"محمد علي372","استاذ تعليم ابتدائي","إ -","العربية","جويدة الجموعي- النخلة","الرباح","حي النور","النخلة","مركز اجراء امتحان ش البكالوريا","","ثانوية الشهيد بن حمده علي  - النخلة"]
[373,12452546,"محمد علي373","استاذ تعليم ابتدائي","إ -","العربية","جويدة الجموعي- النخلة","الرباح","حي النور","النخلة","مركز اجراء امتحان ش البكالوريا","","ثانوية الشهيد بن حمده علي  - النخلة"]
[374,12452547,"محمد علي374","استاذ تعليم ابتدائي","إ -","العربية","جويدة الجموعي- النخلة","الرباح","حي النور","النخلة","مركز اجراء امتحان ش البكالوريا","","ثانوية الشهيد بن حمده علي  - النخلة"]
[375,12452548,"محمد علي375","استاذ تعليم ابتدائي","إ -","العربية","جويدة الجموعي- النخلة","الرباح","حي النور","النخلة","مركز اجراء امتحان ش البكالوريا","","ثانوية الشهيد بن حمده علي  - النخلة"]
[376,12452549,"محمد علي376","استاذ تعليم ابتدائي","إ -","العربية","جويدة الجموعي- النخلة","الرباح","حي النور","النخلة","مركز اجراء امتحان ش البكالوريا","","ثانوية الشهيد بن حمده علي  - النخلة"]
[377,12452550,"محمد علي377","استاذ تعليم ابتدائي","إ -","العربية","جويدة الجموعي- النخلة","الرباح","حي النور","النخلة","مركز اجراء امتحان ش البكالوريا","","ثانوية الشهيد بن حمده علي  - النخلة"]
[378,12452551,"محمد علي378","استاذ تعليم ابتدائي","إ -","العربية","جويدة الجموعي- النخلة","الرباح","حي النور","النخلة","مركز اجراء امتحان ش البكالوريا","","ثانوية الشهيد بن حمده علي  - النخلة"]
[379,12452552,"محمد علي379","استاذ تعليم ابتدائي","إ -","العربية","جويدة الجموعي- النخلة","الرباح","حي النور","النخلة","مركز اجراء امتحان ش البكالوريا","","ثانوية الشهيد بن حمده علي  - النخلة"]
[380,12452553,"محمد علي380","استاذ تعليم ابتدائي","إ -","العربية","جويدة الجموعي- النخلة","الرباح","حي النور","النخلة","مركز اجراء امتحان ش البكالوريا","","ثانوية الشهيد بن حمده علي  - النخلة"]
[381,12452554,"محمد علي381","استاذ تعليم ابتدائي","إ -","العربية","جويدة الجموعي- النخلة","الرباح","حي النور","النخلة","مركز اجراء امتحان ش البكالوريا","","ثانوية الشهيد بن حمده علي  - النخلة"]
[382,12452555,"محمد علي382","استاذ تعليم ابتدائي","إ -","العربية","جويدة الجموعي- النخلة","الرباح","حي النور","النخلة","مركز اجراء امتحان ش البكالوريا","","ثانوية الشهيد بن حمده علي  - النخلة"]
[383,12452556,"محمد علي383","استاذ تعليم ابتدائي","إ -","العربية","جويدة الجموعي- النخلة","الرباح","حي النور","النخلة","مركز اجراء امتحان ش البكالوريا","","ثانوية الشهيد بن حمده علي  - النخلة"]
[384,12452557,"محمد علي384","استاذ تعليم ابتدائي","إ -","العربية","جويدة الجموعي- النخلة","الرباح","حي النور","النخلة","مركز اجراء امتحان ش البكالوريا","","ثانوية الشهيد بن حمده علي  - النخلة"]
[385,12452558,"محمد علي385","استاذ تعليم ابتدائي","إ -","العربية","جويدة الجموعي- النخلة","الرباح","حي النور","النخلة","مركز اجراء امتحان ش البكالوريا","","ثانوية الشهيد بن حمده علي  - النخلة"]
[386,12452559,"محمد علي386","استاذ تعليم ابتدائي","إ -","العربية","جويدة الجموعي- النخلة","الرباح","حي النور","النخلة","مركز اجراء امتحان ش البكالوريا","","ثانوية الشهيد بن حمده علي  - النخلة"]
[387,12452560,"محمد علي387","استاذ تعليم ابتدائي","إ -","العربية","جويدة الجموعي- النخلة","الرباح","حي النور","النخلة","مركز اجراء امتحان ش البكالوريا","","ثانوية الشهيد بن حمده علي  - النخلة"]
[388,12452561,"محمد علي388","استاذ تعليم ابتدائي","إ -","العربية","جويدة الجموعي- النخلة","الرباح","حي النور","النخلة","مركز اجراء امتحان ش البكالوريا","","ثانوية الشهيد بن حمده علي  - النخلة"]
[389,12452562,"محمد علي389","استاذ تعليم ابتدائي","إ -","العربية","جويدة الجموعي- النخلة","الرباح","حي النور","النخلة","مركز اجراء امتحان ش البكالوريا","","ثانوية الشهيد بن حمده علي  - النخلة"]
[390,12452563,"محمد علي390","استاذ تعليم ابتدائي","إ -","العربية","جويدة الجموعي- النخلة","الرباح","حي النور","النخلة","مركز اجراء امتحان ش البكالوريا","","ثانوية الشهيد بن حمده علي  - النخلة"]
[391,12452564,"محمد علي391","استاذ تعليم ابتدائي","إ -","العربية","جويدة الجموعي- النخلة","الرباح","حي النور","النخلة","مركز اجراء امتحان ش البكالوريا","","ثانوية الشهيد بن حمده علي  - النخلة"]
[392,12452565,"محمد علي392","استاذ تعليم ابتدائي","إ -","العربية","جويدة الجموعي- النخلة","الرباح","حي النور","النخلة","مركز اجراء امتحان ش البكالوريا","","ثانوية الشهيد بن حمده علي  - النخلة"]
[393,12452566,"محمد علي393","استاذ تعليم ابتدائي","إ -","العربية","جويدة الجموعي- النخلة","الرباح","حي النور","النخلة","مركز اجراء امتحان ش البكالوريا","","ثانوية الشهيد بن حمده علي  - النخلة"]
[394,12452567,"محمد علي394","استاذ تعليم ابتدائي","إ -","العربية","جويدة الجموعي- النخلة","الرباح","حي النور","النخلة","مركز اجراء امتحان ش البكالوريا","","ثانوية الشهيد بن حمده علي  - النخلة"]
[395,12452568,"محمد علي395","استاذ تعليم ابتدائي","إ -","العربية","جويدة الجموعي- النخلة","الرباح","حي النور","النخلة","مركز اجراء امتحان ش البكالوريا","","ثانوية الشهيد بن حمده علي  - النخلة"]
[396,12452569,"محمد علي396","استاذ تعليم ابتدائي","إ -","العربية","جويدة الجموعي- النخلة","الرباح","حي النور","النخلة","مركز اجراء امتحان ش البكالوريا","","ثانوية الشهيد بن حمده علي  - النخلة"]
[397,12452570,"محمد علي397","استاذ تعليم ابتدائي","إ -","العربية","جويدة الجموعي- النخلة","الرباح","حي النور","النخلة","مركز اجراء امتحان ش البكالوريا","","ثانوية الشهيد بن حمده علي  - النخلة"]
[398,12452571,"محمد علي398","استاذ تعليم ابتدائي","إ -","العربية","جويدة الجموعي- النخلة","الرباح","حي النور","النخلة","مركز اجراء امتحان ش البكالوريا","","ثانوية الشهيد بن حمده علي  - النخلة"]
[399,12452572,"محمد علي399","استاذ تعليم ابتدائي","إ -","العربية","جويدة الجموعي- النخلة","الرباح","حي النور","النخلة","مركز اجراء امتحان ش البكالوريا","","ثانوية الشهيد بن حمده علي  - النخلة"]
[400,12452573,"محمد علي400","استاذ تعليم ابتدائي","إ -","العربية","جويدة الجموعي- النخلة","الرباح","حي النور","النخلة","مركز اجراء امتحان ش البكالوريا","","ثانوية الشهيد بن حمده علي  - النخلة"]
[401,12452574,"محمد علي401","استاذ تعليم ابتدائي","إ -","العربية","جويدة الجموعي- النخلة","الرباح","حي النور","النخلة","مركز اجراء امتحان ش البكالوريا","","ثانوية الشهيد بن حمده علي  - النخلة"]
[402,12452575,"محمد علي402","استاذ تعليم ابتدائي","إ -","العربية","جويدة الجموعي- النخلة","الرباح","حي النور","النخلة","مركز اجراء امتحان ش البكالوريا","","ثانوية الشهيد بن حمده علي  - النخلة"]
[403,12452576,"محمد علي403","استاذ تعليم ابتدائي","إ -","العربية","جويدة الجموعي- النخلة","الرباح","حي النور","النخلة","مركز اجراء امتحان ش البكالوريا","","ثانوية الشهيد بن حمده علي  - النخلة"]
[404,12452577,"محمد علي404","استاذ تعليم ابتدائي","إ -","العربية","جويدة الجموعي- النخلة","الرباح","حي النور","النخلة","مركز اجراء امتحان ش البكالوريا","","ثانوية الشهيد بن حمده علي  - النخلة"]
[405,12452578,"محمد علي405","استاذ تعليم ابتدائي","إ -","العربية","جويدة الجموعي- النخلة","الرباح","حي النور","النخلة","مركز اجراء امتحان ش البكالوريا","","ثانوية الشهيد بن حمده علي  - النخلة"]
[406,12452579,"محمد علي406","استاذ تعليم ابتدائي","إ -","العربية","جويدة الجموعي- النخلة","الرباح","حي النور","النخلة","مركز اجراء امتحان ش البكالوريا","","ثانوية الشهيد بن حمده علي  - النخلة"]
[407,12452580,"محمد علي407","استاذ تعليم ابتدائي","إ -","العربية","جويدة الجموعي- النخلة","الرباح","حي النور","النخلة","مركز اجراء امتحان ش البكالوريا","","ثانوية الشهيد بن حمده علي  - النخلة"]
[408,12452581,"محمد علي408","استاذ تعليم ابتدائي","إ -","العربية","جويدة الجموعي- النخلة","الرباح","حي النور","النخلة","مركز اجراء امتحان ش البكالوريا","","ثانوية الشهيد بن حمده علي  - النخلة"]
[409,12452582,"محمد علي409","استاذ تعليم ابتدائي","إ -","العربية","جويدة الجموعي- النخلة","الرباح","حي النور","النخلة","مركز اجراء امتحان ش البكالوريا","","ثانوية الشهيد بن حمده علي  - النخلة"]
[410,12452583,"محمد علي410","استاذ تعليم ابتدائي","إ -","العربية","جويدة الجموعي- النخلة","الرباح","حي النور","النخلة","مركز اجراء امتحان ش البكالوريا","","ثانوية الشهيد بن حمده علي  - النخلة"]
[411,12452584,"محمد علي411","استاذ تعليم ابتدائي","إ -","العربية","جويدة الجموعي- النخلة","الرباح","حي النور","النخلة","مركز اجراء امتحان ش البكالوريا","","ثانوية الشهيد بن حمده علي  - النخلة"]
[412,12452585,"محمد علي412","استاذ تعليم ابتدائي","إ -","العربية","جويدة الجموعي- النخلة","الرباح","حي النور","النخلة","مركز اجراء امتحان ش البكالوريا","","ثانوية الشهيد بن حمده علي  - النخلة"]
[413,12452586,"محمد علي413","استاذ تعليم ابتدائي","إ -","العربية","جويدة الجموعي- النخلة","الرباح","حي النور","النخلة","مركز اجراء امتحان ش البكالوريا","","ثانوية الشهيد بن حمده علي  - النخلة"]
[414,12452587,"محمد علي414","استاذ تعليم ابتدائي","إ -","العربية","جويدة الجموعي- النخلة","الرباح","حي النور","النخلة","مركز اجراء امتحان ش البكالوريا","","ثانوية الشهيد بن حمده علي  - النخلة"]
[415,12452588,"محمد علي415","استاذ تعليم ابتدائي","إ -","العربية","جويدة الجموعي- النخلة","الرباح","حي النور","النخلة","مركز اجراء امتحان ش البكالوريا","","ثانوية الشهيد بن حمده علي  - النخلة"]
[416,12452589,"محمد علي416","استاذ تعليم ابتدائي","إ -","العربية","جويدة الجموعي- النخلة","الرباح","حي النور","النخلة","مركز اجراء امتحان ش البكالوريا","","ثانوية الشهيد بن حمده علي  - النخلة"]
[417,12452590,"محمد علي417","استاذ تعليم ابتدائي","إ -","العربية","جويدة الجموعي- النخلة","الرباح","حي النور","النخلة","مركز اجراء امتحان ش البكالوريا","","ثانوية الشهيد بن حمده علي  - النخلة"]
[418,12452591,"محمد علي418","استاذ تعليم ابتدائي","إ -","العربية","جويدة الجموعي- النخلة","الرباح","حي النور","النخلة","مركز اجراء امتحان ش البكالوريا","","ثانوية الشهيد بن حمده علي  - النخلة"]
[419,12452592,"محمد علي419","استاذ تعليم ابتدائي","إ -","العربية","جويدة الجموعي- النخلة","الرباح","حي النور","النخلة","مركز اجراء امتحان ش البكالوريا","","ثانوية الشهيد بن حمده علي  - النخلة"]
[420,12452593,"محمد علي420","استاذ تعليم ابتدائي","إ -","العربية","جويدة الجموعي- النخلة","الرباح","حي النور","النخلة","مركز اجراء امتحان ش البكالوريا","","ثانوية الشهيد بن حمده علي  - النخلة"]
[421,12452594,"محمد علي421","استاذ تعليم ابتدائي","إ -","العربية","جويدة الجموعي- النخلة","الرباح","حي النور","النخلة","مركز اجراء امتحان ش البكالوريا","","ثانوية الشهيد بن حمده علي  - النخلة"]
[422,12452595,"محمد علي422","استاذ تعليم ابتدائي","إ -","العربية","جويدة الجموعي- النخلة","الرباح","حي النور","النخلة","مركز اجراء امتحان ش البكالوريا","","ثانوية الشهيد بن حمده علي  - النخلة"]
[423,12452596,"محمد علي423","استاذ تعليم ابتدائي","إ -","العربية","جويدة الجموعي- النخلة","الرباح","حي النور","النخلة","مركز اجراء امتحان ش البكالوريا","","ثانوية الشهيد بن حمده علي  - النخلة"]
[424,12452597,"محمد علي424","استاذ تعليم ابتدائي","إ -","العربية","جويدة الجموعي- النخلة","الرباح","حي النور","النخلة","مركز اجراء امتحان ش البكالوريا","","ثانوية الشهيد بن حمده علي  - النخلة"]
[425,12452598,"محمد علي425","استاذ تعليم ابتدائي","إ -","العربية","جويدة الجموعي- النخلة","الرباح","حي النور","النخلة","مركز اجراء امتحان ش البكالوريا","","ثانوية الشهيد بن حمده علي  - النخلة"]
[426,12452599,"محمد علي426","استاذ تعليم ابتدائي","إ -","العربية","جويدة الجموعي- النخلة","الرباح","حي النور","النخلة","مركز اجراء امتحان ش البكالوريا","","ثانوية الشهيد بن حمده علي  - النخلة"]
[427,12452600,"محمد علي427","استاذ تعليم ابتدائي","إ -","العربية","جويدة الجموعي- النخلة","الرباح","حي النور","النخلة","مركز اجراء امتحان ش البكالوريا","","ثانوية الشهيد بن حمده علي  - النخلة"]
[428,12452601,"محمد علي428","استاذ تعليم ابتدائي","إ -","العربية","جويدة الجموعي- النخلة","الرباح","حي النور","النخلة","مركز اجراء امتحان ش البكالوريا","","ثانوية الشهيد بن حمده علي  - النخلة"]
[429,12452602,"محمد علي429","استاذ تعليم ابتدائي","إ -","العربية","جويدة الجموعي- النخلة","الرباح","حي النور","النخلة","مركز اجراء امتحان ش البكالوريا","","ثانوية الشهيد بن حمده علي  - النخلة"]
[430,12452603,"محمد علي430","استاذ تعليم ابتدائي","إ -","العربية","جويدة الجموعي- النخلة","الرباح","حي النور","النخلة","مركز اجراء امتحان ش البكالوريا","","ثانوية الشهيد بن حمده علي  - النخلة"]
[431,12452604,"محمد علي431","استاذ تعليم ابتدائي","إ -","العربية","جويدة الجموعي- النخلة","الرباح","حي النور","النخلة","مركز اجراء امتحان ش البكالوريا","","ثانوية الشهيد بن حمده علي  - النخلة"]
[432,12452605,"محمد علي432","استاذ تعليم ابتدائي","إ -","العربية","جويدة الجموعي- النخلة","الرباح","حي النور","النخلة","مركز اجراء امتحان ش البكالوريا","","ثانوية الشهيد بن حمده علي  - النخلة"]
[433,12452606,"محمد علي433","استاذ تعليم ابتدائي","إ -","العربية","جويدة الجموعي- النخلة","الرباح","حي النور","النخلة","مركز اجراء امتحان ش البكالوريا","","ثانوية الشهيد بن حمده علي  - النخلة"]
[434,12452607,"محمد علي434","استاذ تعليم ابتدائي","إ -","العربية","جويدة الجموعي- النخلة","الرباح","حي النور","النخلة","مركز اجراء امتحان ش البكالوريا","","ثانوية الشهيد بن حمده علي  - النخلة"]
[435,12452608,"محمد علي435","استاذ تعليم ابتدائي","إ -","العربية","جويدة الجموعي- النخلة","الرباح","حي النور","النخلة","مركز اجراء امتحان ش البكالوريا","","ثانوية الشهيد بن حمده علي  - النخلة"]
[436,12452609,"محمد علي436","استاذ تعليم ابتدائي","إ -","العربية","جويدة الجموعي- النخلة","الرباح","حي النور","النخلة","مركز اجراء امتحان ش البكالوريا","","ثانوية الشهيد بن حمده علي  - النخلة"]
[437,12452610,"محمد علي437","استاذ تعليم ابتدائي","إ -","العربية","جويدة الجموعي- النخلة","الرباح","حي النور","النخلة","مركز اجراء امتحان ش البكالوريا","","ثانوية الشهيد بن حمده علي  - النخلة"]
[438,12452611,"محمد علي438","استاذ تعليم ابتدائي","إ -","العربية","جويدة الجموعي- النخلة","الرباح","حي النور","النخلة","مركز اجراء امتحان ش البكالوريا","","ثانوية الشهيد بن حمده علي  - النخلة"]
[439,12452612,"محمد علي439","استاذ تعليم ابتدائي","إ -","العربية","جويدة الجموعي- النخلة","الرباح","حي النور","النخلة","مركز اجراء امتحان ش البكالوريا","","ثانوية الشهيد بن حمده علي  - النخلة"]
[440,12452613,"محمد علي440","استاذ تعليم ابتدائي","إ -","العربية","جويدة الجموعي- النخلة","الرباح","حي النور","النخلة","مركز اجراء امتحان ش البكالوريا","","ثانوية الشهيد بن حمده علي  - النخلة"]
[441,12452614,"محمد علي441","استاذ تعليم ابتدائي","إ -","العربية","جويدة الجموعي- النخلة","الرباح","حي النور","النخلة","مركز اجراء امتحان ش البكالوريا","","ثانوية الشهيد بن حمده علي  - النخلة"]
[442,12452615,"محمد علي442","استاذ تعليم ابتدائي","إ -","العربية","جويدة الجموعي- النخلة","الرباح","حي النور","النخلة","مركز اجراء امتحان ش البكالوريا","","ثانوية الشهيد بن حمده علي  - النخلة"]
[443,12452616,"محمد علي443","استاذ تعليم ابتدائي","إ -","العربية","جويدة الجموعي- النخلة","الرباح","حي النور","النخلة","مركز اجراء امتحان ش البكالوريا","","ثانوية الشهيد بن حمده علي  - النخلة"]
[444,12452617,"محمد علي444","استاذ تعليم ابتدائي","إ -","العربية","جويدة الجموعي- النخلة","الرباح","حي النور","النخلة","مركز اجراء امتحان ش البكالوريا","","ثانوية الشهيد بن حمده علي  - النخلة"]
[445,12452618,"محمد علي445","استاذ تعليم ابتدائي","إ -","العربية","جويدة الجموعي- النخلة","الرباح","حي النور","النخلة","مركز اجراء امتحان ش البكالوريا","","ثانوية الشهيد بن حمده علي  - النخلة"]
[446,12452619,"محمد علي446","استاذ تعليم ابتدائي","إ -","العربية","جويدة الجموعي- النخلة","الرباح","حي النور","النخلة","مركز اجراء امتحان ش البكالوريا","","ثانوية الشهيد بن حمده علي  - النخلة"]
[447,12452620,"محمد علي447","استاذ تعليم ابتدائي","إ -","العربية","جويدة الجموعي- النخلة","الرباح","حي النور","النخلة","مركز اجراء امتحان ش البكالوريا","","ثانوية الشهيد بن حمده علي  - النخلة"]
[448,12452621,"محمد علي448","استاذ تعليم ابتدائي","إ -","العربية","جويدة الجموعي- النخلة","الرباح","حي النور","النخلة","مركز اجراء امتحان ش البكالوريا","","ثانوية الشهيد بن حمده علي  - النخلة"]
[449,12452622,"محمد علي449","استاذ تعليم ابتدائي","إ -","العربية","جويدة الجموعي- النخلة","الرباح","حي النور","النخلة","مركز اجراء امتحان ش البكالوريا","","ثانوية الشهيد بن حمده علي  - النخلة"]
[450,12452623,"محمد علي450","استاذ تعليم ابتدائي","إ -","العربية","جويدة الجموعي- النخلة","الرباح","حي النور","النخلة","مركز اجراء امتحان ش البكالوريا","","ثانوية الشهيد بن حمده علي  - النخلة"]
[451,12452624,"محمد علي451","استاذ تعليم ابتدائي","إ -","العربية","جويدة الجموعي- النخلة","الرباح","حي النور","النخلة","مركز اجراء امتحان ش البكالوريا","","ثانوية الشهيد بن حمده علي  - النخلة"]
[452,12452625,"محمد علي452","استاذ تعليم ابتدائي","إ -","العربية","جويدة الجموعي- النخلة","الرباح","حي النور","النخلة","مركز اجراء امتحان ش البكالوريا","","ثانوية الشهيد بن حمده علي  - النخلة"]
[453,12452626,"محمد علي453","استاذ تعليم ابتدائي","إ -","العربية","جويدة الجموعي- النخلة","الرباح","حي النور","النخلة","مركز اجراء امتحان ش البكالوريا","","ثانوية الشهيد بن حمده علي  - النخلة"]
[454,12452627,"محمد علي454","استاذ تعليم ابتدائي","إ -","العربية","جويدة الجموعي- النخلة","الرباح","حي النور","النخلة","مركز اجراء امتحان ش البكالوريا","","ثانوية الشهيد بن حمده علي  - النخلة"]
[455,12452628,"محمد علي455","استاذ تعليم ابتدائي","إ -","العربية","جويدة الجموعي- النخلة","الرباح","حي النور","النخلة","مركز اجراء امتحان ش البكالوريا","","ثانوية الشهيد بن حمده علي  - النخلة"]
[456,12452629,"محمد علي456","استاذ تعليم ابتدائي","إ -","العربية","جويدة الجموعي- النخلة","الرباح","حي النور","النخلة","مركز اجراء امتحان ش البكالوريا","","ثانوية الشهيد بن حمده علي  - النخلة"]
[457,12452630,"محمد علي457","استاذ تعليم ابتدائي","إ -","العربية","جويدة الجموعي- النخلة","الرباح","حي النور","النخلة","مركز اجراء امتحان ش البكالوريا","","ثانوية الشهيد بن حمده علي  - النخلة"]
[458,12452631,"محمد علي458","استاذ تعليم ابتدائي","إ -","العربية","جويدة الجموعي- النخلة","الرباح","حي النور","النخلة","مركز اجراء امتحان ش البكالوريا","","ثانوية الشهيد بن حمده علي  - النخلة"]
[459,12452632,"محمد علي459","استاذ تعليم ابتدائي","إ -","العربية","جويدة الجموعي- النخلة","الرباح","حي النور","النخلة","مركز اجراء امتحان ش البكالوريا","","ثانوية الشهيد بن حمده علي  - النخلة"]
[460,12452633,"محمد علي460","استاذ تعليم ابتدائي","إ -","العربية","جويدة الجموعي- النخلة","الرباح","حي النور","النخلة","مركز اجراء امتحان ش البكالوريا","","ثانوية الشهيد بن حمده علي  - النخلة"]
[461,12452634,"محمد علي461","استاذ تعليم ابتدائي","إ -","العربية","جويدة الجموعي- النخلة","الرباح","حي النور","النخلة","مركز اجراء امتحان ش البكالوريا","","ثانوية الشهيد بن حمده علي  - النخلة"]
[462,12452635,"محمد علي462","استاذ تعليم ابتدائي","إ -","العربية","جويدة الجموعي- النخلة","الرباح","حي النور","النخلة","مركز اجراء امتحان ش البكالوريا","","ثانوية الشهيد بن حمده علي  - النخلة"]
[463,12452636,"محمد علي463","استاذ تعليم ابتدائي","إ -","العربية","جويدة الجموعي- النخلة","الرباح","حي النور","النخلة","مركز اجراء امتحان ش البكالوريا","","ثانوية الشهيد بن حمده علي  - النخلة"]
[464,12452637,"محمد علي464","استاذ تعليم ابتدائي","إ -","العربية","جويدة الجموعي- النخلة","الرباح","حي النور","النخلة","مركز اجراء امتحان ش البكالوريا","","ثانوية الشهيد بن حمده علي  - النخلة"]
[465,12452638,"محمد علي465","استاذ تعليم ابتدائي","إ -","العربية","جويدة الجموعي- النخلة","الرباح","حي النور","النخلة","مركز اجراء امتحان ش البكالوريا","","ثانوية الشهيد بن حمده علي  - النخلة"]
[466,12452639,"محمد علي466","استاذ تعليم ابتدائي","إ -","العربية","جويدة الجموعي- النخلة","الرباح","حي النور","النخلة","مركز اجراء امتحان ش البكالوريا","","ثانوية الشهيد بن حمده علي  - النخلة"]
[467,12452640,"محمد علي467","استاذ تعليم ابتدائي","إ -","العربية","جويدة الجموعي- النخلة","الرباح","حي النور","النخلة","مركز اجراء امتحان ش البكالوريا","","ثانوية الشهيد بن حمده علي  - النخلة"]
[468,12452641,"محمد علي468","استاذ تعليم ابتدائي","إ -","العربية","جويدة الجموعي- النخلة","الرباح","حي النور","النخلة","مركز اجراء امتحان ش البكالوريا","","ثانوية الشهيد بن حمده علي  - النخلة"]
[469,12452642,"محمد علي469","استاذ تعليم ابتدائي","إ -","العربية","جويدة الجموعي- النخلة","الرباح","حي النور","النخلة","مركز اجراء امتحان ش البكالوريا","","ثانوية الشهيد بن حمده علي  - النخلة"]
[470,12452643,"محمد علي470","استاذ تعليم ابتدائي","إ -","العربية","جويدة الجموعي- النخلة","الرباح","حي النور","النخلة","مركز اجراء امتحان ش البكالوريا","","ثانوية الشهيد بن حمده علي  - النخلة"]
[471,12452644,"محمد علي471","استاذ تعليم ابتدائي","إ -","العربية","جويدة الجموعي- النخلة","الرباح","حي النور","النخلة","مركز اجراء امتحان ش البكالوريا","","ثانوية الشهيد بن حمده علي  - النخلة"]
[472,12452645,"محمد علي472","استاذ تعليم ابتدائي","إ -","العربية","جويدة الجموعي- النخلة","الرباح","حي النور","النخلة","مركز اجراء امتحان ش البكالوريا","","ثانوية الشهيد بن حمده علي  - النخلة"]
[473,12452646,"محمد علي473","استاذ تعليم ابتدائي","إ -","العربية","جويدة الجموعي- النخلة","الرباح","حي النور","النخلة","مركز اجراء امتحان ش البكالوريا","","ثانوية الشهيد بن حمده علي  - النخلة"]
[474,12452647,"محمد علي474","استاذ تعليم ابتدائي","إ -","العربية","جويدة الجموعي- النخلة","الرباح","حي النور","النخلة","مركز اجراء امتحان ش البكالوريا","","ثانوية الشهيد بن حمده علي  - النخلة"]
[475,12452648,"محمد علي475","استاذ تعليم ابتدائي","إ -","العربية","جويدة الجموعي- النخلة","الرباح","حي النور","النخلة","مركز اجراء امتحان ش البكالوريا","","ثانوية الشهيد بن حمده علي  - النخلة"]
[476,12452649,"محمد علي476","استاذ تعليم ابتدائي","إ -","العربية","جويدة الجموعي- النخلة","الرباح","حي النور","النخلة","مركز اجراء امتحان ش البكالوريا","","ثانوية الشهيد بن حمده علي  - النخلة"]
[477,12452650,"محمد علي477","استاذ تعليم ابتدائي","إ -","العربية","جويدة الجموعي- النخلة","الرباح","حي النور","النخلة","مركز اجراء امتحان ش البكالوريا","","ثانوية الشهيد بن حمده علي  - النخلة"]
[478,12452651,"محمد علي478","استاذ تعليم ابتدائي","إ -","العربية","جويدة الجموعي- النخلة","الرباح","حي النور","النخلة","مركز اجراء امتحان ش البكالوريا","","ثانوية الشهيد بن حمده علي  - النخلة"]
[479,12452652,"محمد علي479","استاذ تعليم ابتدائي","إ -","العربية","جويدة الجموعي- النخلة","الرباح","حي النور","النخلة","مركز اجراء امتحان ش البكالوريا","","ثانوية الشهيد بن حمده علي  - النخلة"]
[480,12452653,"محمد علي480","استاذ تعليم ابتدائي","إ -","العربية","جويدة الجموعي- النخلة","الرباح","حي النور","النخلة","مركز اجراء امتحان ش البكالوريا","","ثانوية الشهيد بن حمده علي  - النخلة"]
[481,12452654,"محمد علي481","استاذ تعليم ابتدائي","إ -","العربية","جويدة الجموعي- النخلة","الرباح","حي النور","النخلة","مركز اجراء امتحان ش البكالوريا","","ثانوية الشهيد بن حمده علي  - النخلة"]
[482,12452655,"محمد علي482","استاذ تعليم ابتدائي","إ -","العربية","جويدة الجموعي- النخلة","الرباح","حي النور","النخلة","مركز اجراء امتحان ش البكالوريا","","ثانوية الشهيد بن حمده علي  - النخلة"]
[483,12452656,"محمد علي483","استاذ تعليم ابتدائي","إ -","العربية","جويدة الجموعي- النخلة","الرباح","حي النور","النخلة","مركز اجراء امتحان ش البكالوريا","","ثانوية الشهيد بن حمده علي  - النخلة"]
[484,12452657,"محمد علي484","استاذ تعليم ابتدائي","إ -","العربية","جويدة الجموعي- النخلة","الرباح","حي النور","النخلة","مركز اجراء امتحان ش البكالوريا","","ثانوية الشهيد بن حمده علي  - النخلة"]
[485,12452658,"محمد علي485","استاذ تعليم ابتدائي","إ -","العربية","جويدة الجموعي- النخلة","الرباح","حي النور","النخلة","مركز اجراء امتحان ش البكالوريا","","ثانوية الشهيد بن حمده علي  - النخلة"]
[486,12452659,"محمد علي486","استاذ تعليم ابتدائي","إ -","العربية","جويدة الجموعي- النخلة","الرباح","حي النور","النخلة","مركز اجراء امتحان ش البكالوريا","","ثانوية الشهيد بن حمده علي  - النخلة"]
[487,12452660,"محمد علي487","استاذ تعليم ابتدائي","إ -","العربية","جويدة الجموعي- النخلة","الرباح","حي النور","النخلة","مركز اجراء امتحان ش البكالوريا","","ثانوية الشهيد بن حمده علي  - النخلة"]
[488,12452661,"محمد علي488","استاذ تعليم ابتدائي","إ -","العربية","جويدة الجموعي- النخلة","الرباح","حي النور","النخلة","مركز اجراء امتحان ش البكالوريا","","ثانوية الشهيد بن حمده علي  - النخلة"]
[489,12452662,"محمد علي489","استاذ تعليم ابتدائي","إ -","العربية","جويدة الجموعي- النخلة","الرباح","حي النور","النخلة","مركز اجراء امتحان ش البكالوريا","","ثانوية الشهيد بن حمده علي  - النخلة"]
[490,12452663,"محمد علي490","استاذ تعليم ابتدائي","إ -","العربية","جويدة الجموعي- النخلة","الرباح","حي النور","النخلة","مركز اجراء امتحان ش البكالوريا","","ثانوية الشهيد بن حمده علي  - النخلة"]
[491,12452664,"محمد علي491","استاذ تعليم ابتدائي","إ -","العربية","جويدة الجموعي- النخلة","الرباح","حي النور","النخلة","مركز اجراء امتحان ش البكالوريا","","ثانوية الشهيد بن حمده علي  - النخلة"]
[492,12452665,"محمد علي492","استاذ تعليم ابتدائي","إ -","العربية","جويدة الجموعي- النخلة","الرباح","حي النور","النخلة","مركز اجراء امتحان ش البكالوريا","","ثانوية الشهيد بن حمده علي  - النخلة"]
[493,12452666,"محمد علي493","استاذ تعليم ابتدائي","إ -","العربية","جويدة الجموعي- النخلة","الرباح","حي النور","النخلة","مركز اجراء امتحان ش البكالوريا","","ثانوية الشهيد بن حمده علي  - النخلة"]
[494,12452667,"محمد علي494","استاذ تعليم ابتدائي","إ -","العربية","جويدة الجموعي- النخلة","الرباح","حي النور","النخلة","مركز اجراء امتحان ش البكالوريا","","ثانوية الشهيد بن حمده علي  - النخلة"]
[495,12452668,"محمد علي495","استاذ تعليم ابتدائي","إ -","العربية","جويدة الجموعي- النخلة","الرباح","حي النور","النخلة","مركز اجراء امتحان ش البكالوريا","","ثانوية الشهيد بن حمده علي  - النخلة"]
[496,12452669,"محمد علي496","استاذ تعليم ابتدائي","إ -","العربية","جويدة الجموعي- النخلة","الرباح","حي النور","النخلة","مركز اجراء امتحان ش البكالوريا","","ثانوية الشهيد بن حمده علي  - النخلة"]
[497,12452670,"محمد علي497","استاذ تعليم ابتدائي","إ -","العربية","جويدة الجموعي- النخلة","الرباح","حي النور","النخلة","مركز اجراء امتحان ش البكالوريا","","ثانوية الشهيد بن حمده علي  - النخلة"]
[498,12452671,"محمد علي498","استاذ تعليم ابتدائي","إ -","العربية","جويدة الجموعي- النخلة","الرباح","حي النور","النخلة","مركز اجراء امتحان ش البكالوريا","","ثانوية الشهيد بن حمده علي  - النخلة"]
[499,12452672,"محمد علي499","استاذ تعليم ابتدائي","إ -","العربية","جويدة الجموعي- النخلة","الرباح","حي النور","النخلة","مركز اجراء امتحان ش البكالوريا","","ثانوية الشهيد بن حمده علي  - النخلة"]
[500,12452673,"محمد علي500","استاذ تعليم ابتدائي","إ -","العربية","جويدة الجموعي- النخلة","الرباح","حي النور","النخلة","مركز اجراء امتحان ش البكالوريا","","ثانوية الشهيد بن حمده علي  - النخلة"]
[501,12452674,"محمد علي501","استاذ تعليم ابتدائي","إ -","العربية","جويدة الجموعي- النخلة","الرباح","حي النور","النخلة","مركز اجراء امتحان ش البكالوريا","","ثانوية الشهيد بن حمده علي  - النخلة"]
[502,12452675,"محمد علي502","استاذ تعليم ابتدائي","إ -","العربية","جويدة الجموعي- النخلة","الرباح","حي النور","النخلة","مركز اجراء امتحان ش البكالوريا","","ثانوية الشهيد بن حمده علي  - النخلة"]
[503,12452676,"محمد علي503","استاذ تعليم ابتدائي","إ -","العربية","جويدة الجموعي- النخلة","الرباح","حي النور","النخلة","مركز اجراء امتحان ش البكالوريا","","ثانوية الشهيد بن حمده علي  - النخلة"]
[504,12452677,"محمد علي504","استاذ تعليم ابتدائي","إ -","العربية","جويدة الجموعي- النخلة","الرباح","حي النور","النخلة","مركز اجراء امتحان ش البكالوريا","","ثانوية الشهيد بن حمده علي  - النخلة"]
[505,12452678,"محمد علي505","استاذ تعليم ابتدائي","إ -","العربية","جويدة الجموعي- النخلة","الرباح","حي النور","النخلة","مركز اجراء امتحان ش البكالوريا","","ثانوية الشهيد بن حمده علي  - النخلة"]
[506,12452679,"محمد علي506","استاذ تعليم ابتدائي","إ -","العربية","جويدة الجموعي- النخلة","الرباح","حي النور","النخلة","مركز اجراء امتحان ش البكالوريا","","ثانوية الشهيد بن حمده علي  - النخلة"]
[507,12452680,"محمد علي507","استاذ تعليم ابتدائي","إ -","العربية","جويدة الجموعي- النخلة","الرباح","حي النور","النخلة","مركز اجراء امتحان ش البكالوريا","","ثانوية الشهيد بن حمده علي  - النخلة"]
[508,12452681,"محمد علي508","استاذ تعليم ابتدائي","إ -","العربية","جويدة الجموعي- النخلة","الرباح","حي النور","النخلة","مركز اجراء امتحان ش البكالوريا","","ثانوية الشهيد بن حمده علي  - النخلة"]
[509,12452682,"محمد علي509","استاذ تعليم ابتدائي","إ -","العربية","جويدة الجموعي- النخلة","الرباح","حي النور","النخلة","مركز اجراء امتحان ش البكالوريا","","ثانوية الشهيد بن حمده علي  - النخلة"]
[510,12452683,"محمد علي510","استاذ تعليم ابتدائي","إ -","العربية","جويدة الجموعي- النخلة","الرباح","حي النور","النخلة","مركز اجراء امتحان ش البكالوريا","","ثانوية الشهيد بن حمده علي  - النخلة"]
[511,12452684,"محمد علي511","استاذ تعليم ابتدائي","إ -","العربية","جويدة الجموعي- النخلة","الرباح","حي النور","النخلة","مركز اجراء امتحان ش البكالوريا","","ثانوية الشهيد بن حمده علي  - النخلة"]
[512,12452685,"محمد علي512","استاذ تعليم ابتدائي","إ -","العربية","جويدة الجموعي- النخلة","الرباح","حي النور","النخلة","مركز اجراء امتحان ش البكالوريا","","ثانوية الشهيد بن حمده علي  - النخلة"]
[513,12452686,"محمد علي513","استاذ تعليم ابتدائي","إ -","العربية","جويدة الجموعي- النخلة","الرباح","حي النور","النخلة","مركز اجراء امتحان ش البكالوريا","","ثانوية الشهيد بن حمده علي  - النخلة"]
[514,12452687,"محمد علي514","استاذ تعليم ابتدائي","إ -","العربية","جويدة الجموعي- النخلة","الرباح","حي النور","النخلة","مركز اجراء امتحان ش البكالوريا","","ثانوية الشهيد بن حمده علي  - النخلة"]
[515,12452688,"محمد علي515","استاذ تعليم ابتدائي","إ -","العربية","جويدة الجموعي- النخلة","الرباح","حي النور","النخلة","مركز اجراء امتحان ش البكالوريا","","ثانوية الشهيد بن حمده علي  - النخلة"]
[516,12452689,"محمد علي516","استاذ تعليم ابتدائي","إ -","العربية","جويدة الجموعي- النخلة","الرباح","حي النور","النخلة","مركز اجراء امتحان ش البكالوريا","","ثانوية الشهيد بن حمده علي  - النخلة"]
[517,12452690,"محمد علي517","استاذ تعليم ابتدائي","إ -","العربية","جويدة الجموعي- النخلة","الرباح","حي النور","النخلة","مركز اجراء امتحان ش البكالوريا","","ثانوية الشهيد بن حمده علي  - النخلة"]
[518,12452691,"محمد علي518","استاذ تعليم ابتدائي","إ -","العربية","جويدة الجموعي- النخلة","الرباح","حي النور","النخلة","مركز اجراء امتحان ش البكالوريا","","ثانوية الشهيد بن حمده علي  - النخلة"]
[519,12452692,"محمد علي519","استاذ تعليم ابتدائي","إ -","العربية","جويدة الجموعي- النخلة","الرباح","حي النور","النخلة","مركز اجراء امتحان ش البكالوريا","","ثانوية الشهيد بن حمده علي  - النخلة"]
[520,12452693,"محمد علي520","استاذ تعليم ابتدائي","إ -","العربية","جويدة الجموعي- النخلة","الرباح","حي النور","النخلة","مركز اجراء امتحان ش البكالوريا","","ثانوية الشهيد بن حمده علي  - النخلة"]
[521,12452694,"محمد علي521","استاذ تعليم ابتدائي","إ -","العربية","جويدة الجموعي- النخلة","الرباح","حي النور","النخلة","مركز اجراء امتحان ش البكالوريا","","ثانوية الشهيد بن حمده علي  - النخلة"]
[522,12452695,"محمد علي522","استاذ تعليم ابتدائي","إ -","العربية","جويدة الجموعي- النخلة","الرباح","حي النور","النخلة","مركز اجراء امتحان ش البكالوريا","","ثانوية الشهيد بن حمده علي  - النخلة"]
[523,12452696,"محمد علي523","استاذ تعليم ابتدائي","إ -","العربية","جويدة الجموعي- النخلة","الرباح","حي النور","النخلة","مركز اجراء امتحان ش البكالوريا","","ثانوية الشهيد بن حمده علي  - النخلة"]
[524,12452697,"محمد علي524","استاذ تعليم ابتدائي","إ -","العربية","جويدة الجموعي- النخلة","الرباح","حي النور","النخلة","مركز اجراء امتحان ش البكالوريا","","ثانوية الشهيد بن حمده علي  - النخلة"]
[525,12452698,"محمد علي525","استاذ تعليم ابتدائي","إ -","العربية","جويدة الجموعي- النخلة","الرباح","حي النور","النخلة","مركز اجراء امتحان ش البكالوريا","","ثانوية الشهيد بن حمده علي  - النخلة"]
[526,12452699,"محمد علي526","استاذ تعليم ابتدائي","إ -","العربية","جويدة الجموعي- النخلة","الرباح","حي النور","النخلة","مركز اجراء امتحان ش البكالوريا","","ثانوية الشهيد بن حمده علي  - النخلة"]
[527,12452700,"محمد علي527","استاذ تعليم ابتدائي","إ -","العربية","جويدة الجموعي- النخلة","الرباح","حي النور","النخلة","مركز اجراء امتحان ش البكالوريا","","ثانوية الشهيد بن حمده علي  - النخلة"]
[528,12452701,"محمد علي528","استاذ تعليم ابتدائي","إ -","العربية","جويدة الجموعي- النخلة","الرباح","حي النور","النخلة","مركز اجراء امتحان ش البكالوريا","","ثانوية الشهيد بن حمده علي  - النخلة"]
[529,12452702,"محمد علي529","استاذ تعليم ابتدائي","إ -","العربية","جويدة الجموعي- النخلة","الرباح","حي النور","النخلة","مركز اجراء امتحان ش البكالوريا","","ثانوية الشهيد بن حمده علي  - النخلة"]
[530,12452703,"محمد علي530","استاذ تعليم ابتدائي","إ -","العربية","جويدة الجموعي- النخلة","الرباح","حي النور","النخلة","مركز اجراء امتحان ش البكالوريا","","ثانوية الشهيد بن حمده علي  - النخلة"]
[531,12452704,"محمد علي531","استاذ تعليم ابتدائي","إ -","العربية","جويدة الجموعي- النخلة","الرباح","حي النور","النخلة","مركز اجراء امتحان ش البكالوريا","","ثانوية الشهيد بن حمده علي  - النخلة"]
[532,12452705,"محمد علي532","استاذ تعليم ابتدائي","إ -","العربية","جويدة الجموعي- النخلة","الرباح","حي النور","النخلة","مركز اجراء امتحان ش البكالوريا","","ثانوية الشهيد بن حمده علي  - النخلة"]
[533,12452706,"محمد علي533","استاذ تعليم ابتدائي","إ -","العربية","جويدة الجموعي- النخلة","الرباح","حي النور","النخلة","مركز اجراء امتحان ش البكالوريا","","ثانوية الشهيد بن حمده علي  - النخلة"]
[534,12452707,"محمد علي534","استاذ تعليم ابتدائي","إ -","العربية","جويدة الجموعي- النخلة","الرباح","حي النور","النخلة","مركز اجراء امتحان ش البكالوريا","","ثانوية الشهيد بن حمده علي  - النخلة"]
[535,12452708,"محمد علي535","استاذ تعليم ابتدائي","إ -","العربية","جويدة الجموعي- النخلة","الرباح","حي النور","النخلة","مركز اجراء امتحان ش البكالوريا","","ثانوية الشهيد بن حمده علي  - النخلة"]
[536,12452709,"محمد علي536","استاذ تعليم ابتدائي","إ -","العربية","جويدة الجموعي- النخلة","الرباح","حي النور","النخلة","مركز اجراء امتحان ش البكالوريا","","ثانوية الشهيد بن حمده علي  - النخلة"]
[537,12452710,"محمد علي537","استاذ تعليم ابتدائي","إ -","العربية","جويدة الجموعي- النخلة","الرباح","حي النور","النخلة","مركز اجراء امتحان ش البكالوريا","","ثانوية الشهيد بن حمده علي  - النخلة"]
[538,12452711,"محمد علي538","استاذ تعليم ابتدائي","إ -","العربية","جويدة الجموعي- النخلة","الرباح","حي النور","النخلة","مركز اجراء امتحان ش البكالوريا","","ثانوية الشهيد بن حمده علي  - النخلة"]
[539,12452712,"محمد علي539","استاذ تعليم ابتدائي","إ -","العربية","جويدة الجموعي- النخلة","الرباح","حي النور","النخلة","مركز اجراء امتحان ش البكالوريا","","ثانوية الشهيد بن حمده علي  - النخلة"]
[540,12452713,"محمد علي540","استاذ تعليم ابتدائي","إ -","العربية","جويدة الجموعي- النخلة","الرباح","حي النور","النخلة","مركز اجراء امتحان ش البكالوريا","","ثانوية الشهيد بن حمده علي  - النخلة"]
[541,12452714,"محمد علي541","استاذ تعليم ابتدائي","إ -","العربية","جويدة الجموعي- النخلة","الرباح","حي النور","النخلة","مركز اجراء امتحان ش البكالوريا","","ثانوية الشهيد بن حمده علي  - النخلة"]
[542,12452715,"محمد علي542","استاذ تعليم ابتدائي","إ -","العربية","جويدة الجموعي- النخلة","الرباح","حي النور","النخلة","مركز اجراء امتحان ش البكالوريا","","ثانوية الشهيد بن حمده علي  - النخلة"]
[543,12452716,"محمد علي543","استاذ تعليم ابتدائي","إ -","العربية","جويدة الجموعي- النخلة","الرباح","حي النور","النخلة","مركز اجراء امتحان ش البكالوريا","","ثانوية الشهيد بن حمده علي  - النخلة"]
[544,12452717,"محمد علي544","استاذ تعليم ابتدائي","إ -","العربية","جويدة الجموعي- النخلة","الرباح","حي النور","النخلة","مركز اجراء امتحان ش البكالوريا","","ثانوية الشهيد بن حمده علي  - النخلة"]
[545,12452718,"محمد علي545","استاذ تعليم ابتدائي","إ -","العربية","جويدة الجموعي- النخلة","الرباح","حي النور","النخلة","مركز اجراء امتحان ش البكالوريا","","ثانوية الشهيد بن حمده علي  - النخلة"]
[546,12452719,"محمد علي546","استاذ تعليم ابتدائي","إ -","العربية","جويدة الجموعي- النخلة","الرباح","حي النور","النخلة","مركز اجراء امتحان ش البكالوريا","","ثانوية الشهيد بن حمده علي  - النخلة"]
[547,12452720,"محمد علي547","استاذ تعليم ابتدائي","إ -","العربية","جويدة الجموعي- النخلة","الرباح","حي النور","النخلة","مركز اجراء امتحان ش البكالوريا","","ثانوية الشهيد بن حمده علي  - النخلة"]
[548,12452721,"محمد علي548","استاذ تعليم ابتدائي","إ -","العربية","جويدة الجموعي- النخلة","الرباح","حي النور","النخلة","مركز اجراء امتحان ش البكالوريا","","ثانوية الشهيد بن حمده علي  - النخلة"]
[549,12452722,"محمد علي549","استاذ تعليم ابتدائي","إ -","العربية","جويدة الجموعي- النخلة","الرباح","حي النور","النخلة","مركز اجراء امتحان ش البكالوريا","","ثانوية الشهيد بن حمده علي  - النخلة"]
[550,12452723,"محمد علي550","استاذ تعليم ابتدائي","إ -","العربية","جويدة الجموعي- النخلة","الرباح","حي النور","النخلة","مركز اجراء امتحان ش البكالوريا","","ثانوية الشهيد بن حمده علي  - النخلة"]
[551,12452724,"محمد علي551","استاذ تعليم ابتدائي","إ -","العربية","جويدة الجموعي- النخلة","الرباح","حي النور","النخلة","مركز اجراء امتحان ش البكالوريا","","ثانوية الشهيد بن حمده علي  - النخلة"]
[552,12452725,"محمد علي552","استاذ تعليم ابتدائي","إ -","العربية","جويدة الجموعي- النخلة","الرباح","حي النور","النخلة","مركز اجراء امتحان ش البكالوريا","","ثانوية الشهيد بن حمده علي  - النخلة"]
[553,12452726,"محمد علي553","استاذ تعليم ابتدائي","إ -","العربية","جويدة الجموعي- النخلة","الرباح","حي النور","النخلة","مركز اجراء امتحان ش البكالوريا","","ثانوية الشهيد بن حمده علي  - النخلة"]
[554,12452727,"محمد علي554","استاذ تعليم ابتدائي","إ -","العربية","جويدة الجموعي- النخلة","الرباح","حي النور","النخلة","مركز اجراء امتحان ش البكالوريا","","ثانوية الشهيد بن حمده علي  - النخلة"]
[555,12452728,"محمد علي555","استاذ تعليم ابتدائي","إ -","العربية","جويدة الجموعي- النخلة","الرباح","حي النور","النخلة","مركز اجراء امتحان ش البكالوريا","","ثانوية الشهيد بن حمده علي  - النخلة"]
[556,12452729,"محمد علي556","استاذ تعليم ابتدائي","إ -","العربية","جويدة الجموعي- النخلة","الرباح","حي النور","النخلة","مركز اجراء امتحان ش البكالوريا","","ثانوية الشهيد بن حمده علي  - النخلة"]
[557,12452730,"محمد علي557","استاذ تعليم ابتدائي","إ -","العربية","جويدة الجموعي- النخلة","الرباح","حي النور","النخلة","مركز اجراء امتحان ش البكالوريا","","ثانوية الشهيد بن حمده علي  - النخلة"]
[558,12452731,"محمد علي558","استاذ تعليم ابتدائي","إ -","العربية","جويدة الجموعي- النخلة","الرباح","حي النور","النخلة","مركز اجراء امتحان ش البكالوريا","","ثانوية الشهيد بن حمده علي  - النخلة"]
[559,12452732,"محمد علي559","استاذ تعليم ابتدائي","إ -","العربية","جويدة الجموعي- النخلة","الرباح","حي النور","النخلة","مركز اجراء امتحان ش البكالوريا","","ثانوية الشهيد بن حمده علي  - النخلة"]
[560,12452733,"محمد علي560","استاذ تعليم ابتدائي","إ -","العربية","جويدة الجموعي- النخلة","الرباح","حي النور","النخلة","مركز اجراء امتحان ش البكالوريا","","ثانوية الشهيد بن حمده علي  - النخلة"]
[561,12452734,"محمد علي561","استاذ تعليم ابتدائي","إ -","العربية","جويدة الجموعي- النخلة","الرباح","حي النور","النخلة","مركز اجراء امتحان ش البكالوريا","","ثانوية الشهيد بن حمده علي  - النخلة"]
[562,12452735,"محمد علي562","استاذ تعليم ابتدائي","إ -","العربية","جويدة الجموعي- النخلة","الرباح","حي النور","النخلة","مركز اجراء امتحان ش البكالوريا","","ثانوية الشهيد بن حمده علي  - النخلة"]
[563,12452736,"محمد علي563","استاذ تعليم ابتدائي","إ -","العربية","جويدة الجموعي- النخلة","الرباح","حي النور","النخلة","مركز اجراء امتحان ش البكالوريا","","ثانوية الشهيد بن حمده علي  - النخلة"]
[564,12452737,"محمد علي564","استاذ تعليم ابتدائي","إ -","العربية","جويدة الجموعي- النخلة","الرباح","حي النور","النخلة","مركز اجراء امتحان ش البكالوريا","","ثانوية الشهيد بن حمده علي  - النخلة"]
[565,12452738,"محمد علي565","استاذ تعليم ابتدائي","إ -","العربية","جويدة الجموعي- النخلة","الرباح","حي النور","النخلة","مركز اجراء امتحان ش البكالوريا","","ثانوية الشهيد بن حمده علي  - النخلة"]
[566,12452739,"محمد علي566","استاذ تعليم ابتدائي","إ -","العربية","جويدة الجموعي- النخلة","الرباح","حي النور","النخلة","مركز اجراء امتحان ش البكالوريا","","ثانوية الشهيد بن حمده علي  - النخلة"]
[567,12452740,"محمد علي567","استاذ تعليم ابتدائي","إ -","العربية","جويدة الجموعي- النخلة","الرباح","حي النور","النخلة","مركز اجراء امتحان ش البكالوريا","","ثانوية الشهيد بن حمده علي  - النخلة"]
[568,12452741,"محمد علي568","استاذ تعليم ابتدائي","إ -","العربية","جويدة الجموعي- النخلة","الرباح","حي النور","النخلة","مركز اجراء امتحان ش البكالوريا","","ثانوية الشهيد بن حمده علي  - النخلة"]
[569,12452742,"محمد علي569","استاذ تعليم ابتدائي","إ -","العربية","جويدة الجموعي- النخلة","الرباح","حي النور","النخلة","مركز اجراء امتحان ش البكالوريا","","ثانوية الشهيد بن حمده علي  - النخلة"]
[570,12452743,"محمد علي570","استاذ تعليم ابتدائي","إ -","العربية","جويدة الجموعي- النخلة","الرباح","حي النور","النخلة","مركز اجراء امتحان ش البكالوريا","","ثانوية الشهيد بن حمده علي  - النخلة"]
[571,12452744,"محمد علي571","استاذ تعليم ابتدائي","إ -","العربية","جويدة الجموعي- النخلة","الرباح","حي النور","النخلة","مركز اجراء امتحان ش البكالوريا","","ثانوية الشهيد بن حمده علي  - النخلة"]
[572,12452745,"محمد علي572","استاذ تعليم ابتدائي","إ -","العربية","جويدة الجموعي- النخلة","الرباح","حي النور","النخلة","مركز اجراء امتحان ش البكالوريا","","ثانوية الشهيد بن حمده علي  - النخلة"]
[573,12452746,"محمد علي573","استاذ تعليم ابتدائي","إ -","العربية","جويدة الجموعي- النخلة","الرباح","حي النور","النخلة","مركز اجراء امتحان ش البكالوريا","","ثانوية الشهيد بن حمده علي  - النخلة"]
[574,12452747,"محمد علي574","استاذ تعليم ابتدائي","إ -","العربية","جويدة الجموعي- النخلة","الرباح","حي النور","النخلة","مركز اجراء امتحان ش البكالوريا","","ثانوية الشهيد بن حمده علي  - النخلة"]
[575,12452748,"محمد علي575","استاذ تعليم ابتدائي","إ -","العربية","جويدة الجموعي- النخلة","الرباح","حي النور","النخلة","مركز اجراء امتحان ش البكالوريا","","ثانوية الشهيد بن حمده علي  - النخلة"]
[576,12452749,"محمد علي576","استاذ تعليم ابتدائي","إ -","العربية","جويدة الجموعي- النخلة","الرباح","حي النور","النخلة","مركز اجراء امتحان ش البكالوريا","","ثانوية الشهيد بن حمده علي  - النخلة"]
[577,12452750,"محمد علي577","استاذ تعليم ابتدائي","إ -","العربية","جويدة الجموعي- النخلة","الرباح","حي النور","النخلة","مركز اجراء امتحان ش البكالوريا","","ثانوية الشهيد بن حمده علي  - النخلة"]
[578,12452751,"محمد علي578","استاذ تعليم ابتدائي","إ -","العربية","جويدة الجموعي- النخلة","الرباح","حي النور","النخلة","مركز اجراء امتحان ش البكالوريا","","ثانوية الشهيد بن حمده علي  - النخلة"]
[579,12452752,"محمد علي579","استاذ تعليم ابتدائي","إ -","العربية","جويدة الجموعي- النخلة","الرباح","حي النور","النخلة","مركز اجراء امتحان ش البكالوريا","","ثانوية الشهيد بن حمده علي  - النخلة"]
[580,12452753,"محمد علي580","استاذ تعليم ابتدائي","إ -","العربية","جويدة الجموعي- النخلة","الرباح","حي النور","النخلة","مركز اجراء امتحان ش البكالوريا","","ثانوية الشهيد بن حمده علي  - النخلة"]
[581,12452754,"محمد علي581","استاذ تعليم ابتدائي","إ -","العربية","جويدة الجموعي- النخلة","الرباح","حي النور","النخلة","مركز اجراء امتحان ش البكالوريا","","ثانوية الشهيد بن حمده علي  - النخلة"]
[582,12452755,"محمد علي582","استاذ تعليم ابتدائي","إ -","العربية","جويدة الجموعي- النخلة","الرباح","حي النور","النخلة","مركز اجراء امتحان ش البكالوريا","","ثانوية الشهيد بن حمده علي  - النخلة"]
[583,12452756,"محمد علي583","استاذ تعليم ابتدائي","إ -","العربية","جويدة الجموعي- النخلة","الرباح","حي النور","النخلة","مركز اجراء امتحان ش البكالوريا","","ثانوية الشهيد بن حمده علي  - النخلة"]
[584,12452757,"محمد علي584","استاذ تعليم ابتدائي","إ -","العربية","جويدة الجموعي- النخلة","الرباح","حي النور","النخلة","مركز اجراء امتحان ش البكالوريا","","ثانوية الشهيد بن حمده علي  - النخلة"]
[585,12452758,"محمد علي585","استاذ تعليم ابتدائي","إ -","العربية","جويدة الجموعي- النخلة","الرباح","حي النور","النخلة","مركز اجراء امتحان ش البكالوريا","","ثانوية الشهيد بن حمده علي  - النخلة"]
[586,12452759,"محمد علي586","استاذ تعليم ابتدائي","إ -","العربية","جويدة الجموعي- النخلة","الرباح","حي النور","النخلة","مركز اجراء امتحان ش البكالوريا","","ثانوية الشهيد بن حمده علي  - النخلة"]
[587,12452760,"محمد علي587","استاذ تعليم ابتدائي","إ -","العربية","جويدة الجموعي- النخلة","الرباح","حي النور","النخلة","مركز اجراء امتحان ش البكالوريا","","ثانوية الشهيد بن حمده علي  - النخلة"]
[588,12452761,"محمد علي588","استاذ تعليم ابتدائي","إ -","العربية","جويدة الجموعي- النخلة","الرباح","حي النور","النخلة","مركز اجراء امتحان ش البكالوريا","","ثانوية الشهيد بن حمده علي  - النخلة"]
[589,12452762,"محمد علي589","استاذ تعليم ابتدائي","إ -","العربية","جويدة الجموعي- النخلة","الرباح","حي النور","النخلة","مركز اجراء امتحان ش البكالوريا","","ثانوية الشهيد بن حمده علي  - النخلة"]
[590,12452763,"محمد علي590","استاذ تعليم ابتدائي","إ -","العربية","جويدة الجموعي- النخلة","الرباح","حي النور","النخلة","مركز اجراء امتحان ش البكالوريا","","ثانوية الشهيد بن حمده علي  - النخلة"]
[591,12452764,"محمد علي591","استاذ تعليم ابتدائي","إ -","العربية","جويدة الجموعي- النخلة","الرباح","حي النور","النخلة","مركز اجراء امتحان ش البكالوريا","","ثانوية الشهيد بن حمده علي  - النخلة"]
[592,12452765,"محمد علي592","استاذ تعليم ابتدائي","إ -","العربية","جويدة الجموعي- النخلة","الرباح","حي النور","النخلة","مركز اجراء امتحان ش البكالوريا","","ثانوية الشهيد بن حمده علي  - النخلة"]
[593,12452766,"محمد علي593","استاذ تعليم ابتدائي","إ -","العربية","جويدة الجموعي- النخلة","الرباح","حي النور","النخلة","مركز اجراء امتحان ش البكالوريا","","ثانوية الشهيد بن حمده علي  - النخلة"]
[594,12452767,"محمد علي594","استاذ تعليم ابتدائي","إ -","العربية","جويدة الجموعي- النخلة","الرباح","حي النور","النخلة","مركز اجراء امتحان ش البكالوريا","","ثانوية الشهيد بن حمده علي  - النخلة"]
[595,12452768,"محمد علي595","استاذ تعليم ابتدائي","إ -","العربية","جويدة الجموعي- النخلة","الرباح","حي النور","النخلة","مركز اجراء امتحان ش البكالوريا","","ثانوية الشهيد بن حمده علي  - النخلة"]
[596,12452769,"محمد علي596","استاذ تعليم ابتدائي","إ -","العربية","جويدة الجموعي- النخلة","الرباح","حي النور","النخلة","مركز اجراء امتحان ش البكالوريا","","ثانوية الشهيد بن حمده علي  - النخلة"]
[597,12452770,"محمد علي597","استاذ تعليم ابتدائي","إ -","العربية","جويدة الجموعي- النخلة","الرباح","حي النور","النخلة","مركز اجراء امتحان ش البكالوريا","","ثانوية الشهيد بن حمده علي  - النخلة"]
[598,12452771,"محمد علي598","استاذ تعليم ابتدائي","إ -","العربية","جويدة الجموعي- النخلة","الرباح","حي النور","النخلة","مركز اجراء امتحان ش البكالوريا","","ثانوية الشهيد بن حمده علي  - النخلة"]
[599,12452772,"محمد علي599","استاذ تعليم ابتدائي","إ -","العربية","جويدة الجموعي- النخلة","الرباح","حي النور","النخلة","مركز اجراء امتحان ش البكالوريا","","ثانوية الشهيد بن حمده علي  - النخلة"]
[600,12452773,"محمد علي600","استاذ تعليم ابتدائي","إ -","العربية","جويدة الجموعي- النخلة","الرباح","حي النور","النخلة","مركز اجراء امتحان ش البكالوريا","","ثانوية الشهيد بن حمده علي  - النخلة"]
[601,12452774,"محمد علي601","استاذ تعليم ابتدائي","إ -","العربية","جويدة الجموعي- النخلة","الرباح","حي النور","النخلة","مركز اجراء امتحان ش البكالوريا","","ثانوية الشهيد بن حمده علي  - النخلة"]
[602,12452775,"محمد علي602","استاذ تعليم ابتدائي","إ -","العربية","جويدة الجموعي- النخلة","الرباح","حي النور","النخلة","مركز اجراء امتحان ش البكالوريا","","ثانوية الشهيد بن حمده علي  - النخلة"]
[603,12452776,"محمد علي603","استاذ تعليم ابتدائي","إ -","العربية","جويدة الجموعي- النخلة","الرباح","حي النور","النخلة","مركز اجراء امتحان ش البكالوريا","","ثانوية الشهيد بن حمده علي  - النخلة"]
[604,12452777,"محمد علي604","استاذ تعليم ابتدائي","إ -","العربية","جويدة الجموعي- النخلة","الرباح","حي النور","النخلة","مركز اجراء امتحان ش البكالوريا","","ثانوية الشهيد بن حمده علي  - النخلة"]
[605,12452778,"محمد علي605","استاذ تعليم ابتدائي","إ -","العربية","جويدة الجموعي- النخلة","الرباح","حي النور","النخلة","مركز اجراء امتحان ش البكالوريا","","ثانوية الشهيد بن حمده علي  - النخلة"]
[606,12452779,"محمد علي606","استاذ تعليم ابتدائي","إ -","العربية","جويدة الجموعي- النخلة","الرباح","حي النور","النخلة","مركز اجراء امتحان ش البكالوريا","","ثانوية الشهيد بن حمده علي  - النخلة"]
[607,12452780,"محمد علي607","استاذ تعليم ابتدائي","إ -","العربية","جويدة الجموعي- النخلة","الرباح","حي النور","النخلة","مركز اجراء امتحان ش البكالوريا","","ثانوية الشهيد بن حمده علي  - النخلة"]
[608,12452781,"محمد علي608","استاذ تعليم ابتدائي","إ -","العربية","جويدة الجموعي- النخلة","الرباح","حي النور","النخلة","مركز اجراء امتحان ش البكالوريا","","ثانوية الشهيد بن حمده علي  - النخلة"]
[609,12452782,"محمد علي609","استاذ تعليم ابتدائي","إ -","العربية","جويدة الجموعي- النخلة","الرباح","حي النور","النخلة","مركز اجراء امتحان ش البكالوريا","","ثانوية الشهيد بن حمده علي  - النخلة"]
[610,12452783,"محمد علي610","استاذ تعليم ابتدائي","إ -","العربية","جويدة الجموعي- النخلة","الرباح","حي النور","النخلة","مركز اجراء امتحان ش البكالوريا","","ثانوية الشهيد بن حمده علي  - النخلة"]
[611,12452784,"محمد علي611","استاذ تعليم ابتدائي","إ -","العربية","جويدة الجموعي- النخلة","الرباح","حي النور","النخلة","مركز اجراء امتحان ش البكالوريا","","ثانوية الشهيد بن حمده علي  - النخلة"]
[612,12452785,"محمد علي612","استاذ تعليم ابتدائي","إ -","العربية","جويدة الجموعي- النخلة","الرباح","حي النور","النخلة","مركز اجراء امتحان ش البكالوريا","","ثانوية الشهيد بن حمده علي  - النخلة"]
[613,12452786,"محمد علي613","استاذ تعليم ابتدائي","إ -","العربية","جويدة الجموعي- النخلة","الرباح","حي النور","النخلة","مركز اجراء امتحان ش البكالوريا","","ثانوية الشهيد بن حمده علي  - النخلة"]
[614,12452787,"محمد علي614","استاذ تعليم ابتدائي","إ -","العربية","جويدة الجموعي- النخلة","الرباح","حي النور","النخلة","مركز اجراء امتحان ش البكالوريا","","ثانوية الشهيد بن حمده علي  - النخلة"]
[615,12452788,"محمد علي615","استاذ تعليم ابتدائي","إ -","العربية","جويدة الجموعي- النخلة","الرباح","حي النور","النخلة","مركز اجراء امتحان ش البكالوريا","","ثانوية الشهيد بن حمده علي  - النخلة"]
[616,12452789,"محمد علي616","استاذ تعليم ابتدائي","إ -","العربية","جويدة الجموعي- النخلة","الرباح","حي النور","النخلة","مركز اجراء امتحان ش البكالوريا","","ثانوية الشهيد بن حمده علي  - النخلة"]
[617,12452790,"محمد علي617","استاذ تعليم ابتدائي","إ -","العربية","جويدة الجموعي- النخلة","الرباح","حي النور","النخلة","مركز اجراء امتحان ش البكالوريا","","ثانوية الشهيد بن حمده علي  - النخلة"]
[618,12452791,"محمد علي618","استاذ تعليم ابتدائي","إ -","العربية","جويدة الجموعي- النخلة","الرباح","حي النور","النخلة","مركز اجراء امتحان ش البكالوريا","","ثانوية الشهيد بن حمده علي  - النخلة"]
[619,12452792,"محمد علي619","استاذ تعليم ابتدائي","إ -","العربية","جويدة الجموعي- النخلة","الرباح","حي النور","النخلة","مركز اجراء امتحان ش البكالوريا","","ثانوية الشهيد بن حمده علي  - النخلة"]
[620,12452793,"محمد علي620","استاذ تعليم ابتدائي","إ -","العربية","جويدة الجموعي- النخلة","الرباح","حي النور","النخلة","مركز اجراء امتحان ش البكالوريا","","ثانوية الشهيد بن حمده علي  - النخلة"]
[621,12452794,"محمد علي621","استاذ تعليم ابتدائي","إ -","العربية","جويدة الجموعي- النخلة","الرباح","حي النور","النخلة","مركز اجراء امتحان ش البكالوريا","","ثانوية الشهيد بن حمده علي  - النخلة"]
[622,12452795,"محمد علي622","استاذ تعليم ابتدائي","إ -","العربية","جويدة الجموعي- النخلة","الرباح","حي النور","النخلة","مركز اجراء امتحان ش البكالوريا","","ثانوية الشهيد بن حمده علي  - النخلة"]
[623,12452796,"محمد علي623","استاذ تعليم ابتدائي","إ -","العربية","جويدة الجموعي- النخلة","الرباح","حي النور","النخلة","مركز اجراء امتحان ش البكالوريا","","ثانوية الشهيد بن حمده علي  - النخلة"]
[624,12452797,"محمد علي624","استاذ تعليم ابتدائي","إ -","العربية","جويدة الجموعي- النخلة","الرباح","حي النور","النخلة","مركز اجراء امتحان ش البكالوريا","","ثانوية الشهيد بن حمده علي  - النخلة"]
[625,12452798,"محمد علي625","استاذ تعليم ابتدائي","إ -","العربية","جويدة الجموعي- النخلة","الرباح","حي النور","النخلة","مركز اجراء امتحان ش البكالوريا","","ثانوية الشهيد بن حمده علي  - النخلة"]
[626,12452799,"محمد علي626","استاذ تعليم ابتدائي","إ -","العربية","جويدة الجموعي- النخلة","الرباح","حي النور","النخلة","مركز اجراء امتحان ش البكالوريا","","ثانوية الشهيد بن حمده علي  - النخلة"]
[627,12452800,"محمد علي627","استاذ تعليم ابتدائي","إ -","العربية","جويدة الجموعي- النخلة","الرباح","حي النور","النخلة","مركز اجراء امتحان ش البكالوريا","","ثانوية الشهيد بن حمده علي  - النخلة"]
[628,12452801,"محمد علي628","استاذ تعليم ابتدائي","إ -","العربية","جويدة الجموعي- النخلة","الرباح","حي النور","النخلة","مركز اجراء امتحان ش البكالوريا","","ثانوية الشهيد بن حمده علي  - النخلة"]
[629,12452802,"محمد علي629","استاذ تعليم ابتدائي","إ -","العربية","جويدة الجموعي- النخلة","الرباح","حي النور","النخلة","مركز اجراء امتحان ش البكالوريا","","ثانوية الشهيد بن حمده علي  - النخلة"]
[630,12452803,"محمد علي630","استاذ تعليم ابتدائي","إ -","العربية","جويدة الجموعي- النخلة","الرباح","حي النور","النخلة","مركز اجراء امتحان ش البكالوريا","","ثانوية الشهيد بن حمده علي  - النخلة"]
[631,12452804,"محمد علي631","استاذ تعليم ابتدائي","إ -","العربية","جويدة الجموعي- النخلة","الرباح","حي النور","النخلة","مركز اجراء امتحان ش البكالوريا","","ثانوية الشهيد بن حمده علي  - النخلة"]
[632,12452805,"محمد علي632","استاذ تعليم ابتدائي","إ -","العربية","جويدة الجموعي- النخلة","الرباح","حي النور","النخلة","مركز اجراء امتحان ش البكالوريا","","ثانوية الشهيد بن حمده علي  - النخلة"]
[633,12452806,"محمد علي633","استاذ تعليم ابتدائي","إ -","العربية","جويدة الجموعي- النخلة","الرباح","حي النور","النخلة","مركز اجراء امتحان ش البكالوريا","","ثانوية الشهيد بن حمده علي  - النخلة"]
[634,12452807,"محمد علي634","استاذ تعليم ابتدائي","إ -","العربية","جويدة الجموعي- النخلة","الرباح","حي النور","النخلة","مركز اجراء امتحان ش البكالوريا","","ثانوية الشهيد بن حمده علي  - النخلة"]
[635,12452808,"محمد علي635","استاذ تعليم ابتدائي","إ -","العربية","جويدة الجموعي- النخلة","الرباح","حي النور","النخلة","مركز اجراء امتحان ش البكالوريا","","ثانوية الشهيد بن حمده علي  - النخلة"]
[636,12452809,"محمد علي636","استاذ تعليم ابتدائي","إ -","العربية","جويدة الجموعي- النخلة","الرباح","حي النور","النخلة","مركز اجراء امتحان ش البكالوريا","","ثانوية الشهيد بن حمده علي  - النخلة"]
[637,12452810,"محمد علي637","استاذ تعليم ابتدائي","إ -","العربية","جويدة الجموعي- النخلة","الرباح","حي النور","النخلة","مركز اجراء امتحان ش البكالوريا","","ثانوية الشهيد بن حمده علي  - النخلة"]
[638,12452811,"محمد علي638","استاذ تعليم ابتدائي","إ -","العربية","جويدة الجموعي- النخلة","الرباح","حي النور","النخلة","مركز اجراء امتحان ش البكالوريا","","ثانوية الشهيد بن حمده علي  - النخلة"]
[639,12452812,"محمد علي639","استاذ تعليم ابتدائي","إ -","العربية","جويدة الجموعي- النخلة","الرباح","حي النور","النخلة","مركز اجراء امتحان ش البكالوريا","","ثانوية الشهيد بن حمده علي  - النخلة"]
[640,12452813,"محمد علي640","استاذ تعليم ابتدائي","إ -","العربية","جويدة الجموعي- النخلة","الرباح","حي النور","النخلة","مركز اجراء امتحان ش البكالوريا","","ثانوية الشهيد بن حمده علي  - النخلة"]
[641,12452814,"محمد علي641","استاذ تعليم ابتدائي","إ -","العربية","جويدة الجموعي- النخلة","الرباح","حي النور","النخلة","مركز اجراء امتحان ش البكالوريا","","ثانوية الشهيد بن حمده علي  - النخلة"]
[642,12452815,"محمد علي642","استاذ تعليم ابتدائي","إ -","العربية","جويدة الجموعي- النخلة","الرباح","حي النور","النخلة","مركز اجراء امتحان ش البكالوريا","","ثانوية الشهيد بن حمده علي  - النخلة"]
[643,12452816,"محمد علي643","استاذ تعليم ابتدائي","إ -","العربية","جويدة الجموعي- النخلة","الرباح","حي النور","النخلة","مركز اجراء امتحان ش البكالوريا","","ثانوية الشهيد بن حمده علي  - النخلة"]
[644,12452817,"محمد علي644","استاذ تعليم ابتدائي","إ -","العربية","جويدة الجموعي- النخلة","الرباح","حي النور","النخلة","مركز اجراء امتحان ش البكالوريا","","ثانوية الشهيد بن حمده علي  - النخلة"]
[645,12452818,"محمد علي645","استاذ تعليم ابتدائي","إ -","العربية","جويدة الجموعي- النخلة","الرباح","حي النور","النخلة","مركز اجراء امتحان ش البكالوريا","","ثانوية الشهيد بن حمده علي  - النخلة"]
[646,12452819,"محمد علي646","استاذ تعليم ابتدائي","إ -","العربية","جويدة الجموعي- النخلة","الرباح","حي النور","النخلة","مركز اجراء امتحان ش البكالوريا","","ثانوية الشهيد بن حمده علي  - النخلة"]
[647,12452820,"محمد علي647","استاذ تعليم ابتدائي","إ -","العربية","جويدة الجموعي- النخلة","الرباح","حي النور","النخلة","مركز اجراء امتحان ش البكالوريا","","ثانوية الشهيد بن حمده علي  - النخلة"]
[648,12452821,"محمد علي648","استاذ تعليم ابتدائي","إ -","العربية","جويدة الجموعي- النخلة","الرباح","حي النور","النخلة","مركز اجراء امتحان ش البكالوريا","","ثانوية الشهيد بن حمده علي  - النخلة"]
[649,12452822,"محمد علي649","استاذ تعليم ابتدائي","إ -","العربية","جويدة الجموعي- النخلة","الرباح","حي النور","النخلة","مركز اجراء امتحان ش البكالوريا","","ثانوية الشهيد بن حمده علي  - النخلة"]
[650,12452823,"محمد علي650","استاذ تعليم ابتدائي","إ -","العربية","جويدة الجموعي- النخلة","الرباح","حي النور","النخلة","مركز اجراء امتحان ش البكالوريا","","ثانوية الشهيد بن حمده علي  - النخلة"]
[651,12452824,"محمد علي651","استاذ تعليم ابتدائي","إ -","العربية","جويدة الجموعي- النخلة","الرباح","حي النور","النخلة","مركز اجراء امتحان ش البكالوريا","","ثانوية الشهيد بن حمده علي  - النخلة"]
[652,12452825,"محمد علي652","استاذ تعليم ابتدائي","إ -","العربية","جويدة الجموعي- النخلة","الرباح","حي النور","النخلة","مركز اجراء امتحان ش البكالوريا","","ثانوية الشهيد بن حمده علي  - النخلة"]
[653,12452826,"محمد علي653","استاذ تعليم ابتدائي","إ -","العربية","جويدة الجموعي- النخلة","الرباح","حي النور","النخلة","مركز اجراء امتحان ش البكالوريا","","ثانوية الشهيد بن حمده علي  - النخلة"]
[654,12452827,"محمد علي654","استاذ تعليم ابتدائي","إ -","العربية","جويدة الجموعي- النخلة","الرباح","حي النور","النخلة","مركز اجراء امتحان ش البكالوريا","","ثانوية الشهيد بن حمده علي  - النخلة"]
[655,12452828,"محمد علي655","استاذ تعليم ابتدائي","إ -","العربية","جويدة الجموعي- النخلة","الرباح","حي النور","النخلة","مركز اجراء امتحان ش البكالوريا","","ثانوية الشهيد بن حمده علي  - النخلة"]
[656,12452829,"محمد علي656","استاذ تعليم ابتدائي","إ -","العربية","جويدة الجموعي- النخلة","الرباح","حي النور","النخلة","مركز اجراء امتحان ش البكالوريا","","ثانوية الشهيد بن حمده علي  - النخلة"]

{"sheet":"حساب عدد الأيام","index":2,"n_rows":151,"n_cols":15,"rows_kept":151,"cut":false,"hidden":false,"merged":[[4,9,4,10],[4,2,4,6],[6,1,7,1],[6,2,7,2],[0,4,0,7],[1,4,1,7],[6,14,7,14],[6,9,6,10],[6,11,6,12],[150,0,150,12],[6,0,7,0],[6,3,6,4],[6,5,6,6],[6,7,6,8],[6,13,7,13]]}
[null,null,null,null,"وزارة التربية الوطنية"]
[null,null,null,null,"مديرية التربية لولاية الوادي"]
[]
[]
[null,"مـركـــــز الإمتحـــان:",{"$f":"'بيانات المركز.'!Q9","v":"ثانوية المجتهد - الوادي"},null,null,null,null,"رمــز المركـــز: ",null,{"$f":"'بيانات المركز.'!V7","v":390044},null,{"$f":"'بيانات المركز.'!D19","v":"جــــوان 2021"}]
[]
["الرقم","اللقب و الإسم","القاعة","اليوم الاول",null,"اليوم الثاني",null,"اليوم الثالث",null,"اليوم الرابع",null,"اليوم الخامس",null,"عدد الايام"]
[null,null,null,"صباحا","مساءا","صباحا","مساءا","صباحا","مساءا","صباحا","مساءا","صباحا","مساءا"]
[1,{"$f":"'توزيع الحراس'!B3","v":"محمد علي1"},{"$f":"'توزيع الحراس'!A3","v":1},{"$f":"COUNTIF('توزيع الحراس'!D$3:F$30,$C9)","v":0},{"$f":"COUNTIF('توزيع الحراس'!G$3:I$30,$C9)","v":0},{"$f":"COUNTIF('توزيع الحراس'!K$3:M$30,$C9)","v":0},{"$f":"COUNTIF('توزيع الحراس'!N$3:P$30,$C9)","v":0},{"$f":"COUNTIF('توزيع الحراس'!Q$3:S$30,$C9)","v":0},{"$f":"COUNTIF('توزيع الحراس'!T$3:V$30,$C9)","v":0},{"$f":"COUNTIF('توزيع الحراس'!W$3:Y$30,$C9)","v":0},{"$f":"COUNTIF('توزيع الحراس'!Z$3:AB$30,$C9)","v":0},{"$f":"COUNTIF('توزيع الحراس'!AC$3:AE$30,$C9)","v":0},{"$f":"COUNTIF('توزيع الحراس'!AF$3:AH$30,$C9)","v":0},{"$f":"SUM(D9:M9)","v":0},{"$f":"N9*0.5","v":0}]
[2,{"$f":"'توزيع الحراس'!B4","v":"محمد علي2"},{"$f":"'توزيع الحراس'!A4","v":2},{"$f":"COUNTIF('توزيع الحراس'!D$3:F$30,$C10)","v":0},{"$f":"COUNTIF('توزيع الحراس'!G$3:I$30,$C10)","v":0},{"$f":"COUNTIF('توزيع الحراس'!K$3:M$30,$C10)","v":0},{"$f":"COUNTIF('توزيع الحراس'!N$3:P$30,$C10)","v":0},{"$f":"COUNTIF('توزيع الحراس'!Q$3:S$30,$C10)","v":0},{"$f":"COUNTIF('توزيع الحراس'!T$3:V$30,$C10)","v":0},{"$f":"COUNTIF('توزيع الحراس'!W$3:Y$30,$C10)","v":0},{"$f":"COUNTIF('توزيع الحراس'!Z$3:AB$30,$C10)","v":0},{"$f":"COUNTIF('توزيع الحراس'!AC$3:AE$30,$C10)","v":0},{"$f":"COUNTIF('توزيع الحراس'!AF$3:AH$30,$C10)","v":0},0,0]
[3,{"$f":"'توزيع الحراس'!B5","v":"محمد علي3"},{"$f":"'توزيع الحراس'!A5","v":3},{"$f":"COUNTIF('توزيع الحراس'!D$3:F$30,$C11)","v":0},{"$f":"COUNTIF('توزيع الحراس'!G$3:I$30,$C11)","v":0},{"$f":"COUNTIF('توزيع الحراس'!K$3:M$30,$C11)","v":0},{"$f":"COUNTIF('توزيع الحراس'!N$3:P$30,$C11)","v":0},{"$f":"COUNTIF('توزيع الحراس'!Q$3:S$30,$C11)","v":0},{"$f":"COUNTIF('توزيع الحراس'!T$3:V$30,$C11)","v":0},{"$f":"COUNTIF('توزيع الحراس'!W$3:Y$30,$C11)","v":0},{"$f":"COUNTIF('توزيع الحراس'!Z$3:AB$30,$C11)","v":0},{"$f":"COUNTIF('توزيع الحراس'!AC$3:AE$30,$C11)","v":0},{"$f":"COUNTIF('توزيع الحراس'!AF$3:AH$30,$C11)","v":0},0,0]
[4,{"$f":"'توزيع الحراس'!B6","v":"محمد علي4"},{"$f":"'توزيع الحراس'!A6","v":4},{"$f":"COUNTIF('توزيع الحراس'!D$3:F$30,$C12)","v":0},{"$f":"COUNTIF('توزيع الحراس'!G$3:I$30,$C12)","v":0},{"$f":"COUNTIF('توزيع الحراس'!K$3:M$30,$C12)","v":0},{"$f":"COUNTIF('توزيع الحراس'!N$3:P$30,$C12)","v":0},{"$f":"COUNTIF('توزيع الحراس'!Q$3:S$30,$C12)","v":0},{"$f":"COUNTIF('توزيع الحراس'!T$3:V$30,$C12)","v":0},{"$f":"COUNTIF('توزيع الحراس'!W$3:Y$30,$C12)","v":0},{"$f":"COUNTIF('توزيع الحراس'!Z$3:AB$30,$C12)","v":0},{"$f":"COUNTIF('توزيع الحراس'!AC$3:AE$30,$C12)","v":0},{"$f":"COUNTIF('توزيع الحراس'!AF$3:AH$30,$C12)","v":0},0,0]
[5,{"$f":"'توزيع الحراس'!B7","v":"محمد علي5"},{"$f":"'توزيع الحراس'!A7","v":5},{"$f":"COUNTIF('توزيع الحراس'!D$3:F$30,$C13)","v":0},{"$f":"COUNTIF('توزيع الحراس'!G$3:I$30,$C13)","v":0},{"$f":"COUNTIF('توزيع الحراس'!K$3:M$30,$C13)","v":0},{"$f":"COUNTIF('توزيع الحراس'!N$3:P$30,$C13)","v":0},{"$f":"COUNTIF('توزيع الحراس'!Q$3:S$30,$C13)","v":0},{"$f":"COUNTIF('توزيع الحراس'!T$3:V$30,$C13)","v":0},{"$f":"COUNTIF('توزيع الحراس'!W$3:Y$30,$C13)","v":0},{"$f":"COUNTIF('توزيع الحراس'!Z$3:AB$30,$C13)","v":0},{"$f":"COUNTIF('توزيع الحراس'!AC$3:AE$30,$C13)","v":0},{"$f":"COUNTIF('توزيع الحراس'!AF$3:AH$30,$C13)","v":0},0,0]
[6,{"$f":"'توزيع الحراس'!B8","v":"محمد علي6"},{"$f":"'توزيع الحراس'!A8","v":6},{"$f":"COUNTIF('توزيع الحراس'!D$3:F$30,$C14)","v":0},{"$f":"COUNTIF('توزيع الحراس'!G$3:I$30,$C14)","v":0},{"$f":"COUNTIF('توزيع الحراس'!K$3:M$30,$C14)","v":0},{"$f":"COUNTIF('توزيع الحراس'!N$3:P$30,$C14)","v":0},{"$f":"COUNTIF('توزيع الحراس'!Q$3:S$30,$C14)","v":0},{"$f":"COUNTIF('توزيع الحراس'!T$3:V$30,$C14)","v":0},{"$f":"COUNTIF('توزيع الحراس'!W$3:Y$30,$C14)","v":0},{"$f":"COUNTIF('توزيع الحراس'!Z$3:AB$30,$C14)","v":0},{"$f":"COUNTIF('توزيع الحراس'!AC$3:AE$30,$C14)","v":0},{"$f":"COUNTIF('توزيع الحراس'!AF$3:AH$30,$C14)","v":0},0,0]
[7,{"$f":"'توزيع الحراس'!B9","v":"محمد علي7"},{"$f":"'توزيع الحراس'!A9","v":7},{"$f":"COUNTIF('توزيع الحراس'!D$3:F$30,$C15)","v":0},{"$f":"COUNTIF('توزيع الحراس'!G$3:I$30,$C15)","v":0},{"$f":"COUNTIF('توزيع الحراس'!K$3:M$30,$C15)","v":0},{"$f":"COUNTIF('توزيع الحراس'!N$3:P$30,$C15)","v":0},{"$f":"COUNTIF('توزيع الحراس'!Q$3:S$30,$C15)","v":0},{"$f":"COUNTIF('توزيع الحراس'!T$3:V$30,$C15)","v":0},{"$f":"COUNTIF('توزيع الحراس'!W$3:Y$30,$C15)","v":0},{"$f":"COUNTIF('توزيع الحراس'!Z$3:AB$30,$C15)","v":0},{"$f":"COUNTIF('توزيع الحراس'!AC$3:AE$30,$C15)","v":0},{"$f":"COUNTIF('توزيع الحراس'!AF$3:AH$30,$C15)","v":0},0,0]
[8,{"$f":"'توزيع الحراس'!B10","v":"محمد علي8"},{"$f":"'توزيع الحراس'!A10","v":8},{"$f":"COUNTIF('توزيع الحراس'!D$3:F$30,$C16)","v":0},{"$f":"COUNTIF('توزيع الحراس'!G$3:I$30,$C16)","v":0},{"$f":"COUNTIF('توزيع الحراس'!K$3:M$30,$C16)","v":0},{"$f":"COUNTIF('توزيع الحراس'!N$3:P$30,$C16)","v":0},{"$f":"COUNTIF('توزيع الحراس'!Q$3:S$30,$C16)","v":0},{"$f":"COUNTIF('توزيع الحراس'!T$3:V$30,$C16)","v":0},{"$f":"COUNTIF('توزيع الحراس'!W$3:Y$30,$C16)","v":0},{"$f":"COUNTIF('توزيع الحراس'!Z$3:AB$30,$C16)","v":0},{"$f":"COUNTIF('توزيع الحراس'!AC$3:AE$30,$C16)","v":0},{"$f":"COUNTIF('توزيع الحراس'!AF$3:AH$30,$C16)","v":0},0,0]
[9,{"$f":"'توزيع الحراس'!B11","v":"محمد علي9"},{"$f":"'توزيع الحراس'!A11","v":9},{"$f":"COUNTIF('توزيع الحراس'!D$3:F$30,$C17)","v":0},{"$f":"COUNTIF('توزيع الحراس'!G$3:I$30,$C17)","v":0},{"$f":"COUNTIF('توزيع الحراس'!K$3:M$30,$C17)","v":0},{"$f":"COUNTIF('توزيع الحراس'!N$3:P$30,$C17)","v":0},{"$f":"COUNTIF('توزيع الحراس'!Q$3:S$30,$C17)","v":0},{"$f":"COUNTIF('توزيع الحراس'!T$3:V$30,$C17)","v":0},{"$f":"COUNTIF('توزيع الحراس'!W$3:Y$30,$C17)","v":0},{"$f":"COUNTIF('توزيع الحراس'!Z$3:AB$30,$C17)","v":0},{"$f":"COUNTIF('توزيع الحراس'!AC$3:AE$30,$C17)","v":0},{"$f":"COUNTIF('توزيع الحراس'!AF$3:AH$30,$C17)","v":0},0,0]
[10,{"$f":"'توزيع الحراس'!B12","v":"محمد علي10"},{"$f":"'توزيع الحراس'!A12","v":10},{"$f":"COUNTIF('توزيع الحراس'!D$3:F$30,$C18)","v":0},{"$f":"COUNTIF('توزيع الحراس'!G$3:I$30,$C18)","v":0},{"$f":"COUNTIF('توزيع الحراس'!K$3:M$30,$C18)","v":0},{"$f":"COUNTIF('توزيع الحراس'!N$3:P$30,$C18)","v":0},{"$f":"COUNTIF('توزيع الحراس'!Q$3:S$30,$C18)","v":0},{"$f":"COUNTIF('توزيع الحراس'!T$3:V$30,$C18)","v":0},{"$f":"COUNTIF('توزيع الحراس'!W$3:Y$30,$C18)","v":0},{"$f":"COUNTIF('توزيع الحراس'!Z$3:AB$30,$C18)","v":0},{"$f":"COUNTIF('توزيع الحراس'!AC$3:AE$30,$C18)","v":0},{"$f":"COUNTIF('توزيع الحراس'!AF$3:AH$30,$C18)","v":0},0,0]
[11,{"$f":"'توزيع الحراس'!B13","v":"محمد علي11"},{"$f":"'توزيع الحراس'!A13","v":11},{"$f":"COUNTIF('توزيع الحراس'!D$3:F$30,$C19)","v":0},{"$f":"COUNTIF('توزيع الحراس'!G$3:I$30,$C19)","v":0},{"$f":"COUNTIF('توزيع الحراس'!K$3:M$30,$C19)","v":0},{"$f":"COUNTIF('توزيع الحراس'!N$3:P$30,$C19)","v":0},{"$f":"COUNTIF('توزيع الحراس'!Q$3:S$30,$C19)","v":0},{"$f":"COUNTIF('توزيع الحراس'!T$3:V$30,$C19)","v":0},{"$f":"COUNTIF('توزيع الحراس'!W$3:Y$30,$C19)","v":0},{"$f":"COUNTIF('توزيع الحراس'!Z$3:AB$30,$C19)","v":0},{"$f":"COUNTIF('توزيع الحراس'!AC$3:AE$30,$C19)","v":0},{"$f":"COUNTIF('توزيع الحراس'!AF$3:AH$30,$C19)","v":0},0,{"$f":"N19*0.5","v":0}]
[12,{"$f":"'توزيع الحراس'!B14","v":"محمد علي12"},{"$f":"'توزيع الحراس'!A14","v":12},{"$f":"COUNTIF('توزيع الحراس'!D$3:F$30,$C20)","v":0},{"$f":"COUNTIF('توزيع الحراس'!G$3:I$30,$C20)","v":0},{"$f":"COUNTIF('توزيع الحراس'!K$3:M$30,$C20)","v":0},{"$f":"COUNTIF('توزيع الحراس'!N$3:P$30,$C20)","v":0},{"$f":"COUNTIF('توزيع الحراس'!Q$3:S$30,$C20)","v":0},{"$f":"COUNTIF('توزيع الحراس'!T$3:V$30,$C20)","v":0},{"$f":"COUNTIF('توزيع الحراس'!W$3:Y$30,$C20)","v":0},{"$f":"COUNTIF('توزيع الحراس'!Z$3:AB$30,$C20)","v":0},{"$f":"COUNTIF('توزيع الحراس'!AC$3:AE$30,$C20)","v":0},{"$f":"COUNTIF('توزيع الحراس'!AF$3:AH$30,$C20)","v":0},0,0]
[13,{"$f":"'توزيع الحراس'!B15","v":"محمد علي13"},{"$f":"'توزيع الحراس'!A15","v":13},{"$f":"COUNTIF('توزيع الحراس'!D$3:F$30,$C21)","v":0},{"$f":"COUNTIF('توزيع الحراس'!G$3:I$30,$C21)","v":0},{"$f":"COUNTIF('توزيع الحراس'!K$3:M$30,$C21)","v":0},{"$f":"COUNTIF('توزيع الحراس'!N$3:P$30,$C21)","v":0},{"$f":"COUNTIF('توزيع الحراس'!Q$3:S$30,$C21)","v":0},{"$f":"COUNTIF('توزيع الحراس'!T$3:V$30,$C21)","v":0},{"$f":"COUNTIF('توزيع الحراس'!W$3:Y$30,$C21)","v":0},{"$f":"COUNTIF('توزيع الحراس'!Z$3:AB$30,$C21)","v":0},{"$f":"COUNTIF('توزيع الحراس'!AC$3:AE$30,$C21)","v":0},{"$f":"COUNTIF('توزيع الحراس'!AF$3:AH$30,$C21)","v":0},0,0]
[14,{"$f":"'توزيع الحراس'!B16","v":"محمد علي14"},{"$f":"'توزيع الحراس'!A16","v":14},{"$f":"COUNTIF('توزيع الحراس'!D$3:F$30,$C22)","v":0},{"$f":"COUNTIF('توزيع الحراس'!G$3:I$30,$C22)","v":0},{"$f":"COUNTIF('توزيع الحراس'!K$3:M$30,$C22)","v":0},{"$f":"COUNTIF('توزيع الحراس'!N$3:P$30,$C22)","v":0},{"$f":"COUNTIF('توزيع الحراس'!Q$3:S$30,$C22)","v":0},{"$f":"COUNTIF('توزيع الحراس'!T$3:V$30,$C22)","v":0},{"$f":"COUNTIF('توزيع الحراس'!W$3:Y$30,$C22)","v":0},{"$f":"COUNTIF('توزيع الحراس'!Z$3:AB$30,$C22)","v":0},{"$f":"COUNTIF('توزيع الحراس'!AC$3:AE$30,$C22)","v":0},{"$f":"COUNTIF('توزيع الحراس'!AF$3:AH$30,$C22)","v":0},0,0]
[15,{"$f":"'توزيع الحراس'!B17","v":"محمد علي15"},{"$f":"'توزيع الحراس'!A17","v":15},{"$f":"COUNTIF('توزيع الحراس'!D$3:F$30,$C23)","v":0},{"$f":"COUNTIF('توزيع الحراس'!G$3:I$30,$C23)","v":0},{"$f":"COUNTIF('توزيع الحراس'!K$3:M$30,$C23)","v":0},{"$f":"COUNTIF('توزيع الحراس'!N$3:P$30,$C23)","v":0},{"$f":"COUNTIF('توزيع الحراس'!Q$3:S$30,$C23)","v":0},{"$f":"COUNTIF('توزيع الحراس'!T$3:V$30,$C23)","v":0},{"$f":"COUNTIF('توزيع الحراس'!W$3:Y$30,$C23)","v":0},{"$f":"COUNTIF('توزيع الحراس'!Z$3:AB$30,$C23)","v":0},{"$f":"COUNTIF('توزيع الحراس'!AC$3:AE$30,$C23)","v":0},{"$f":"COUNTIF('توزيع الحراس'!AF$3:AH$30,$C23)","v":0},0,0]
[16,{"$f":"'توزيع الحراس'!B18","v":"محمد علي16"},{"$f":"'توزيع الحراس'!A18","v":16},{"$f":"COUNTIF('توزيع الحراس'!D$3:F$30,$C24)","v":0},{"$f":"COUNTIF('توزيع الحراس'!G$3:I$30,$C24)","v":0},{"$f":"COUNTIF('توزيع الحراس'!K$3:M$30,$C24)","v":0},{"$f":"COUNTIF('توزيع الحراس'!N$3:P$30,$C24)","v":0},{"$f":"COUNTIF('توزيع الحراس'!Q$3:S$30,$C24)","v":0},{"$f":"COUNTIF('توزيع الحراس'!T$3:V$30,$C24)","v":0},{"$f":"COUNTIF('توزيع الحراس'!W$3:Y$30,$C24)","v":0},{"$f":"COUNTIF('توزيع الحراس'!Z$3:AB$30,$C24)","v":0},{"$f":"COUNTIF('توزيع الحراس'!AC$3:AE$30,$C24)","v":0},{"$f":"COUNTIF('توزيع الحراس'!AF$3:AH$30,$C24)","v":0},0,0]
[17,{"$f":"'توزيع الحراس'!B19","v":"محمد علي17"},{"$f":"'توزيع الحراس'!A19","v":17},{"$f":"COUNTIF('توزيع الحراس'!D$3:F$30,$C25)","v":0},{"$f":"COUNTIF('توزيع الحراس'!G$3:I$30,$C25)","v":0},{"$f":"COUNTIF('توزيع الحراس'!K$3:M$30,$C25)","v":0},{"$f":"COUNTIF('توزيع الحراس'!N$3:P$30,$C25)","v":0},{"$f":"COUNTIF('توزيع الحراس'!Q$3:S$30,$C25)","v":0},{"$f":"COUNTIF('توزيع الحراس'!T$3:V$30,$C25)","v":0},{"$f":"COUNTIF('توزيع الحراس'!W$3:Y$30,$C25)","v":0},{"$f":"COUNTIF('توزيع الحراس'!Z$3:AB$30,$C25)","v":0},{"$f":"COUNTIF('توزيع الحراس'!AC$3:AE$30,$C25)","v":0},{"$f":"COUNTIF('توزيع الحراس'!AF$3:AH$30,$C25)","v":0},0,0]
[18,{"$f":"'توزيع الحراس'!B20","v":"محمد علي18"},{"$f":"'توزيع الحراس'!A20","v":18},{"$f":"COUNTIF('توزيع الحراس'!D$3:F$30,$C26)","v":0},{"$f":"COUNTIF('توزيع الحراس'!G$3:I$30,$C26)","v":0},{"$f":"COUNTIF('توزيع الحراس'!K$3:M$30,$C26)","v":0},{"$f":"COUNTIF('توزيع الحراس'!N$3:P$30,$C26)","v":0},{"$f":"COUNTIF('توزيع الحراس'!Q$3:S$30,$C26)","v":0},{"$f":"COUNTIF('توزيع الحراس'!T$3:V$30,$C26)","v":0},{"$f":"COUNTIF('توزيع الحراس'!W$3:Y$30,$C26)","v":0},{"$f":"COUNTIF('توزيع الحراس'!Z$3:AB$30,$C26)","v":0},{"$f":"COUNTIF('توزيع الحراس'!AC$3:AE$30,$C26)","v":0},{"$f":"COUNTIF('توزيع الحراس'!AF$3:AH$30,$C26)","v":0},0,0]
[19,{"$f":"'توزيع الحراس'!B21","v":"محمد علي19"},{"$f":"'توزيع الحراس'!A21","v":19},{"$f":"COUNTIF('توزيع الحراس'!D$3:F$30,$C27)","v":0},{"$f":"COUNTIF('توزيع الحراس'!G$3:I$30,$C27)","v":0},{"$f":"COUNTIF('توزيع الحراس'!K$3:M$30,$C27)","v":0},{"$f":"COUNTIF('توزيع الحراس'!N$3:P$30,$C27)","v":0},{"$f":"COUNTIF('توزيع الحراس'!Q$3:S$30,$C27)","v":0},{"$f":"COUNTIF('توزيع الحراس'!T$3:V$30,$C27)","v":0},{"$f":"COUNTIF('توزيع الحراس'!W$3:Y$30,$C27)","v":0},{"$f":"COUNTIF('توزيع الحراس'!Z$3:AB$30,$C27)","v":0},{"$f":"COUNTIF('توزيع الحراس'!AC$3:AE$30,$C27)","v":0},{"$f":"COUNTIF('توزيع الحراس'!AF$3:AH$30,$C27)","v":0},0,0]
[20,{"$f":"'توزيع الحراس'!B22","v":"محمد علي20"},{"$f":"'توزيع الحراس'!A22","v":20},{"$f":"COUNTIF('توزيع الحراس'!D$3:F$30,$C28)","v":0},{"$f":"COUNTIF('توزيع الحراس'!G$3:I$30,$C28)","v":0},{"$f":"COUNTIF('توزيع الحراس'!K$3:M$30,$C28)","v":0},{"$f":"COUNTIF('توزيع الحراس'!N$3:P$30,$C28)","v":0},{"$f":"COUNTIF('توزيع الحراس'!Q$3:S$30,$C28)","v":0},{"$f":"COUNTIF('توزيع الحراس'!T$3:V$30,$C28)","v":0},{"$f":"COUNTIF('توزيع الحراس'!W$3:Y$30,$C28)","v":0},{"$f":"COUNTIF('توزيع الحراس'!Z$3:AB$30,$C28)","v":0},{"$f":"COUNTIF('توزيع الحراس'!AC$3:AE$30,$C28)","v":0},{"$f":"COUNTIF('توزيع الحراس'!AF$3:AH$30,$C28)","v":0},0,0]
[21,{"$f":"'توزيع الحراس'!B23","v":"محمد علي21"},{"$f":"'توزيع الحراس'!A23","v":21},{"$f":"COUNTIF('توزيع الحراس'!D$3:F$30,$C29)","v":0},{"$f":"COUNTIF('توزيع الحراس'!G$3:I$30,$C29)","v":0},{"$f":"COUNTIF('توزيع الحراس'!K$3:M$30,$C29)","v":0},{"$f":"COUNTIF('توزيع الحراس'!N$3:P$30,$C29)","v":0},{"$f":"COUNTIF('توزيع الحراس'!Q$3:S$30,$C29)","v":0},{"$f":"COUNTIF('توزيع الحراس'!T$3:V$30,$C29)","v":0},{"$f":"COUNTIF('توزيع الحراس'!W$3:Y$30,$C29)","v":0},{"$f":"COUNTIF('توزيع الحراس'!Z$3:AB$30,$C29)","v":0},{"$f":"COUNTIF('توزيع الحراس'!AC$3:AE$30,$C29)","v":0},{"$f":"COUNTIF('توزيع الحراس'!AF$3:AH$30,$C29)","v":0},0,0]
[22,{"$f":"'توزيع الحراس'!B24","v":"محمد علي22"},{"$f":"'توزيع الحراس'!A24","v":22},{"$f":"COUNTIF('توزيع الحراس'!D$3:F$30,$C30)","v":0},{"$f":"COUNTIF('توزيع الحراس'!G$3:I$30,$C30)","v":0},{"$f":"COUNTIF('توزيع الحراس'!K$3:M$30,$C30)","v":0},{"$f":"COUNTIF('توزيع الحراس'!N$3:P$30,$C30)","v":0},{"$f":"COUNTIF('توزيع الحراس'!Q$3:S$30,$C30)","v":0},{"$f":"COUNTIF('توزيع الحراس'!T$3:V$30,$C30)","v":0},{"$f":"COUNTIF('توزيع الحراس'!W$3:Y$30,$C30)","v":0},{"$f":"COUNTIF('توزيع الحراس'!Z$3:AB$30,$C30)","v":0},{"$f":"COUNTIF('توزيع الحراس'!AC$3:AE$30,$C30)","v":0},{"$f":"COUNTIF('توزيع الحراس'!AF$3:AH$30,$C30)","v":0},0,0]
[23,{"$f":"'توزيع الحراس'!B25","v":"محمد علي23"},{"$f":"'توزيع الحراس'!A25","v":23},{"$f":"COUNTIF('توزيع الحراس'!D$3:F$30,$C31)","v":0},{"$f":"COUNTIF('توزيع الحراس'!G$3:I$30,$C31)","v":0},{"$f":"COUNTIF('توزيع الحراس'!K$3:M$30,$C31)","v":0},{"$f":"COUNTIF('توزيع الحراس'!N$3:P$30,$C31)","v":0},{"$f":"COUNTIF('توزيع الحراس'!Q$3:S$30,$C31)","v":0},{"$f":"COUNTIF('توزيع الحراس'!T$3:V$30,$C31)","v":0},{"$f":"COUNTIF('توزيع الحراس'!W$3:Y$30,$C31)","v":0},{"$f":"COUNTIF('توزيع الحراس'!Z$3:AB$30,$C31)","v":0},{"$f":"COUNTIF('توزيع الحراس'!AC$3:AE$30,$C31)","v":0},{"$f":"COUNTIF('توزيع الحراس'!AF$3:AH$30,$C31)","v":0},0,0]
[24,{"$f":"'توزيع الحراس'!B26","v":"محمد علي24"},{"$f":"'توزيع الحراس'!A26","v":24},{"$f":"COUNTIF('توزيع الحراس'!D$3:F$30,$C32)","v":0},{"$f":"COUNTIF('توزيع الحراس'!G$3:I$30,$C32)","v":0},{"$f":"COUNTIF('توزيع الحراس'!K$3:M$30,$C32)","v":0},{"$f":"COUNTIF('توزيع الحراس'!N$3:P$30,$C32)","v":0},{"$f":"COUNTIF('توزيع الحراس'!Q$3:S$30,$C32)","v":0},{"$f":"COUNTIF('توزيع الحراس'!T$3:V$30,$C32)","v":0},{"$f":"COUNTIF('توزيع الحراس'!W$3:Y$30,$C32)","v":0},{"$f":"COUNTIF('توزيع الحراس'!Z$3:AB$30,$C32)","v":0},{"$f":"COUNTIF('توزيع الحراس'!AC$3:AE$30,$C32)","v":0},{"$f":"COUNTIF('توزيع الحراس'!AF$3:AH$30,$C32)","v":0},0,0]
[25,{"$f":"'توزيع الحراس'!B27","v":"محمد علي25"},{"$f":"'توزيع الحراس'!A27","v":25},{"$f":"COUNTIF('توزيع الحراس'!D$3:F$30,$C33)","v":0},{"$f":"COUNTIF('توزيع الحراس'!G$3:I$30,$C33)","v":0},{"$f":"COUNTIF('توزيع الحراس'!K$3:M$30,$C33)","v":0},{"$f":"COUNTIF('توزيع الحراس'!N$3:P$30,$C33)","v":0},{"$f":"COUNTIF('توزيع الحراس'!Q$3:S$30,$C33)","v":0},{"$f":"COUNTIF('توزيع الحراس'!T$3:V$30,$C33)","v":0},{"$f":"COUNTIF('توزيع الحراس'!W$3:Y$30,$C33)","v":0},{"$f":"COUNTIF('توزيع الحراس'!Z$3:AB$30,$C33)","v":0},{"$f":"COUNTIF('توزيع الحراس'!AC$3:AE$30,$C33)","v":0},{"$f":"COUNTIF('توزيع الحراس'!AF$3:AH$30,$C33)","v":0},0,0]
[26,{"$f":"'توزيع الحراس'!B28","v":"محمد علي26"},{"$f":"'توزيع الحراس'!A28","v":26},{"$f":"COUNTIF('توزيع الحراس'!D$3:F$30,$C34)","v":0},{"$f":"COUNTIF('توزيع الحراس'!G$3:I$30,$C34)","v":0},{"$f":"COUNTIF('توزيع الحراس'!K$3:M$30,$C34)","v":0},{"$f":"COUNTIF('توزيع الحراس'!N$3:P$30,$C34)","v":0},{"$f":"COUNTIF('توزيع الحراس'!Q$3:S$30,$C34)","v":0},{"$f":"COUNTIF('توزيع الحراس'!T$3:V$30,$C34)","v":0},{"$f":"COUNTIF('توزيع الحراس'!W$3:Y$30,$C34)","v":0},{"$f":"COUNTIF('توزيع الحراس'!Z$3:AB$30,$C34)","v":0},{"$f":"COUNTIF('توزيع الحراس'!AC$3:AE$30,$C34)","v":0},{"$f":"COUNTIF('توزيع الحراس'!AF$3:AH$30,$C34)","v":0},0,0]
[27,{"$f":"'توزيع الحراس'!B29","v":"محمد علي27"},{"$f":"'توزيع الحراس'!A29","v":27},{"$f":"COUNTIF('توزيع الحراس'!D$3:F$30,$C35)","v":0},{"$f":"COUNTIF('توزيع الحراس'!G$3:I$30,$C35)","v":0},{"$f":"COUNTIF('توزيع الحراس'!K$3:M$30,$C35)","v":0},{"$f":"COUNTIF('توزيع الحراس'!N$3:P$30,$C35)","v":0},{"$f":"COUNTIF('توزيع الحراس'!Q$3:S$30,$C35)","v":0},{"$f":"COUNTIF('توزيع الحراس'!T$3:V$30,$C35)","v":0},{"$f":"COUNTIF('توزيع الحراس'!W$3:Y$30,$C35)","v":0},{"$f":"COUNTIF('توزيع الحراس'!Z$3:AB$30,$C35)","v":0},{"$f":"COUNTIF('توزيع الحراس'!AC$3:AE$30,$C35)","v":0},{"$f":"COUNTIF('توزيع الحراس'!AF$3:AH$30,$C35)","v":0},0,0]
[28,{"$f":"'توزيع الحراس'!B30","v":"محمد علي28"},{"$f":"'توزيع الحراس'!A30","v":28},{"$f":"COUNTIF('توزيع الحراس'!D$3:F$30,$C36)","v":0},{"$f":"COUNTIF('توزيع الحراس'!G$3:I$30,$C36)","v":0},{"$f":"COUNTIF('توزيع الحراس'!K$3:M$30,$C36)","v":0},{"$f":"COUNTIF('توزيع الحراس'!N$3:P$30,$C36)","v":0},{"$f":"COUNTIF('توزيع الحراس'!Q$3:S$30,$C36)","v":0},{"$f":"COUNTIF('توزيع الحراس'!T$3:V$30,$C36)","v":0},{"$f":"COUNTIF('توزيع الحراس'!W$3:Y$30,$C36)","v":0},{"$f":"COUNTIF('توزيع الحراس'!Z$3:AB$30,$C36)","v":0},{"$f":"COUNTIF('توزيع الحراس'!AC$3:AE$30,$C36)","v":0},{"$f":"COUNTIF('توزيع الحراس'!AF$3:AH$30,$C36)","v":0},0,0]
[29,{"$f":"'توزيع الحراس'!B31","v":"محمد علي29"},{"$f":"'توزيع الحراس'!A31","v":29},{"$f":"COUNTIF('توزيع الحراس'!D$3:F$30,$C37)","v":0},{"$f":"COUNTIF('توزيع الحراس'!G$3:I$30,$C37)","v":0},{"$f":"COUNTIF('توزيع الحراس'!K$3:M$30,$C37)","v":0},{"$f":"COUNTIF('توزيع الحراس'!N$3:P$30,$C37)","v":0},{"$f":"COUNTIF('توزيع الحراس'!Q$3:S$30,$C37)","v":0},{"$f":"COUNTIF('توزيع الحراس'!T$3:V$30,$C37)","v":0},{"$f":"COUNTIF('توزيع الحراس'!W$3:Y$30,$C37)","v":0},{"$f":"COUNTIF('توزيع الحراس'!Z$3:AB$30,$C37)","v":0},{"$f":"COUNTIF('توزيع الحراس'!AC$3:AE$30,$C37)","v":0},{"$f":"COUNTIF('توزيع الحراس'!AF$3:AH$30,$C37)","v":0},0,0]
[30,{"$f":"'توزيع الحراس'!B32","v":"محمد علي30"},{"$f":"'توزيع الحراس'!A32","v":30},{"$f":"COUNTIF('توزيع الحراس'!D$3:F$30,$C38)","v":0},{"$f":"COUNTIF('توزيع الحراس'!G$3:I$30,$C38)","v":0},{"$f":"COUNTIF('توزيع الحراس'!K$3:M$30,$C38)","v":0},{"$f":"COUNTIF('توزيع الحراس'!N$3:P$30,$C38)","v":0},{"$f":"COUNTIF('توزيع الحراس'!Q$3:S$30,$C38)","v":0},{"$f":"COUNTIF('توزيع الحراس'!T$3:V$30,$C38)","v":0},{"$f":"COUNTIF('توزيع الحراس'!W$3:Y$30,$C38)","v":0},{"$f":"COUNTIF('توزيع الحراس'!Z$3:AB$30,$C38)","v":0},{"$f":"COUNTIF('توزيع الحراس'!AC$3:AE$30,$C38)","v":0},{"$f":"COUNTIF('توزيع الحراس'!AF$3:AH$30,$C38)","v":0},0,0]
[31,{"$f":"'توزيع الحراس'!B33","v":"محمد علي31"},{"$f":"'توزيع الحراس'!A33","v":31},{"$f":"COUNTIF('توزيع الحراس'!D$3:F$30,$C39)","v":0},{"$f":"COUNTIF('توزيع الحراس'!G$3:I$30,$C39)","v":0},{"$f":"COUNTIF('توزيع الحراس'!K$3:M$30,$C39)","v":0},{"$f":"COUNTIF('توزيع الحراس'!N$3:P$30,$C39)","v":0},{"$f":"COUNTIF('توزيع الحراس'!Q$3:S$30,$C39)","v":0},{"$f":"COUNTIF('توزيع الحراس'!T$3:V$30,$C39)","v":0},{"$f":"COUNTIF('توزيع الحراس'!W$3:Y$30,$C39)","v":0},{"$f":"COUNTIF('توزيع الحراس'!Z$3:AB$30,$C39)","v":0},{"$f":"COUNTIF('توزيع الحراس'!AC$3:AE$30,$C39)","v":0},{"$f":"COUNTIF('توزيع الحراس'!AF$3:AH$30,$C39)","v":0},0,0]
[32,{"$f":"'توزيع الحراس'!B34","v":"محمد علي32"},{"$f":"'توزيع الحراس'!A34","v":32},{"$f":"COUNTIF('توزيع الحراس'!D$3:F$30,$C40)","v":0},{"$f":"COUNTIF('توزيع الحراس'!G$3:I$30,$C40)","v":0},{"$f":"COUNTIF('توزيع الحراس'!K$3:M$30,$C40)","v":0},{"$f":"COUNTIF('توزيع الحراس'!N$3:P$30,$C40)","v":0},{"$f":"COUNTIF('توزيع الحراس'!Q$3:S$30,$C40)","v":0},{"$f":"COUNTIF('توزيع الحراس'!T$3:V$30,$C40)","v":0},{"$f":"COUNTIF('توزيع الحراس'!W$3:Y$30,$C40)","v":0},{"$f":"COUNTIF('توزيع الحراس'!Z$3:AB$30,$C40)","v":0},{"$f":"COUNTIF('توزيع الحراس'!AC$3:AE$30,$C40)","v":0},{"$f":"COUNTIF('توزيع الحراس'!AF$3:AH$30,$C40)","v":0},0,0]
[33,{"$f":"'توزيع الحراس'!B35","v":"محمد علي33"},{"$f":"'توزيع الحراس'!A35","v":33},{"$f":"COUNTIF('توزيع الحراس'!D$3:F$30,$C41)","v":0},{"$f":"COUNTIF('توزيع الحراس'!G$3:I$30,$C41)","v":0},{"$f":"COUNTIF('توزيع الحراس'!K$3:M$30,$C41)","v":0},{"$f":"COUNTIF('توزيع الحراس'!N$3:P$30,$C41)","v":0},{"$f":"COUNTIF('توزيع الحراس'!Q$3:S$30,$C41)","v":0},{"$f":"COUNTIF('توزيع الحراس'!T$3:V$30,$C41)","v":0},{"$f":"COUNTIF('توزيع الحراس'!W$3:Y$30,$C41)","v":0},{"$f":"COUNTIF('توزيع الحراس'!Z$3:AB$30,$C41)","v":0},{"$f":"COUNTIF('توزيع الحراس'!AC$3:AE$30,$C41)","v":0},{"$f":"COUNTIF('توزيع الحراس'!AF$3:AH$30,$C41)","v":0},{"$f":"SUM(D41:M41)","v":0},0]
[34,{"$f":"'توزيع الحراس'!B36","v":"محمد علي34"},{"$f":"'توزيع الحراس'!A36","v":34},{"$f":"COUNTIF('توزيع الحراس'!D$3:F$30,$C42)","v":0},{"$f":"COUNTIF('توزيع الحراس'!G$3:I$30,$C42)","v":0},{"$f":"COUNTIF('توزيع الحراس'!K$3:M$30,$C42)","v":0},{"$f":"COUNTIF('توزيع الحراس'!N$3:P$30,$C42)","v":0},{"$f":"COUNTIF('توزيع الحراس'!Q$3:S$30,$C42)","v":0},{"$f":"COUNTIF('توزيع الحراس'!T$3:V$30,$C42)","v":0},{"$f":"COUNTIF('توزيع الحراس'!W$3:Y$30,$C42)","v":0},{"$f":"COUNTIF('توزيع الحراس'!Z$3:AB$30,$C42)","v":0},{"$f":"COUNTIF('توزيع الحراس'!AC$3:AE$30,$C42)","v":0},{"$f":"COUNTIF('توزيع الحراس'!AF$3:AH$30,$C42)","v":0},0,0]
[35,{"$f":"'توزيع الحراس'!B37","v":"محمد علي35"},{"$f":"'توزيع الحراس'!A37","v":35},{"$f":"COUNTIF('توزيع الحراس'!D$3:F$30,$C43)","v":0},{"$f":"COUNTIF('توزيع الحراس'!G$3:I$30,$C43)","v":0},{"$f":"COUNTIF('توزيع الحراس'!K$3:M$30,$C43)","v":0},{"$f":"COUNTIF('توزيع الحراس'!N$3:P$30,$C43)","v":0},{"$f":"COUNTIF('توزيع الحراس'!Q$3:S$30,$C43)","v":0},{"$f":"COUNTIF('توزيع الحراس'!T$3:V$30,$C43)","v":0},{"$f":"COUNTIF('توزيع الحراس'!W$3:Y$30,$C43)","v":0},{"$f":"COUNTIF('توزيع الحراس'!Z$3:AB$30,$C43)","v":0},{"$f":"COUNTIF('توزيع الحراس'!AC$3:AE$30,$C43)","v":0},{"$f":"COUNTIF('توزيع الحراس'!AF$3:AH$30,$C43)","v":0},0,0]
[36,{"$f":"'توزيع الحراس'!B38","v":"محمد علي36"},{"$f":"'توزيع الحراس'!A38","v":36},{"$f":"COUNTIF('توزيع الحراس'!D$3:F$30,$C44)","v":0},{"$f":"COUNTIF('توزيع الحراس'!G$3:I$30,$C44)","v":0},{"$f":"COUNTIF('توزيع الحراس'!K$3:M$30,$C44)","v":0},{"$f":"COUNTIF('توزيع الحراس'!N$3:P$30,$C44)","v":0},{"$f":"COUNTIF('توزيع الحراس'!Q$3:S$30,$C44)","v":0},{"$f":"COUNTIF('توزيع الحراس'!T$3:V$30,$C44)","v":0},{"$f":"COUNTIF('توزيع الحراس'!W$3:Y$30,$C44)","v":0},{"$f":"COUNTIF('توزيع الحراس'!Z$3:AB$30,$C44)","v":0},{"$f":"COUNTIF('توزيع الحراس'!AC$3:AE$30,$C44)","v":0},{"$f":"COUNTIF('توزيع الحراس'!AF$3:AH$30,$C44)","v":0},0,0]
[37,{"$f":"'توزيع الحراس'!B39","v":"محمد علي37"},{"$f":"'توزيع الحراس'!A39","v":37},{"$f":"COUNTIF('توزيع الحراس'!D$3:F$30,$C45)","v":0},{"$f":"COUNTIF('توزيع الحراس'!G$3:I$30,$C45)","v":0},{"$f":"COUNTIF('توزيع الحراس'!K$3:M$30,$C45)","v":0},{"$f":"COUNTIF('توزيع الحراس'!N$3:P$30,$C45)","v":0},{"$f":"COUNTIF('توزيع الحراس'!Q$3:S$30,$C45)","v":0},{"$f":"COUNTIF('توزيع الحراس'!T$3:V$30,$C45)","v":0},{"$f":"COUNTIF('توزيع الحراس'!W$3:Y$30,$C45)","v":0},{"$f":"COUNTIF('توزيع الحراس'!Z$3:AB$30,$C45)","v":0},{"$f":"COUNTIF('توزيع الحراس'!AC$3:AE$30,$C45)","v":0},{"$f":"COUNTIF('توزيع الحراس'!AF$3:AH$30,$C45)","v":0},0,0]
[38,{"$f":"'توزيع الحراس'!B40","v":"محمد علي38"},{"$f":"'توزيع الحراس'!A40","v":38},{"$f":"COUNTIF('توزيع الحراس'!D$3:F$30,$C46)","v":0},{"$f":"COUNTIF('توزيع الحراس'!G$3:I$30,$C46)","v":0},{"$f":"COUNTIF('توزيع الحراس'!K$3:M$30,$C46)","v":0},{"$f":"COUNTIF('توزيع الحراس'!N$3:P$30,$C46)","v":0},{"$f":"COUNTIF('توزيع الحراس'!Q$3:S$30,$C46)","v":0},{"$f":"COUNTIF('توزيع الحراس'!T$3:V$30,$C46)","v":0},{"$f":"COUNTIF('توزيع الحراس'!W$3:Y$30,$C46)","v":0},{"$f":"COUNTIF('توزيع الحراس'!Z$3:AB$30,$C46)","v":0},{"$f":"COUNTIF('توزيع الحراس'!AC$3:AE$30,$C46)","v":0},{"$f":"COUNTIF('توزيع الحراس'!AF$3:AH$30,$C46)","v":0},0,0]
[39,{"$f":"'توزيع الحراس'!B41","v":"محمد علي39"},{"$f":"'توزيع الحراس'!A41","v":39},{"$f":"COUNTIF('توزيع الحراس'!D$3:F$30,$C47)","v":0},{"$f":"COUNTIF('توزيع الحراس'!G$3:I$30,$C47)","v":0},{"$f":"COUNTIF('توزيع الحراس'!K$3:M$30,$C47)","v":0},{"$f":"COUNTIF('توزيع الحراس'!N$3:P$30,$C47)","v":0},{"$f":"COUNTIF('توزيع الحراس'!Q$3:S$30,$C47)","v":0},{"$f":"COUNTIF('توزيع الحراس'!T$3:V$30,$C47)","v":0},{"$f":"COUNTIF('توزيع الحراس'!W$3:Y$30,$C47)","v":0},{"$f":"COUNTIF('توزيع الحراس'!Z$3:AB$30,$C47)","v":0},{"$f":"COUNTIF('توزيع الحراس'!AC$3:AE$30,$C47)","v":0},{"$f":"COUNTIF('توزيع الحراس'!AF$3:AH$30,$C47)","v":0},0,0]
[40,{"$f":"'توزيع الحراس'!B42","v":"محمد علي40"},{"$f":"'توزيع الحراس'!A42","v":40},{"$f":"COUNTIF('توزيع الحراس'!D$3:F$30,$C48)","v":0},{"$f":"COUNTIF('توزيع الحراس'!G$3:I$30,$C48)","v":0},{"$f":"COUNTIF('توزيع الحراس'!K$3:M$30,$C48)","v":0},{"$f":"COUNTIF('توزيع الحراس'!N$3:P$30,$C48)","v":0},{"$f":"COUNTIF('توزيع الحراس'!Q$3:S$30,$C48)","v":0},{"$f":"COUNTIF('توزيع الحراس'!T$3:V$30,$C48)","v":0},{"$f":"COUNTIF('توزيع الحراس'!W$3:Y$30,$C48)","v":0},{"$f":"COUNTIF('توزيع الحراس'!Z$3:AB$30,$C48)","v":0},{"$f":"COUNTIF('توزيع الحراس'!AC$3:AE$30,$C48)","v":0},{"$f":"COUNTIF('توزيع الحراس'!AF$3:AH$30,$C48)","v":0},0,0]
[41,{"$f":"'توزيع الحراس'!B43","v":"محمد علي41"},{"$f":"'توزيع الحراس'!A43","v":41},{"$f":"COUNTIF('توزيع الحراس'!D$3:F$30,$C49)","v":0},{"$f":"COUNTIF('توزيع الحراس'!G$3:I$30,$C49)","v":0},{"$f":"COUNTIF('توزيع الحراس'!K$3:M$30,$C49)","v":0},{"$f":"COUNTIF('توزيع الحراس'!N$3:P$30,$C49)","v":0},{"$f":"COUNTIF('توزيع الحراس'!Q$3:S$30,$C49)","v":0},{"$f":"COUNTIF('توزيع الحراس'!T$3:V$30,$C49)","v":0},{"$f":"COUNTIF('توزيع الحراس'!W$3:Y$30,$C49)","v":0},{"$f":"COUNTIF('توزيع الحراس'!Z$3:AB$30,$C49)","v":0},{"$f":"COUNTIF('توزيع الحراس'!AC$3:AE$30,$C49)","v":0},{"$f":"COUNTIF('توزيع الحراس'!AF$3:AH$30,$C49)","v":0},0,0]
[42,{"$f":"'توزيع الحراس'!B44","v":"محمد علي42"},{"$f":"'توزيع الحراس'!A44","v":42},{"$f":"COUNTIF('توزيع الحراس'!D$3:F$30,$C50)","v":0},{"$f":"COUNTIF('توزيع الحراس'!G$3:I$30,$C50)","v":0},{"$f":"COUNTIF('توزيع الحراس'!K$3:M$30,$C50)","v":0},{"$f":"COUNTIF('توزيع الحراس'!N$3:P$30,$C50)","v":0},{"$f":"COUNTIF('توزيع الحراس'!Q$3:S$30,$C50)","v":0},{"$f":"COUNTIF('توزيع الحراس'!T$3:V$30,$C50)","v":0},{"$f":"COUNTIF('توزيع الحراس'!W$3:Y$30,$C50)","v":0},{"$f":"COUNTIF('توزيع الحراس'!Z$3:AB$30,$C50)","v":0},{"$f":"COUNTIF('توزيع الحراس'!AC$3:AE$30,$C50)","v":0},{"$f":"COUNTIF('توزيع الحراس'!AF$3:AH$30,$C50)","v":0},0,0]
[43,{"$f":"'توزيع الحراس'!B45","v":"محمد علي43"},{"$f":"'توزيع الحراس'!A45","v":43},{"$f":"COUNTIF('توزيع الحراس'!D$3:F$30,$C51)","v":0},{"$f":"COUNTIF('توزيع الحراس'!G$3:I$30,$C51)","v":0},{"$f":"COUNTIF('توزيع الحراس'!K$3:M$30,$C51)","v":0},{"$f":"COUNTIF('توزيع الحراس'!N$3:P$30,$C51)","v":0},{"$f":"COUNTIF('توزيع الحراس'!Q$3:S$30,$C51)","v":0},{"$f":"COUNTIF('توزيع الحراس'!T$3:V$30,$C51)","v":0},{"$f":"COUNTIF('توزيع الحراس'!W$3:Y$30,$C51)","v":0},{"$f":"COUNTIF('توزيع الحراس'!Z$3:AB$30,$C51)","v":0},{"$f":"COUNTIF('توزيع الحراس'!AC$3:AE$30,$C51)","v":0},{"$f":"COUNTIF('توزيع الحراس'!AF$3:AH$30,$C51)","v":0},0,0]
[44,{"$f":"'توزيع الحراس'!B46","v":"محمد علي44"},{"$f":"'توزيع الحراس'!A46","v":44},{"$f":"COUNTIF('توزيع الحراس'!D$3:F$30,$C52)","v":0},{"$f":"COUNTIF('توزيع الحراس'!G$3:I$30,$C52)","v":0},{"$f":"COUNTIF('توزيع الحراس'!K$3:M$30,$C52)","v":0},{"$f":"COUNTIF('توزيع الحراس'!N$3:P$30,$C52)","v":0},{"$f":"COUNTIF('توزيع الحراس'!Q$3:S$30,$C52)","v":0},{"$f":"COUNTIF('توزيع الحراس'!T$3:V$30,$C52)","v":0},{"$f":"COUNTIF('توزيع الحراس'!W$3:Y$30,$C52)","v":0},{"$f":"COUNTIF('توزيع الحراس'!Z$3:AB$30,$C52)","v":0},{"$f":"COUNTIF('توزيع الحراس'!AC$3:AE$30,$C52)","v":0},{"$f":"COUNTIF('توزيع الحراس'!AF$3:AH$30,$C52)","v":0},0,0]
[45,{"$f":"'توزيع الحراس'!B47","v":"محمد علي45"},{"$f":"'توزيع الحراس'!A47","v":45},{"$f":"COUNTIF('توزيع الحراس'!D$3:F$30,$C53)","v":0},{"$f":"COUNTIF('توزيع الحراس'!G$3:I$30,$C53)","v":0},{"$f":"COUNTIF('توزيع الحراس'!K$3:M$30,$C53)","v":0},{"$f":"COUNTIF('توزيع الحراس'!N$3:P$30,$C53)","v":0},{"$f":"COUNTIF('توزيع الحراس'!Q$3:S$30,$C53)","v":0},{"$f":"COUNTIF('توزيع الحراس'!T$3:V$30,$C53)","v":0},{"$f":"COUNTIF('توزيع الحراس'!W$3:Y$30,$C53)","v":0},{"$f":"COUNTIF('توزيع الحراس'!Z$3:AB$30,$C53)","v":0},{"$f":"COUNTIF('توزيع الحراس'!AC$3:AE$30,$C53)","v":0},{"$f":"COUNTIF('توزيع الحراس'!AF$3:AH$30,$C53)","v":0},0,0]
[46,{"$f":"'توزيع الحراس'!B48","v":"محمد علي46"},{"$f":"'توزيع الحراس'!A48","v":46},{"$f":"COUNTIF('توزيع الحراس'!D$3:F$30,$C54)","v":0},{"$f":"COUNTIF('توزيع الحراس'!G$3:I$30,$C54)","v":0},{"$f":"COUNTIF('توزيع الحراس'!K$3:M$30,$C54)","v":0},{"$f":"COUNTIF('توزيع الحراس'!N$3:P$30,$C54)","v":0},{"$f":"COUNTIF('توزيع الحراس'!Q$3:S$30,$C54)","v":0},{"$f":"COUNTIF('توزيع الحراس'!T$3:V$30,$C54)","v":0},{"$f":"COUNTIF('توزيع الحراس'!W$3:Y$30,$C54)","v":0},{"$f":"COUNTIF('توزيع الحراس'!Z$3:AB$30,$C54)","v":0},{"$f":"COUNTIF('توزيع الحراس'!AC$3:AE$30,$C54)","v":0},{"$f":"COUNTIF('توزيع الحراس'!AF$3:AH$30,$C54)","v":0},0,0]
[47,{"$f":"'توزيع الحراس'!B49","v":"محمد علي47"},{"$f":"'توزيع الحراس'!A49","v":47},{"$f":"COUNTIF('توزيع الحراس'!D$3:F$30,$C55)","v":0},{"$f":"COUNTIF('توزيع الحراس'!G$3:I$30,$C55)","v":0},{"$f":"COUNTIF('توزيع الحراس'!K$3:M$30,$C55)","v":0},{"$f":"COUNTIF('توزيع الحراس'!N$3:P$30,$C55)","v":0},{"$f":"COUNTIF('توزيع الحراس'!Q$3:S$30,$C55)","v":0},{"$f":"COUNTIF('توزيع الحراس'!T$3:V$30,$C55)","v":0},{"$f":"COUNTIF('توزيع الحراس'!W$3:Y$30,$C55)","v":0},{"$f":"COUNTIF('توزيع الحراس'!Z$3:AB$30,$C55)","v":0},{"$f":"COUNTIF('توزيع الحراس'!AC$3:AE$30,$C55)","v":0},{"$f":"COUNTIF('توزيع الحراس'!AF$3:AH$30,$C55)","v":0},0,0]
[48,{"$f":"'توزيع الحراس'!B50","v":"محمد علي48"},{"$f":"'توزيع الحراس'!A50","v":48},{"$f":"COUNTIF('توزيع الحراس'!D$3:F$30,$C56)","v":0},{"$f":"COUNTIF('توزيع الحراس'!G$3:I$30,$C56)","v":0},{"$f":"COUNTIF('توزيع الحراس'!K$3:M$30,$C56)","v":0},{"$f":"COUNTIF('توزيع الحراس'!N$3:P$30,$C56)","v":0},{"$f":"COUNTIF('توزيع الحراس'!Q$3:S$30,$C56)","v":0},{"$f":"COUNTIF('توزيع الحراس'!T$3:V$30,$C56)","v":0},{"$f":"COUNTIF('توزيع الحراس'!W$3:Y$30,$C56)","v":0},{"$f":"COUNTIF('توزيع الحراس'!Z$3:AB$30,$C56)","v":0},{"$f":"COUNTIF('توزيع الحراس'!AC$3:AE$30,$C56)","v":0},{"$f":"COUNTIF('توزيع الحراس'!AF$3:AH$30,$C56)","v":0},0,0]
[49,{"$f":"'توزيع الحراس'!B51","v":"محمد علي49"},{"$f":"'توزيع الحراس'!A51","v":49},{"$f":"COUNTIF('توزيع الحراس'!D$3:F$30,$C57)","v":0},{"$f":"COUNTIF('توزيع الحراس'!G$3:I$30,$C57)","v":0},{"$f":"COUNTIF('توزيع الحراس'!K$3:M$30,$C57)","v":0},{"$f":"COUNTIF('توزيع الحراس'!N$3:P$30,$C57)","v":0},{"$f":"COUNTIF('توزيع الحراس'!Q$3:S$30,$C57)","v":0},{"$f":"COUNTIF('توزيع الحراس'!T$3:V$30,$C57)","v":0},{"$f":"COUNTIF('توزيع الحراس'!W$3:Y$30,$C57)","v":0},{"$f":"COUNTIF('توزيع الحراس'!Z$3:AB$30,$C57)","v":0},{"$f":"COUNTIF('توزيع الحراس'!AC$3:AE$30,$C57)","v":0},{"$f":"COUNTIF('توزيع الحراس'!AF$3:AH$30,$C57)","v":0},0,0]
[50,{"$f":"'توزيع الحراس'!B52","v":"محمد علي50"},{"$f":"'توزيع الحراس'!A52","v":50},{"$f":"COUNTIF('توزيع الحراس'!D$3:F$30,$C58)","v":0},{"$f":"COUNTIF('توزيع الحراس'!G$3:I$30,$C58)","v":0},{"$f":"COUNTIF('توزيع الحراس'!K$3:M$30,$C58)","v":0},{"$f":"COUNTIF('توزيع الحراس'!N$3:P$30,$C58)","v":0},{"$f":"COUNTIF('توزيع الحراس'!Q$3:S$30,$C58)","v":0},{"$f":"COUNTIF('توزيع الحراس'!T$3:V$30,$C58)","v":0},{"$f":"COUNTIF('توزيع الحراس'!W$3:Y$30,$C58)","v":0},{"$f":"COUNTIF('توزيع الحراس'!Z$3:AB$30,$C58)","v":0},{"$f":"COUNTIF('توزيع الحراس'!AC$3:AE$30,$C58)","v":0},{"$f":"COUNTIF('توزيع الحراس'!AF$3:AH$30,$C58)","v":0},0,0]
[51,{"$f":"'توزيع الحراس'!B53","v":"محمد علي51"},{"$f":"'توزيع الحراس'!A53","v":51},{"$f":"COUNTIF('توزيع الحراس'!D$3:F$30,$C59)","v":0},{"$f":"COUNTIF('توزيع الحراس'!G$3:I$30,$C59)","v":0},{"$f":"COUNTIF('توزيع الحراس'!K$3:M$30,$C59)","v":0},{"$f":"COUNTIF('توزيع الحراس'!N$3:P$30,$C59)","v":0},{"$f":"COUNTIF('توزيع الحراس'!Q$3:S$30,$C59)","v":0},{"$f":"COUNTIF('توزيع الحراس'!T$3:V$30,$C59)","v":0},{"$f":"COUNTIF('توزيع الحراس'!W$3:Y$30,$C59)","v":0},{"$f":"COUNTIF('توزيع الحراس'!Z$3:AB$30,$C59)","v":0},{"$f":"COUNTIF('توزيع الحراس'!AC$3:AE$30,$C59)","v":0},{"$f":"COUNTIF('توزيع الحراس'!AF$3:AH$30,$C59)","v":0},0,0]
[52,{"$f":"'توزيع الحراس'!B54","v":"محمد علي52"},{"$f":"'توزيع الحراس'!A54","v":52},{"$f":"COUNTIF('توزيع الحراس'!D$3:F$30,$C60)","v":0},{"$f":"COUNTIF('توزيع الحراس'!G$3:I$30,$C60)","v":0},{"$f":"COUNTIF('توزيع الحراس'!K$3:M$30,$C60)","v":0},{"$f":"COUNTIF('توزيع الحراس'!N$3:P$30,$C60)","v":0},{"$f":"COUNTIF('توزيع الحراس'!Q$3:S$30,$C60)","v":0},{"$f":"COUNTIF('توزيع الحراس'!T$3:V$30,$C60)","v":0},{"$f":"COUNTIF('توزيع الحراس'!W$3:Y$30,$C60)","v":0},{"$f":"COUNTIF('توزيع الحراس'!Z$3:AB$30,$C60)","v":0},{"$f":"COUNTIF('توزيع الحراس'!AC$3:AE$30,$C60)","v":0},{"$f":"COUNTIF('توزيع الحراس'!AF$3:AH$30,$C60)","v":0},0,0]
[53,{"$f":"'توزيع الحراس'!B55","v":"محمد علي53"},{"$f":"'توزيع الحراس'!A55","v":53},{"$f":"COUNTIF('توزيع الحراس'!D$3:F$30,$C61)","v":0},{"$f":"COUNTIF('توزيع الحراس'!G$3:I$30,$C61)","v":0},{"$f":"COUNTIF('توزيع الحراس'!K$3:M$30,$C61)","v":0},{"$f":"COUNTIF('توزيع الحراس'!N$3:P$30,$C61)","v":0},{"$f":"COUNTIF('توزيع الحراس'!Q$3:S$30,$C61)","v":0},{"$f":"COUNTIF('توزيع الحراس'!T$3:V$30,$C61)","v":0},{"$f":"COUNTIF('توزيع الحراس'!W$3:Y$30,$C61)","v":0},{"$f":"COUNTIF('توزيع الحراس'!Z$3:AB$30,$C61)","v":0},{"$f":"COUNTIF('توزيع الحراس'!AC$3:AE$30,$C61)","v":0},{"$f":"COUNTIF('توزيع الحراس'!AF$3:AH$30,$C61)","v":0},0,0]
[54,{"$f":"'توزيع الحراس'!B56","v":"محمد علي54"},{"$f":"'توزيع الحراس'!A56","v":54},{"$f":"COUNTIF('توزيع الحراس'!D$3:F$30,$C62)","v":0},{"$f":"COUNTIF('توزيع الحراس'!G$3:I$30,$C62)","v":0},{"$f":"COUNTIF('توزيع الحراس'!K$3:M$30,$C62)","v":0},{"$f":"COUNTIF('توزيع الحراس'!N$3:P$30,$C62)","v":0},{"$f":"COUNTIF('توزيع الحراس'!Q$3:S$30,$C62)","v":0},{"$f":"COUNTIF('توزيع الحراس'!T$3:V$30,$C62)","v":0},{"$f":"COUNTIF('توزيع الحراس'!W$3:Y$30,$C62)","v":0},{"$f":"COUNTIF('توزيع الحراس'!Z$3:AB$30,$C62)","v":0},{"$f":"COUNTIF('توزيع الحراس'!AC$3:AE$30,$C62)","v":0},{"$f":"COUNTIF('توزيع الحراس'!AF$3:AH$30,$C62)","v":0},0,0]
[55,{"$f":"'توزيع الحراس'!B57","v":"محمد علي55"},{"$f":"'توزيع الحراس'!A57","v":55},{"$f":"COUNTIF('توزيع الحراس'!D$3:F$30,$C63)","v":0},{"$f":"COUNTIF('توزيع الحراس'!G$3:I$30,$C63)","v":0},{"$f":"COUNTIF('توزيع الحراس'!K$3:M$30,$C63)","v":0},{"$f":"COUNTIF('توزيع الحراس'!N$3:P$30,$C63)","v":0},{"$f":"COUNTIF('توزيع الحراس'!Q$3:S$30,$C63)","v":0},{"$f":"COUNTIF('توزيع الحراس'!T$3:V$30,$C63)","v":0},{"$f":"COUNTIF('توزيع الحراس'!W$3:Y$30,$C63)","v":0},{"$f":"COUNTIF('توزيع الحراس'!Z$3:AB$30,$C63)","v":0},{"$f":"COUNTIF('توزيع الحراس'!AC$3:AE$30,$C63)","v":0},{"$f":"COUNTIF('توزيع الحراس'!AF$3:AH$30,$C63)","v":0},0,0]
[56,{"$f":"'توزيع الحراس'!B58","v":"محمد علي56"},{"$f":"'توزيع الحراس'!A58","v":56},{"$f":"COUNTIF('توزيع الحراس'!D$3:F$30,$C64)","v":0},{"$f":"COUNTIF('توزيع الحراس'!G$3:I$30,$C64)","v":0},{"$f":"COUNTIF('توزيع الحراس'!K$3:M$30,$C64)","v":0},{"$f":"COUNTIF('توزيع الحراس'!N$3:P$30,$C64)","v":0},{"$f":"COUNTIF('توزيع الحراس'!Q$3:S$30,$C64)","v":0},{"$f":"COUNTIF('توزيع الحراس'!T$3:V$30,$C64)","v":0},{"$f":"COUNTIF('توزيع الحراس'!W$3:Y$30,$C64)","v":0},{"$f":"COUNTIF('توزيع الحراس'!Z$3:AB$30,$C64)","v":0},{"$f":"COUNTIF('توزيع الحراس'!AC$3:AE$30,$C64)","v":0},{"$f":"COUNTIF('توزيع الحراس'!AF$3:AH$30,$C64)","v":0},0,0]
[57,{"$f":"'توزيع الحراس'!B59","v":"محمد علي57"},{"$f":"'توزيع الحراس'!A59","v":57},{"$f":"COUNTIF('توزيع الحراس'!D$3:F$30,$C65)","v":0},{"$f":"COUNTIF('توزيع الحراس'!G$3:I$30,$C65)","v":0},{"$f":"COUNTIF('توزيع الحراس'!K$3:M$30,$C65)","v":0},{"$f":"COUNTIF('توزيع الحراس'!N$3:P$30,$C65)","v":0},{"$f":"COUNTIF('توزيع الحراس'!Q$3:S$30,$C65)","v":0},{"$f":"COUNTIF('توزيع الحراس'!T$3:V$30,$C65)","v":0},{"$f":"COUNTIF('توزيع الحراس'!W$3:Y$30,$C65)","v":0},{"$f":"COUNTIF('توزيع الحراس'!Z$3:AB$30,$C65)","v":0},{"$f":"COUNTIF('توزيع الحراس'!AC$3:AE$30,$C65)","v":0},{"$f":"COUNTIF('توزيع الحراس'!AF$3:AH$30,$C65)","v":0},0,0]
[58,{"$f":"'توزيع الحراس'!B60","v":"محمد علي58"},{"$f":"'توزيع الحراس'!A60","v":58},{"$f":"COUNTIF('توزيع الحراس'!D$3:F$30,$C66)","v":0},{"$f":"COUNTIF('توزيع الحراس'!G$3:I$30,$C66)","v":0},{"$f":"COUNTIF('توزيع الحراس'!K$3:M$30,$C66)","v":0},{"$f":"COUNTIF('توزيع الحراس'!N$3:P$30,$C66)","v":0},{"$f":"COUNTIF('توزيع الحراس'!Q$3:S$30,$C66)","v":0},{"$f":"COUNTIF('توزيع الحراس'!T$3:V$30,$C66)","v":0},{"$f":"COUNTIF('توزيع الحراس'!W$3:Y$30,$C66)","v":0},{"$f":"COUNTIF('توزيع الحراس'!Z$3:AB$30,$C66)","v":0},{"$f":"COUNTIF('توزيع الحراس'!AC$3:AE$30,$C66)","v":0},{"$f":"COUNTIF('توزيع الحراس'!AF$3:AH$30,$C66)","v":0},0,0]
[59,{"$f":"'توزيع الحراس'!B61","v":"محمد علي59"},{"$f":"'توزيع الحراس'!A61","v":59},{"$f":"COUNTIF('توزيع الحراس'!D$3:F$30,$C67)","v":0},{"$f":"COUNTIF('توزيع الحراس'!G$3:I$30,$C67)","v":0},{"$f":"COUNTIF('توزيع الحراس'!K$3:M$30,$C67)","v":0},{"$f":"COUNTIF('توزيع الحراس'!N$3:P$30,$C67)","v":0},{"$f":"COUNTIF('توزيع الحراس'!Q$3:S$30,$C67)","v":0},{"$f":"COUNTIF('توزيع الحراس'!T$3:V$30,$C67)","v":0},{"$f":"COUNTIF('توزيع الحراس'!W$3:Y$30,$C67)","v":0},{"$f":"COUNTIF('توزيع الحراس'!Z$3:AB$30,$C67)","v":0},{"$f":"COUNTIF('توزيع الحراس'!AC$3:AE$30,$C67)","v":0},{"$f":"COUNTIF('توزيع الحراس'!AF$3:AH$30,$C67)","v":0},0,0]
[60,{"$f":"'توزيع الحراس'!B62","v":"محمد علي60"},{"$f":"'توزيع الحراس'!A62","v":60},{"$f":"COUNTIF('توزيع الحراس'!D$3:F$30,$C68)","v":0},{"$f":"COUNTIF('توزيع الحراس'!G$3:I$30,$C68)","v":0},{"$f":"COUNTIF('توزيع الحراس'!K$3:M$30,$C68)","v":0},{"$f":"COUNTIF('توزيع الحراس'!N$3:P$30,$C68)","v":0},{"$f":"COUNTIF('توزيع الحراس'!Q$3:S$30,$C68)","v":0},{"$f":"COUNTIF('توزيع الحراس'!T$3:V$30,$C68)","v":0},{"$f":"COUNTIF('توزيع الحراس'!W$3:Y$30,$C68)","v":0},{"$f":"COUNTIF('توزيع الحراس'!Z$3:AB$30,$C68)","v":0},{"$f":"COUNTIF('توزيع الحراس'!AC$3:AE$30,$C68)","v":0},{"$f":"COUNTIF('توزيع الحراس'!AF$3:AH$30,$C68)","v":0},0,0]
[61,{"$f":"'توزيع الحراس'!B63","v":"محمد علي61"},{"$f":"'توزيع الحراس'!A63","v":61},{"$f":"COUNTIF('توزيع الحراس'!D$3:F$30,$C69)","v":0},{"$f":"COUNTIF('توزيع الحراس'!G$3:I$30,$C69)","v":0},{"$f":"COUNTIF('توزيع الحراس'!K$3:M$30,$C69)","v":0},{"$f":"COUNTIF('توزيع الحراس'!N$3:P$30,$C69)","v":0},{"$f":"COUNTIF('توزيع الحراس'!Q$3:S$30,$C69)","v":0},{"$f":"COUNTIF('توزيع الحراس'!T$3:V$30,$C69)","v":0},{"$f":"COUNTIF('توزيع الحراس'!W$3:Y$30,$C69)","v":0},{"$f":"COUNTIF('توزيع الحراس'!Z$3:AB$30,$C69)","v":0},{"$f":"COUNTIF('توزيع الحراس'!AC$3:AE$30,$C69)","v":0},{"$f":"COUNTIF('توزيع الحراس'!AF$3:AH$30,$C69)","v":0},0,0]
[62,{"$f":"'توزيع الحراس'!B64","v":"محمد علي62"},{"$f":"'توزيع الحراس'!A64","v":62},{"$f":"COUNTIF('توزيع الحراس'!D$3:F$30,$C70)","v":0},{"$f":"COUNTIF('توزيع الحراس'!G$3:I$30,$C70)","v":0},{"$f":"COUNTIF('توزيع الحراس'!K$3:M$30,$C70)","v":0},{"$f":"COUNTIF('توزيع الحراس'!N$3:P$30,$C70)","v":0},{"$f":"COUNTIF('توزيع الحراس'!Q$3:S$30,$C70)","v":0},{"$f":"COUNTIF('توزيع الحراس'!T$3:V$30,$C70)","v":0},{"$f":"COUNTIF('توزيع الحراس'!W$3:Y$30,$C70)","v":0},{"$f":"COUNTIF('توزيع الحراس'!Z$3:AB$30,$C70)","v":0},{"$f":"COUNTIF('توزيع الحراس'!AC$3:AE$30,$C70)","v":0},{"$f":"COUNTIF('توزيع الحراس'!AF$3:AH$30,$C70)","v":0},0,0]
[63,{"$f":"'توزيع الحراس'!B65","v":"محمد علي63"},{"$f":"'توزيع الحراس'!A65","v":63},{"$f":"COUNTIF('توزيع الحراس'!D$3:F$30,$C71)","v":0},{"$f":"COUNTIF('توزيع الحراس'!G$3:I$30,$C71)","v":0},{"$f":"COUNTIF('توزيع الحراس'!K$3:M$30,$C71)","v":0},{"$f":"COUNTIF('توزيع الحراس'!N$3:P$30,$C71)","v":0},{"$f":"COUNTIF('توزيع الحراس'!Q$3:S$30,$C71)","v":0},{"$f":"COUNTIF('توزيع الحراس'!T$3:V$30,$C71)","v":0},{"$f":"COUNTIF('توزيع الحراس'!W$3:Y$30,$C71)","v":0},{"$f":"COUNTIF('توزيع الحراس'!Z$3:AB$30,$C71)","v":0},{"$f":"COUNTIF('توزيع الحراس'!AC$3:AE$30,$C71)","v":0},{"$f":"COUNTIF('توزيع الحراس'!AF$3:AH$30,$C71)","v":0},0,0]
[64,{"$f":"'توزيع الحراس'!B66","v":"محمد علي64"},{"$f":"'توزيع الحراس'!A66","v":64},{"$f":"COUNTIF('توزيع الحراس'!D$3:F$30,$C72)","v":0},{"$f":"COUNTIF('توزيع الحراس'!G$3:I$30,$C72)","v":0},{"$f":"COUNTIF('توزيع الحراس'!K$3:M$30,$C72)","v":0},{"$f":"COUNTIF('توزيع الحراس'!N$3:P$30,$C72)","v":0},{"$f":"COUNTIF('توزيع الحراس'!Q$3:S$30,$C72)","v":0},{"$f":"COUNTIF('توزيع الحراس'!T$3:V$30,$C72)","v":0},{"$f":"COUNTIF('توزيع الحراس'!W$3:Y$30,$C72)","v":0},{"$f":"COUNTIF('توزيع الحراس'!Z$3:AB$30,$C72)","v":0},{"$f":"COUNTIF('توزيع الحراس'!AC$3:AE$30,$C72)","v":0},{"$f":"COUNTIF('توزيع الحراس'!AF$3:AH$30,$C72)","v":0},0,0]
[65,{"$f":"'توزيع الحراس'!B67","v":"محمد علي65"},{"$f":"'توزيع الحراس'!A67","v":65},{"$f":"COUNTIF('توزيع الحراس'!D$3:F$30,$C73)","v":0},{"$f":"COUNTIF('توزيع الحراس'!G$3:I$30,$C73)","v":0},{"$f":"COUNTIF('توزيع الحراس'!K$3:M$30,$C73)","v":0},{"$f":"COUNTIF('توزيع الحراس'!N$3:P$30,$C73)","v":0},{"$f":"COUNTIF('توزيع الحراس'!Q$3:S$30,$C73)","v":0},{"$f":"COUNTIF('توزيع الحراس'!T$3:V$30,$C73)","v":0},{"$f":"COUNTIF('توزيع الحراس'!W$3:Y$30,$C73)","v":0},{"$f":"COUNTIF('توزيع الحراس'!Z$3:AB$30,$C73)","v":0},{"$f":"COUNTIF('توزيع الحراس'!AC$3:AE$30,$C73)","v":0},{"$f":"COUNTIF('توزيع الحراس'!AF$3:AH$30,$C73)","v":0},{"$f":"SUM(D73:M73)","v":0},{"$f":"N73*0.5","v":0}]
[66,{"$f":"'توزيع الحراس'!B68","v":"محمد علي66"},{"$f":"'توزيع الحراس'!A68","v":66},{"$f":"COUNTIF('توزيع الحراس'!D$3:F$30,$C74)","v":0},{"$f":"COUNTIF('توزيع الحراس'!G$3:I$30,$C74)","v":0},{"$f":"COUNTIF('توزيع الحراس'!K$3:M$30,$C74)","v":0},{"$f":"COUNTIF('توزيع الحراس'!N$3:P$30,$C74)","v":0},{"$f":"COUNTIF('توزيع الحراس'!Q$3:S$30,$C74)","v":0},{"$f":"COUNTIF('توزيع الحراس'!T$3:V$30,$C74)","v":0},{"$f":"COUNTIF('توزيع الحراس'!W$3:Y$30,$C74)","v":0},{"$f":"COUNTIF('توزيع الحراس'!Z$3:AB$30,$C74)","v":0},{"$f":"COUNTIF('توزيع الحراس'!AC$3:AE$30,$C74)","v":0},{"$f":"COUNTIF('توزيع الحراس'!AF$3:AH$30,$C74)","v":0},0,0]
[67,{"$f":"'توزيع الحراس'!B69","v":"محمد علي67"},{"$f":"'توزيع الحراس'!A69","v":67},{"$f":"COUNTIF('توزيع الحراس'!D$3:F$30,$C75)","v":0},{"$f":"COUNTIF('توزيع الحراس'!G$3:I$30,$C75)","v":0},{"$f":"COUNTIF('توزيع الحراس'!K$3:M$30,$C75)","v":0},{"$f":"COUNTIF('توزيع الحراس'!N$3:P$30,$C75)","v":0},{"$f":"COUNTIF('توزيع الحراس'!Q$3:S$30,$C75)","v":0},{"$f":"COUNTIF('توزيع الحراس'!T$3:V$30,$C75)","v":0},{"$f":"COUNTIF('توزيع الحراس'!W$3:Y$30,$C75)","v":0},{"$f":"COUNTIF('توزيع الحراس'!Z$3:AB$30,$C75)","v":0},{"$f":"COUNTIF('توزيع الحراس'!AC$3:AE$30,$C75)","v":0},{"$f":"COUNTIF('توزيع الحراس'!AF$3:AH$30,$C75)","v":0},0,0]
[68,{"$f":"'توزيع الحراس'!B70","v":"محمد علي68"},{"$f":"'توزيع الحراس'!A70","v":68},{"$f":"COUNTIF('توزيع الحراس'!D$3:F$30,$C76)","v":0},{"$f":"COUNTIF('توزيع الحراس'!G$3:I$30,$C76)","v":0},{"$f":"COUNTIF('توزيع الحراس'!K$3:M$30,$C76)","v":0},{"$f":"COUNTIF('توزيع الحراس'!N$3:P$30,$C76)","v":0},{"$f":"COUNTIF('توزيع الحراس'!Q$3:S$30,$C76)","v":0},{"$f":"COUNTIF('توزيع الحراس'!T$3:V$30,$C76)","v":0},{"$f":"COUNTIF('توزيع الحراس'!W$3:Y$30,$C76)","v":0},{"$f":"COUNTIF('توزيع الحراس'!Z$3:AB$30,$C76)","v":0},{"$f":"COUNTIF('توزيع الحراس'!AC$3:AE$30,$C76)","v":0},{"$f":"COUNTIF('توزيع الحراس'!AF$3:AH$30,$C76)","v":0},0,0]
[69,{"$f":"'توزيع الحراس'!B71","v":"محمد علي69"},{"$f":"'توزيع الحراس'!A71","v":69},{"$f":"COUNTIF('توزيع الحراس'!D$3:F$30,$C77)","v":0},{"$f":"COUNTIF('توزيع الحراس'!G$3:I$30,$C77)","v":0},{"$f":"COUNTIF('توزيع الحراس'!K$3:M$30,$C77)","v":0},{"$f":"COUNTIF('توزيع الحراس'!N$3:P$30,$C77)","v":0},{"$f":"COUNTIF('توزيع الحراس'!Q$3:S$30,$C77)","v":0},{"$f":"COUNTIF('توزيع الحراس'!T$3:V$30,$C77)","v":0},{"$f":"COUNTIF('توزيع الحراس'!W$3:Y$30,$C77)","v":0},{"$f":"COUNTIF('توزيع الحراس'!Z$3:AB$30,$C77)","v":0},{"$f":"COUNTIF('توزيع الحراس'!AC$3:AE$30,$C77)","v":0},{"$f":"COUNTIF('توزيع الحراس'!AF$3:AH$30,$C77)","v":0},0,0]
[70,{"$f":"'توزيع الحراس'!B72","v":"محمد علي70"},{"$f":"'توزيع الحراس'!A72","v":70},{"$f":"COUNTIF('توزيع الحراس'!D$3:F$30,$C78)","v":0},{"$f":"COUNTIF('توزيع الحراس'!G$3:I$30,$C78)","v":0},{"$f":"COUNTIF('توزيع الحراس'!K$3:M$30,$C78)","v":0},{"$f":"COUNTIF('توزيع الحراس'!N$3:P$30,$C78)","v":0},{"$f":"COUNTIF('توزيع الحراس'!Q$3:S$30,$C78)","v":0},{"$f":"COUNTIF('توزيع الحراس'!T$3:V$30,$C78)","v":0},{"$f":"COUNTIF('توزيع الحراس'!W$3:Y$30,$C78)","v":0},{"$f":"COUNTIF('توزيع الحراس'!Z$3:AB$30,$C78)","v":0},{"$f":"COUNTIF('توزيع الحراس'!AC$3:AE$30,$C78)","v":0},{"$f":"COUNTIF('توزيع الحراس'!AF$3:AH$30,$C78)","v":0},0,0]
[71,{"$f":"'توزيع الحراس'!B73","v":"محمد علي71"},{"$f":"'توزيع الحراس'!A73","v":71},{"$f":"COUNTIF('توزيع الحراس'!D$3:F$30,$C79)","v":0},{"$f":"COUNTIF('توزيع الحراس'!G$3:I$30,$C79)","v":0},{"$f":"COUNTIF('توزيع الحراس'!K$3:M$30,$C79)","v":0},{"$f":"COUNTIF('توزيع الحراس'!N$3:P$30,$C79)","v":0},{"$f":"COUNTIF('توزيع الحراس'!Q$3:S$30,$C79)","v":0},{"$f":"COUNTIF('توزيع الحراس'!T$3:V$30,$C79)","v":0},{"$f":"COUNTIF('توزيع الحراس'!W$3:Y$30,$C79)","v":0},{"$f":"COUNTIF('توزيع الحراس'!Z$3:AB$30,$C79)","v":0},{"$f":"COUNTIF('توزيع الحراس'!AC$3:AE$30,$C79)","v":0},{"$f":"COUNTIF('توزيع الحراس'!AF$3:AH$30,$C79)","v":0},0,0]
[72,{"$f":"'توزيع الحراس'!B74","v":"محمد علي72"},{"$f":"'توزيع الحراس'!A74","v":72},{"$f":"COUNTIF('توزيع الحراس'!D$3:F$30,$C80)","v":0},{"$f":"COUNTIF('توزيع الحراس'!G$3:I$30,$C80)","v":0},{"$f":"COUNTIF('توزيع الحراس'!K$3:M$30,$C80)","v":0},{"$f":"COUNTIF('توزيع الحراس'!N$3:P$30,$C80)","v":0},{"$f":"COUNTIF('توزيع الحراس'!Q$3:S$30,$C80)","v":0},{"$f":"COUNTIF('توزيع الحراس'!T$3:V$30,$C80)","v":0},{"$f":"COUNTIF('توزيع الحراس'!W$3:Y$30,$C80)","v":0},{"$f":"COUNTIF('توزيع الحراس'!Z$3:AB$30,$C80)","v":0},{"$f":"COUNTIF('توزيع الحراس'!AC$3:AE$30,$C80)","v":0},{"$f":"COUNTIF('توزيع الحراس'!AF$3:AH$30,$C80)","v":0},0,0]
[73,{"$f":"'توزيع الحراس'!B75","v":"محمد علي73"},{"$f":"'توزيع الحراس'!A75","v":73},{"$f":"COUNTIF('توزيع الحراس'!D$3:F$30,$C81)","v":0},{"$f":"COUNTIF('توزيع الحراس'!G$3:I$30,$C81)","v":0},{"$f":"COUNTIF('توزيع الحراس'!K$3:M$30,$C81)","v":0},{"$f":"COUNTIF('توزيع الحراس'!N$3:P$30,$C81)","v":0},{"$f":"COUNTIF('توزيع الحراس'!Q$3:S$30,$C81)","v":0},{"$f":"COUNTIF('توزيع الحراس'!T$3:V$30,$C81)","v":0},{"$f":"COUNTIF('توزيع الحراس'!W$3:Y$30,$C81)","v":0},{"$f":"COUNTIF('توزيع الحراس'!Z$3:AB$30,$C81)","v":0},{"$f":"COUNTIF('توزيع الحراس'!AC$3:AE$30,$C81)","v":0},{"$f":"COUNTIF('توزيع الحراس'!AF$3:AH$30,$C81)","v":0},0,0]
[74,{"$f":"'توزيع الحراس'!B76","v":"محمد علي74"},{"$f":"'توزيع الحراس'!A76","v":74},{"$f":"COUNTIF('توزيع الحراس'!D$3:F$30,$C82)","v":0},{"$f":"COUNTIF('توزيع الحراس'!G$3:I$30,$C82)","v":0},{"$f":"COUNTIF('توزيع الحراس'!K$3:M$30,$C82)","v":0},{"$f":"COUNTIF('توزيع الحراس'!N$3:P$30,$C82)","v":0},{"$f":"COUNTIF('توزيع الحراس'!Q$3:S$30,$C82)","v":0},{"$f":"COUNTIF('توزيع الحراس'!T$3:V$30,$C82)","v":0},{"$f":"COUNTIF('توزيع الحراس'!W$3:Y$30,$C82)","v":0},{"$f":"COUNTIF('توزيع الحراس'!Z$3:AB$30,$C82)","v":0},{"$f":"COUNTIF('توزيع الحراس'!AC$3:AE$30,$C82)","v":0},{"$f":"COUNTIF('توزيع الحراس'!AF$3:AH$30,$C82)","v":0},0,0]
[75,{"$f":"'توزيع الحراس'!B77","v":"محمد علي75"},{"$f":"'توزيع الحراس'!A77","v":75},{"$f":"COUNTIF('توزيع الحراس'!D$3:F$30,$C83)","v":0},{"$f":"COUNTIF('توزيع الحراس'!G$3:I$30,$C83)","v":0},{"$f":"COUNTIF('توزيع الحراس'!K$3:M$30,$C83)","v":0},{"$f":"COUNTIF('توزيع الحراس'!N$3:P$30,$C83)","v":0},{"$f":"COUNTIF('توزيع الحراس'!Q$3:S$30,$C83)","v":0},{"$f":"COUNTIF('توزيع الحراس'!T$3:V$30,$C83)","v":0},{"$f":"COUNTIF('توزيع الحراس'!W$3:Y$30,$C83)","v":0},{"$f":"COUNTIF('توزيع الحراس'!Z$3:AB$30,$C83)","v":0},{"$f":"COUNTIF('توزيع الحراس'!AC$3:AE$30,$C83)","v":0},{"$f":"COUNTIF('توزيع الحراس'!AF$3:AH$30,$C83)","v":0},0,0]
[76,{"$f":"'توزيع الحراس'!B78","v":"محمد علي76"},{"$f":"'توزيع الحراس'!A78","v":76},{"$f":"COUNTIF('توزيع الحراس'!D$3:F$30,$C84)","v":0},{"$f":"COUNTIF('توزيع الحراس'!G$3:I$30,$C84)","v":0},{"$f":"COUNTIF('توزيع الحراس'!K$3:M$30,$C84)","v":0},{"$f":"COUNTIF('توزيع الحراس'!N$3:P$30,$C84)","v":0},{"$f":"COUNTIF('توزيع الحراس'!Q$3:S$30,$C84)","v":0},{"$f":"COUNTIF('توزيع الحراس'!T$3:V$30,$C84)","v":0},{"$f":"COUNTIF('توزيع الحراس'!W$3:Y$30,$C84)","v":0},{"$f":"COUNTIF('توزيع الحراس'!Z$3:AB$30,$C84)","v":0},{"$f":"COUNTIF('توزيع الحراس'!AC$3:AE$30,$C84)","v":0},{"$f":"COUNTIF('توزيع الحراس'!AF$3:AH$30,$C84)","v":0},0,0]
[77,{"$f":"'توزيع الحراس'!B79","v":"محمد علي77"},{"$f":"'توزيع الحراس'!A79","v":77},{"$f":"COUNTIF('توزيع الحراس'!D$3:F$30,$C85)","v":0},{"$f":"COUNTIF('توزيع الحراس'!G$3:I$30,$C85)","v":0},{"$f":"COUNTIF('توزيع الحراس'!K$3:M$30,$C85)","v":0},{"$f":"COUNTIF('توزيع الحراس'!N$3:P$30,$C85)","v":0},{"$f":"COUNTIF('توزيع الحراس'!Q$3:S$30,$C85)","v":0},{"$f":"COUNTIF('توزيع الحراس'!T$3:V$30,$C85)","v":0},{"$f":"COUNTIF('توزيع الحراس'!W$3:Y$30,$C85)","v":0},{"$f":"COUNTIF('توزيع الحراس'!Z$3:AB$30,$C85)","v":0},{"$f":"COUNTIF('توزيع الحراس'!AC$3:AE$30,$C85)","v":0},{"$f":"COUNTIF('توزيع الحراس'!AF$3:AH$30,$C85)","v":0},0,0]
[78,{"$f":"'توزيع الحراس'!B80","v":"محمد علي78"},{"$f":"'توزيع الحراس'!A80","v":78},{"$f":"COUNTIF('توزيع الحراس'!D$3:F$30,$C86)","v":0},{"$f":"COUNTIF('توزيع الحراس'!G$3:I$30,$C86)","v":0},{"$f":"COUNTIF('توزيع الحراس'!K$3:M$30,$C86)","v":0},{"$f":"COUNTIF('توزيع الحراس'!N$3:P$30,$C86)","v":0},{"$f":"COUNTIF('توزيع الحراس'!Q$3:S$30,$C86)","v":0},{"$f":"COUNTIF('توزيع الحراس'!T$3:V$30,$C86)","v":0},{"$f":"COUNTIF('توزيع الحراس'!W$3:Y$30,$C86)","v":0},{"$f":"COUNTIF('توزيع الحراس'!Z$3:AB$30,$C86)","v":0},{"$f":"COUNTIF('توزيع الحراس'!AC$3:AE$30,$C86)","v":0},{"$f":"COUNTIF('توزيع الحراس'!AF$3:AH$30,$C86)","v":0},0,0]
[79,{"$f":"'توزيع الحراس'!B81","v":"محمد علي79"},{"$f":"'توزيع الحراس'!A81","v":79},{"$f":"COUNTIF('توزيع الحراس'!D$3:F$30,$C87)","v":0},{"$f":"COUNTIF('توزيع الحراس'!G$3:I$30,$C87)","v":0},{"$f":"COUNTIF('توزيع الحراس'!K$3:M$30,$C87)","v":0},{"$f":"COUNTIF('توزيع الحراس'!N$3:P$30,$C87)","v":0},{"$f":"COUNTIF('توزيع الحراس'!Q$3:S$30,$C87)","v":0},{"$f":"COUNTIF('توزيع الحراس'!T$3:V$30,$C87)","v":0},{"$f":"COUNTIF('توزيع الحراس'!W$3:Y$30,$C87)","v":0},{"$f":"COUNTIF('توزيع الحراس'!Z$3:AB$30,$C87)","v":0},{"$f":"COUNTIF('توزيع الحراس'!AC$3:AE$30,$C87)","v":0},{"$f":"COUNTIF('توزيع الحراس'!AF$3:AH$30,$C87)","v":0},0,0]
[80,{"$f":"'توزيع الحراس'!B82","v":"محمد علي80"},{"$f":"'توزيع الحراس'!A82","v":80},{"$f":"COUNTIF('توزيع الحراس'!D$3:F$30,$C88)","v":0},{"$f":"COUNTIF('توزيع الحراس'!G$3:I$30,$C88)","v":0},{"$f":"COUNTIF('توزيع الحراس'!K$3:M$30,$C88)","v":0},{"$f":"COUNTIF('توزيع الحراس'!N$3:P$30,$C88)","v":0},{"$f":"COUNTIF('توزيع الحراس'!Q$3:S$30,$C88)","v":0},{"$f":"COUNTIF('توزيع الحراس'!T$3:V$30,$C88)","v":0},{"$f":"COUNTIF('توزيع الحراس'!W$3:Y$30,$C88)","v":0},{"$f":"COUNTIF('توزيع الحراس'!Z$3:AB$30,$C88)","v":0},{"$f":"COUNTIF('توزيع الحراس'!AC$3:AE$30,$C88)","v":0},{"$f":"COUNTIF('توزيع الحراس'!AF$3:AH$30,$C88)","v":0},0,0]
[81,{"$f":"'توزيع الحراس'!B83","v":"محمد علي81"},{"$f":"'توزيع الحراس'!A83","v":81},{"$f":"COUNTIF('توزيع الحراس'!D$3:F$30,$C89)","v":0},{"$f":"COUNTIF('توزيع الحراس'!G$3:I$30,$C89)","v":0},{"$f":"COUNTIF('توزيع الحراس'!K$3:M$30,$C89)","v":0},{"$f":"COUNTIF('توزيع الحراس'!N$3:P$30,$C89)","v":0},{"$f":"COUNTIF('توزيع الحراس'!Q$3:S$30,$C89)","v":0},{"$f":"COUNTIF('توزيع الحراس'!T$3:V$30,$C89)","v":0},{"$f":"COUNTIF('توزيع الحراس'!W$3:Y$30,$C89)","v":0},{"$f":"COUNTIF('توزيع الحراس'!Z$3:AB$30,$C89)","v":0},{"$f":"COUNTIF('توزيع الحراس'!AC$3:AE$30,$C89)","v":0},{"$f":"COUNTIF('توزيع الحراس'!AF$3:AH$30,$C89)","v":0},0,0]
[82,{"$f":"'توزيع الحراس'!B84","v":"محمد علي82"},{"$f":"'توزيع الحراس'!A84","v":82},{"$f":"COUNTIF('توزيع الحراس'!D$3:F$30,$C90)","v":0},{"$f":"COUNTIF('توزيع الحراس'!G$3:I$30,$C90)","v":0},{"$f":"COUNTIF('توزيع الحراس'!K$3:M$30,$C90)","v":0},{"$f":"COUNTIF('توزيع الحراس'!N$3:P$30,$C90)","v":0},{"$f":"COUNTIF('توزيع الحراس'!Q$3:S$30,$C90)","v":0},{"$f":"COUNTIF('توزيع الحراس'!T$3:V$30,$C90)","v":0},{"$f":"COUNTIF('توزيع الحراس'!W$3:Y$30,$C90)","v":0},{"$f":"COUNTIF('توزيع الحراس'!Z$3:AB$30,$C90)","v":0},{"$f":"COUNTIF('توزيع الحراس'!AC$3:AE$30,$C90)","v":0},{"$f":"COUNTIF('توزيع الحراس'!AF$3:AH$30,$C90)","v":0},0,0]
[83,{"$f":"'توزيع الحراس'!B85","v":"محمد علي83"},{"$f":"'توزيع الحراس'!A85","v":83},{"$f":"COUNTIF('توزيع الحراس'!D$3:F$30,$C91)","v":0},{"$f":"COUNTIF('توزيع الحراس'!G$3:I$30,$C91)","v":0},{"$f":"COUNTIF('توزيع الحراس'!K$3:M$30,$C91)","v":0},{"$f":"COUNTIF('توزيع الحراس'!N$3:P$30,$C91)","v":0},{"$f":"COUNTIF('توزيع الحراس'!Q$3:S$30,$C91)","v":0},{"$f":"COUNTIF('توزيع الحراس'!T$3:V$30,$C91)","v":0},{"$f":"COUNTIF('توزيع الحراس'!W$3:Y$30,$C91)","v":0},{"$f":"COUNTIF('توزيع الحراس'!Z$3:AB$30,$C91)","v":0},{"$f":"COUNTIF('توزيع الحراس'!AC$3:AE$30,$C91)","v":0},{"$f":"COUNTIF('توزيع الحراس'!AF$3:AH$30,$C91)","v":0},0,0]
[84,{"$f":"'توزيع الحراس'!B86","v":"محمد علي84"},{"$f":"'توزيع الحراس'!A86","v":84},{"$f":"COUNTIF('توزيع الحراس'!D$3:F$30,$C92)","v":0},{"$f":"COUNTIF('توزيع الحراس'!G$3:I$30,$C92)","v":0},{"$f":"COUNTIF('توزيع الحراس'!K$3:M$30,$C92)","v":0},{"$f":"COUNTIF('توزيع الحراس'!N$3:P$30,$C92)","v":0},{"$f":"COUNTIF('توزيع الحراس'!Q$3:S$30,$C92)","v":0},{"$f":"COUNTIF('توزيع الحراس'!T$3:V$30,$C92)","v":0},{"$f":"COUNTIF('توزيع الحراس'!W$3:Y$30,$C92)","v":0},{"$f":"COUNTIF('توزيع الحراس'!Z$3:AB$30,$C92)","v":0},{"$f":"COUNTIF('توزيع الحراس'!AC$3:AE$30,$C92)","v":0},{"$f":"COUNTIF('توزيع الحراس'!AF$3:AH$30,$C92)","v":0},0,0]
[85,{"$f":"'توزيع الحراس'!B87","v":"محمد علي85"},{"$f":"'توزيع الحراس'!A87","v":85},{"$f":"COUNTIF('توزيع الحراس'!D$3:F$30,$C93)","v":0},{"$f":"COUNTIF('توزيع الحراس'!G$3:I$30,$C93)","v":0},{"$f":"COUNTIF('توزيع الحراس'!K$3:M$30,$C93)","v":0},{"$f":"COUNTIF('توزيع الحراس'!N$3:P$30,$C93)","v":0},{"$f":"COUNTIF('توزيع الحراس'!Q$3:S$30,$C93)","v":0},{"$f":"COUNTIF('توزيع الحراس'!T$3:V$30,$C93)","v":0},{"$f":"COUNTIF('توزيع الحراس'!W$3:Y$30,$C93)","v":0},{"$f":"COUNTIF('توزيع الحراس'!Z$3:AB$30,$C93)","v":0},{"$f":"COUNTIF('توزيع الحراس'!AC$3:AE$30,$C93)","v":0},{"$f":"COUNTIF('توزيع الحراس'!AF$3:AH$30,$C93)","v":0},0,0]
[86,{"$f":"'توزيع الحراس'!B88","v":"محمد علي86"},{"$f":"'توزيع الحراس'!A88","v":86},{"$f":"COUNTIF('توزيع الحراس'!D$3:F$30,$C94)","v":0},{"$f":"COUNTIF('توزيع الحراس'!G$3:I$30,$C94)","v":0},{"$f":"COUNTIF('توزيع الحراس'!K$3:M$30,$C94)","v":0},{"$f":"COUNTIF('توزيع الحراس'!N$3:P$30,$C94)","v":0},{"$f":"COUNTIF('توزيع الحراس'!Q$3:S$30,$C94)","v":0},{"$f":"COUNTIF('توزيع الحراس'!T$3:V$30,$C94)","v":0},{"$f":"COUNTIF('توزيع الحراس'!W$3:Y$30,$C94)","v":0},{"$f":"COUNTIF('توزيع الحراس'!Z$3:AB$30,$C94)","v":0},{"$f":"COUNTIF('توزيع الحراس'!AC$3:AE$30,$C94)","v":0},{"$f":"COUNTIF('توزيع الحراس'!AF$3:AH$30,$C94)","v":0},0,0]
[87,{"$f":"'توزيع الحراس'!B89","v":"محمد علي87"},{"$f":"'توزيع الحراس'!A89","v":87},{"$f":"COUNTIF('توزيع الحراس'!D$3:F$30,$C95)","v":0},{"$f":"COUNTIF('توزيع الحراس'!G$3:I$30,$C95)","v":0},{"$f":"COUNTIF('توزيع الحراس'!K$3:M$30,$C95)","v":0},{"$f":"COUNTIF('توزيع الحراس'!N$3:P$30,$C95)","v":0},{"$f":"COUNTIF('توزيع الحراس'!Q$3:S$30,$C95)","v":0},{"$f":"COUNTIF('توزيع الحراس'!T$3:V$30,$C95)","v":0},{"$f":"COUNTIF('توزيع الحراس'!W$3:Y$30,$C95)","v":0},{"$f":"COUNTIF('توزيع الحراس'!Z$3:AB$30,$C95)","v":0},{"$f":"COUNTIF('توزيع الحراس'!AC$3:AE$30,$C95)","v":0},{"$f":"COUNTIF('توزيع الحراس'!AF$3:AH$30,$C95)","v":0},0,0]
[88,{"$f":"'توزيع الحراس'!B90","v":"محمد علي88"},{"$f":"'توزيع الحراس'!A90","v":88},{"$f":"COUNTIF('توزيع الحراس'!D$3:F$30,$C96)","v":0},{"$f":"COUNTIF('توزيع الحراس'!G$3:I$30,$C96)","v":0},{"$f":"COUNTIF('توزيع الحراس'!K$3:M$30,$C96)","v":0},{"$f":"COUNTIF('توزيع الحراس'!N$3:P$30,$C96)","v":0},{"$f":"COUNTIF('توزيع الحراس'!Q$3:S$30,$C96)","v":0},{"$f":"COUNTIF('توزيع الحراس'!T$3:V$30,$C96)","v":0},{"$f":"COUNTIF('توزيع الحراس'!W$3:Y$30,$C96)","v":0},{"$f":"COUNTIF('توزيع الحراس'!Z$3:AB$30,$C96)","v":0},{"$f":"COUNTIF('توزيع الحراس'!AC$3:AE$30,$C96)","v":0},{"$f":"COUNTIF('توزيع الحراس'!AF$3:AH$30,$C96)","v":0},0,0]
[89,{"$f":"'توزيع الحراس'!B91","v":"محمد علي89"},{"$f":"'توزيع الحراس'!A91","v":89},{"$f":"COUNTIF('توزيع الحراس'!D$3:F$30,$C97)","v":0},{"$f":"COUNTIF('توزيع الحراس'!G$3:I$30,$C97)","v":0},{"$f":"COUNTIF('توزيع الحراس'!K$3:M$30,$C97)","v":0},{"$f":"COUNTIF('توزيع الحراس'!N$3:P$30,$C97)","v":0},{"$f":"COUNTIF('توزيع الحراس'!Q$3:S$30,$C97)","v":0},{"$f":"COUNTIF('توزيع الحراس'!T$3:V$30,$C97)","v":0},{"$f":"COUNTIF('توزيع الحراس'!W$3:Y$30,$C97)","v":0},{"$f":"COUNTIF('توزيع الحراس'!Z$3:AB$30,$C97)","v":0},{"$f":"COUNTIF('توزيع الحراس'!AC$3:AE$30,$C97)","v":0},{"$f":"COUNTIF('توزيع الحراس'!AF$3:AH$30,$C97)","v":0},0,0]
[90,{"$f":"'توزيع الحراس'!B92","v":"محمد علي90"},{"$f":"'توزيع الحراس'!A92","v":90},{"$f":"COUNTIF('توزيع الحراس'!D$3:F$30,$C98)","v":0},{"$f":"COUNTIF('توزيع الحراس'!G$3:I$30,$C98)","v":0},{"$f":"COUNTIF('توزيع الحراس'!K$3:M$30,$C98)","v":0},{"$f":"COUNTIF('توزيع الحراس'!N$3:P$30,$C98)","v":0},{"$f":"COUNTIF('توزيع الحراس'!Q$3:S$30,$C98)","v":0},{"$f":"COUNTIF('توزيع الحراس'!T$3:V$30,$C98)","v":0},{"$f":"COUNTIF('توزيع الحراس'!W$3:Y$30,$C98)","v":0},{"$f":"COUNTIF('توزيع الحراس'!Z$3:AB$30,$C98)","v":0},{"$f":"COUNTIF('توزيع الحراس'!AC$3:AE$30,$C98)","v":0},{"$f":"COUNTIF('توزيع الحراس'!AF$3:AH$30,$C98)","v":0},0,0]
[91,{"$f":"'توزيع الحراس'!B93","v":"محمد علي91"},{"$f":"'توزيع الحراس'!A93","v":91},{"$f":"COUNTIF('توزيع الحراس'!D$3:F$30,$C99)","v":0},{"$f":"COUNTIF('توزيع الحراس'!G$3:I$30,$C99)","v":0},{"$f":"COUNTIF('توزيع الحراس'!K$3:M$30,$C99)","v":0},{"$f":"COUNTIF('توزيع الحراس'!N$3:P$30,$C99)","v":0},{"$f":"COUNTIF('توزيع الحراس'!Q$3:S$30,$C99)","v":0},{"$f":"COUNTIF('توزيع الحراس'!T$3:V$30,$C99)","v":0},{"$f":"COUNTIF('توزيع الحراس'!W$3:Y$30,$C99)","v":0},{"$f":"COUNTIF('توزيع الحراس'!Z$3:AB$30,$C99)","v":0},{"$f":"COUNTIF('توزيع الحراس'!AC$3:AE$30,$C99)","v":0},{"$f":"COUNTIF('توزيع الحراس'!AF$3:AH$30,$C99)","v":0},0,0]
[92,{"$f":"'توزيع الحراس'!B94","v":"محمد علي92"},{"$f":"'توزيع الحراس'!A94","v":92},{"$f":"COUNTIF('توزيع الحراس'!D$3:F$30,$C100)","v":0},{"$f":"COUNTIF('توزيع الحراس'!G$3:I$30,$C100)","v":0},{"$f":"COUNTIF('توزيع الحراس'!K$3:M$30,$C100)","v":0},{"$f":"COUNTIF('توزيع الحراس'!N$3:P$30,$C100)","v":0},{"$f":"COUNTIF('توزيع الحراس'!Q$3:S$30,$C100)","v":0},{"$f":"COUNTIF('توزيع الحراس'!T$3:V$30,$C100)","v":0},{"$f":"COUNTIF('توزيع الحراس'!W$3:Y$30,$C100)","v":0},{"$f":"COUNTIF('توزيع الحراس'!Z$3:AB$30,$C100)","v":0},{"$f":"COUNTIF('توزيع الحراس'!AC$3:AE$30,$C100)","v":0},{"$f":"COUNTIF('توزيع الحراس'!AF$3:AH$30,$C100)","v":0},0,0]
[93,{"$f":"'توزيع الحراس'!B95","v":"محمد علي93"},{"$f":"'توزيع الحراس'!A95","v":93},{"$f":"COUNTIF('توزيع الحراس'!D$3:F$30,$C101)","v":0},{"$f":"COUNTIF('توزيع الحراس'!G$3:I$30,$C101)","v":0},{"$f":"COUNTIF('توزيع الحراس'!K$3:M$30,$C101)","v":0},{"$f":"COUNTIF('توزيع الحراس'!N$3:P$30,$C101)","v":0},{"$f":"COUNTIF('توزيع الحراس'!Q$3:S$30,$C101)","v":0},{"$f":"COUNTIF('توزيع الحراس'!T$3:V$30,$C101)","v":0},{"$f":"COUNTIF('توزيع الحراس'!W$3:Y$30,$C101)","v":0},{"$f":"COUNTIF('توزيع الحراس'!Z$3:AB$30,$C101)","v":0},{"$f":"COUNTIF('توزيع الحراس'!AC$3:AE$30,$C101)","v":0},{"$f":"COUNTIF('توزيع الحراس'!AF$3:AH$30,$C101)","v":0},0,0]
[94,{"$f":"'توزيع الحراس'!B96","v":"محمد علي94"},{"$f":"'توزيع الحراس'!A96","v":94},{"$f":"COUNTIF('توزيع الحراس'!D$3:F$30,$C102)","v":0},{"$f":"COUNTIF('توزيع الحراس'!G$3:I$30,$C102)","v":0},{"$f":"COUNTIF('توزيع الحراس'!K$3:M$30,$C102)","v":0},{"$f":"COUNTIF('توزيع الحراس'!N$3:P$30,$C102)","v":0},{"$f":"COUNTIF('توزيع الحراس'!Q$3:S$30,$C102)","v":0},{"$f":"COUNTIF('توزيع الحراس'!T$3:V$30,$C102)","v":0},{"$f":"COUNTIF('توزيع الحراس'!W$3:Y$30,$C102)","v":0},{"$f":"COUNTIF('توزيع الحراس'!Z$3:AB$30,$C102)","v":0},{"$f":"COUNTIF('توزيع الحراس'!AC$3:AE$30,$C102)","v":0},{"$f":"COUNTIF('توزيع الحراس'!AF$3:AH$30,$C102)","v":0},0,0]
[95,{"$f":"'توزيع الحراس'!B97","v":"محمد علي95"},{"$f":"'توزيع الحراس'!A97","v":95},{"$f":"COUNTIF('توزيع الحراس'!D$3:F$30,$C103)","v":0},{"$f":"COUNTIF('توزيع الحراس'!G$3:I$30,$C103)","v":0},{"$f":"COUNTIF('توزيع الحراس'!K$3:M$30,$C103)","v":0},{"$f":"COUNTIF('توزيع الحراس'!N$3:P$30,$C103)","v":0},{"$f":"COUNTIF('توزيع الحراس'!Q$3:S$30,$C103)","v":0},{"$f":"COUNTIF('توزيع الحراس'!T$3:V$30,$C103)","v":0},{"$f":"COUNTIF('توزيع الحراس'!W$3:Y$30,$C103)","v":0},{"$f":"COUNTIF('توزيع الحراس'!Z$3:AB$30,$C103)","v":0},{"$f":"COUNTIF('توزيع الحراس'!AC$3:AE$30,$C103)","v":0},{"$f":"COUNTIF('توزيع الحراس'!AF$3:AH$30,$C103)","v":0},0,0]
[96,{"$f":"'توزيع الحراس'!B98","v":"محمد علي96"},{"$f":"'توزيع الحراس'!A98","v":96},{"$f":"COUNTIF('توزيع الحراس'!D$3:F$30,$C104)","v":0},{"$f":"COUNTIF('توزيع الحراس'!G$3:I$30,$C104)","v":0},{"$f":"COUNTIF('توزيع الحراس'!K$3:M$30,$C104)","v":0},{"$f":"COUNTIF('توزيع الحراس'!N$3:P$30,$C104)","v":0},{"$f":"COUNTIF('توزيع الحراس'!Q$3:S$30,$C104)","v":0},{"$f":"COUNTIF('توزيع الحراس'!T$3:V$30,$C104)","v":0},{"$f":"COUNTIF('توزيع الحراس'!W$3:Y$30,$C104)","v":0},{"$f":"COUNTIF('توزيع الحراس'!Z$3:AB$30,$C104)","v":0},{"$f":"COUNTIF('توزيع الحراس'!AC$3:AE$30,$C104)","v":0},{"$f":"COUNTIF('توزيع الحراس'!AF$3:AH$30,$C104)","v":0},0,0]
[97,{"$f":"'توزيع الحراس'!B99","v":"محمد علي97"},{"$f":"'توزيع الحراس'!A99","v":97},{"$f":"COUNTIF('توزيع الحراس'!D$3:F$30,$C105)","v":0},{"$f":"COUNTIF('توزيع الحراس'!G$3:I$30,$C105)","v":0},{"$f":"COUNTIF('توزيع الحراس'!K$3:M$30,$C105)","v":0},{"$f":"COUNTIF('توزيع الحراس'!N$3:P$30,$C105)","v":0},{"$f":"COUNTIF('توزيع الحراس'!Q$3:S$30,$C105)","v":0},{"$f":"COUNTIF('توزيع الحراس'!T$3:V$30,$C105)","v":0},{"$f":"COUNTIF('توزيع الحراس'!W$3:Y$30,$C105)","v":0},{"$f":"COUNTIF('توزيع الحراس'!Z$3:AB$30,$C105)","v":0},{"$f":"COUNTIF('توزيع الحراس'!AC$3:AE$30,$C105)","v":0},{"$f":"COUNTIF('توزيع الحراس'!AF$3:AH$30,$C105)","v":0},0,0]
[98,{"$f":"'توزيع الحراس'!B100","v":"محمد علي98"},{"$f":"'توزيع الحراس'!A100","v":98},{"$f":"COUNTIF('توزيع الحراس'!D$3:F$30,$C106)","v":0},{"$f":"COUNTIF('توزيع الحراس'!G$3:I$30,$C106)","v":0},{"$f":"COUNTIF('توزيع الحراس'!K$3:M$30,$C106)","v":0},{"$f":"COUNTIF('توزيع الحراس'!N$3:P$30,$C106)","v":0},{"$f":"COUNTIF('توزيع الحراس'!Q$3:S$30,$C106)","v":0},{"$f":"COUNTIF('توزيع الحراس'!T$3:V$30,$C106)","v":0},{"$f":"COUNTIF('توزيع الحراس'!W$3:Y$30,$C106)","v":0},{"$f":"COUNTIF('توزيع الحراس'!Z$3:AB$30,$C106)","v":0},{"$f":"COUNTIF('توزيع الحراس'!AC$3:AE$30,$C106)","v":0},{"$f":"COUNTIF('توزيع الحراس'!AF$3:AH$30,$C106)","v":0},0,0]
[99,{"$f":"'توزيع الحراس'!B101","v":"محمد علي99"},{"$f":"'توزيع الحراس'!A101","v":99},{"$f":"COUNTIF('توزيع الحراس'!D$3:F$30,$C107)","v":0},{"$f":"COUNTIF('توزيع الحراس'!G$3:I$30,$C107)","v":0},{"$f":"COUNTIF('توزيع الحراس'!K$3:M$30,$C107)","v":0},{"$f":"COUNTIF('توزيع الحراس'!N$3:P$30,$C107)","v":0},{"$f":"COUNTIF('توزيع الحراس'!Q$3:S$30,$C107)","v":0},{"$f":"COUNTIF('توزيع الحراس'!T$3:V$30,$C107)","v":0},{"$f":"COUNTIF('توزيع الحراس'!W$3:Y$30,$C107)","v":0},{"$f":"COUNTIF('توزيع الحراس'!Z$3:AB$30,$C107)","v":0},{"$f":"COUNTIF('توزيع الحراس'!AC$3:AE$30,$C107)","v":0},{"$f":"COUNTIF('توزيع الحراس'!AF$3:AH$30,$C107)","v":0},0,0]
[100,{"$f":"'توزيع الحراس'!B102","v":"محمد علي100"},{"$f":"'توزيع الحراس'!A102","v":100},{"$f":"COUNTIF('توزيع الحراس'!D$3:F$30,$C108)","v":0},{"$f":"COUNTIF('توزيع الحراس'!G$3:I$30,$C108)","v":0},{"$f":"COUNTIF('توزيع الحراس'!K$3:M$30,$C108)","v":0},{"$f":"COUNTIF('توزيع الحراس'!N$3:P$30,$C108)","v":0},{"$f":"COUNTIF('توزيع الحراس'!Q$3:S$30,$C108)","v":0},{"$f":"COUNTIF('توزيع الحراس'!T$3:V$30,$C108)","v":0},{"$f":"COUNTIF('توزيع الحراس'!W$3:Y$30,$C108)","v":0},{"$f":"COUNTIF('توزيع الحراس'!Z$3:AB$30,$C108)","v":0},{"$f":"COUNTIF('توزيع الحراس'!AC$3:AE$30,$C108)","v":0},{"$f":"COUNTIF('توزيع الحراس'!AF$3:AH$30,$C108)","v":0},0,0]
[101,{"$f":"'توزيع الحراس'!B103","v":"محمد علي101"},{"$f":"'توزيع الحراس'!A103","v":101},{"$f":"COUNTIF('توزيع الحراس'!D$3:F$30,$C109)","v":0},{"$f":"COUNTIF('توزيع الحراس'!G$3:I$30,$C109)","v":0},{"$f":"COUNTIF('توزيع الحراس'!K$3:M$30,$C109)","v":0},{"$f":"COUNTIF('توزيع الحراس'!N$3:P$30,$C109)","v":0},{"$f":"COUNTIF('توزيع الحراس'!Q$3:S$30,$C109)","v":0},{"$f":"COUNTIF('توزيع الحراس'!T$3:V$30,$C109)","v":0},{"$f":"COUNTIF('توزيع الحراس'!W$3:Y$30,$C109)","v":0},{"$f":"COUNTIF('توزيع الحراس'!Z$3:AB$30,$C109)","v":0},{"$f":"COUNTIF('توزيع الحراس'!AC$3:AE$30,$C109)","v":0},{"$f":"COUNTIF('توزيع الحراس'!AF$3:AH$30,$C109)","v":0},0,0]
[102,{"$f":"'توزيع الحراس'!B104","v":"محمد علي102"},{"$f":"'توزيع الحراس'!A104","v":102},{"$f":"COUNTIF('توزيع الحراس'!D$3:F$30,$C110)","v":0},{"$f":"COUNTIF('توزيع الحراس'!G$3:I$30,$C110)","v":0},{"$f":"COUNTIF('توزيع الحراس'!K$3:M$30,$C110)","v":0},{"$f":"COUNTIF('توزيع الحراس'!N$3:P$30,$C110)","v":0},{"$f":"COUNTIF('توزيع الحراس'!Q$3:S$30,$C110)","v":0},{"$f":"COUNTIF('توزيع الحراس'!T$3:V$30,$C110)","v":0},{"$f":"COUNTIF('توزيع الحراس'!W$3:Y$30,$C110)","v":0},{"$f":"COUNTIF('توزيع الحراس'!Z$3:AB$30,$C110)","v":0},{"$f":"COUNTIF('توزيع الحراس'!AC$3:AE$30,$C110)","v":0},{"$f":"COUNTIF('توزيع الحراس'!AF$3:AH$30,$C110)","v":0},0,0]
[103,{"$f":"'توزيع الحراس'!B105","v":"محمد علي103"},{"$f":"'توزيع الحراس'!A105","v":103},{"$f":"COUNTIF('توزيع الحراس'!D$3:F$30,$C111)","v":0},{"$f":"COUNTIF('توزيع الحراس'!G$3:I$30,$C111)","v":0},{"$f":"COUNTIF('توزيع الحراس'!K$3:M$30,$C111)","v":0},{"$f":"COUNTIF('توزيع الحراس'!N$3:P$30,$C111)","v":0},{"$f":"COUNTIF('توزيع الحراس'!Q$3:S$30,$C111)","v":0},{"$f":"COUNTIF('توزيع الحراس'!T$3:V$30,$C111)","v":0},{"$f":"COUNTIF('توزيع الحراس'!W$3:Y$30,$C111)","v":0},{"$f":"COUNTIF('توزيع الحراس'!Z$3:AB$30,$C111)","v":0},{"$f":"COUNTIF('توزيع الحراس'!AC$3:AE$30,$C111)","v":0},{"$f":"COUNTIF('توزيع الحراس'!AF$3:AH$30,$C111)","v":0},0,0]
[104,{"$f":"'توزيع الحراس'!B106","v":"محمد علي104"},{"$f":"'توزيع الحراس'!A106","v":104},{"$f":"COUNTIF('توزيع الحراس'!D$3:F$30,$C112)","v":0},{"$f":"COUNTIF('توزيع الحراس'!G$3:I$30,$C112)","v":0},{"$f":"COUNTIF('توزيع الحراس'!K$3:M$30,$C112)","v":0},{"$f":"COUNTIF('توزيع الحراس'!N$3:P$30,$C112)","v":0},{"$f":"COUNTIF('توزيع الحراس'!Q$3:S$30,$C112)","v":0},{"$f":"COUNTIF('توزيع الحراس'!T$3:V$30,$C112)","v":0},{"$f":"COUNTIF('توزيع الحراس'!W$3:Y$30,$C112)","v":0},{"$f":"COUNTIF('توزيع الحراس'!Z$3:AB$30,$C112)","v":0},{"$f":"COUNTIF('توزيع الحراس'!AC$3:AE$30,$C112)","v":0},{"$f":"COUNTIF('توزيع الحراس'!AF$3:AH$30,$C112)","v":0},0,0]
[105,{"$f":"'توزيع الحراس'!B107","v":"محمد علي105"},{"$f":"'توزيع الحراس'!A107","v":105},{"$f":"COUNTIF('توزيع الحراس'!D$3:F$30,$C113)","v":0},{"$f":"COUNTIF('توزيع الحراس'!G$3:I$30,$C113)","v":0},{"$f":"COUNTIF('توزيع الحراس'!K$3:M$30,$C113)","v":0},{"$f":"COUNTIF('توزيع الحراس'!N$3:P$30,$C113)","v":0},{"$f":"COUNTIF('توزيع الحراس'!Q$3:S$30,$C113)","v":0},{"$f":"COUNTIF('توزيع الحراس'!T$3:V$30,$C113)","v":0},{"$f":"COUNTIF('توزيع الحراس'!W$3:Y$30,$C113)","v":0},{"$f":"COUNTIF('توزيع الحراس'!Z$3:AB$30,$C113)","v":0},{"$f":"COUNTIF('توزيع الحراس'!AC$3:AE$30,$C113)","v":0},{"$f":"COUNTIF('توزيع الحراس'!AF$3:AH$30,$C113)","v":0},0,0]
[106,{"$f":"'توزيع الحراس'!B108","v":"محمد علي106"},{"$f":"'توزيع الحراس'!A108","v":106},{"$f":"COUNTIF('توزيع الحراس'!D$3:F$30,$C114)","v":0},{"$f":"COUNTIF('توزيع الحراس'!G$3:I$30,$C114)","v":0},{"$f":"COUNTIF('توزيع الحراس'!K$3:M$30,$C114)","v":0},{"$f":"COUNTIF('توزيع الحراس'!N$3:P$30,$C114)","v":0},{"$f":"COUNTIF('توزيع الحراس'!Q$3:S$30,$C114)","v":0},{"$f":"COUNTIF('توزيع الحراس'!T$3:V$30,$C114)","v":0},{"$f":"COUNTIF('توزيع الحراس'!W$3:Y$30,$C114)","v":0},{"$f":"COUNTIF('توزيع الحراس'!Z$3:AB$30,$C114)","v":0},{"$f":"COUNTIF('توزيع الحراس'!AC$3:AE$30,$C114)","v":0},{"$f":"COUNTIF('توزيع الحراس'!AF$3:AH$30,$C114)","v":0},0,0]
[107,{"$f":"'توزيع الحراس'!B109","v":"محمد علي107"},{"$f":"'توزيع الحراس'!A109","v":107},{"$f":"COUNTIF('توزيع الحراس'!D$3:F$30,$C115)","v":0},{"$f":"COUNTIF('توزيع الحراس'!G$3:I$30,$C115)","v":0},{"$f":"COUNTIF('توزيع الحراس'!K$3:M$30,$C115)","v":0},{"$f":"COUNTIF('توزيع الحراس'!N$3:P$30,$C115)","v":0},{"$f":"COUNTIF('توزيع الحراس'!Q$3:S$30,$C115)","v":0},{"$f":"COUNTIF('توزيع الحراس'!T$3:V$30,$C115)","v":0},{"$f":"COUNTIF('توزيع الحراس'!W$3:Y$30,$C115)","v":0},{"$f":"COUNTIF('توزيع الحراس'!Z$3:AB$30,$C115)","v":0},{"$f":"COUNTIF('توزيع الحراس'!AC$3:AE$30,$C115)","v":0},{"$f":"COUNTIF('توزيع الحراس'!AF$3:AH$30,$C115)","v":0},0,0]
[108,{"$f":"'توزيع الحراس'!B110","v":"محمد علي108"},{"$f":"'توزيع الحراس'!A110","v":108},{"$f":"COUNTIF('توزيع الحراس'!D$3:F$30,$C116)","v":0},{"$f":"COUNTIF('توزيع الحراس'!G$3:I$30,$C116)","v":0},{"$f":"COUNTIF('توزيع الحراس'!K$3:M$30,$C116)","v":0},{"$f":"COUNTIF('توزيع الحراس'!N$3:P$30,$C116)","v":0},{"$f":"COUNTIF('توزيع الحراس'!Q$3:S$30,$C116)","v":0},{"$f":"COUNTIF('توزيع الحراس'!T$3:V$30,$C116)","v":0},{"$f":"COUNTIF('توزيع الحراس'!W$3:Y$30,$C116)","v":0},{"$f":"COUNTIF('توزيع الحراس'!Z$3:AB$30,$C116)","v":0},{"$f":"COUNTIF('توزيع الحراس'!AC$3:AE$30,$C116)","v":0},{"$f":"COUNTIF('توزيع الحراس'!AF$3:AH$30,$C116)","v":0},0,0]
[109,{"$f":"'توزيع الحراس'!B111","v":"محمد علي109"},{"$f":"'توزيع الحراس'!A111","v":109},{"$f":"COUNTIF('توزيع الحراس'!D$3:F$30,$C117)","v":0},{"$f":"COUNTIF('توزيع الحراس'!G$3:I$30,$C117)","v":0},{"$f":"COUNTIF('توزيع الحراس'!K$3:M$30,$C117)","v":0},{"$f":"COUNTIF('توزيع الحراس'!N$3:P$30,$C117)","v":0},{"$f":"COUNTIF('توزيع الحراس'!Q$3:S$30,$C117)","v":0},{"$f":"COUNTIF('توزيع الحراس'!T$3:V$30,$C117)","v":0},{"$f":"COUNTIF('توزيع الحراس'!W$3:Y$30,$C117)","v":0},{"$f":"COUNTIF('توزيع الحراس'!Z$3:AB$30,$C117)","v":0},{"$f":"COUNTIF('توزيع الحراس'!AC$3:AE$30,$C117)","v":0},{"$f":"COUNTIF('توزيع الحراس'!AF$3:AH$30,$C117)","v":0},0,0]
[110,{"$f":"'توزيع الحراس'!B112","v":"محمد علي110"},{"$f":"'توزيع الحراس'!A112","v":110},{"$f":"COUNTIF('توزيع الحراس'!D$3:F$30,$C118)","v":0},{"$f":"COUNTIF('توزيع الحراس'!G$3:I$30,$C118)","v":0},{"$f":"COUNTIF('توزيع الحراس'!K$3:M$30,$C118)","v":0},{"$f":"COUNTIF('توزيع الحراس'!N$3:P$30,$C118)","v":0},{"$f":"COUNTIF('توزيع الحراس'!Q$3:S$30,$C118)","v":0},{"$f":"COUNTIF('توزيع الحراس'!T$3:V$30,$C118)","v":0},{"$f":"COUNTIF('توزيع الحراس'!W$3:Y$30,$C118)","v":0},{"$f":"COUNTIF('توزيع الحراس'!Z$3:AB$30,$C118)","v":0},{"$f":"COUNTIF('توزيع الحراس'!AC$3:AE$30,$C118)","v":0},{"$f":"COUNTIF('توزيع الحراس'!AF$3:AH$30,$C118)","v":0},0,0]
[111,{"$f":"'توزيع الحراس'!B113","v":"محمد علي111"},{"$f":"'توزيع الحراس'!A113","v":111},{"$f":"COUNTIF('توزيع الحراس'!D$3:F$30,$C119)","v":0},{"$f":"COUNTIF('توزيع الحراس'!G$3:I$30,$C119)","v":0},{"$f":"COUNTIF('توزيع الحراس'!K$3:M$30,$C119)","v":0},{"$f":"COUNTIF('توزيع الحراس'!N$3:P$30,$C119)","v":0},{"$f":"COUNTIF('توزيع الحراس'!Q$3:S$30,$C119)","v":0},{"$f":"COUNTIF('توزيع الحراس'!T$3:V$30,$C119)","v":0},{"$f":"COUNTIF('توزيع الحراس'!W$3:Y$30,$C119)","v":0},{"$f":"COUNTIF('توزيع الحراس'!Z$3:AB$30,$C119)","v":0},{"$f":"COUNTIF('توزيع الحراس'!AC$3:AE$30,$C119)","v":0},{"$f":"COUNTIF('توزيع الحراس'!AF$3:AH$30,$C119)","v":0},0,0]
[112,{"$f":"'توزيع الحراس'!B114","v":"محمد علي112"},{"$f":"'توزيع الحراس'!A114","v":112},{"$f":"COUNTIF('توزيع الحراس'!D$3:F$30,$C120)","v":0},{"$f":"COUNTIF('توزيع الحراس'!G$3:I$30,$C120)","v":0},{"$f":"COUNTIF('توزيع الحراس'!K$3:M$30,$C120)","v":0},{"$f":"COUNTIF('توزيع الحراس'!N$3:P$30,$C120)","v":0},{"$f":"COUNTIF('توزيع الحراس'!Q$3:S$30,$C120)","v":0},{"$f":"COUNTIF('توزيع الحراس'!T$3:V$30,$C120)","v":0},{"$f":"COUNTIF('توزيع الحراس'!W$3:Y$30,$C120)","v":0},{"$f":"COUNTIF('توزيع الحراس'!Z$3:AB$30,$C120)","v":0},{"$f":"COUNTIF('توزيع الحراس'!AC$3:AE$30,$C120)","v":0},{"$f":"COUNTIF('توزيع الحراس'!AF$3:AH$30,$C120)","v":0},0,0]
[113,{"$f":"'توزيع الحراس'!B115","v":"محمد علي113"},{"$f":"'توزيع الحراس'!A115","v":113},{"$f":"COUNTIF('توزيع الحراس'!D$3:F$30,$C121)","v":0},{"$f":"COUNTIF('توزيع الحراس'!G$3:I$30,$C121)","v":0},{"$f":"COUNTIF('توزيع الحراس'!K$3:M$30,$C121)","v":0},{"$f":"COUNTIF('توزيع الحراس'!N$3:P$30,$C121)","v":0},{"$f":"COUNTIF('توزيع الحراس'!Q$3:S$30,$C121)","v":0},{"$f":"COUNTIF('توزيع الحراس'!T$3:V$30,$C121)","v":0},{"$f":"COUNTIF('توزيع الحراس'!W$3:Y$30,$C121)","v":0},{"$f":"COUNTIF('توزيع الحراس'!Z$3:AB$30,$C121)","v":0},{"$f":"COUNTIF('توزيع الحراس'!AC$3:AE$30,$C121)","v":0},{"$f":"COUNTIF('توزيع الحراس'!AF$3:AH$30,$C121)","v":0},0,0]
[114,{"$f":"'توزيع الحراس'!B116","v":"محمد علي114"},{"$f":"'توزيع الحراس'!A116","v":114},{"$f":"COUNTIF('توزيع الحراس'!D$3:F$30,$C122)","v":0},{"$f":"COUNTIF('توزيع الحراس'!G$3:I$30,$C122)","v":0},{"$f":"COUNTIF('توزيع الحراس'!K$3:M$30,$C122)","v":0},{"$f":"COUNTIF('توزيع الحراس'!N$3:P$30,$C122)","v":0},{"$f":"COUNTIF('توزيع الحراس'!Q$3:S$30,$C122)","v":0},{"$f":"COUNTIF('توزيع الحراس'!T$3:V$30,$C122)","v":0},{"$f":"COUNTIF('توزيع الحراس'!W$3:Y$30,$C122)","v":0},{"$f":"COUNTIF('توزيع الحراس'!Z$3:AB$30,$C122)","v":0},{"$f":"COUNTIF('توزيع الحراس'!AC$3:AE$30,$C122)","v":0},{"$f":"COUNTIF('توزيع الحراس'!AF$3:AH$30,$C122)","v":0},0,0]
[115,{"$f":"'توزيع الحراس'!B117","v":"محمد علي115"},{"$f":"'توزيع الحراس'!A117","v":115},{"$f":"COUNTIF('توزيع الحراس'!D$3:F$30,$C123)","v":0},{"$f":"COUNTIF('توزيع الحراس'!G$3:I$30,$C123)","v":0},{"$f":"COUNTIF('توزيع الحراس'!K$3:M$30,$C123)","v":0},{"$f":"COUNTIF('توزيع الحراس'!N$3:P$30,$C123)","v":0},{"$f":"COUNTIF('توزيع الحراس'!Q$3:S$30,$C123)","v":0},{"$f":"COUNTIF('توزيع الحراس'!T$3:V$30,$C123)","v":0},{"$f":"COUNTIF('توزيع الحراس'!W$3:Y$30,$C123)","v":0},{"$f":"COUNTIF('توزيع الحراس'!Z$3:AB$30,$C123)","v":0},{"$f":"COUNTIF('توزيع الحراس'!AC$3:AE$30,$C123)","v":0},{"$f":"COUNTIF('توزيع الحراس'!AF$3:AH$30,$C123)","v":0},0,0]
[116,{"$f":"'توزيع الحراس'!B118","v":"محمد علي116"},{"$f":"'توزيع الحراس'!A118","v":116},{"$f":"COUNTIF('توزيع الحراس'!D$3:F$30,$C124)","v":0},{"$f":"COUNTIF('توزيع الحراس'!G$3:I$30,$C124)","v":0},{"$f":"COUNTIF('توزيع الحراس'!K$3:M$30,$C124)","v":0},{"$f":"COUNTIF('توزيع الحراس'!N$3:P$30,$C124)","v":0},{"$f":"COUNTIF('توزيع الحراس'!Q$3:S$30,$C124)","v":0},{"$f":"COUNTIF('توزيع الحراس'!T$3:V$30,$C124)","v":0},{"$f":"COUNTIF('توزيع الحراس'!W$3:Y$30,$C124)","v":0},{"$f":"COUNTIF('توزيع الحراس'!Z$3:AB$30,$C124)","v":0},{"$f":"COUNTIF('توزيع الحراس'!AC$3:AE$30,$C124)","v":0},{"$f":"COUNTIF('توزيع الحراس'!AF$3:AH$30,$C124)","v":0},0,0]
[117,{"$f":"'توزيع الحراس'!B119","v":"محمد علي117"},{"$f":"'توزيع الحراس'!A119","v":117},{"$f":"COUNTIF('توزيع الحراس'!D$3:F$30,$C125)","v":0},{"$f":"COUNTIF('توزيع الحراس'!G$3:I$30,$C125)","v":0},{"$f":"COUNTIF('توزيع الحراس'!K$3:M$30,$C125)","v":0},{"$f":"COUNTIF('توزيع الحراس'!N$3:P$30,$C125)","v":0},{"$f":"COUNTIF('توزيع الحراس'!Q$3:S$30,$C125)","v":0},{"$f":"COUNTIF('توزيع الحراس'!T$3:V$30,$C125)","v":0},{"$f":"COUNTIF('توزيع الحراس'!W$3:Y$30,$C125)","v":0},{"$f":"COUNTIF('توزيع الحراس'!Z$3:AB$30,$C125)","v":0},{"$f":"COUNTIF('توزيع الحراس'!AC$3:AE$30,$C125)","v":0},{"$f":"COUNTIF('توزيع الحراس'!AF$3:AH$30,$C125)","v":0},0,0]
[118,{"$f":"'توزيع الحراس'!B120","v":"محمد علي118"},{"$f":"'توزيع الحراس'!A120","v":118},{"$f":"COUNTIF('توزيع الحراس'!D$3:F$30,$C126)","v":0},{"$f":"COUNTIF('توزيع الحراس'!G$3:I$30,$C126)","v":0},{"$f":"COUNTIF('توزيع الحراس'!K$3:M$30,$C126)","v":0},{"$f":"COUNTIF('توزيع الحراس'!N$3:P$30,$C126)","v":0},{"$f":"COUNTIF('توزيع الحراس'!Q$3:S$30,$C126)","v":0},{"$f":"COUNTIF('توزيع الحراس'!T$3:V$30,$C126)","v":0},{"$f":"COUNTIF('توزيع الحراس'!W$3:Y$30,$C126)","v":0},{"$f":"COUNTIF('توزيع الحراس'!Z$3:AB$30,$C126)","v":0},{"$f":"COUNTIF('توزيع الحراس'!AC$3:AE$30,$C126)","v":0},{"$f":"COUNTIF('توزيع الحراس'!AF$3:AH$30,$C126)","v":0},0,0]
[119,{"$f":"'توزيع الحراس'!B121","v":"محمد علي119"},{"$f":"'توزيع الحراس'!A121","v":119},{"$f":"COUNTIF('توزيع الحراس'!D$3:F$30,$C127)","v":0},{"$f":"COUNTIF('توزيع الحراس'!G$3:I$30,$C127)","v":0},{"$f":"COUNTIF('توزيع الحراس'!K$3:M$30,$C127)","v":0},{"$f":"COUNTIF('توزيع الحراس'!N$3:P$30,$C127)","v":0},{"$f":"COUNTIF('توزيع الحراس'!Q$3:S$30,$C127)","v":0},{"$f":"COUNTIF('توزيع الحراس'!T$3:V$30,$C127)","v":0},{"$f":"COUNTIF('توزيع الحراس'!W$3:Y$30,$C127)","v":0},{"$f":"COUNTIF('توزيع الحراس'!Z$3:AB$30,$C127)","v":0},{"$f":"COUNTIF('توزيع الحراس'!AC$3:AE$30,$C127)","v":0},{"$f":"COUNTIF('توزيع الحراس'!AF$3:AH$30,$C127)","v":0},0,0]
[120,{"$f":"'توزيع الحراس'!B122","v":"محمد علي120"},{"$f":"'توزيع الحراس'!A122","v":120},{"$f":"COUNTIF('توزيع الحراس'!D$3:F$30,$C128)","v":0},{"$f":"COUNTIF('توزيع الحراس'!G$3:I$30,$C128)","v":0},{"$f":"COUNTIF('توزيع الحراس'!K$3:M$30,$C128)","v":0},{"$f":"COUNTIF('توزيع الحراس'!N$3:P$30,$C128)","v":0},{"$f":"COUNTIF('توزيع الحراس'!Q$3:S$30,$C128)","v":0},{"$f":"COUNTIF('توزيع الحراس'!T$3:V$30,$C128)","v":0},{"$f":"COUNTIF('توزيع الحراس'!W$3:Y$30,$C128)","v":0},{"$f":"COUNTIF('توزيع الحراس'!Z$3:AB$30,$C128)","v":0},{"$f":"COUNTIF('توزيع الحراس'!AC$3:AE$30,$C128)","v":0},{"$f":"COUNTIF('توزيع الحراس'!AF$3:AH$30,$C128)","v":0},0,0]
[121,{"$f":"'توزيع الحراس'!B123","v":"محمد علي121"},{"$f":"'توزيع الحراس'!A123","v":121},{"$f":"COUNTIF('توزيع الحراس'!D$3:F$30,$C129)","v":0},{"$f":"COUNTIF('توزيع الحراس'!G$3:I$30,$C129)","v":0},{"$f":"COUNTIF('توزيع الحراس'!K$3:M$30,$C129)","v":0},{"$f":"COUNTIF('توزيع الحراس'!N$3:P$30,$C129)","v":0},{"$f":"COUNTIF('توزيع الحراس'!Q$3:S$30,$C129)","v":0},{"$f":"COUNTIF('توزيع الحراس'!T$3:V$30,$C129)","v":0},{"$f":"COUNTIF('توزيع الحراس'!W$3:Y$30,$C129)","v":0},{"$f":"COUNTIF('توزيع الحراس'!Z$3:AB$30,$C129)","v":0},{"$f":"COUNTIF('توزيع الحراس'!AC$3:AE$30,$C129)","v":0},{"$f":"COUNTIF('توزيع الحراس'!AF$3:AH$30,$C129)","v":0},0,0]
[122,{"$f":"'توزيع الحراس'!B124","v":"محمد علي122"},{"$f":"'توزيع الحراس'!A124","v":122},{"$f":"COUNTIF('توزيع الحراس'!D$3:F$30,$C130)","v":0},{"$f":"COUNTIF('توزيع الحراس'!G$3:I$30,$C130)","v":0},{"$f":"COUNTIF('توزيع الحراس'!K$3:M$30,$C130)","v":0},{"$f":"COUNTIF('توزيع الحراس'!N$3:P$30,$C130)","v":0},{"$f":"COUNTIF('توزيع الحراس'!Q$3:S$30,$C130)","v":0},{"$f":"COUNTIF('توزيع الحراس'!T$3:V$30,$C130)","v":0},{"$f":"COUNTIF('توزيع الحراس'!W$3:Y$30,$C130)","v":0},{"$f":"COUNTIF('توزيع الحراس'!Z$3:AB$30,$C130)","v":0},{"$f":"COUNTIF('توزيع الحراس'!AC$3:AE$30,$C130)","v":0},{"$f":"COUNTIF('توزيع الحراس'!AF$3:AH$30,$C130)","v":0},0,0]
[123,{"$f":"'توزيع الحراس'!B125","v":"محمد علي123"},{"$f":"'توزيع الحراس'!A125","v":123},{"$f":"COUNTIF('توزيع الحراس'!D$3:F$30,$C131)","v":0},{"$f":"COUNTIF('توزيع الحراس'!G$3:I$30,$C131)","v":0},{"$f":"COUNTIF('توزيع الحراس'!K$3:M$30,$C131)","v":0},{"$f":"COUNTIF('توزيع الحراس'!N$3:P$30,$C131)","v":0},{"$f":"COUNTIF('توزيع الحراس'!Q$3:S$30,$C131)","v":0},{"$f":"COUNTIF('توزيع الحراس'!T$3:V$30,$C131)","v":0},{"$f":"COUNTIF('توزيع الحراس'!W$3:Y$30,$C131)","v":0},{"$f":"COUNTIF('توزيع الحراس'!Z$3:AB$30,$C131)","v":0},{"$f":"COUNTIF('توزيع الحراس'!AC$3:AE$30,$C131)","v":0},{"$f":"COUNTIF('توزيع الحراس'!AF$3:AH$30,$C131)","v":0},0,0]
[124,{"$f":"'توزيع الحراس'!B126","v":"محمد علي124"},{"$f":"'توزيع الحراس'!A126","v":124},{"$f":"COUNTIF('توزيع الحراس'!D$3:F$30,$C132)","v":0},{"$f":"COUNTIF('توزيع الحراس'!G$3:I$30,$C132)","v":0},{"$f":"COUNTIF('توزيع الحراس'!K$3:M$30,$C132)","v":0},{"$f":"COUNTIF('توزيع الحراس'!N$3:P$30,$C132)","v":0},{"$f":"COUNTIF('توزيع الحراس'!Q$3:S$30,$C132)","v":0},{"$f":"COUNTIF('توزيع الحراس'!T$3:V$30,$C132)","v":0},{"$f":"COUNTIF('توزيع الحراس'!W$3:Y$30,$C132)","v":0},{"$f":"COUNTIF('توزيع الحراس'!Z$3:AB$30,$C132)","v":0},{"$f":"COUNTIF('توزيع الحراس'!AC$3:AE$30,$C132)","v":0},{"$f":"COUNTIF('توزيع الحراس'!AF$3:AH$30,$C132)","v":0},0,0]
[125,{"$f":"'توزيع الحراس'!B127","v":"محمد علي125"},{"$f":"'توزيع الحراس'!A127","v":125},{"$f":"COUNTIF('توزيع الحراس'!D$3:F$30,$C133)","v":0},{"$f":"COUNTIF('توزيع الحراس'!G$3:I$30,$C133)","v":0},{"$f":"COUNTIF('توزيع الحراس'!K$3:M$30,$C133)","v":0},{"$f":"COUNTIF('توزيع الحراس'!N$3:P$30,$C133)","v":0},{"$f":"COUNTIF('توزيع الحراس'!Q$3:S$30,$C133)","v":0},{"$f":"COUNTIF('توزيع الحراس'!T$3:V$30,$C133)","v":0},{"$f":"COUNTIF('توزيع الحراس'!W$3:Y$30,$C133)","v":0},{"$f":"COUNTIF('توزيع الحراس'!Z$3:AB$30,$C133)","v":0},{"$f":"COUNTIF('توزيع الحراس'!AC$3:AE$30,$C133)","v":0},{"$f":"COUNTIF('توزيع الحراس'!AF$3:AH$30,$C133)","v":0},0,0]
[126,{"$f":"'توزيع الحراس'!B128","v":"محمد علي126"},{"$f":"'توزيع الحراس'!A128","v":126},{"$f":"COUNTIF('توزيع الحراس'!D$3:F$30,$C134)","v":0},{"$f":"COUNTIF('توزيع الحراس'!G$3:I$30,$C134)","v":0},{"$f":"COUNTIF('توزيع الحراس'!K$3:M$30,$C134)","v":0},{"$f":"COUNTIF('توزيع الحراس'!N$3:P$30,$C134)","v":0},{"$f":"COUNTIF('توزيع الحراس'!Q$3:S$30,$C134)","v":0},{"$f":"COUNTIF('توزيع الحراس'!T$3:V$30,$C134)","v":0},{"$f":"COUNTIF('توزيع الحراس'!W$3:Y$30,$C134)","v":0},{"$f":"COUNTIF('توزيع الحراس'!Z$3:AB$30,$C134)","v":0},{"$f":"COUNTIF('توزيع الحراس'!AC$3:AE$30,$C134)","v":0},{"$f":"COUNTIF('توزيع الحراس'!AF$3:AH$30,$C134)","v":0},0,0]
[127,{"$f":"'توزيع الحراس'!B129","v":"محمد علي127"},{"$f":"'توزيع الحراس'!A129","v":127},{"$f":"COUNTIF('توزيع الحراس'!D$3:F$30,$C135)","v":0},{"$f":"COUNTIF('توزيع الحراس'!G$3:I$30,$C135)","v":0},{"$f":"COUNTIF('توزيع الحراس'!K$3:M$30,$C135)","v":0},{"$f":"COUNTIF('توزيع الحراس'!N$3:P$30,$C135)","v":0},{"$f":"COUNTIF('توزيع الحراس'!Q$3:S$30,$C135)","v":0},{"$f":"COUNTIF('توزيع الحراس'!T$3:V$30,$C135)","v":0},{"$f":"COUNTIF('توزيع الحراس'!W$3:Y$30,$C135)","v":0},{"$f":"COUNTIF('توزيع الحراس'!Z$3:AB$30,$C135)","v":0},{"$f":"COUNTIF('توزيع الحراس'!AC$3:AE$30,$C135)","v":0},{"$f":"COUNTIF('توزيع الحراس'!AF$3:AH$30,$C135)","v":0},0,0]
[128,{"$f":"'توزيع الحراس'!B130","v":"محمد علي128"},{"$f":"'توزيع الحراس'!A130","v":128},{"$f":"COUNTIF('توزيع الحراس'!D$3:F$30,$C136)","v":0},{"$f":"COUNTIF('توزيع الحراس'!G$3:I$30,$C136)","v":0},{"$f":"COUNTIF('توزيع الحراس'!K$3:M$30,$C136)","v":0},{"$f":"COUNTIF('توزيع الحراس'!N$3:P$30,$C136)","v":0},{"$f":"COUNTIF('توزيع الحراس'!Q$3:S$30,$C136)","v":0},{"$f":"COUNTIF('توزيع الحراس'!T$3:V$30,$C136)","v":0},{"$f":"COUNTIF('توزيع الحراس'!W$3:Y$30,$C136)","v":0},{"$f":"COUNTIF('توزيع الحراس'!Z$3:AB$30,$C136)","v":0},{"$f":"COUNTIF('توزيع الحراس'!AC$3:AE$30,$C136)","v":0},{"$f":"COUNTIF('توزيع الحراس'!AF$3:AH$30,$C136)","v":0},0,0]
[129,{"$f":"'توزيع الحراس'!B131","v":"محمد علي129"},{"$f":"'توزيع الحراس'!A131","v":129},{"$f":"COUNTIF('توزيع الحراس'!D$3:F$30,$C137)","v":0},{"$f":"COUNTIF('توزيع الحراس'!G$3:I$30,$C137)","v":0},{"$f":"COUNTIF('توزيع الحراس'!K$3:M$30,$C137)","v":0},{"$f":"COUNTIF('توزيع الحراس'!N$3:P$30,$C137)","v":0},{"$f":"COUNTIF('توزيع الحراس'!Q$3:S$30,$C137)","v":0},{"$f":"COUNTIF('توزيع الحراس'!T$3:V$30,$C137)","v":0},{"$f":"COUNTIF('توزيع الحراس'!W$3:Y$30,$C137)","v":0},{"$f":"COUNTIF('توزيع الحراس'!Z$3:AB$30,$C137)","v":0},{"$f":"COUNTIF('توزيع الحراس'!AC$3:AE$30,$C137)","v":0},{"$f":"COUNTIF('توزيع الحراس'!AF$3:AH$30,$C137)","v":0},{"$f":"SUM(D137:M137)","v":0},{"$f":"N137*0.5","v":0}]
[130,{"$f":"'توزيع الحراس'!B132","v":"محمد علي130"},{"$f":"'توزيع الحراس'!A132","v":130},{"$f":"COUNTIF('توزيع الحراس'!D$3:F$30,$C138)","v":0},{"$f":"COUNTIF('توزيع الحراس'!G$3:I$30,$C138)","v":0},{"$f":"COUNTIF('توزيع الحراس'!K$3:M$30,$C138)","v":0},{"$f":"COUNTIF('توزيع الحراس'!N$3:P$30,$C138)","v":0},{"$f":"COUNTIF('توزيع الحراس'!Q$3:S$30,$C138)","v":0},{"$f":"COUNTIF('توزيع الحراس'!T$3:V$30,$C138)","v":0},{"$f":"COUNTIF('توزيع الحراس'!W$3:Y$30,$C138)","v":0},{"$f":"COUNTIF('توزيع الحراس'!Z$3:AB$30,$C138)","v":0},{"$f":"COUNTIF('توزيع الحراس'!AC$3:AE$30,$C138)","v":0},{"$f":"COUNTIF('توزيع الحراس'!AF$3:AH$30,$C138)","v":0},0,0]
[131,{"$f":"'توزيع الحراس'!B133","v":"محمد علي131"},{"$f":"'توزيع الحراس'!A133","v":131},{"$f":"COUNTIF('توزيع الحراس'!D$3:F$30,$C139)","v":0},{"$f":"COUNTIF('توزيع الحراس'!G$3:I$30,$C139)","v":0},{"$f":"COUNTIF('توزيع الحراس'!K$3:M$30,$C139)","v":0},{"$f":"COUNTIF('توزيع الحراس'!N$3:P$30,$C139)","v":0},{"$f":"COUNTIF('توزيع الحراس'!Q$3:S$30,$C139)","v":0},{"$f":"COUNTIF('توزيع الحراس'!T$3:V$30,$C139)","v":0},{"$f":"COUNTIF('توزيع الحراس'!W$3:Y$30,$C139)","v":0},{"$f":"COUNTIF('توزيع الحراس'!Z$3:AB$30,$C139)","v":0},{"$f":"COUNTIF('توزيع الحراس'!AC$3:AE$30,$C139)","v":0},{"$f":"COUNTIF('توزيع الحراس'!AF$3:AH$30,$C139)","v":0},0,0]
[132,{"$f":"'توزيع الحراس'!B134","v":"محمد علي132"},{"$f":"'توزيع الحراس'!A134","v":132},{"$f":"COUNTIF('توزيع الحراس'!D$3:F$30,$C140)","v":0},{"$f":"COUNTIF('توزيع الحراس'!G$3:I$30,$C140)","v":0},{"$f":"COUNTIF('توزيع الحراس'!K$3:M$30,$C140)","v":0},{"$f":"COUNTIF('توزيع الحراس'!N$3:P$30,$C140)","v":0},{"$f":"COUNTIF('توزيع الحراس'!Q$3:S$30,$C140)","v":0},{"$f":"COUNTIF('توزيع الحراس'!T$3:V$30,$C140)","v":0},{"$f":"COUNTIF('توزيع الحراس'!W$3:Y$30,$C140)","v":0},{"$f":"COUNTIF('توزيع الحراس'!Z$3:AB$30,$C140)","v":0},{"$f":"COUNTIF('توزيع الحراس'!AC$3:AE$30,$C140)","v":0},{"$f":"COUNTIF('توزيع الحراس'!AF$3:AH$30,$C140)","v":0},0,0]
[133,{"$f":"'توزيع الحراس'!B135","v":"محمد علي133"},{"$f":"'توزيع الحراس'!A135","v":133},{"$f":"COUNTIF('توزيع الحراس'!D$3:F$30,$C141)","v":0},{"$f":"COUNTIF('توزيع الحراس'!G$3:I$30,$C141)","v":0},{"$f":"COUNTIF('توزيع الحراس'!K$3:M$30,$C141)","v":0},{"$f":"COUNTIF('توزيع الحراس'!N$3:P$30,$C141)","v":0},{"$f":"COUNTIF('توزيع الحراس'!Q$3:S$30,$C141)","v":0},{"$f":"COUNTIF('توزيع الحراس'!T$3:V$30,$C141)","v":0},{"$f":"COUNTIF('توزيع الحراس'!W$3:Y$30,$C141)","v":0},{"$f":"COUNTIF('توزيع الحراس'!Z$3:AB$30,$C141)","v":0},{"$f":"COUNTIF('توزيع الحراس'!AC$3:AE$30,$C141)","v":0},{"$f":"COUNTIF('توزيع الحراس'!AF$3:AH$30,$C141)","v":0},0,0]
[134,{"$f":"'توزيع الحراس'!B136","v":"محمد علي134"},{"$f":"'توزيع الحراس'!A136","v":134},{"$f":"COUNTIF('توزيع الحراس'!D$3:F$30,$C142)","v":0},{"$f":"COUNTIF('توزيع الحراس'!G$3:I$30,$C142)","v":0},{"$f":"COUNTIF('توزيع الحراس'!K$3:M$30,$C142)","v":0},{"$f":"COUNTIF('توزيع الحراس'!N$3:P$30,$C142)","v":0},{"$f":"COUNTIF('توزيع الحراس'!Q$3:S$30,$C142)","v":0},{"$f":"COUNTIF('توزيع الحراس'!T$3:V$30,$C142)","v":0},{"$f":"COUNTIF('توزيع الحراس'!W$3:Y$30,$C142)","v":0},{"$f":"COUNTIF('توزيع الحراس'!Z$3:AB$30,$C142)","v":0},{"$f":"COUNTIF('توزيع الحراس'!AC$3:AE$30,$C142)","v":0},{"$f":"COUNTIF('توزيع الحراس'!AF$3:AH$30,$C142)","v":0},0,0]
[135,{"$f":"'توزيع الحراس'!B137","v":"محمد علي135"},{"$f":"'توزيع الحراس'!A137","v":135},{"$f":"COUNTIF('توزيع الحراس'!D$3:F$30,$C143)","v":0},{"$f":"COUNTIF('توزيع الحراس'!G$3:I$30,$C143)","v":0},{"$f":"COUNTIF('توزيع الحراس'!K$3:M$30,$C143)","v":0},{"$f":"COUNTIF('توزيع الحراس'!N$3:P$30,$C143)","v":0},{"$f":"COUNTIF('توزيع الحراس'!Q$3:S$30,$C143)","v":0},{"$f":"COUNTIF('توزيع الحراس'!T$3:V$30,$C143)","v":0},{"$f":"COUNTIF('توزيع الحراس'!W$3:Y$30,$C143)","v":0},{"$f":"COUNTIF('توزيع الحراس'!Z$3:AB$30,$C143)","v":0},{"$f":"COUNTIF('توزيع الحراس'!AC$3:AE$30,$C143)","v":0},{"$f":"COUNTIF('توزيع الحراس'!AF$3:AH$30,$C143)","v":0},0,0]
[136,{"$f":"'توزيع الحراس'!B138","v":"محمد علي136"},{"$f":"'توزيع الحراس'!A138","v":136},{"$f":"COUNTIF('توزيع الحراس'!D$3:F$30,$C144)","v":0},{"$f":"COUNTIF('توزيع الحراس'!G$3:I$30,$C144)","v":0},{"$f":"COUNTIF('توزيع الحراس'!K$3:M$30,$C144)","v":0},{"$f":"COUNTIF('توزيع الحراس'!N$3:P$30,$C144)","v":0},{"$f":"COUNTIF('توزيع الحراس'!Q$3:S$30,$C144)","v":0},{"$f":"COUNTIF('توزيع الحراس'!T$3:V$30,$C144)","v":0},{"$f":"COUNTIF('توزيع الحراس'!W$3:Y$30,$C144)","v":0},{"$f":"COUNTIF('توزيع الحراس'!Z$3:AB$30,$C144)","v":0},{"$f":"COUNTIF('توزيع الحراس'!AC$3:AE$30,$C144)","v":0},{"$f":"COUNTIF('توزيع الحراس'!AF$3:AH$30,$C144)","v":0},0,0]
[137,{"$f":"'توزيع الحراس'!B139","v":"محمد علي137"},{"$f":"'توزيع الحراس'!A139","v":137},{"$f":"COUNTIF('توزيع الحراس'!D$3:F$30,$C145)","v":0},{"$f":"COUNTIF('توزيع الحراس'!G$3:I$30,$C145)","v":0},{"$f":"COUNTIF('توزيع الحراس'!K$3:M$30,$C145)","v":0},{"$f":"COUNTIF('توزيع الحراس'!N$3:P$30,$C145)","v":0},{"$f":"COUNTIF('توزيع الحراس'!Q$3:S$30,$C145)","v":0},{"$f":"COUNTIF('توزيع الحراس'!T$3:V$30,$C145)","v":0},{"$f":"COUNTIF('توزيع الحراس'!W$3:Y$30,$C145)","v":0},{"$f":"COUNTIF('توزيع الحراس'!Z$3:AB$30,$C145)","v":0},{"$f":"COUNTIF('توزيع الحراس'!AC$3:AE$30,$C145)","v":0},{"$f":"COUNTIF('توزيع الحراس'!AF$3:AH$30,$C145)","v":0},0,0]
[138,{"$f":"'توزيع الحراس'!B140","v":"محمد علي138"},{"$f":"'توزيع الحراس'!A140","v":138},{"$f":"COUNTIF('توزيع الحراس'!D$3:F$30,$C146)","v":0},{"$f":"COUNTIF('توزيع الحراس'!G$3:I$30,$C146)","v":0},{"$f":"COUNTIF('توزيع الحراس'!K$3:M$30,$C146)","v":0},{"$f":"COUNTIF('توزيع الحراس'!N$3:P$30,$C146)","v":0},{"$f":"COUNTIF('توزيع الحراس'!Q$3:S$30,$C146)","v":0},{"$f":"COUNTIF('توزيع الحراس'!T$3:V$30,$C146)","v":0},{"$f":"COUNTIF('توزيع الحراس'!W$3:Y$30,$C146)","v":0},{"$f":"COUNTIF('توزيع الحراس'!Z$3:AB$30,$C146)","v":0},{"$f":"COUNTIF('توزيع الحراس'!AC$3:AE$30,$C146)","v":0},{"$f":"COUNTIF('توزيع الحراس'!AF$3:AH$30,$C146)","v":0},0,0]
[139,{"$f":"'توزيع الحراس'!B141","v":"محمد علي139"},{"$f":"'توزيع الحراس'!A141","v":139},{"$f":"COUNTIF('توزيع الحراس'!D$3:F$30,$C147)","v":0},{"$f":"COUNTIF('توزيع الحراس'!G$3:I$30,$C147)","v":0},{"$f":"COUNTIF('توزيع الحراس'!K$3:M$30,$C147)","v":0},{"$f":"COUNTIF('توزيع الحراس'!N$3:P$30,$C147)","v":0},{"$f":"COUNTIF('توزيع الحراس'!Q$3:S$30,$C147)","v":0},{"$f":"COUNTIF('توزيع الحراس'!T$3:V$30,$C147)","v":0},{"$f":"COUNTIF('توزيع الحراس'!W$3:Y$30,$C147)","v":0},{"$f":"COUNTIF('توزيع الحراس'!Z$3:AB$30,$C147)","v":0},{"$f":"COUNTIF('توزيع الحراس'!AC$3:AE$30,$C147)","v":0},{"$f":"COUNTIF('توزيع الحراس'!AF$3:AH$30,$C147)","v":0},0,0]
[140,{"$f":"'توزيع الحراس'!B142","v":"محمد علي140"},{"$f":"'توزيع الحراس'!A142","v":140},{"$f":"COUNTIF('توزيع الحراس'!D$3:F$30,$C148)","v":0},{"$f":"COUNTIF('توزيع الحراس'!G$3:I$30,$C148)","v":0},{"$f":"COUNTIF('توزيع الحراس'!K$3:M$30,$C148)","v":0},{"$f":"COUNTIF('توزيع الحراس'!N$3:P$30,$C148)","v":0},{"$f":"COUNTIF('توزيع الحراس'!Q$3:S$30,$C148)","v":0},{"$f":"COUNTIF('توزيع الحراس'!T$3:V$30,$C148)","v":0},{"$f":"COUNTIF('توزيع الحراس'!W$3:Y$30,$C148)","v":0},{"$f":"COUNTIF('توزيع الحراس'!Z$3:AB$30,$C148)","v":0},{"$f":"COUNTIF('توزيع الحراس'!AC$3:AE$30,$C148)","v":0},{"$f":"COUNTIF('توزيع الحراس'!AF$3:AH$30,$C148)","v":0},0,0]
[141,{"$f":"'توزيع الحراس'!B143","v":"محمد علي141"},{"$f":"'توزيع الحراس'!A143","v":141},{"$f":"COUNTIF('توزيع الحراس'!D$3:F$30,$C149)","v":0},{"$f":"COUNTIF('توزيع الحراس'!G$3:I$30,$C149)","v":0},{"$f":"COUNTIF('توزيع الحراس'!K$3:M$30,$C149)","v":0},{"$f":"COUNTIF('توزيع الحراس'!N$3:P$30,$C149)","v":0},{"$f":"COUNTIF('توزيع الحراس'!Q$3:S$30,$C149)","v":0},{"$f":"COUNTIF('توزيع الحراس'!T$3:V$30,$C149)","v":0},{"$f":"COUNTIF('توزيع الحراس'!W$3:Y$30,$C149)","v":0},{"$f":"COUNTIF('توزيع الحراس'!Z$3:AB$30,$C149)","v":0},{"$f":"COUNTIF('توزيع الحراس'!AC$3:AE$30,$C149)","v":0},{"$f":"COUNTIF('توزيع الحراس'!AF$3:AH$30,$C149)","v":0},0,0]
[142,{"$f":"'توزيع الحراس'!B144","v":"محمد علي142"},{"$f":"'توزيع الحراس'!A144","v":142},{"$f":"COUNTIF('توزيع الحراس'!D$3:F$30,$C150)","v":0},{"$f":"COUNTIF('توزيع الحراس'!G$3:I$30,$C150)","v":0},{"$f":"COUNTIF('توزيع الحراس'!K$3:M$30,$C150)","v":0},{"$f":"COUNTIF('توزيع الحراس'!N$3:P$30,$C150)","v":0},{"$f":"COUNTIF('توزيع الحراس'!Q$3:S$30,$C150)","v":0},{"$f":"COUNTIF('توزيع الحراس'!T$3:V$30,$C150)","v":0},{"$f":"COUNTIF('توزيع الحراس'!W$3:Y$30,$C150)","v":0},{"$f":"COUNTIF('توزيع الحراس'!Z$3:AB$30,$C150)","v":0},{"$f":"COUNTIF('توزيع الحراس'!AC$3:AE$30,$C150)","v":0},{"$f":"COUNTIF('توزيع الحراس'!AF$3:AH$30,$C150)","v":0},0,{"$f":"N150*0.5","v":0}]
["المجمـــــــــــــــــــــــــــــــــــــــــــــــــــــــــــــــــــــــوع",null,null,null,null,null,null,null,null,null,null,null,null,{"$f":"SUM(N9:N150)","v":0},{"$f":"N151*0.5","v":0}]

{"sheet":"توزيع الحراس","index":3,"n_rows":252,"n_cols":37,"rows_kept":252,"cut":false,"hidden":false,"merged":[[1,25,1,27],[1,3,1,5],[1,6,1,8],[0,3,0,8],[0,10,0,15],[1,10,1,12],[1,13,1,15],[0,16,0,21],[1,16,1,18],[1,19,1,21],[32,2,42,2],[1,28,1,30],[1,31,1,33],[0,28,0,33],[32,3,32,5],[32,6,32,8],[32,10,32,12],[32,13,32,15],[32,16,32,18],[32,19,32,21],[32,22,32,24],[32,25,32,27],[32,28,32,30],[32,31,32,33],[0,22,0,27],[1,22,1,24]]}
[null,null,"أيام الامتحان             ","اليوم الأول",null,null,null,null,null,null,"اليوم الثاني",null,null,null,null,null,"اليوم الثالث",null,null,null,null,null,"اليوم الرابع",null,null,null,null,null,"اليوم الخامس"]
["الرقم"," لقب وإسم الحارس","القاعات","صباحا",null,null,"مساءً",null,null,null,"صباحا",null,null,"مساءً",null,null,"صباحا",null,null,"مساءً",null,null,"صباحا",null,null,"مساءً",null,null,"صباحا",null,null,"مساءً"]
[{"$f":"prof!A2","v":1},{"$f":"prof!C2","v":"محمد علي1"},1]
[{"$f":"prof!A3","v":2},{"$f":"prof!C3","v":"محمد علي2"},2,null,null,null,null,null,null,null,null,null,null,null,null,null,null,null,null,null,null,null,null,null,null,null,null,null,null,null,null,null,null,null,null,null,{"$f":"IF(C2:C32=G2,ROW(),\"\")","v":""}]
[{"$f":"prof!A4","v":3},{"$f":"prof!C4","v":"محمد علي3"},3]
[{"$f":"prof!A5","v":4},{"$f":"prof!C5","v":"محمد علي4"},4]
[{"$f":"prof!A6","v":5},{"$f":"prof!C6","v":"محمد علي5"},5]
[{"$f":"prof!A7","v":6},{"$f":"prof!C7","v":"محمد علي6"},6]
[{"$f":"prof!A8","v":7},{"$f":"prof!C8","v":"محمد علي7"},7]
[{"$f":"prof!A9","v":8},{"$f":"prof!C9","v":"محمد علي8"},8]
[{"$f":"prof!A10","v":9},{"$f":"prof!C10","v":"محمد علي9"},9]
[{"$f":"prof!A11","v":10},{"$f":"prof!C11","v":"محمد علي10"},10]
[{"$f":"prof!A12","v":11},{"$f":"prof!C12","v":"محمد علي11"},11]
[{"$f":"prof!A13","v":12},{"$f":"prof!C13","v":"محمد علي12"},12]
[{"$f":"prof!A14","v":13},{"$f":"prof!C14","v":"محمد علي13"},13]
[{"$f":"prof!A15","v":14},{"$f":"prof!C15","v":"محمد علي14"},14]
[{"$f":"prof!A16","v":15},{"$f":"prof!C16","v":"محمد علي15"},15]
[{"$f":"prof!A17","v":16},{"$f":"prof!C17","v":"محمد علي16"},16]
[{"$f":"prof!A18","v":17},{"$f":"prof!C18","v":"محمد علي17"},17]
[{"$f":"prof!A19","v":18},{"$f":"prof!C19","v":"محمد علي18"},18]
[{"$f":"prof!A20","v":19},{"$f":"prof!C20","v":"محمد علي19"},19]
[{"$f":"prof!A21","v":20},{"$f":"prof!C21","v":"محمد علي20"},20]
[{"$f":"prof!A22","v":21},{"$f":"prof!C22","v":"محمد علي21"},21]
[{"$f":"prof!A23","v":22},{"$f":"prof!C23","v":"محمد علي22"},22]
[{"$f":"prof!A24","v":23},{"$f":"prof!C24","v":"محمد علي23"},23]
[{"$f":"prof!A25","v":24},{"$f":"prof!C25","v":"محمد علي24"},24]
[{"$f":"prof!A26","v":25},{"$f":"prof!C26","v":"محمد علي25"},25]
[{"$f":"prof!A27","v":26},{"$f":"prof!C27","v":"محمد علي26"},26]
[{"$f":"prof!A28","v":27},{"$f":"prof!C28","v":"محمد علي27"},27]
[{"$f":"prof!A29","v":28},{"$f":"prof!C29","v":"محمد علي28"},28]
[{"$f":"prof!A30","v":29},{"$f":"prof!C30","v":"محمد علي29"},29]
[{"$f":"prof!A31","v":30},{"$f":"prof!C31","v":"محمد علي30"},30]
[{"$f":"prof!A32","v":31},{"$f":"prof!C32","v":"محمد علي31"},"الحراس الإحتياطيين","صباحا",null,null,"مساءا",null,null,null,"صباحا",null,null,"مساءا",null,null,"صباحا",null,null,"مساءا",null,null,"صباحا",null,null,"مساءا",null,null,"صباحا",null,null,"مساءا"]
[{"$f":"prof!A33","v":32},{"$f":"prof!C33","v":"محمد علي32"}]
[{"$f":"prof!A34","v":33},{"$f":"prof!C34","v":"محمد علي33"}]
[{"$f":"prof!A35","v":34},{"$f":"prof!C35","v":"محمد علي34"}]
[{"$f":"prof!A36","v":35},{"$f":"prof!C36","v":"محمد علي35"}]
[{"$f":"prof!A37","v":36},{"$f":"prof!C37","v":"محمد علي36"}]
[{"$f":"prof!A38","v":37},{"$f":"prof!C38","v":"محمد علي37"}]
[{"$f":"prof!A39","v":38},{"$f":"prof!C39","v":"محمد علي38"}]
[{"$f":"prof!A40","v":39},{"$f":"prof!C40","v":"محمد علي39"}]
[{"$f":"prof!A41","v":40},{"$f":"prof!C41","v":"محمد علي40"}]
[{"$f":"prof!A42","v":41},{"$f":"prof!C42","v":"محمد علي41"}]
[{"$f":"prof!A43","v":42},{"$f":"prof!C43","v":"محمد علي42"}]
[{"$f":"prof!A44","v":43},{"$f":"prof!C44","v":"محمد علي43"}]
[{"$f":"prof!A45","v":44},{"$f":"prof!C45","v":"محمد علي44"}]
[{"$f":"prof!A46","v":45},{"$f":"prof!C46","v":"محمد علي45"}]
[{"$f":"prof!A47","v":46},{"$f":"prof!C47","v":"محمد علي46"}]
[{"$f":"prof!A48","v":47},{"$f":"prof!C48","v":"محمد علي47"}]
[{"$f":"prof!A49","v":48},{"$f":"prof!C49","v":"محمد علي48"}]
[{"$f":"prof!A50","v":49},{"$f":"prof!C50","v":"محمد علي49"}]
[{"$f":"prof!A51","v":50},{"$f":"prof!C51","v":"محمد علي50"}]
[{"$f":"prof!A52","v":51},{"$f":"prof!C52","v":"محمد علي51"}]
[{"$f":"prof!A53","v":52},{"$f":"prof!C53","v":"محمد علي52"}]
[{"$f":"prof!A54","v":53},{"$f":"prof!C54","v":"محمد علي53"}]
[{"$f":"prof!A55","v":54},{"$f":"prof!C55","v":"محمد علي54"}]
[{"$f":"prof!A56","v":55},{"$f":"prof!C56","v":"محمد علي55"}]
[{"$f":"prof!A57","v":56},{"$f":"prof!C57","v":"محمد علي56"}]
[{"$f":"prof!A58","v":57},{"$f":"prof!C58","v":"محمد علي57"}]
[{"$f":"prof!A59","v":58},{"$f":"prof!C59","v":"محمد علي58"}]
[{"$f":"prof!A60","v":59},{"$f":"prof!C60","v":"محمد علي59"}]
[{"$f":"prof!A61","v":60},{"$f":"prof!C61","v":"محمد علي60"}]
[{"$f":"prof!A62","v":61},{"$f":"prof!C62","v":"محمد علي61"}]
[{"$f":"prof!A63","v":62},{"$f":"prof!C63","v":"محمد علي62"}]
[{"$f":"prof!A64","v":63},{"$f":"prof!C64","v":"محمد علي63"}]
[{"$f":"prof!A65","v":64},{"$f":"prof!C65","v":"محمد علي64"}]
[{"$f":"prof!A66","v":65},{"$f":"prof!C66","v":"محمد علي65"}]
[{"$f":"prof!A67","v":66},{"$f":"prof!C67","v":"محمد علي66"}]
[{"$f":"prof!A68","v":67},{"$f":"prof!C68","v":"محمد علي67"}]
[{"$f":"prof!A69","v":68},{"$f":"prof!C69","v":"محمد علي68"}]
[{"$f":"prof!A70","v":69},{"$f":"prof!C70","v":"محمد علي69"}]
[{"$f":"prof!A71","v":70},{"$f":"prof!C71","v":"محمد علي70"}]
[{"$f":"prof!A72","v":71},{"$f":"prof!C72","v":"محمد علي71"}]
[{"$f":"prof!A73","v":72},{"$f":"prof!C73","v":"محمد علي72"}]
[{"$f":"prof!A74","v":73},{"$f":"prof!C74","v":"محمد علي73"}]
[{"$f":"prof!A75","v":74},{"$f":"prof!C75","v":"محمد علي74"}]
[{"$f":"prof!A76","v":75},{"$f":"prof!C76","v":"محمد علي75"}]
[{"$f":"prof!A77","v":76},{"$f":"prof!C77","v":"محمد علي76"}]
[{"$f":"prof!A78","v":77},{"$f":"prof!C78","v":"محمد علي77"}]
[{"$f":"prof!A79","v":78},{"$f":"prof!C79","v":"محمد علي78"}]
[{"$f":"prof!A80","v":79},{"$f":"prof!C80","v":"محمد علي79"}]
[{"$f":"prof!A81","v":80},{"$f":"prof!C81","v":"محمد علي80"}]
[{"$f":"prof!A82","v":81},{"$f":"prof!C82","v":"محمد علي81"}]
[{"$f":"prof!A83","v":82},{"$f":"prof!C83","v":"محمد علي82"}]
[{"$f":"prof!A84","v":83},{"$f":"prof!C84","v":"محمد علي83"}]
[{"$f":"prof!A85","v":84},{"$f":"prof!C85","v":"محمد علي84"}]
[{"$f":"prof!A86","v":85},{"$f":"prof!C86","v":"محمد علي85"}]
[{"$f":"prof!A87","v":86},{"$f":"prof!C87","v":"محمد علي86"}]
[{"$f":"prof!A88","v":87},{"$f":"prof!C88","v":"محمد علي87"}]
[{"$f":"prof!A89","v":88},{"$f":"prof!C89","v":"محمد علي88"}]
[{"$f":"prof!A90","v":89},{"$f":"prof!C90","v":"محمد علي89"}]
[{"$f":"prof!A91","v":90},{"$f":"prof!C91","v":"محمد علي90"}]
[{"$f":"prof!A92","v":91},{"$f":"prof!C92","v":"محمد علي91"}]
[{"$f":"prof!A93","v":92},{"$f":"prof!C93","v":"محمد علي92"}]
[{"$f":"prof!A94","v":93},{"$f":"prof!C94","v":"محمد علي93"}]
[{"$f":"prof!A95","v":94},{"$f":"prof!C95","v":"محمد علي94"}]
[{"$f":"prof!A96","v":95},{"$f":"prof!C96","v":"محمد علي95"}]
[{"$f":"prof!A97","v":96},{"$f":"prof!C97","v":"محمد علي96"}]
[{"$f":"prof!A98","v":97},{"$f":"prof!C98","v":"محمد علي97"}]
[{"$f":"prof!A99","v":98},{"$f":"prof!C99","v":"محمد علي98"}]
[{"$f":"prof!A100","v":99},{"$f":"prof!C100","v":"محمد علي99"}]
[{"$f":"prof!A101","v":100},{"$f":"prof!C101","v":"محمد علي100"}]
[{"$f":"prof!A102","v":101},{"$f":"prof!C102","v":"محمد علي101"}]
[{"$f":"prof!A103","v":102},{"$f":"prof!C103","v":"محمد علي102"}]
[{"$f":"prof!A104","v":103},{"$f":"prof!C104","v":"محمد علي103"}]
[{"$f":"prof!A105","v":104},{"$f":"prof!C105","v":"محمد علي104"}]
[{"$f":"prof!A106","v":105},{"$f":"prof!C106","v":"محمد علي105"}]
[{"$f":"prof!A107","v":106},{"$f":"prof!C107","v":"محمد علي106"}]
[{"$f":"prof!A108","v":107},{"$f":"prof!C108","v":"محمد علي107"}]
[{"$f":"prof!A109","v":108},{"$f":"prof!C109","v":"محمد علي108"}]
[{"$f":"prof!A110","v":109},{"$f":"prof!C110","v":"محمد علي109"}]
[{"$f":"prof!A111","v":110},{"$f":"prof!C111","v":"محمد علي110"}]
[{"$f":"prof!A112","v":111},{"$f":"prof!C112","v":"محمد علي111"}]
[{"$f":"prof!A113","v":112},{"$f":"prof!C113","v":"محمد علي112"}]
[{"$f":"prof!A114","v":113},{"$f":"prof!C114","v":"محمد علي113"}]
[{"$f":"prof!A115","v":114},{"$f":"prof!C115","v":"محمد علي114"}]
[{"$f":"prof!A116","v":115},{"$f":"prof!C116","v":"محمد علي115"}]
[{"$f":"prof!A117","v":116},{"$f":"prof!C117","v":"محمد علي116"}]
[{"$f":"prof!A118","v":117},{"$f":"prof!C118","v":"محمد علي117"}]
[{"$f":"prof!A119","v":118},{"$f":"prof!C119","v":"محمد علي118"}]
[{"$f":"prof!A120","v":119},{"$f":"prof!C120","v":"محمد علي119"}]
[{"$f":"prof!A121","v":120},{"$f":"prof!C121","v":"محمد علي120"}]
[{"$f":"prof!A122","v":121},{"$f":"prof!C122","v":"محمد علي121"}]
[{"$f":"prof!A123","v":122},{"$f":"prof!C123","v":"محمد علي122"}]
[{"$f":"prof!A124","v":123},{"$f":"prof!C124","v":"محمد علي123"}]
[{"$f":"prof!A125","v":124},{"$f":"prof!C125","v":"محمد علي124"}]
[{"$f":"prof!A126","v":125},{"$f":"prof!C126","v":"محمد علي125"}]
[{"$f":"prof!A127","v":126},{"$f":"prof!C127","v":"محمد علي126"}]
[{"$f":"prof!A128","v":127},{"$f":"prof!C128","v":"محمد علي127"}]
[{"$f":"prof!A129","v":128},{"$f":"prof!C129","v":"محمد علي128"}]
[{"$f":"prof!A130","v":129},{"$f":"prof!C130","v":"محمد علي129"}]
[{"$f":"prof!A131","v":130},{"$f":"prof!C131","v":"محمد علي130"}]
[{"$f":"prof!A132","v":131},{"$f":"prof!C132","v":"محمد علي131"}]
[{"$f":"prof!A133","v":132},{"$f":"prof!C133","v":"محمد علي132"}]
[{"$f":"prof!A134","v":133},{"$f":"prof!C134","v":"محمد علي133"}]
[{"$f":"prof!A135","v":134},{"$f":"prof!C135","v":"محمد علي134"}]
[{"$f":"prof!A136","v":135},{"$f":"prof!C136","v":"محمد علي135"}]
[{"$f":"prof!A137","v":136},{"$f":"prof!C137","v":"محمد علي136"}]
[{"$f":"prof!A138","v":137},{"$f":"prof!C138","v":"محمد علي137"}]
[{"$f":"prof!A139","v":138},{"$f":"prof!C139","v":"محمد علي138"}]
[{"$f":"prof!A140","v":139},{"$f":"prof!C140","v":"محمد علي139"}]
[{"$f":"prof!A141","v":140},{"$f":"prof!C141","v":"محمد علي140"}]
[{"$f":"prof!A142","v":141},{"$f":"prof!C142","v":"محمد علي141"}]
[{"$f":"prof!A143","v":142},{"$f":"prof!C143","v":"محمد علي142"}]
[{"$f":"prof!A144","v":143},{"$f":"prof!C144","v":"محمد علي143"}]
[{"$f":"prof!A145","v":144},{"$f":"prof!C145","v":"محمد علي144"}]
[{"$f":"prof!A146","v":145},{"$f":"prof!C146","v":"محمد علي145"}]
[{"$f":"prof!A147","v":146},{"$f":"prof!C147","v":"محمد علي146"}]
[{"$f":"prof!A148","v":147},{"$f":"prof!C148","v":"محمد علي147"}]
[{"$f":"prof!A149","v":148},{"$f":"prof!C149","v":"محمد علي148"}]
[{"$f":"prof!A150","v":149},{"$f":"prof!C150","v":"محمد علي149"}]
[{"$f":"prof!A151","v":150},{"$f":"prof!C151","v":"محمد علي150"}]
[{"$f":"prof!A152","v":151},{"$f":"prof!C152","v":"محمد علي151"}]
[{"$f":"prof!A153","v":152},{"$f":"prof!C153","v":"محمد علي152"}]
[{"$f":"prof!A154","v":153},{"$f":"prof!C154","v":"محمد علي153"}]
[{"$f":"prof!A155","v":154},{"$f":"prof!C155","v":"محمد علي154"}]
[{"$f":"prof!A156","v":155},{"$f":"prof!C156","v":"محمد علي155"}]
[{"$f":"prof!A157","v":156},{"$f":"prof!C157","v":"محمد علي156"}]
[{"$f":"prof!A158","v":157},{"$f":"prof!C158","v":"محمد علي157"}]
[{"$f":"prof!A159","v":158},{"$f":"prof!C159","v":"محمد علي158"}]
[{"$f":"prof!A160","v":159},{"$f":"prof!C160","v":"محمد علي159"}]
[{"$f":"prof!A161","v":160},{"$f":"prof!C161","v":"محمد علي160"}]
[{"$f":"prof!A162","v":161},{"$f":"prof!C162","v":"محمد علي161"}]
[{"$f":"prof!A163","v":162},{"$f":"prof!C163","v":"محمد علي162"}]
[{"$f":"prof!A164","v":163},{"$f":"prof!C164","v":"محمد علي163"}]
[{"$f":"prof!A165","v":164},{"$f":"prof!C165","v":"محمد علي164"}]
[{"$f":"prof!A166","v":165},{"$f":"prof!C166","v":"محمد علي165"}]
[{"$f":"prof!A167","v":166},{"$f":"prof!C167","v":"محمد علي166"}]
[{"$f":"prof!A168","v":167},{"$f":"prof!C168","v":"محمد علي167"}]
[{"$f":"prof!A169","v":168},{"$f":"prof!C169","v":"محمد علي168"}]
[{"$f":"prof!A170","v":169},{"$f":"prof!C170","v":"محمد علي169"}]
[{"$f":"prof!A171","v":170},{"$f":"prof!C171","v":"محمد علي170"}]
[{"$f":"prof!A172","v":171},{"$f":"prof!C172","v":"محمد علي171"}]
[{"$f":"prof!A173","v":172},{"$f":"prof!C173","v":"محمد علي172"}]
[{"$f":"prof!A174","v":173},{"$f":"prof!C174","v":"محمد علي173"}]
[{"$f":"prof!A175","v":174},{"$f":"prof!C175","v":"محمد علي174"}]
[{"$f":"prof!A176","v":175},{"$f":"prof!C176","v":"محمد علي175"}]
[{"$f":"prof!A177","v":176},{"$f":"prof!C177","v":"محمد علي176"}]
[{"$f":"prof!A178","v":177},{"$f":"prof!C178","v":"محمد علي177"}]
[{"$f":"prof!A179","v":178},{"$f":"prof!C179","v":"محمد علي178"}]
[{"$f":"prof!A180","v":179},{"$f":"prof!C180","v":"محمد علي179"}]
[{"$f":"prof!A181","v":180},{"$f":"prof!C181","v":"محمد علي180"}]
[{"$f":"prof!A182","v":181},{"$f":"prof!C182","v":"محمد علي181"}]
[{"$f":"prof!A183","v":182},{"$f":"prof!C183","v":"محمد علي182"}]
[{"$f":"prof!A184","v":183},{"$f":"prof!C184","v":"محمد علي183"}]
[{"$f":"prof!A185","v":184},{"$f":"prof!C185","v":"محمد علي184"}]
[{"$f":"prof!A186","v":185},{"$f":"prof!C186","v":"محمد علي185"}]
[{"$f":"prof!A187","v":186},{"$f":"prof!C187","v":"محمد علي186"}]
[{"$f":"prof!A188","v":187},{"$f":"prof!C188","v":"محمد علي187"}]
[{"$f":"prof!A189","v":188},{"$f":"prof!C189","v":"محمد علي188"}]
[{"$f":"prof!A190","v":189},{"$f":"prof!C190","v":"محمد علي189"}]
[{"$f":"prof!A191","v":190},{"$f":"prof!C191","v":"محمد علي190"}]
[{"$f":"prof!A192","v":191},{"$f":"prof!C192","v":"محمد علي191"}]
[{"$f":"prof!A193","v":192},{"$f":"prof!C193","v":"محمد علي192"}]
[{"$f":"prof!A194","v":193},{"$f":"prof!C194","v":"محمد علي193"}]
[{"$f":"prof!A195","v":194},{"$f":"prof!C195","v":"محمد علي194"}]
[{"$f":"prof!A196","v":195},{"$f":"prof!C196","v":"محمد علي195"}]
[{"$f":"prof!A197","v":196},{"$f":"prof!C197","v":"محمد علي196"}]
[{"$f":"prof!A198","v":197},{"$f":"prof!C198","v":"محمد علي197"}]
[{"$f":"prof!A199","v":198},{"$f":"prof!C199","v":"محمد علي198"}]
[{"$f":"prof!A200","v":199},{"$f":"prof!C200","v":"محمد علي199"}]
[{"$f":"prof!A201","v":200},{"$f":"prof!C201","v":"محمد علي200"}]
[{"$f":"prof!A202","v":201},{"$f":"prof!C202","v":"محمد علي201"}]
[{"$f":"prof!A203","v":202},{"$f":"prof!C203","v":"محمد علي202"}]
[{"$f":"prof!A204","v":203},{"$f":"prof!C204","v":"محمد علي203"}]
[{"$f":"prof!A205","v":204},{"$f":"prof!C205","v":"محمد علي204"}]
[{"$f":"prof!A206","v":205},{"$f":"prof!C206","v":"محمد علي205"}]
[{"$f":"prof!A207","v":206},{"$f":"prof!C207","v":"محمد علي206"}]
[{"$f":"prof!A208","v":207},{"$f":"prof!C208","v":"محمد علي207"}]
[{"$f":"prof!A209","v":208},{"$f":"prof!C209","v":"محمد علي208"}]
[{"$f":"prof!A210","v":209},{"$f":"prof!C210","v":"محمد علي209"}]
[{"$f":"prof!A211","v":210},{"$f":"prof!C211","v":"محمد علي210"}]
[{"$f":"prof!A212","v":211},{"$f":"prof!C212","v":"محمد علي211"}]
[{"$f":"prof!A213","v":212},{"$f":"prof!C213","v":"محمد علي212"}]
[{"$f":"prof!A214","v":213},{"$f":"prof!C214","v":"محمد علي213"}]
[{"$f":"prof!A215","v":214},{"$f":"prof!C215","v":"محمد علي214"}]
[{"$f":"prof!A216","v":215},{"$f":"prof!C216","v":"محمد علي215"}]
[{"$f":"prof!A217","v":216},{"$f":"prof!C217","v":"محمد علي216"}]
[{"$f":"prof!A218","v":217},{"$f":"prof!C218","v":"محمد علي217"}]
[{"$f":"prof!A219","v":218},{"$f":"prof!C219","v":"محمد علي218"}]
[{"$f":"prof!A220","v":219},{"$f":"prof!C220","v":"محمد علي219"}]
[{"$f":"prof!A221","v":220},{"$f":"prof!C221","v":"محمد علي220"}]
[{"$f":"prof!A222","v":221},{"$f":"prof!C222","v":"محمد علي221"}]
[{"$f":"prof!A223","v":222},{"$f":"prof!C223","v":"محمد علي222"}]
[{"$f":"prof!A224","v":223},{"$f":"prof!C224","v":"محمد علي223"}]
[{"$f":"prof!A225","v":224},{"$f":"prof!C225","v":"محمد علي224"}]
[{"$f":"prof!A226","v":225},{"$f":"prof!C226","v":"محمد علي225"}]
[{"$f":"prof!A227","v":226},{"$f":"prof!C227","v":"محمد علي226"}]
[{"$f":"prof!A228","v":227},{"$f":"prof!C228","v":"محمد علي227"}]
[{"$f":"prof!A229","v":228},{"$f":"prof!C229","v":"محمد علي228"}]
[{"$f":"prof!A230","v":229},{"$f":"prof!C230","v":"محمد علي229"}]
[{"$f":"prof!A231","v":230},{"$f":"prof!C231","v":"محمد علي230"}]
[{"$f":"prof!A232","v":231},{"$f":"prof!C232","v":"محمد علي231"}]
[{"$f":"prof!A233","v":232},{"$f":"prof!C233","v":"محمد علي232"}]
[{"$f":"prof!A234","v":233},{"$f":"prof!C234","v":"محمد علي233"}]
[{"$f":"prof!A235","v":234},{"$f":"prof!C235","v":"محمد علي234"}]
[{"$f":"prof!A236","v":235},{"$f":"prof!C236","v":"محمد علي235"}]
[{"$f":"prof!A237","v":236},{"$f":"prof!C237","v":"محمد علي236"}]
[{"$f":"prof!A238","v":237},{"$f":"prof!C238","v":"محمد علي237"}]
[{"$f":"prof!A239","v":238},{"$f":"prof!C239","v":"محمد علي238"}]
[{"$f":"prof!A240","v":239},{"$f":"prof!C240","v":"محمد علي239"}]
[{"$f":"prof!A241","v":240},{"$f":"prof!C241","v":"محمد علي240"}]
[{"$f":"prof!A242","v":241},{"$f":"prof!C242","v":"محمد علي241"}]
[{"$f":"prof!A243","v":242},{"$f":"prof!C243","v":"محمد علي242"}]
[{"$f":"prof!A244","v":243},{"$f":"prof!C244","v":"محمد علي243"}]
[{"$f":"prof!A245","v":244},{"$f":"prof!C245","v":"محمد علي244"}]
[{"$f":"prof!A246","v":245},{"$f":"prof!C246","v":"محمد علي245"}]
[{"$f":"prof!A247","v":246},{"$f":"prof!C247","v":"محمد علي246"}]
[{"$f":"prof!A248","v":247},{"$f":"prof!C248","v":"محمد علي247"}]
[{"$f":"prof!A249","v":248},{"$f":"prof!C249","v":"محمد علي248"}]
[{"$f":"prof!A250","v":249},{"$f":"prof!C250","v":"محمد علي249"}]
[{"$f":"prof!A251","v":250},{"$f":"prof!C251","v":"محمد علي250"}]

{"sheet":"أيام الحراسة","index":4,"n_rows":89,"n_cols":21,"rows_kept":89,"cut":false,"hidden":false,"merged":[[30,10,30,14],[32,1,32,5],[9,6,9,8],[31,1,31,5],[31,6,31,9],[25,1,25,5],[26,1,26,5],[27,1,27,5],[28,1,28,5],[29,1,29,5],[24,1,24,5],[24,6,24,9],[25,6,25,9],[26,6,26,9],[27,6,27,9],[17,1,17,5],[19,1,19,5],[19,6,19,9],[21,6,21,9],[22,6,22,9],[16,1,16,5],[18,1,18,5],[30,1,30,5],[30,6,30,9],[20,10,20,14],[9,11,9,14],[14,10,14,14],[15,10,15,14],[12,10,12,14],[9,0,9,2],[9,3,9,4],[11,10,11,14],[11,6,11,9],[11,1,11,5],[13,10,13,14],[16,10,16,14],[17,10,17,14],[18,10,18,14],[19,10,19,14],[20,1,20,5],[16,6,16,9],[17,6,17,9],[18,6,18,9],[20,6,20,9],[0,0,0,13],[1,0,1,13],[2,8,2,13],[4,8,4,10],[15,6,15,9],[12,1,12,5],[13,1,13,5],[14,1,14,5],[15,1,15,5],[5,11,5,12],[4,11,4,12],[4,0,4,1],[4,2,4,6],[5,4,5,9],[12,6,12,9],[13,6,13,9],[14,6,14,9],[2,0,2,6],[39,10,39,14],[35,12,35,13],[36,12,36,13],[37,12,37,13],[37,0,37,2],[35,0,36,3],[21,10,21,14],[22,10,22,14],[25,10,25,14],[26,10,26,14],[27,10,27,14],[24,10,24,14],[23,10,23,14],[29,6,29,9],[32,6,32,9],[28,10,28,14],[29,10,29,14],[31,10,31,14],[32,10,32,14],[28,6,28,9],[21,1,21,5],[22,1,22,5],[23,6,23,9],[23,1,23,5],[55,4,55,9],[55,11,55,12],[59,0,59,2],[59,3,59,4],[59,6,59,8],[59,11,59,14],[50,0,50,13],[51,0,51,13],[52,0,52,6],[52,8,52,13],[54,0,54,1],[54,2,54,6],[54,8,54,10],[54,11,54,12],[63,1,63,5],[63,6,63,9],[63,10,63,14],[64,1,64,5],[64,6,64,9],[64,10,64,14],[61,1,61,5],[61,6,61,9],[61,10,61,14],[62,1,62,5],[62,6,62,9],[62,10,62,14],[67,1,67,5],[67,6,67,9],[67,10,67,14],[68,1,68,5],[68,6,68,9],[68,10,68,14],[65,1,65,5],[65,6,65,9],[65,10,65,14],[66,1,66,5],[66,6,66,9],[66,10,66,14],[71,1,71,5],[71,6,71,9],[71,10,71,14],[72,1,72,5],[72,6,72,9],[72,10,72,14],[69,1,69,5],[69,6,69,9],[69,10,69,14],[70,1,70,5],[70,6,70,9],[70,10,70,14],[75,1,75,5],[75,6,75,9],[75,10,75,14],[76,1,76,5],[76,6,76,9],[76,10,76,14],[73,1,73,5],[73,6,73,9],[73,10,73,14],[74,1,74,5],[74,6,74,9],[74,10,74,14],[79,1,79,5],[79,6,79,9],[79,10,79,14],[80,1,80,5],[80,6,80,9],[80,10,80,14],[77,1,77,5],[77,6,77,9],[77,10,77,14],[78,1,78,5],[78,6,78,9],[78,10,78,14],[86,0,86,2],[86,12,86,13],[88,10,88,14],[81,1,81,5],[81,6,81,9],[81,10,81,14],[84,0,85,3],[84,12,84,13],[85,12,85,13]]}
["الجمهوريــة الجزائريــة الديمقراطيــة الشعبيــة"]
["وزارة التربيــة الوطنيـة"]
["مديريــة التربيـــة لولايـــة الــــوادي",null,null,null,null,null,null,null,"الديوان الوطني للامتحانات والمسابقات"]
[]
["مركـز الإجــراء: ",null,{"$f":"'بيانات المركز.'!Q9","v":"ثانوية المجتهد - الوادي"},null,null,null,null,null,"رمز المركز:  ",null,null,{"$f":"'بيانات المركز.'!V7","v":390044}]
[null,null,null,null,{"$f":"'بيانات المركز.'!G13","v":"إمتحــان شهـادة البكالـــوريا"},null,null,null,null,null," دورة:",{"$f":"'بيانات المركز.'!D19","v":"جــــوان 2021"}]
[]
[]
[]
["التاريــــخ:",null,null,{"$f":"TODAY()","v":"2021-07-03"},null,null,"اليــــوم الثانــي",null,null,null,"الفتـــرة:","صباحيـــــة",null,null,null,null,null,null,null,"صباحيـــــة","اليــــوم الأول"]
[null,null,null,null,null,null,null,null,null,null,null,null,null,null,null,null,null,null,null,"مسائيـــــة","اليــــوم الثانــي"]
["القاعة","الحـــــارس الأول",null,null,null,null,"الحـــــارس الثانـــي",null,null,null,"الحـــارس الثالـــث",null,null,null,null,null,null,null,null,null,"اليــــوم الثالــث"]
[1,{"$f":"IFERROR(VLOOKUP(OFFSET('توزيع الحراس'!$A$1,MATCH($A13,'توزيع الحراس'!$C:$C,0)-1,MATCH($G$10,'توزيع الحراس'!$1:$1,0)+IF($L$10=\"صباحيـــــة\",0,3)+COUNTA($B$12:B$12)-2),prof,1,FALSE),\"\")","v":""},null,null,null,null,{"$f":"IFERROR(VLOOKUP(OFFSET('توزيع الحراس'!$A$1,MATCH($A13,'توزيع الحراس'!$C:$C,0)-1,MATCH($G$10,'توزيع الحراس'!$1:$1,0)+IF($L$10=\"صباحيـــــة\",0,3)+COUNTA($B$12:J$12)-2),prof,1,FALSE),\"\")","v":""},null,null,null,{"$f":"IFERROR(VLOOKUP(OFFSET('توزيع الحراس'!$A$1,MATCH($A13,'توزيع الحراس'!$C:$C,0)-1,MATCH($G$10,'توزيع الحراس'!$1:$1,0)+IF($L$10=\"صباحيـــــة\",0,3)+COUNTA($B$12:O$12)-2),prof,1,FALSE),\"\")","v":""},null,null,null,null,null,null,null,null,null,"اليــــوم الرابــع"]
[2,{"$f":"IFERROR(VLOOKUP(OFFSET('توزيع الحراس'!$A$1,MATCH($A14,'توزيع الحراس'!$C:$C,0)-1,MATCH($G$10,'توزيع الحراس'!$1:$1,0)+IF($L$10=\"صباحيـــــة\",0,3)+COUNTA($B$12:B$12)-2),prof,1,FALSE),\"\")","v":""},null,null,null,null,{"$f":"IFERROR(VLOOKUP(OFFSET('توزيع الحراس'!$A$1,MATCH($A14,'توزيع الحراس'!$C:$C,0)-1,MATCH($G$10,'توزيع الحراس'!$1:$1,0)+IF($L$10=\"صباحيـــــة\",0,3)+COUNTA($B$12:J$12)-2),prof,1,FALSE),\"\")","v":""},null,null,null,{"$f":"IFERROR(VLOOKUP(OFFSET('توزيع الحراس'!$A$1,MATCH($A14,'توزيع الحراس'!$C:$C,0)-1,MATCH($G$10,'توزيع الحراس'!$1:$1,0)+IF($L$10=\"صباحيـــــة\",0,3)+COUNTA($B$12:O$12)-2),prof,1,FALSE),\"\")","v":""},null,null,null,null,null,null,null,null,null,"اليــــوم الخامــس"]
[3,{"$f":"IFERROR(VLOOKUP(OFFSET('توزيع الحراس'!$A$1,MATCH($A15,'توزيع الحراس'!$C:$C,0)-1,MATCH($G$10,'توزيع الحراس'!$1:$1,0)+IF($L$10=\"صباحيـــــة\",0,3)+COUNTA($B$12:B$12)-2),prof,1,FALSE),\"\")","v":""},null,null,null,null,{"$f":"IFERROR(VLOOKUP(OFFSET('توزيع الحراس'!$A$1,MATCH($A15,'توزيع الحراس'!$C:$C,0)-1,MATCH($G$10,'توزيع الحراس'!$1:$1,0)+IF($L$10=\"صباحيـــــة\",0,3)+COUNTA($B$12:J$12)-2),prof,1,FALSE),\"\")","v":""},null,null,null,{"$f":"IFERROR(VLOOKUP(OFFSET('توزيع الحراس'!$A$1,MATCH($A15,'توزيع الحراس'!$C:$C,0)-1,MATCH($G$10,'توزيع الحراس'!$1:$1,0)+IF($L$10=\"صباحيـــــة\",0,3)+COUNTA($B$12:O$12)-2),prof,1,FALSE),\"\")","v":""}]
[4,{"$f":"IFERROR(VLOOKUP(OFFSET('توزيع الحراس'!$A$1,MATCH($A16,'توزيع الحراس'!$C:$C,0)-1,MATCH($G$10,'توزيع الحراس'!$1:$1,0)+IF($L$10=\"صباحيـــــة\",0,3)+COUNTA($B$12:B$12)-2),prof,1,FALSE),\"\")","v":""},null,null,null,null,{"$f":"IFERROR(VLOOKUP(OFFSET('توزيع الحراس'!$A$1,MATCH($A16,'توزيع الحراس'!$C:$C,0)-1,MATCH($G$10,'توزيع الحراس'!$1:$1,0)+IF($L$10=\"صباحيـــــة\",0,3)+COUNTA($B$12:J$12)-2),prof,1,FALSE),\"\")","v":""},null,null,null,{"$f":"IFERROR(VLOOKUP(OFFSET('توزيع الحراس'!$A$1,MATCH($A16,'توزيع الحراس'!$C:$C,0)-1,MATCH($G$10,'توزيع الحراس'!$1:$1,0)+IF($L$10=\"صباحيـــــة\",0,3)+COUNTA($B$12:O$12)-2),prof,1,FALSE),\"\")","v":""}]
[5,{"$f":"IFERROR(VLOOKUP(OFFSET('توزيع الحراس'!$A$1,MATCH($A17,'توزيع الحراس'!$C:$C,0)-1,MATCH($G$10,'توزيع الحراس'!$1:$1,0)+IF($L$10=\"صباحيـــــة\",0,3)+COUNTA($B$12:B$12)-2),prof,1,FALSE),\"\")","v":""},null,null,null,null,{"$f":"IFERROR(VLOOKUP(OFFSET('توزيع الحراس'!$A$1,MATCH($A17,'توزيع الحراس'!$C:$C,0)-1,MATCH($G$10,'توزيع الحراس'!$1:$1,0)+IF($L$10=\"صباحيـــــة\",0,3)+COUNTA($B$12:J$12)-2),prof,1,FALSE),\"\")","v":""},null,null,null,{"$f":"IFERROR(VLOOKUP(OFFSET('توزيع الحراس'!$A$1,MATCH($A17,'توزيع الحراس'!$C:$C,0)-1,MATCH($G$10,'توزيع الحراس'!$1:$1,0)+IF($L$10=\"صباحيـــــة\",0,3)+COUNTA($B$12:O$12)-2),prof,1,FALSE),\"\")","v":""}]
[6,{"$f":"IFERROR(VLOOKUP(OFFSET('توزيع الحراس'!$A$1,MATCH($A18,'توزيع الحراس'!$C:$C,0)-1,MATCH($G$10,'توزيع الحراس'!$1:$1,0)+IF($L$10=\"صباحيـــــة\",0,3)+COUNTA($B$12:B$12)-2),prof,1,FALSE),\"\")","v":""},null,null,null,null,{"$f":"IFERROR(VLOOKUP(OFFSET('توزيع الحراس'!$A$1,MATCH($A18,'توزيع الحراس'!$C:$C,0)-1,MATCH($G$10,'توزيع الحراس'!$1:$1,0)+IF($L$10=\"صباحيـــــة\",0,3)+COUNTA($B$12:J$12)-2),prof,1,FALSE),\"\")","v":""},null,null,null,{"$f":"IFERROR(VLOOKUP(OFFSET('توزيع الحراس'!$A$1,MATCH($A18,'توزيع الحراس'!$C:$C,0)-1,MATCH($G$10,'توزيع الحراس'!$1:$1,0)+IF($L$10=\"صباحيـــــة\",0,3)+COUNTA($B$12:O$12)-2),prof,1,FALSE),\"\")","v":""}]
[7,{"$f":"IFERROR(VLOOKUP(OFFSET('توزيع الحراس'!$A$1,MATCH($A19,'توزيع الحراس'!$C:$C,0)-1,MATCH($G$10,'توزيع الحراس'!$1:$1,0)+IF($L$10=\"صباحيـــــة\",0,3)+COUNTA($B$12:B$12)-2),prof,1,FALSE),\"\")","v":""},null,null,null,null,{"$f":"IFERROR(VLOOKUP(OFFSET('توزيع الحراس'!$A$1,MATCH($A19,'توزيع الحراس'!$C:$C,0)-1,MATCH($G$10,'توزيع الحراس'!$1:$1,0)+IF($L$10=\"صباحيـــــة\",0,3)+COUNTA($B$12:J$12)-2),prof,1,FALSE),\"\")","v":""},null,null,null,{"$f":"IFERROR(VLOOKUP(OFFSET('توزيع الحراس'!$A$1,MATCH($A19,'توزيع الحراس'!$C:$C,0)-1,MATCH($G$10,'توزيع الحراس'!$1:$1,0)+IF($L$10=\"صباحيـــــة\",0,3)+COUNTA($B$12:O$12)-2),prof,1,FALSE),\"\")","v":""}]
[8,{"$f":"IFERROR(VLOOKUP(OFFSET('توزيع الحراس'!$A$1,MATCH($A20,'توزيع الحراس'!$C:$C,0)-1,MATCH($G$10,'توزيع الحراس'!$1:$1,0)+IF($L$10=\"صباحيـــــة\",0,3)+COUNTA($B$12:B$12)-2),prof,1,FALSE),\"\")","v":""},null,null,null,null,{"$f":"IFERROR(VLOOKUP(OFFSET('توزيع الحراس'!$A$1,MATCH($A20,'توزيع الحراس'!$C:$C,0)-1,MATCH($G$10,'توزيع الحراس'!$1:$1,0)+IF($L$10=\"صباحيـــــة\",0,3)+COUNTA($B$12:J$12)-2),prof,1,FALSE),\"\")","v":""},null,null,null,{"$f":"IFERROR(VLOOKUP(OFFSET('توزيع الحراس'!$A$1,MATCH($A20,'توزيع الحراس'!$C:$C,0)-1,MATCH($G$10,'توزيع الحراس'!$1:$1,0)+IF($L$10=\"صباحيـــــة\",0,3)+COUNTA($B$12:O$12)-2),prof,1,FALSE),\"\")","v":""}]
[9,{"$f":"IFERROR(VLOOKUP(OFFSET('توزيع الحراس'!$A$1,MATCH($A21,'توزيع الحراس'!$C:$C,0)-1,MATCH($G$10,'توزيع الحراس'!$1:$1,0)+IF($L$10=\"صباحيـــــة\",0,3)+COUNTA($B$12:B$12)-2),prof,1,FALSE),\"\")","v":""},null,null,null,null,{"$f":"IFERROR(VLOOKUP(OFFSET('توزيع الحراس'!$A$1,MATCH($A21,'توزيع الحراس'!$C:$C,0)-1,MATCH($G$10,'توزيع الحراس'!$1:$1,0)+IF($L$10=\"صباحيـــــة\",0,3)+COUNTA($B$12:J$12)-2),prof,1,FALSE),\"\")","v":""},null,null,null,{"$f":"IFERROR(VLOOKUP(OFFSET('توزيع الحراس'!$A$1,MATCH($A21,'توزيع الحراس'!$C:$C,0)-1,MATCH($G$10,'توزيع الحراس'!$1:$1,0)+IF($L$10=\"صباحيـــــة\",0,3)+COUNTA($B$12:O$12)-2),prof,1,FALSE),\"\")","v":""}]
[10,{"$f":"IFERROR(VLOOKUP(OFFSET('توزيع الحراس'!$A$1,MATCH($A22,'توزيع الحراس'!$C:$C,0)-1,MATCH($G$10,'توزيع الحراس'!$1:$1,0)+IF($L$10=\"صباحيـــــة\",0,3)+COUNTA($B$12:B$12)-2),prof,1,FALSE),\"\")","v":""},null,null,null,null,{"$f":"IFERROR(VLOOKUP(OFFSET('توزيع الحراس'!$A$1,MATCH($A22,'توزيع الحراس'!$C:$C,0)-1,MATCH($G$10,'توزيع الحراس'!$1:$1,0)+IF($L$10=\"صباحيـــــة\",0,3)+COUNTA($B$12:J$12)-2),prof,1,FALSE),\"\")","v":""},null,null,null,{"$f":"IFERROR(VLOOKUP(OFFSET('توزيع الحراس'!$A$1,MATCH($A22,'توزيع الحراس'!$C:$C,0)-1,MATCH($G$10,'توزيع الحراس'!$1:$1,0)+IF($L$10=\"صباحيـــــة\",0,3)+COUNTA($B$12:O$12)-2),prof,1,FALSE),\"\")","v":""}]
[11,{"$f":"IFERROR(VLOOKUP(OFFSET('توزيع الحراس'!$A$1,MATCH($A23,'توزيع الحراس'!$C:$C,0)-1,MATCH($G$10,'توزيع الحراس'!$1:$1,0)+IF($L$10=\"صباحيـــــة\",0,3)+COUNTA($B$12:B$12)-2),prof,1,FALSE),\"\")","v":""},null,null,null,null,{"$f":"IFERROR(VLOOKUP(OFFSET('توزيع الحراس'!$A$1,MATCH($A23,'توزيع الحراس'!$C:$C,0)-1,MATCH($G$10,'توزيع الحراس'!$1:$1,0)+IF($L$10=\"صباحيـــــة\",0,3)+COUNTA($B$12:J$12)-2),prof,1,FALSE),\"\")","v":""},null,null,null,{"$f":"IFERROR(VLOOKUP(OFFSET('توزيع الحراس'!$A$1,MATCH($A23,'توزيع الحراس'!$C:$C,0)-1,MATCH($G$10,'توزيع الحراس'!$1:$1,0)+IF($L$10=\"صباحيـــــة\",0,3)+COUNTA($B$12:O$12)-2),prof,1,FALSE),\"\")","v":""}]
[12,{"$f":"IFERROR(VLOOKUP(OFFSET('توزيع الحراس'!$A$1,MATCH($A24,'توزيع الحراس'!$C:$C,0)-1,MATCH($G$10,'توزيع الحراس'!$1:$1,0)+IF($L$10=\"صباحيـــــة\",0,3)+COUNTA($B$12:B$12)-2),prof,1,FALSE),\"\")","v":""},null,null,null,null,{"$f":"IFERROR(VLOOKUP(OFFSET('توزيع الحراس'!$A$1,MATCH($A24,'توزيع الحراس'!$C:$C,0)-1,MATCH($G$10,'توزيع الحراس'!$1:$1,0)+IF($L$10=\"صباحيـــــة\",0,3)+COUNTA($B$12:J$12)-2),prof,1,FALSE),\"\")","v":""},null,null,null,{"$f":"IFERROR(VLOOKUP(OFFSET('توزيع الحراس'!$A$1,MATCH($A24,'توزيع الحراس'!$C:$C,0)-1,MATCH($G$10,'توزيع الحراس'!$1:$1,0)+IF($L$10=\"صباحيـــــة\",0,3)+COUNTA($B$12:O$12)-2),prof,1,FALSE),\"\")","v":""}]
[13,{"$f":"IFERROR(VLOOKUP(OFFSET('توزيع الحراس'!$A$1,MATCH($A25,'توزيع الحراس'!$C:$C,0)-1,MATCH($G$10,'توزيع الحراس'!$1:$1,0)+IF($L$10=\"صباحيـــــة\",0,3)+COUNTA($B$12:B$12)-2),prof,1,FALSE),\"\")","v":""},null,null,null,null,{"$f":"IFERROR(VLOOKUP(OFFSET('توزيع الحراس'!$A$1,MATCH($A25,'توزيع الحراس'!$C:$C,0)-1,MATCH($G$10,'توزيع الحراس'!$1:$1,0)+IF($L$10=\"صباحيـــــة\",0,3)+COUNTA($B$12:J$12)-2),prof,1,FALSE),\"\")","v":""},null,null,null,{"$f":"IFERROR(VLOOKUP(OFFSET('توزيع الحراس'!$A$1,MATCH($A25,'توزيع الحراس'!$C:$C,0)-1,MATCH($G$10,'توزيع الحراس'!$1:$1,0)+IF($L$10=\"صباحيـــــة\",0,3)+COUNTA($B$12:O$12)-2),prof,1,FALSE),\"\")","v":""}]
[14,{"$f":"IFERROR(VLOOKUP(OFFSET('توزيع الحراس'!$A$1,MATCH($A26,'توزيع الحراس'!$C:$C,0)-1,MATCH($G$10,'توزيع الحراس'!$1:$1,0)+IF($L$10=\"صباحيـــــة\",0,3)+COUNTA($B$12:B$12)-2),prof,1,FALSE),\"\")","v":""},null,null,null,null,{"$f":"IFERROR(VLOOKUP(OFFSET('توزيع الحراس'!$A$1,MATCH($A26,'توزيع الحراس'!$C:$C,0)-1,MATCH($G$10,'توزيع الحراس'!$1:$1,0)+IF($L$10=\"صباحيـــــة\",0,3)+COUNTA($B$12:J$12)-2),prof,1,FALSE),\"\")","v":""},null,null,null,{"$f":"IFERROR(VLOOKUP(OFFSET('توزيع الحراس'!$A$1,MATCH($A26,'توزيع الحراس'!$C:$C,0)-1,MATCH($G$10,'توزيع الحراس'!$1:$1,0)+IF($L$10=\"صباحيـــــة\",0,3)+COUNTA($B$12:O$12)-2),prof,1,FALSE),\"\")","v":""}]
[15,{"$f":"IFERROR(VLOOKUP(OFFSET('توزيع الحراس'!$A$1,MATCH($A27,'توزيع الحراس'!$C:$C,0)-1,MATCH($G$10,'توزيع الحراس'!$1:$1,0)+IF($L$10=\"صباحيـــــة\",0,3)+COUNTA($B$12:B$12)-2),prof,1,FALSE),\"\")","v":""},null,null,null,null,{"$f":"IFERROR(VLOOKUP(OFFSET('توزيع الحراس'!$A$1,MATCH($A27,'توزيع الحراس'!$C:$C,0)-1,MATCH($G$10,'توزيع الحراس'!$1:$1,0)+IF($L$10=\"صباحيـــــة\",0,3)+COUNTA($B$12:J$12)-2),prof,1,FALSE),\"\")","v":""},null,null,null,{"$f":"IFERROR(VLOOKUP(OFFSET('توزيع الحراس'!$A$1,MATCH($A27,'توزيع الحراس'!$C:$C,0)-1,MATCH($G$10,'توزيع الحراس'!$1:$1,0)+IF($L$10=\"صباحيـــــة\",0,3)+COUNTA($B$12:O$12)-2),prof,1,FALSE),\"\")","v":""}]
[16,{"$f":"IFERROR(VLOOKUP(OFFSET('توزيع الحراس'!$A$1,MATCH($A28,'توزيع الحراس'!$C:$C,0)-1,MATCH($G$10,'توزيع الحراس'!$1:$1,0)+IF($L$10=\"صباحيـــــة\",0,3)+COUNTA($B$12:B$12)-2),prof,1,FALSE),\"\")","v":""},null,null,null,null,{"$f":"IFERROR(VLOOKUP(OFFSET('توزيع الحراس'!$A$1,MATCH($A28,'توزيع الحراس'!$C:$C,0)-1,MATCH($G$10,'توزيع الحراس'!$1:$1,0)+IF($L$10=\"صباحيـــــة\",0,3)+COUNTA($B$12:J$12)-2),prof,1,FALSE),\"\")","v":""},null,null,null,{"$f":"IFERROR(VLOOKUP(OFFSET('توزيع الحراس'!$A$1,MATCH($A28,'توزيع الحراس'!$C:$C,0)-1,MATCH($G$10,'توزيع الحراس'!$1:$1,0)+IF($L$10=\"صباحيـــــة\",0,3)+COUNTA($B$12:O$12)-2),prof,1,FALSE),\"\")","v":""}]
[17,{"$f":"IFERROR(VLOOKUP(OFFSET('توزيع الحراس'!$A$1,MATCH($A29,'توزيع الحراس'!$C:$C,0)-1,MATCH($G$10,'توزيع الحراس'!$1:$1,0)+IF($L$10=\"صباحيـــــة\",0,3)+COUNTA($B$12:B$12)-2),prof,1,FALSE),\"\")","v":""},null,null,null,null,{"$f":"IFERROR(VLOOKUP(OFFSET('توزيع الحراس'!$A$1,MATCH($A29,'توزيع الحراس'!$C:$C,0)-1,MATCH($G$10,'توزيع الحراس'!$1:$1,0)+IF($L$10=\"صباحيـــــة\",0,3)+COUNTA($B$12:J$12)-2),prof,1,FALSE),\"\")","v":""},null,null,null,{"$f":"IFERROR(VLOOKUP(OFFSET('توزيع الحراس'!$A$1,MATCH($A29,'توزيع الحراس'!$C:$C,0)-1,MATCH($G$10,'توزيع الحراس'!$1:$1,0)+IF($L$10=\"صباحيـــــة\",0,3)+COUNTA($B$12:O$12)-2),prof,1,FALSE),\"\")","v":""}]
[18,{"$f":"IFERROR(VLOOKUP(OFFSET('توزيع الحراس'!$A$1,MATCH($A30,'توزيع الحراس'!$C:$C,0)-1,MATCH($G$10,'توزيع الحراس'!$1:$1,0)+IF($L$10=\"صباحيـــــة\",0,3)+COUNTA($B$12:B$12)-2),prof,1,FALSE),\"\")","v":""},null,null,null,null,{"$f":"IFERROR(VLOOKUP(OFFSET('توزيع الحراس'!$A$1,MATCH($A30,'توزيع الحراس'!$C:$C,0)-1,MATCH($G$10,'توزيع الحراس'!$1:$1,0)+IF($L$10=\"صباحيـــــة\",0,3)+COUNTA($B$12:J$12)-2),prof,1,FALSE),\"\")","v":""},null,null,null,{"$f":"IFERROR(VLOOKUP(OFFSET('توزيع الحراس'!$A$1,MATCH($A30,'توزيع الحراس'!$C:$C,0)-1,MATCH($G$10,'توزيع الحراس'!$1:$1,0)+IF($L$10=\"صباحيـــــة\",0,3)+COUNTA($B$12:O$12)-2),prof,1,FALSE),\"\")","v":""}]
[19,{"$f":"IFERROR(VLOOKUP(OFFSET('توزيع الحراس'!$A$1,MATCH($A31,'توزيع الحراس'!$C:$C,0)-1,MATCH($G$10,'توزيع الحراس'!$1:$1,0)+IF($L$10=\"صباحيـــــة\",0,3)+COUNTA($B$12:B$12)-2),prof,1,FALSE),\"\")","v":""},null,null,null,null,{"$f":"IFERROR(VLOOKUP(OFFSET('توزيع الحراس'!$A$1,MATCH($A31,'توزيع الحراس'!$C:$C,0)-1,MATCH($G$10,'توزيع الحراس'!$1:$1,0)+IF($L$10=\"صباحيـــــة\",0,3)+COUNTA($B$12:J$12)-2),prof,1,FALSE),\"\")","v":""},null,null,null,{"$f":"IFERROR(VLOOKUP(OFFSET('توزيع الحراس'!$A$1,MATCH($A31,'توزيع الحراس'!$C:$C,0)-1,MATCH($G$10,'توزيع الحراس'!$1:$1,0)+IF($L$10=\"صباحيـــــة\",0,3)+COUNTA($B$12:O$12)-2),prof,1,FALSE),\"\")","v":""}]
[20,{"$f":"IFERROR(VLOOKUP(OFFSET('توزيع الحراس'!$A$1,MATCH($A32,'توزيع الحراس'!$C:$C,0)-1,MATCH($G$10,'توزيع الحراس'!$1:$1,0)+IF($L$10=\"صباحيـــــة\",0,3)+COUNTA($B$12:B$12)-2),prof,1,FALSE),\"\")","v":""},null,null,null,null,{"$f":"IFERROR(VLOOKUP(OFFSET('توزيع الحراس'!$A$1,MATCH($A32,'توزيع الحراس'!$C:$C,0)-1,MATCH($G$10,'توزيع الحراس'!$1:$1,0)+IF($L$10=\"صباحيـــــة\",0,3)+COUNTA($B$12:J$12)-2),prof,1,FALSE),\"\")","v":""},null,null,null,{"$f":"IFERROR(VLOOKUP(OFFSET('توزيع الحراس'!$A$1,MATCH($A32,'توزيع الحراس'!$C:$C,0)-1,MATCH($G$10,'توزيع الحراس'!$1:$1,0)+IF($L$10=\"صباحيـــــة\",0,3)+COUNTA($B$12:O$12)-2),prof,1,FALSE),\"\")","v":""}]
[21,{"$f":"IFERROR(VLOOKUP(OFFSET('توزيع الحراس'!$A$1,MATCH($A33,'توزيع الحراس'!$C:$C,0)-1,MATCH($G$10,'توزيع الحراس'!$1:$1,0)+IF($L$10=\"صباحيـــــة\",0,3)+COUNTA($B$12:B$12)-2),prof,1,FALSE),\"\")","v":""},null,null,null,null,{"$f":"IFERROR(VLOOKUP(OFFSET('توزيع الحراس'!$A$1,MATCH($A33,'توزيع الحراس'!$C:$C,0)-1,MATCH($G$10,'توزيع الحراس'!$1:$1,0)+IF($L$10=\"صباحيـــــة\",0,3)+COUNTA($B$12:J$12)-2),prof,1,FALSE),\"\")","v":""},null,null,null,{"$f":"IFERROR(VLOOKUP(OFFSET('توزيع الحراس'!$A$1,MATCH($A33,'توزيع الحراس'!$C:$C,0)-1,MATCH($G$10,'توزيع الحراس'!$1:$1,0)+IF($L$10=\"صباحيـــــة\",0,3)+COUNTA($B$12:O$12)-2),prof,1,FALSE),\"\")","v":""}]
[]
[]
["الحـــراس الإحتياطيــون:"]
[]
["المجمـــــوع",null,null,{"$f":"COUNTA(E36:O38)","v":0}]
[]
[null,null,null,null,null,null,null,null,null,null,{"$f":"'بيانات المركز.'!V11","v":"مصطفى مصطفى"}]
[]
[]
[]
[]
[]
[]
[]
[]
[]
[]
["الجمهوريــة الجزائريــة الديمقراطيــة الشعبيــة"]
["وزارة التربيــة الوطنيـة"]
["مديريــة التربيـــة لولايـــة الــــوادي",null,null,null,null,null,null,null,"الديوان الوطني للامتحانات والمسابقات"]
[]
["مركـز الإجــراء: ",null,{"$f":"'بيانات المركز.'!Q9","v":"ثانوية المجتهد - الوادي"},null,null,null,null,null,"رمز المركز:  ",null,null,{"$f":"'بيانات المركز.'!V7","v":390044}]
[null,null,null,null,{"$f":"'بيانات المركز.'!G13","v":"إمتحــان شهـادة البكالـــوريا"},null,null,null,null,null," دورة:",{"$f":"'بيانات المركز.'!D19","v":"جــــوان 2021"}]
[]
[]
[]
["التاريــــخ:",null,null,{"$f":"TODAY()","v":"2021-07-03"},null,null,{"$f":"G10","v":"اليــــوم الثانــي"},null,null,null,"الفتـــرة:",{"$f":"L10","v":"صباحيـــــة"}]
[]
["القاعة",{"$f":"B12","v":"الحـــــارس الأول"},null,null,null,null,{"$f":"G12","v":"الحـــــارس الثانـــي"},null,null,null,{"$f":"K12","v":"الحـــارس الثالـــث"}]
[1,{"$f":"IFERROR(VLOOKUP(OFFSET('توزيع الحراس'!$A$1,MATCH($A63,'توزيع الحراس'!$C:$C,0)-1,MATCH($G$10,'توزيع الحراس'!$1:$1,0)+IF($L$10=\"صباحيـــــة\",0,3)+COUNTA($B$12:B$12)-2),prof,3,FALSE),\"\")","v":""},null,null,null,null,{"$f":"IFERROR(VLOOKUP(OFFSET('توزيع الحراس'!$A$1,MATCH($A63,'توزيع الحراس'!$C:$C,0)-1,MATCH($G$10,'توزيع الحراس'!$1:$1,0)+IF($L$10=\"صباحيـــــة\",0,3)+COUNTA($B$12:J$12)-2),prof,3,FALSE),\"\")","v":""},null,null,null,{"$f":"IFERROR(VLOOKUP(OFFSET('توزيع الحراس'!$A$1,MATCH($A63,'توزيع الحراس'!$C:$C,0)-1,MATCH($G$10,'توزيع الحراس'!$1:$1,0)+IF($L$10=\"صباحيـــــة\",0,3)+COUNTA($B$12:O$12)-2),prof,3,FALSE),\"\")","v":""}]
[2,{"$f":"IFERROR(VLOOKUP(OFFSET('توزيع الحراس'!$A$1,MATCH($A64,'توزيع الحراس'!$C:$C,0)-1,MATCH($G$10,'توزيع الحراس'!$1:$1,0)+IF($L$10=\"صباحيـــــة\",0,3)+COUNTA($B$12:B$12)-2),prof,3,FALSE),\"\")","v":""},null,null,null,null,{"$f":"IFERROR(VLOOKUP(OFFSET('توزيع الحراس'!$A$1,MATCH($A64,'توزيع الحراس'!$C:$C,0)-1,MATCH($G$10,'توزيع الحراس'!$1:$1,0)+IF($L$10=\"صباحيـــــة\",0,3)+COUNTA($B$12:J$12)-2),prof,3,FALSE),\"\")","v":""},null,null,null,{"$f":"IFERROR(VLOOKUP(OFFSET('توزيع الحراس'!$A$1,MATCH($A64,'توزيع الحراس'!$C:$C,0)-1,MATCH($G$10,'توزيع الحراس'!$1:$1,0)+IF($L$10=\"صباحيـــــة\",0,3)+COUNTA($B$12:O$12)-2),prof,3,FALSE),\"\")","v":""}]
[3,{"$f":"IFERROR(VLOOKUP(OFFSET('توزيع الحراس'!$A$1,MATCH($A65,'توزيع الحراس'!$C:$C,0)-1,MATCH($G$10,'توزيع الحراس'!$1:$1,0)+IF($L$10=\"صباحيـــــة\",0,3)+COUNTA($B$12:B$12)-2),prof,3,FALSE),\"\")","v":""},null,null,null,null,{"$f":"IFERROR(VLOOKUP(OFFSET('توزيع الحراس'!$A$1,MATCH($A65,'توزيع الحراس'!$C:$C,0)-1,MATCH($G$10,'توزيع الحراس'!$1:$1,0)+IF($L$10=\"صباحيـــــة\",0,3)+COUNTA($B$12:J$12)-2),prof,3,FALSE),\"\")","v":""},null,null,null,{"$f":"IFERROR(VLOOKUP(OFFSET('توزيع الحراس'!$A$1,MATCH($A65,'توزيع الحراس'!$C:$C,0)-1,MATCH($G$10,'توزيع الحراس'!$1:$1,0)+IF($L$10=\"صباحيـــــة\",0,3)+COUNTA($B$12:O$12)-2),prof,3,FALSE),\"\")","v":""}]
[4,{"$f":"IFERROR(VLOOKUP(OFFSET('توزيع الحراس'!$A$1,MATCH($A66,'توزيع الحراس'!$C:$C,0)-1,MATCH($G$10,'توزيع الحراس'!$1:$1,0)+IF($L$10=\"صباحيـــــة\",0,3)+COUNTA($B$12:B$12)-2),prof,3,FALSE),\"\")","v":""},null,null,null,null,{"$f":"IFERROR(VLOOKUP(OFFSET('توزيع الحراس'!$A$1,MATCH($A66,'توزيع الحراس'!$C:$C,0)-1,MATCH($G$10,'توزيع الحراس'!$1:$1,0)+IF($L$10=\"صباحيـــــة\",0,3)+COUNTA($B$12:J$12)-2),prof,3,FALSE),\"\")","v":""},null,null,null,{"$f":"IFERROR(VLOOKUP(OFFSET('توزيع الحراس'!$A$1,MATCH($A66,'توزيع الحراس'!$C:$C,0)-1,MATCH($G$10,'توزيع الحراس'!$1:$1,0)+IF($L$10=\"صباحيـــــة\",0,3)+COUNTA($B$12:O$12)-2),prof,3,FALSE),\"\")","v":""}]
[5,{"$f":"IFERROR(VLOOKUP(OFFSET('توزيع الحراس'!$A$1,MATCH($A67,'توزيع الحراس'!$C:$C,0)-1,MATCH($G$10,'توزيع الحراس'!$1:$1,0)+IF($L$10=\"صباحيـــــة\",0,3)+COUNTA($B$12:B$12)-2),prof,3,FALSE),\"\")","v":""},null,null,null,null,{"$f":"IFERROR(VLOOKUP(OFFSET('توزيع الحراس'!$A$1,MATCH($A67,'توزيع الحراس'!$C:$C,0)-1,MATCH($G$10,'توزيع الحراس'!$1:$1,0)+IF($L$10=\"صباحيـــــة\",0,3)+COUNTA($B$12:J$12)-2),prof,3,FALSE),\"\")","v":""},null,null,null,{"$f":"IFERROR(VLOOKUP(OFFSET('توزيع الحراس'!$A$1,MATCH($A67,'توزيع الحراس'!$C:$C,0)-1,MATCH($G$10,'توزيع الحراس'!$1:$1,0)+IF($L$10=\"صباحيـــــة\",0,3)+COUNTA($B$12:O$12)-2),prof,3,FALSE),\"\")","v":""}]
[6,{"$f":"IFERROR(VLOOKUP(OFFSET('توزيع الحراس'!$A$1,MATCH($A68,'توزيع الحراس'!$C:$C,0)-1,MATCH($G$10,'توزيع الحراس'!$1:$1,0)+IF($L$10=\"صباحيـــــة\",0,3)+COUNTA($B$12:B$12)-2),prof,3,FALSE),\"\")","v":""},null,null,null,null,{"$f":"IFERROR(VLOOKUP(OFFSET('توزيع الحراس'!$A$1,MATCH($A68,'توزيع الحراس'!$C:$C,0)-1,MATCH($G$10,'توزيع الحراس'!$1:$1,0)+IF($L$10=\"صباحيـــــة\",0,3)+COUNTA($B$12:J$12)-2),prof,3,FALSE),\"\")","v":""},null,null,null,{"$f":"IFERROR(VLOOKUP(OFFSET('توزيع الحراس'!$A$1,MATCH($A68,'توزيع الحراس'!$C:$C,0)-1,MATCH($G$10,'توزيع الحراس'!$1:$1,0)+IF($L$10=\"صباحيـــــة\",0,3)+COUNTA($B$12:O$12)-2),prof,3,FALSE),\"\")","v":""}]
[7,{"$f":"IFERROR(VLOOKUP(OFFSET('توزيع الحراس'!$A$1,MATCH($A69,'توزيع الحراس'!$C:$C,0)-1,MATCH($G$10,'توزيع الحراس'!$1:$1,0)+IF($L$10=\"صباحيـــــة\",0,3)+COUNTA($B$12:B$12)-2),prof,3,FALSE),\"\")","v":""},null,null,null,null,{"$f":"IFERROR(VLOOKUP(OFFSET('توزيع الحراس'!$A$1,MATCH($A69,'توزيع الحراس'!$C:$C,0)-1,MATCH($G$10,'توزيع الحراس'!$1:$1,0)+IF($L$10=\"صباحيـــــة\",0,3)+COUNTA($B$12:J$12)-2),prof,3,FALSE),\"\")","v":""},null,null,null,{"$f":"IFERROR(VLOOKUP(OFFSET('توزيع الحراس'!$A$1,MATCH($A69,'توزيع الحراس'!$C:$C,0)-1,MATCH($G$10,'توزيع الحراس'!$1:$1,0)+IF($L$10=\"صباحيـــــة\",0,3)+COUNTA($B$12:O$12)-2),prof,3,FALSE),\"\")","v":""}]
[8,{"$f":"IFERROR(VLOOKUP(OFFSET('توزيع الحراس'!$A$1,MATCH($A70,'توزيع الحراس'!$C:$C,0)-1,MATCH($G$10,'توزيع الحراس'!$1:$1,0)+IF($L$10=\"صباحيـــــة\",0,3)+COUNTA($B$12:B$12)-2),prof,3,FALSE),\"\")","v":""},null,null,null,null,{"$f":"IFERROR(VLOOKUP(OFFSET('توزيع الحراس'!$A$1,MATCH($A70,'توزيع الحراس'!$C:$C,0)-1,MATCH($G$10,'توزيع الحراس'!$1:$1,0)+IF($L$10=\"صباحيـــــة\",0,3)+COUNTA($B$12:J$12)-2),prof,3,FALSE),\"\")","v":""},null,null,null,{"$f":"IFERROR(VLOOKUP(OFFSET('توزيع الحراس'!$A$1,MATCH($A70,'توزيع الحراس'!$C:$C,0)-1,MATCH($G$10,'توزيع الحراس'!$1:$1,0)+IF($L$10=\"صباحيـــــة\",0,3)+COUNTA($B$12:O$12)-2),prof,3,FALSE),\"\")","v":""}]
[9,{"$f":"IFERROR(VLOOKUP(OFFSET('توزيع الحراس'!$A$1,MATCH($A71,'توزيع الحراس'!$C:$C,0)-1,MATCH($G$10,'توزيع الحراس'!$1:$1,0)+IF($L$10=\"صباحيـــــة\",0,3)+COUNTA($B$12:B$12)-2),prof,3,FALSE),\"\")","v":""},null,null,null,null,{"$f":"IFERROR(VLOOKUP(OFFSET('توزيع الحراس'!$A$1,MATCH($A71,'توزيع الحراس'!$C:$C,0)-1,MATCH($G$10,'توزيع الحراس'!$1:$1,0)+IF($L$10=\"صباحيـــــة\",0,3)+COUNTA($B$12:J$12)-2),prof,3,FALSE),\"\")","v":""},null,null,null,{"$f":"IFERROR(VLOOKUP(OFFSET('توزيع الحراس'!$A$1,MATCH($A71,'توزيع الحراس'!$C:$C,0)-1,MATCH($G$10,'توزيع الحراس'!$1:$1,0)+IF($L$10=\"صباحيـــــة\",0,3)+COUNTA($B$12:O$12)-2),prof,3,FALSE),\"\")","v":""}]
[10,{"$f":"IFERROR(VLOOKUP(OFFSET('توزيع الحراس'!$A$1,MATCH($A72,'توزيع الحراس'!$C:$C,0)-1,MATCH($G$10,'توزيع الحراس'!$1:$1,0)+IF($L$10=\"صباحيـــــة\",0,3)+COUNTA($B$12:B$12)-2),prof,3,FALSE),\"\")","v":""},null,null,null,null,{"$f":"IFERROR(VLOOKUP(OFFSET('توزيع الحراس'!$A$1,MATCH($A72,'توزيع الحراس'!$C:$C,0)-1,MATCH($G$10,'توزيع الحراس'!$1:$1,0)+IF($L$10=\"صباحيـــــة\",0,3)+COUNTA($B$12:J$12)-2),prof,3,FALSE),\"\")","v":""},null,null,null,{"$f":"IFERROR(VLOOKUP(OFFSET('توزيع الحراس'!$A$1,MATCH($A72,'توزيع الحراس'!$C:$C,0)-1,MATCH($G$10,'توزيع الحراس'!$1:$1,0)+IF($L$10=\"صباحيـــــة\",0,3)+COUNTA($B$12:O$12)-2),prof,3,FALSE),\"\")","v":""}]
[11,{"$f":"IFERROR(VLOOKUP(OFFSET('توزيع الحراس'!$A$1,MATCH($A73,'توزيع الحراس'!$C:$C,0)-1,MATCH($G$10,'توزيع الحراس'!$1:$1,0)+IF($L$10=\"صباحيـــــة\",0,3)+COUNTA($B$12:B$12)-2),prof,3,FALSE),\"\")","v":""},null,null,null,null,{"$f":"IFERROR(VLOOKUP(OFFSET('توزيع الحراس'!$A$1,MATCH($A73,'توزيع الحراس'!$C:$C,0)-1,MATCH($G$10,'توزيع الحراس'!$1:$1,0)+IF($L$10=\"صباحيـــــة\",0,3)+COUNTA($B$12:J$12)-2),prof,3,FALSE),\"\")","v":""},null,null,null,{"$f":"IFERROR(VLOOKUP(OFFSET('توزيع الحراس'!$A$1,MATCH($A73,'توزيع الحراس'!$C:$C,0)-1,MATCH($G$10,'توزيع الحراس'!$1:$1,0)+IF($L$10=\"صباحيـــــة\",0,3)+COUNTA($B$12:O$12)-2),prof,3,FALSE),\"\")","v":""}]
[12,{"$f":"IFERROR(VLOOKUP(OFFSET('توزيع الحراس'!$A$1,MATCH($A74,'توزيع الحراس'!$C:$C,0)-1,MATCH($G$10,'توزيع الحراس'!$1:$1,0)+IF($L$10=\"صباحيـــــة\",0,3)+COUNTA($B$12:B$12)-2),prof,3,FALSE),\"\")","v":""},null,null,null,null,{"$f":"IFERROR(VLOOKUP(OFFSET('توزيع الحراس'!$A$1,MATCH($A74,'توزيع الحراس'!$C:$C,0)-1,MATCH($G$10,'توزيع الحراس'!$1:$1,0)+IF($L$10=\"صباحيـــــة\",0,3)+COUNTA($B$12:J$12)-2),prof,3,FALSE),\"\")","v":""},null,null,null,{"$f":"IFERROR(VLOOKUP(OFFSET('توزيع الحراس'!$A$1,MATCH($A74,'توزيع الحراس'!$C:$C,0)-1,MATCH($G$10,'توزيع الحراس'!$1:$1,0)+IF($L$10=\"صباحيـــــة\",0,3)+COUNTA($B$12:O$12)-2),prof,3,FALSE),\"\")","v":""}]
[13,{"$f":"IFERROR(VLOOKUP(OFFSET('توزيع الحراس'!$A$1,MATCH($A75,'توزيع الحراس'!$C:$C,0)-1,MATCH($G$10,'توزيع الحراس'!$1:$1,0)+IF($L$10=\"صباحيـــــة\",0,3)+COUNTA($B$12:B$12)-2),prof,3,FALSE),\"\")","v":""},null,null,null,null,{"$f":"IFERROR(VLOOKUP(OFFSET('توزيع الحراس'!$A$1,MATCH($A75,'توزيع الحراس'!$C:$C,0)-1,MATCH($G$10,'توزيع الحراس'!$1:$1,0)+IF($L$10=\"صباحيـــــة\",0,3)+COUNTA($B$12:J$12)-2),prof,3,FALSE),\"\")","v":""},null,null,null,{"$f":"IFERROR(VLOOKUP(OFFSET('توزيع الحراس'!$A$1,MATCH($A75,'توزيع الحراس'!$C:$C,0)-1,MATCH($G$10,'توزيع الحراس'!$1:$1,0)+IF($L$10=\"صباحيـــــة\",0,3)+COUNTA($B$12:O$12)-2),prof,3,FALSE),\"\")","v":""}]
[14,{"$f":"IFERROR(VLOOKUP(OFFSET('توزيع الحراس'!$A$1,MATCH($A76,'توزيع الحراس'!$C:$C,0)-1,MATCH($G$10,'توزيع الحراس'!$1:$1,0)+IF($L$10=\"صباحيـــــة\",0,3)+COUNTA($B$12:B$12)-2),prof,3,FALSE),\"\")","v":""},null,null,null,null,{"$f":"IFERROR(VLOOKUP(OFFSET('توزيع الحراس'!$A$1,MATCH($A76,'توزيع الحراس'!$C:$C,0)-1,MATCH($G$10,'توزيع الحراس'!$1:$1,0)+IF($L$10=\"صباحيـــــة\",0,3)+COUNTA($B$12:J$12)-2),prof,3,FALSE),\"\")","v":""},null,null,null,{"$f":"IFERROR(VLOOKUP(OFFSET('توزيع الحراس'!$A$1,MATCH($A76,'توزيع الحراس'!$C:$C,0)-1,MATCH($G$10,'توزيع الحراس'!$1:$1,0)+IF($L$10=\"صباحيـــــة\",0,3)+COUNTA($B$12:O$12)-2),prof,3,FALSE),\"\")","v":""}]
[15,{"$f":"IFERROR(VLOOKUP(OFFSET('توزيع الحراس'!$A$1,MATCH($A77,'توزيع الحراس'!$C:$C,0)-1,MATCH($G$10,'توزيع الحراس'!$1:$1,0)+IF($L$10=\"صباحيـــــة\",0,3)+COUNTA($B$12:B$12)-2),prof,3,FALSE),\"\")","v":""},null,null,null,null,{"$f":"IFERROR(VLOOKUP(OFFSET('توزيع الحراس'!$A$1,MATCH($A77,'توزيع الحراس'!$C:$C,0)-1,MATCH($G$10,'توزيع الحراس'!$1:$1,0)+IF($L$10=\"صباحيـــــة\",0,3)+COUNTA($B$12:J$12)-2),prof,3,FALSE),\"\")","v":""},null,null,null,{"$f":"IFERROR(VLOOKUP(OFFSET('توزيع الحراس'!$A$1,MATCH($A77,'توزيع الحراس'!$C:$C,0)-1,MATCH($G$10,'توزيع الحراس'!$1:$1,0)+IF($L$10=\"صباحيـــــة\",0,3)+COUNTA($B$12:O$12)-2),prof,3,FALSE),\"\")","v":""}]
[16,{"$f":"IFERROR(VLOOKUP(OFFSET('توزيع الحراس'!$A$1,MATCH($A78,'توزيع الحراس'!$C:$C,0)-1,MATCH($G$10,'توزيع الحراس'!$1:$1,0)+IF($L$10=\"صباحيـــــة\",0,3)+COUNTA($B$12:B$12)-2),prof,3,FALSE),\"\")","v":""},null,null,null,null,{"$f":"IFERROR(VLOOKUP(OFFSET('توزيع الحراس'!$A$1,MATCH($A78,'توزيع الحراس'!$C:$C,0)-1,MATCH($G$10,'توزيع الحراس'!$1:$1,0)+IF($L$10=\"صباحيـــــة\",0,3)+COUNTA($B$12:J$12)-2),prof,3,FALSE),\"\")","v":""},null,null,null,{"$f":"IFERROR(VLOOKUP(OFFSET('توزيع الحراس'!$A$1,MATCH($A78,'توزيع الحراس'!$C:$C,0)-1,MATCH($G$10,'توزيع الحراس'!$1:$1,0)+IF($L$10=\"صباحيـــــة\",0,3)+COUNTA($B$12:O$12)-2),prof,3,FALSE),\"\")","v":""}]
[17,{"$f":"IFERROR(VLOOKUP(OFFSET('توزيع الحراس'!$A$1,MATCH($A79,'توزيع الحراس'!$C:$C,0)-1,MATCH($G$10,'توزيع الحراس'!$1:$1,0)+IF($L$10=\"صباحيـــــة\",0,3)+COUNTA($B$12:B$12)-2),prof,3,FALSE),\"\")","v":""},null,null,null,null,{"$f":"IFERROR(VLOOKUP(OFFSET('توزيع الحراس'!$A$1,MATCH($A79,'توزيع الحراس'!$C:$C,0)-1,MATCH($G$10,'توزيع الحراس'!$1:$1,0)+IF($L$10=\"صباحيـــــة\",0,3)+COUNTA($B$12:J$12)-2),prof,3,FALSE),\"\")","v":""},null,null,null,{"$f":"IFERROR(VLOOKUP(OFFSET('توزيع الحراس'!$A$1,MATCH($A79,'توزيع الحراس'!$C:$C,0)-1,MATCH($G$10,'توزيع الحراس'!$1:$1,0)+IF($L$10=\"صباحيـــــة\",0,3)+COUNTA($B$12:O$12)-2),prof,3,FALSE),\"\")","v":""}]
[18,{"$f":"IFERROR(VLOOKUP(OFFSET('توزيع الحراس'!$A$1,MATCH($A80,'توزيع الحراس'!$C:$C,0)-1,MATCH($G$10,'توزيع الحراس'!$1:$1,0)+IF($L$10=\"صباحيـــــة\",0,3)+COUNTA($B$12:B$12)-2),prof,3,FALSE),\"\")","v":""},null,null,null,null,{"$f":"IFERROR(VLOOKUP(OFFSET('توزيع الحراس'!$A$1,MATCH($A80,'توزيع الحراس'!$C:$C,0)-1,MATCH($G$10,'توزيع الحراس'!$1:$1,0)+IF($L$10=\"صباحيـــــة\",0,3)+COUNTA($B$12:J$12)-2),prof,3,FALSE),\"\")","v":""},null,null,null,{"$f":"IFERROR(VLOOKUP(OFFSET('توزيع الحراس'!$A$1,MATCH($A80,'توزيع الحراس'!$C:$C,0)-1,MATCH($G$10,'توزيع الحراس'!$1:$1,0)+IF($L$10=\"صباحيـــــة\",0,3)+COUNTA($B$12:O$12)-2),prof,3,FALSE),\"\")","v":""}]
[19,{"$f":"IFERROR(VLOOKUP(OFFSET('توزيع الحراس'!$A$1,MATCH($A81,'توزيع الحراس'!$C:$C,0)-1,MATCH($G$10,'توزيع الحراس'!$1:$1,0)+IF($L$10=\"صباحيـــــة\",0,3)+COUNTA($B$12:B$12)-2),prof,3,FALSE),\"\")","v":""},null,null,null,null,{"$f":"IFERROR(VLOOKUP(OFFSET('توزيع الحراس'!$A$1,MATCH($A81,'توزيع الحراس'!$C:$C,0)-1,MATCH($G$10,'توزيع الحراس'!$1:$1,0)+IF($L$10=\"صباحيـــــة\",0,3)+COUNTA($B$12:J$12)-2),prof,3,FALSE),\"\")","v":""},null,null,null,{"$f":"IFERROR(VLOOKUP(OFFSET('توزيع الحراس'!$A$1,MATCH($A81,'توزيع الحراس'!$C:$C,0)-1,MATCH($G$10,'توزيع الحراس'!$1:$1,0)+IF($L$10=\"صباحيـــــة\",0,3)+COUNTA($B$12:O$12)-2),prof,3,FALSE),\"\")","v":""}]
[20,{"$f":"IFERROR(VLOOKUP(OFFSET('توزيع الحراس'!$A$1,MATCH($A82,'توزيع الحراس'!$C:$C,0)-1,MATCH($G$10,'توزيع الحراس'!$1:$1,0)+IF($L$10=\"صباحيـــــة\",0,3)+COUNTA($B$12:B$12)-2),prof,3,FALSE),\"\")","v":""},null,null,null,null,{"$f":"IFERROR(VLOOKUP(OFFSET('توزيع الحراس'!$A$1,MATCH($A82,'توزيع الحراس'!$C:$C,0)-1,MATCH($G$10,'توزيع الحراس'!$1:$1,0)+IF($L$10=\"صباحيـــــة\",0,3)+COUNTA($B$12:J$12)-2),prof,3,FALSE),\"\")","v":""},null,null,null,{"$f":"IFERROR(VLOOKUP(OFFSET('توزيع الحراس'!$A$1,MATCH($A82,'توزيع الحراس'!$C:$C,0)-1,MATCH($G$10,'توزيع الحراس'!$1:$1,0)+IF($L$10=\"صباحيـــــة\",0,3)+COUNTA($B$12:O$12)-2),prof,3,FALSE),\"\")","v":""}]
[]
[]
["الحـــراس الإحتياطيــون:"]
[]
["المجمـــــوع",null,null,{"$f":"COUNTA(E85:O87)","v":0}]
[]
[null,null,null,null,null,null,null,null,null,null,{"$f":"'بيانات المركز.'!V11","v":"مصطفى مصطفى"}]